Workbook

Sheet Intro & Unit Options
T5: Metric
T6: Imperial
B11: Unit Options
B12: Imperial

Sheet EULA
A1: THIS END-USER LICENCE AGREEMENT (EULA) IS A LEGAL AGREEMENT BETWEEN YOU, THE END-USER, IN YOUR CAPACITY AS AN INDIVIDUAL AND/OR AS AN AGENT FOR YOUR COMPANY, INSTITUTION OR OTHER ENTITY
A2: (hereinafter referred to as the "Licensee"), AND HER MAJESTY THE QUEEN IN RIGHT OF CANADA AS REPRESENTED BY THE MINISTER OF NATURAL RESOURCES (hereinafter referred to as "NRCan")
A4: WHEREAS NRCAN HAS THE RIGHT TO GRANT A LICENSE FOR THE AIR SOURCE HEAT PUMP SIZING AND SELECTION TOOL V1.1, AN EXCEL SOFTWARE TOOL THAT INTERACTIVELY GUIDES USERS IN APPLYING THE STEP-BY-STEP PROCESS DESCRIBED IN NRCAN’S AIR SOURCE HEAT PUMP SIZING AND SELECTION GUIDE, WHILE PROVIDING ADDITIONAL CHARTING AND PERFORMANCE ANALYSIS FEATURES (hereinafter referred to as the “Software”)
A7: BY DOWNLOADING, INSTALLING, USING OR COPYING THE SOFTWARE THE LICENSEE HEREBY AGREES TO ADHERE TO THE TERMS AND CONDITIONS BELOW:
A9: 1 GRANT OF LICENSE
A11: 1.1 Upon the terms and conditions hereinafter set forth, NRCan hereby grants to you, the Licensee, a non- exclusive license to use the Software.
A13: 1.2 The Licensee shall not disclose, modify, sell, sublicense, loan, transfer, reverse-engineer the Software, or otherwise assign any rights under this EULA to any third party.
A15: 1.3 Subject to Article 8.2, the Licensee shall not make more than one (1) backup copy of the Software. The backup copy shall be held confidential and shall be used only for the purpose of backup.
A17: 2 TERM
A19: 2.1 This EULA shall come into force upon the first instance that the Software is used by the Licensee or comes into the possession of the Licensee, and shall remain in force until the Licensee destroys all copies of the Software
A21: 3 | B21: OBLIGATIONS OF THE LICENSEE
A23: 3.1 | B23: The Licensee shall not make any statement or representation indicating that NRCan or the Government of Canada endorses or approves any recommendation, study, report, product, service or course of action as a result of the Licensee's use of the Software.
A25: 3.2 | B25: The Licensee’s publications referring to the Software must state the origin of the Software using the following text: "The Air Source Heat Pump Sizing and Selection Tool is owned by Her Majesty the Queen in Right of Canada as represented by the Minister of Natural Resources © 2021". The Licensee shall seek prior written approval for any other statements concerning NRCan beyond the origin of the Software.
A27: 4 | B27: MAINTENANCE AND SUPPORT
A29: 4.1 | B29: The parties understand and agree that while the Licensee may report any bugs or technical malfunctions in the Software to NRCan, NRCan is under no obligation to provide technical support, maintenance services, update services, notices of latent defects, or correction of defects for the Software.
A31: 5 | B31: TITLE
A33: 5.1 | B33: The Licensee agrees that the Software is and shall at all times remain the property of NRCan. The Licensee shall have no right, title and interest therein or thereto, except as expressly set forth in this EULA.
A35: 5.2 | B35: The Licensee acknowledges that the Software is protected under the Copyright Act.
A37: 6 | B37: WARRANTY AND INDEMNITY
A39: 6.1 | B39: The Software is licensed on an "AS IS" basis. NRCan makes no guarantees, representations, or warranties respecting the Software, either express or implied, arising by law or otherwise, including but not limited to effectiveness, completeness, accuracy, or fitness for a particular purpose.
A41: 6.2 | B41: NRCan shall not be liable in respect of any claim, demand or action, irrespective of the nature of the cause of the claim, demand or action alleging any loss, injury or damages, direct or indirect, which may result from the Licensee’s use or possession of the Software. NRCan shall not be liable in any way for loss of revenue or contracts, or any other consequential loss of any kind resulting from the Licensee’s use or possession of the Software.
A43: 6.3 | B43: The Licensee shall indemnify and defend NRCan, its employees, contractors, agents and suppliers, from and against all claims, demands, losses, damages, costs (including legal fees and costs on a substantial indemnity basis), actions, suits or proceedings brought by any third party, that are in any manner based upon, arising out of, or attributable to the use, possession, or performance of the Software by the Licensee, or it’s employees or agents.
A46: 7 | B46: TERMINATION
A48: 7.1 | B48: Subject to Article 8.2, if the Licensee breaches any obligation under this EULA and fails to remedy the breach within thirty (30) calendar days, the present EULA is deemed to be terminated immediately without any notice.
A50: 7.2 | B50: Notwithstanding any other provisions in this agreement, Articles 3.1 and 3.2 shall survive termination of this EULA.
A52: 8 | B52: DESTRUCTION
A54: 8.1 | B54: Prior to assigning, selling or otherwise disposing of any media, the Licensee shall completely erase or otherwise destroy any Software contained on such media.
A56: 8.2 | B56: Upon termination or expiration of the Agreement, the Licensee agrees to either:
A58: (1) | B58: Return to NRCan immediately all copies of the Software and any related documentation and completely erase or otherwise destroy the backup copy of the Software provided for under Article 1.3 on the Licensee’s media, or
A60: (2) | B60: Completely erase or otherwise destroy all copies of the Software, including but not limited to the backup copy provided for under Article 1.3, as well as any related documentation on the Licensee’s media.
A62: 9 | B62: APPLICABLE LAW
A64: 9.1 | B64: This EULA shall be interpreted in accordance with the provincial or territorial laws in force in Ontario, Canada.
A66: 10 | B66: NOTICES
A68: 10.1 | B68: All notices, inquiries and other communications hereunder shall be in writing and shall be deemed to have been duly given once confirmation is received after sending to NRCan:
B71: Natural Resources Canada Intellectual Property Division
B72: NRCan.ipd-dpi.rncan@canada.ca

Sheet Step 1 ASHP Configuration
A1: DESIGN STEP 1: Define ASHP Configuration | S1: DO NOT TOUCH THESE CELLS
T2: Option A: Centrally Ducted ASHP
A3: Design Step 1 Inputs | F3: Reference | T3: Option B: Ductless Mini-split, Single Zone ASHP
F4: This tab is used to define the ASHP configuration in the house or area that is considered for installation. | T4: Option C: Ductless Mini-split, Multi-Zone ASHP
F5: This includes the installation type and the number of units required. | T5: Option D: Ducted Mini-split ASHP
A6: ASHP Configuration | B6: Option A: Centrally Ducted ASHP | F6: This section refers to pages 5 to 7 of the ASHP Sizing Guide.
A7: =IF(OR(B6=T3,B6=T5),"# of Units Required",IF(B6=T4,"# of Indoor units","")) ->  | B7: 2
A8: =IF(B6=T4,"# of Outdoor Units","") ->  | B8: 1 | F8: Upon completing Step 1, you will have: | T8: New HVAC System
A9: Installation Type | B9: Full System Replacement | F9: Selected the type of ASHP most suited for the application | T9: Full System Replacement
F10: For ductless ASHP applications, estimated the number of units required. | T10: Add-on ASHP
F11: Recorded the type of installation: New home / Full HVAC replacement / Add-on ASHP.
T12: 1
T13: 2
T14: 3
T15: 4
T16: 5
A18: LEGEND
A20: Input | B20: In these cells the user should input a value
A22: Drop-down list | B22: In these cells a drop-down list will provide the user with specific values from which to choose
A24: Internal Calculation / Output | B24: These cells provide the values from internal calculations of the tool - they do not need any input from the user

Sheet Step 2 Choose Indoor Unit Type
A1: DESIGN STEP 2: Choose Indoor Unit Type(s) for use with Ductless ASHP | S1: DO NOT TOUCH THESE CELLS
T2: =IF(OR('Step 1 ASHP Configuration'!B6='Step 1 ASHP Configuration'!T2,'Step 1 ASHP Configuration'!B6='Step 1 ASHP Configuration'!T5),"NO", "YES") -> NO
A3: Design Step 2 Inputs | F3: Reference
F4: Pages 8 to 10 of the ASHP Sizing Guide | T4: Option 2A: Wall mounted
A5: =IF(OR('Step 1 ASHP Configuration'!B6='Step 1 ASHP Configuration'!T3,'Step 1 ASHP Configuration'!B6='Step 1 ASHP Configuration'!T4),"","• No indoor units to select for this ASHP configuration") -> • No indoor units to select for this ASHP configuration | T5: Option 2B: Floor mounted
A6: Indoor Unit #1 | B6: Option 2D: Horizontally ducted (concealed) | F6: Upon completing Step 2, you will have: | T6: Option 2C: Ceiling mounted
A7: =IF('Step 1 ASHP Configuration'!$B$7<2,"","Indoor Unit #2") -> Indoor Unit #2 | B7: Option 2A: Wall mounted | F7: Estimated the number of indoor unites required for the ductless ASHP application | T7: Option 2D: Horizontally ducted (concealed)
A8: =IF('Step 1 ASHP Configuration'!$B$7<3,"","Indoor Unit #3") ->  | B8: Option 2C: Ceiling mounted | F8: Selected the type of indoor unit(s) most suited for the application.
A9: =IF('Step 1 ASHP Configuration'!$B$7<4,"","Indoor Unit #4") ->  | B9: Option 2B: Floor mounted
A10: =IF('Step 1 ASHP Configuration'!$B$7<5,"","Indoor Unit #5") ->  | B10: Option 2C: Ceiling mounted

Sheet Step 3 Design Loads
A1: DESIGN STEP 3: Determine Design Heating and Cooling Load Estimates
E2: Design Step 3 Reference
A3: Design Step 3 Inputs | E3: Climate Inputs | S3: DO NOT TOUCH THESE CELLS | Y3: Reference
A4: Climate Inputs | Y4: Pages 11 to 18 in the ASHP Sizing Guide
A5: Country | B5: CAN | T5: Option A: CSA F280 Load Analysis
A6: Province | B6: ON | T6: Option B: Post-Retrofit Load Estimate | Y6: Upon completing Step 3, you will have:
A7: City | B7: Toronto (city hall) | C7: (Wait 5s before selecting) | T7: Option C: HOT2000 Simulation | Y7: Estimated the design heating and cooling loads for the overall house or targeted space.
A8: Climate Type | B8: =VLOOKUP($B$7,'Climate Zones'!$D$2:$F$1686,3,FALSE) -> Cold-Humid | T8: Option D: Loads Estimate from Existing Equipment Capacities | Y8: For centrally-ducted retrofit applications, estimated the maximum airflow capacity of the existing ductwork in the house.
A9: HDD (Metric) | B9: =VLOOKUP($B$7,'Climate Zones'!$D$2:$F$1686,2,FALSE) -> 3520 | Y9: Created a heating load curve for the overall house or targeted space to assist with ASHP equipment selection.
A10: Load Inputs
A11: Load Determination Method | B11: Option B: Post-Retrofit Load Estimate | T11: =IF(NOT(A17=""),"Yes","") -> 
A12: =IF(OR($B$11=$T$5,$B$11=$T$7),"Heating Design Load",IF($B$11=$T$6,"Heating Load if all building envelope retrofits were implemented",IF(B11=T8,"Heating Equipment Rated Heating Output",""))) -> Heating Load if all building envelope retrofits were implemented | B12: 10000 | C12: =IF('Intro & Unit Options'!$B$12="Metric","kW","BTU/h") -> BTU/h | T12: =IF(NOT(A17=""),"No","") -> 
A13: =IF(OR($B$11=$T$5,$B$11=$T$7),"Heating Design Temperature",IF(OR($B$11=$T$6,$B$11=$T$8),"Heating Design Temperature","")) -> Heating Design Temperature | B13: =IF('Intro & Unit Options'!$B$12="Imperial",ROUND(VLOOKUP($B$7,'Climate Zones'!$D$2:$G$1686,4,FALSE)*(9/5)+32,0),VLOOKUP($B$7,'Climate Zones'!$D$2:$G$1686,4,FALSE)) -> 0 | C13: =IF('Intro & Unit Options'!$B$12="Metric","C","F") -> F
A14: =IF(OR($B$11=$T$5,$B$11=$T$7),"Cooling Design Load",IF($B$11=$T$6,"Cooling Load if all building envelope retrofits were implemented",IF(B11=T8,"Cooling Equipment Rated Heating Output",""))) -> Cooling Load if all building envelope retrofits were implemented | B14: 10000 | C14: =IF('Intro & Unit Options'!$B$12="Metric","kW","BTU/h") -> BTU/h
A15: =IF(OR($B$11=$T$5,$B$11=$T$7),"Cooling Design Temperature",IF(OR($B$11=$T$6,$B$11=$T$8),"Cooling Design Temperature","")) -> Cooling Design Temperature | B15: =IF('Intro & Unit Options'!$B$12="Imperial",ROUND(VLOOKUP($B$7,'Climate Zones'!$D$2:$H$1686,5,FALSE)*(9/5)+32,0),VLOOKUP($B$7,'Climate Zones'!$D$2:$H$1686,5,FALSE)) -> 88 | C15: =IF('Intro & Unit Options'!$B$12="Metric","C","F") -> F
A16: =IF(B11=T6,"% savings possible by performing all recommended non-space heating upgrades","") -> % savings possible by performing all recommended non-space heating upgrades | B16: 12 | C16: =IF(B11=T6,"%","") -> % | T16: Max | U16: ='Design Load Calcs'!O12 -> 110 | V16: =IF(NOT('Intro & Unit Options'!B12="Metric"),CEILING('Step 3 Design Loads'!B12,10000),CEILING('Step 3 Design Loads'!B12,10)) -> 10000
A17: =IF(B11=T8,"Existing Comfort Issues/Recent Home Upgrades?","") ->  | B17: No | T17: Min | U17: ='Design Load Calcs'!O6 -> -10 | V17: 0
A18: =+IF(B11=T8,"Assumed over-capacity sizing of existing equipment", "") ->  | B18: 140 | T18: Major Unit | U18: 10 | V18: =IF(NOT('Intro & Unit Options'!B12="Metric"),10000,2) -> 10000
A20: Design Step 3 Outputs | E20: Unit Conversion | T20: Oversizing | U20: 0
A21: =IFERROR(IF(B11=T8,IF(B18=140,"Heating assuming 140% over-capacity sizing: "&ROUND('Design Load Calcs'!B23,IF('Intro & Unit Options'!B12="Metric",1,-2))&" "&C12&" at design temperature of "&B13&C13,IF(B18=125,"Heating assuming 125% over-capacity sizing: "&ROUND('Design Load Calcs'!B23,IF('Intro & Unit Options'!B12="Metric",1,-2))&" "&C12&" at design temperature of "&B13&C13,IF(B18=0,"Heating assuming no over-capacity sizing: "&ROUND('Design Load Calcs'!C23,IF('Intro & Unit Options'!B12="Metric",1,-2))&" "&C12&" at design temperature of "&B13&C13))),"Heating assuming no over-capacity sizing: "&ROUND('Design Load Calcs'!B23,IF('Intro & Unit Options'!B12="Metric",1,-2))&" "&C12&" at design temperature of "&B13&C13 ),"") -> Heating assuming no over-capacity sizing: 11400 BTU/h at design temperature of 0F | U21: 125
A22: =IFERROR(IF(B11=T8,IF(B18=140,"Cooling assuming 140% over-capacity sizing: "&ROUND('Design Load Calcs'!B25,IF('Intro & Unit Options'!B12="Metric",1,-2))&" "&C14&" at design temperature of "&B15&C15,IF(B18=125,"Cooling assuming 125% over-capacity sizing: "&ROUND('Design Load Calcs'!B25,IF('Intro & Unit Options'!B12="Metric",1,-2))&" "&C14&" at design temperature of "&B15&C15,IF(B18=0,"Cooling assuming no over-capacity sizing: "&ROUND('Design Load Calcs'!C25,IF('Intro & Unit Options'!B12="Metric",1,-2))&" "&C14&" at design temperature of "&B15&C15))),"Cooling assuming no over-capacity sizing: "&ROUND('Design Load Calcs'!B25,IF('Intro & Unit Options'!B12="Metric",1,-2))&" "&C14&" at design temperature of "&B15&C15 ),"") -> Cooling assuming no over-capacity sizing: 10000 BTU/h at design temperature of 88F | I22: Unit Conversion | U22: 140
F23: °F | H23: °C | J23: BTU/h | L23: kW
F24: 0 | H24: =ROUND((F24-32)*(5/9),0) -> -18 | J24: 1 | L24: =ROUND(J24/3212.142,0) -> 0 | U24: Max Flow Capacity
A25: Notes: | F25: °C | H25: °F | J25: kW | L25: BTU/h | T25: Rectangular | U25: =(W28*V28+W29*V29+W30*V30+W31*V31+W32*V32+W33*V33)*6.25 -> 2356.25 | V25: Rectangular&Round | W25: =ROUND(U25+U26,-1) -> 2360
A26: =IF(B11=T8,"• An energy audit and/or new heating/cooling load calculation should be conducted prior to sizing and selection of the heat pumps","") ->  | F26: 0 | H26: =ROUND((F26*9/5)+32,0) -> 32 | J26: 1 | L26: =ROUND(J26*3412.142,0) -> 3412 | T26: Round | U26: =((U28^2)+(U29^2)+(U30^2)+(U31^2)+(U32^2)+(U33^2))*4.91 -> 0
A27: =IF(AND($B$11=$T$8,B17="Yes"),"• Comfort issues may be a result of items other than undersized equipment, such as defects in the thermal boundary, in the mechanical system or both.","") ->  | T27: Rectangular&Round | U27: =IF(Q27=AI26, "Depth [inches]",IF(Q27=AI27,"Diameter [inches]","")) -> Depth [inches] | V27: =IF(Q27=AI26, "Width [inches]",IF(Q27=AI27,"","")) -> Width [inches] | W27: Depth (in)
T28: 1 | U28: =IF(E32="",0,F32)*IF(OR($B$31=$T$26,AND($B$31=$T$27,J32="ROUND")),1,0) -> 0 | V28: =IF(E32="",0,IF(OR($B$31=$T$25,AND($B$31=$T$27,$J$32=$T$25)),H32,0)) -> 22 | W28: =IF(E32="",0,IF(OR($B$31=$T$25,AND($B$31=$T$27,$J$32=$T$25)),F32,0)) -> 8
T29: 2 | U29: 0 | V29: =IF(E33="",0,IF(OR($B$31=$T$25,AND($B$31=$T$27,$J$33=$T$25)),H33,0)) -> 10 | W29: =IF(E33="",0,IF(OR($B$31=$T$25,AND($B$31=$T$27,$J$33=$T$25)),F33,0)) -> 6
A30: Additional Inputs: Estimating Maximum Airflow Capacity of Existing Supply Ducts | T30: 3 | U30: 0 | V30: =IF(E34="",0,IF(OR($B$31=$T$25,AND($B$31=$T$27,$J$34=$T$25)),H34,0)) -> 10 | W30: =IF(E34="",0,IF(OR($B$31=$T$25,AND($B$31=$T$27,$J$34=$T$25)),F34,0)) -> 6
A31: Geometry of the Trunk Ducts? | B31: Rectangular | F31: =IF(B31=T25, "Depth [inches]",IF(B31=T26,"Diameter [inches]",IF(B31=T27,"Diameter/Depth[inches]",""))) -> Depth [inches] | H31: =IF(OR(B31=T25,B31=T27), "Width [inches]",IF(B31=T26,"","")) -> Width [inches] | J31: Type | T31: 4 | U31: 0 | V31: =IF(E35="",0,IF(OR($B$31=$T$25,AND($B$31=$T$27,$J$35=$T$25)),H35,0)) -> 4 | W31: =IF(E35="",0,IF(OR($B$31=$T$25,AND($B$31=$T$27,$J$35=$T$25)),F35,0)) -> 5
A32: How Many Trunk Ducts? | B32: 6 | E32: =IF(B32>0,"Trunk 1","") -> Trunk 1 | F32: 8 | H32: 22 | J32: Rectangular | T32: 5 | U32: 0 | V32: =IF(E36="",0,IF(OR($B$31=$T$25,AND($B$31=$T$27,$J$36=$T$25)),H36,0)) -> 5 | W32: =IF(E36="",0,IF(OR($B$31=$T$25,AND($B$31=$T$27,$J$36=$T$25)),F36,0)) -> 5
A33: Maximum Airflow Capacity According to HRAI RASD | B33: =IF(B31=T25,U25,IF(B31=T26,U26,IF(B31=T27,W25,""))) -> 2356.25 | C33: CFM | E33: =IF(B32>1,"Trunk 2","") -> Trunk 2 | F33: 6 | H33: 10 | J33: Round | T33: 6 | U33: 0 | V33: =IF(E37="",0,IF(OR($B$31=$T$25,AND($B$31=$T$27,$J$37=$T$25)),H37,0)) -> 6 | W33: =IF(E37="",0,IF(OR($B$31=$T$25,AND($B$31=$T$27,$J$37=$T$25)),F37,0)) -> 6
E34: =IF(B32>2,"Trunk 3","") -> Trunk 3 | F34: 6 | H34: 10 | J34: Round
E35: =IF(B32>3,"Trunk 4","") -> Trunk 4 | F35: 5 | H35: 4 | J35: Round
E36: =IF(B32>4,"Trunk 5","") -> Trunk 5 | F36: 5 | H36: 5 | J36: Rectangular
E37: =IF(B32>5,"Trunk 6","") -> Trunk 6 | F37: 6 | H37: 6 | J37: Round
E38: Additional Comments
E39: Note: Max airflow capacity as stated by the Heating, Refrigeration and Air Conditioning Institute’s Residential Air Systems Design course materials in order to avoid noise and unacceptable friction loss. The course material recommends a maximum supply trunk rigid duct velocity of 900 FPM. The course design targets a total system external static pressure of 0.5"

Sheet Design Load Calcs (hidden)
G1: Load Line | O1: line at 17F
A2: User input | O2: =IF('Step 4 Sizing Approach'!B6='Step 4 Sizing Approach'!T4,G15,NA()) -> 17 | P2: =IF('Step 4 Sizing Approach'!B6='Step 4 Sizing Approach'!T4,H15,NA()) -> 8143.939394
A3: Heating Load | B3: =IF(OR('Step 3 Design Loads'!$B$11='Step 3 Design Loads'!$T$5,'Step 3 Design Loads'!$B$11='Step 3 Design Loads'!$T$7),'Step 3 Design Loads'!B12,IF('Step 3 Design Loads'!$B$11='Step 3 Design Loads'!$T$6,('Step 3 Design Loads'!B12)/((100-'Step 3 Design Loads'!B16)/100),IF('Step 3 Design Loads'!$B$11='Step 3 Design Loads'!$T$8,'Step 3 Design Loads'!B12,"-"))) -> 11363.63636 | G3: =IF('Intro & Unit Options'!$B$12="Imperial","Outdoor Temperature (°F)","Outdoor Temperature (°C)") -> Outdoor Temperature (°F) | H3: =IF('Intro & Unit Options'!$B$12="Imperial","Heating Load (BTU/h)","Heating Load (kW)") -> Heating Load (BTU/h) | O3: =O2 -> 17 | P3: 0
A4: Heating temperature | B4: =IF(OR('Step 3 Design Loads'!$B$11='Step 3 Design Loads'!$T$5,'Step 3 Design Loads'!$B$11='Step 3 Design Loads'!$T$7),'Step 3 Design Loads'!B13,IF('Step 3 Design Loads'!$B$11='Step 3 Design Loads'!$T$6,'Step 3 Design Loads'!B13,IF('Step 3 Design Loads'!$B$11='Step 3 Design Loads'!$T$8,'Step 3 Design Loads'!B13,"-"))) -> 0 | G4: =B4 -> 0 | H4: =B23 -> 11363.63636 | I4: =IF(C23="","Heating Load Line","Heating Load (140% Oversize)") -> Heating Load Line | K4: Heating Design Temp and Load | O4: Design heat load
A5: Cooling Load | B5: =IF(OR('Step 3 Design Loads'!$B$11='Step 3 Design Loads'!$T$5,'Step 3 Design Loads'!$B$11='Step 3 Design Loads'!$T$7,'Step 3 Design Loads'!$B$11='Step 3 Design Loads'!$T$6),'Step 3 Design Loads'!B14,IF('Step 3 Design Loads'!$B$11='Step 3 Design Loads'!$T$8,'Step 3 Design Loads'!B14,"-")) -> 10000 | G5: =IF('Intro & Unit Options'!B12="Metric",(60-32)*(5/9),60) -> 60 | H5: 0 | O5: =G4 -> 0 | P5: =H4 -> 11363.63636
A6: Cooling temperature | B6: =IF(OR('Step 3 Design Loads'!$B$11='Step 3 Design Loads'!$T$5,'Step 3 Design Loads'!$B$11='Step 3 Design Loads'!$T$7),'Step 3 Design Loads'!B15,IF('Step 3 Design Loads'!$B$11='Step 3 Design Loads'!$T$6,'Step 3 Design Loads'!B15,IF('Step 3 Design Loads'!$B$11='Step 3 Design Loads'!$T$8,'Step 3 Design Loads'!B15,"-"))) -> 88 | O6: =IFERROR(IF(O5=FLOOR(O5,10),O5-10,FLOOR(O5,10)),0) -> -10 | P6: =H4 -> 11363.63636
G7: =IF(C23="",NA(),B24) ->  | H7: =IF(C23="",NA(),C23) ->  | I7: =IF(C23="","","Heating Load (125% Oversize)") ->  | O7: Heating design temperature
G8: =IF(C23="",NA(),IF('Intro & Unit Options'!B12="Metric",(60-32)*(5/9),60)) ->  | H8: =IF(C23="",NA(),0) ->  | O8: =G4 -> 0 | P8: =H4 -> 11363.63636
H9: =IF('Intro & Unit Options'!$B$12="Imperial","Cooling Load (BTU/h)","Cooling Load (kW)") -> Cooling Load (BTU/h) | O9: =O8 -> 0 | P9: 0
G10: =B6 -> 88 | H10: =B25 -> 10000 | I10: =IF(C23="","Design Cooling Load","Design Cooling Load LOW") -> Design Cooling Load | K10: Cooling Design T and Load | O10: Design Cool Load
G11: =IF(C23="",NA(),B26) ->  | H11: =IF(C23="",NA(),C25) ->  | I11: =IF(C23="","","Design Cooling Load HIGH") ->  | O11: =B6 -> 88 | P11: =H10 -> 10000
A12: Option D range: | O12: =IFERROR(CEILING(O11,10)+10,0)+IF('Intro & Unit Options'!B12="Metric",0,10) -> 110 | P12: =P11 -> 10000
A13: Heating | B13: Low | C13: =B3/1.4 -> 8116.883117 | D13: 140% oversize | O13: Design Cool Temperature
B14: High | C14: =B3/1.25 -> 9090.909091 | D14: 125% oversize | G14: ASHP Target Heat Capacity (If Option C or D) | O14: =B6 -> 88 | P14: =H10 -> 10000
A15: Cooling | B15: Low | C15: =B5/1.4 -> 7142.857143 | D15: 140% oversize | G15: =IF('Step 4 Sizing Approach'!B6='Step 4 Sizing Approach'!T4,IF('Intro & Unit Options'!B12="Metric",(17-32)*(5/9),17),IF('Step 4 Sizing Approach'!B6='Step 4 Sizing Approach'!T5,IF('Intro & Unit Options'!B12="Metric",(G4-32)*(5/9),G4),NA())) -> 17 | H15: =G25 -> 8143.939394 | O15: =O14 -> 88 | P15: 0
B16: High | C16: =B5/1.25 -> 8000 | D16: 125% oversize
G17: Target Capacity Range (Option A,B)
G18: =IF(OR('Step 4 Sizing Approach'!B6='Step 4 Sizing Approach'!T2,'Step 4 Sizing Approach'!B6='Step 4 Sizing Approach'!T3),B6,NA()) ->  | H18: =IF(OR('Step 4 Sizing Approach'!B6='Step 4 Sizing Approach'!T2,'Step 4 Sizing Approach'!B6='Step 4 Sizing Approach'!T3),IF(OR('Step 4 Sizing Approach'!B6='Step 4 Sizing Approach'!T5,'Step 4 Sizing Approach'!B6='Step 4 Sizing Approach'!T4),C20*0.8,'Step 4 Sizing Approach'!B15),NA()) -> 
G19: =G18 ->  | H19: =IF(OR('Step 4 Sizing Approach'!B6='Step 4 Sizing Approach'!T2,'Step 4 Sizing Approach'!B6='Step 4 Sizing Approach'!T3),IF(OR('Step 4 Sizing Approach'!B6='Step 4 Sizing Approach'!T5,'Step 4 Sizing Approach'!B6='Step 4 Sizing Approach'!T4),C20*1.25,'Step 4 Sizing Approach'!D15),NA()) -> 
A20: Cooling Load | C20: =IF('Step 3 Design Loads'!B11='Step 3 Design Loads'!T8,IF('Step 3 Design Loads'!B18=140,C15, C16),B5) -> 10000
F21: Slope line (low or nornal) | J21: Slope line (high)
A22: Oversize | B22: =IF('Step 3 Design Loads'!B18=140,1.4,1.25) -> 1.4 | C22: 1.25 | G22: a | H22: b | J22: a | K22: b | O22: ='Step 3 Design Loads'!#REF! -> 
A23: Heating Load | B23: =IF('Step 3 Design Loads'!B11='Step 3 Design Loads'!T8,IF('Step 3 Design Loads'!B18=140,'Design Load Calcs'!C13,'Design Load Calcs'!C14),B3) -> 11363.63636 | C23: =IF('Step 3 Design Loads'!B11='Step 3 Design Loads'!T8,"","") ->  | G23: =(H5-H4)/(G5-G4) -> -189.3939394 | H23: =H5-(G23*G5) -> 11363.63636 | J23: =(H8-H7)/(G5-G4) ->  | K23: =H7-(J23*G7) -> 
A24: Heating temperature | B24: =B4 -> 0
A25: Cooling Load | B25: =IF('Step 3 Design Loads'!B11='Step 3 Design Loads'!T8,IF('Step 3 Design Loads'!B18=140,C15, C16),B5) -> 10000 | C25: =IF('Step 3 Design Loads'!B11='Step 3 Design Loads'!T8,"","") ->  | G25: =G23*G15+H23 -> 8143.939394 | J25: =J23*G15+K23 -> 
A26: Cooling temperature | B26: =B6 -> 88
G27: Target Capacity Range (Option A,B)
G28: =B6 -> 88 | H28: =IF(C23="",NA(),C20*0.8) -> 
G29: =G28 -> 88 | H29: =IF(C25="",NA(),C20*1.25) -> 
A30: Target AF | B30: =IF('Intro & Unit Options'!B12="Metric",(400*(B25*3412))/12000,(400*(B25))/12000) -> 333.3333333
A31: Max AF+200 | B31: ='Step 4 Sizing Approach'!B10+200 -> 2556.25
G32: =B26 -> 88 | H32: =C20*0.8 -> 8000
G33: =G32 -> 88 | H33: =B25*1.25 -> 12500

Sheet Step 4 Sizing Approach
A1: DESIGN STEP 4: Determine Sizing Approach and Capacity Requirements of ASHP | S1: DO NOT TOUCH THESE CELLS
T2: Option A: Emphasis on Cooling
A3: Design Step 4 Inputs | I3: Design Step Reference | T3: Option B: Emphasis on Balanced Heating/Cooling
T4: Option C: Emphasis on Heating
I5: Pages 20-24 | T5: Option D: ASHP as Sole Heating Source
A6: Sizing Approach | B6: Option C: Emphasis on Heating
I7: Upon completing Step 4, you will have:
A8: =IF(OR('Step 1 ASHP Configuration'!B9='Step 1 ASHP Configuration'!T9,'Step 1 ASHP Configuration'!B9='Step 1 ASHP Configuration'!T10),"Full System Replacement?","") -> Full System Replacement? | B8: =IF('Step 1 ASHP Configuration'!B9="Full System Replacement","Yes","No") -> Yes | I8: Defined a Target Capacity for heating or cooling at specific outdoor conditions for the application under consideration | T8: =IF($A$8="","","Yes") -> Yes
I9: Defined criteria for selecting the most sutiably sized ASHP models from commercially available equipment to match basic client objectives. | T9: =IF($A$8="","","No") -> No
A10: =IF('Step 1 ASHP Configuration'!$B$6='Step 1 ASHP Configuration'!$T$2,"Calculated Airflow Capacity","") -> Calculated Airflow Capacity | B10: ='Step 3 Design Loads'!B33 -> 2356.25 | C10: CFM | D10: @ | E10: 0.5 | F10: =IF('Intro & Unit Options'!$B$12="Metric","mmWG","inches Water Gauge") -> inches Water Gauge
T11: =IF($A$9="","","Yes") -> 
A12: Design Step 3 Outputs | T12: =IF($A$9="","","No") -> 
A15: =IF('Step 3 Design Loads'!B11='Step 3 Design Loads'!T8,IF(OR(B6=T2,B6=T3),"Target Cooling Capacity Range",IF(OR(B6=T4,B6=T5),"Target Heating Capacity","")),IF(OR(B6=T2,B6=T3),"Target Cooling Capacity Range",IF(OR(B6=T4,B6=T5),"Target Heating Capacity",""))) -> Target Heating Capacity | B15: =IFERROR(ROUND(IF(A15="Target Cooling Capacity Range",'Design Load Calcs'!C20*0.8,IF(A15="Target Cooling Capacity Range LOW",'Design Load Calcs'!C20*0.8,IF(A15="Target Heating Capacity",IF(B6=T4,'Design Load Calcs'!H15,'Design Load Calcs'!B23),IF(A15="Target Heating Capacity LOW",IF(B6=T4,'Design Load Calcs'!H15,'Design Load Calcs'!C13),"")))),IF('Intro & Unit Options'!B12="Metric",1,-2)),"") -> 8100 | C15: =IF(OR(A15="Target Cooling Capacity Range",A15="Target Cooling Capacity Range LOW"),"to",IF(OR(A15="Target Heating Capacity",A15="Target Heating Capacity LOW"),IF('Intro & Unit Options'!$B$12="Metric","kW","BTU/h"),"")) -> BTU/h | D15: =IFERROR(ROUND(IF(A15="Target Cooling Capacity Range",'Design Load Calcs'!C20*1.25,IF(A15="Target Cooling Capacity Range LOW",'Design Load Calcs'!C20*1.25,"")),IF('Intro & Unit Options'!B12="Metric",1,-2)),"") ->  | E15: =IF(D15="","",IF(OR(A15="Target Heating Capacity",A15="Target Heating Capacity LOW"),"",IF('Intro & Unit Options'!$B$12="Metric","kW","BTU/h"))) ->  | U15: X-axis | V15: Y-axis
A16: =IF('Step 3 Design Loads'!B11='Step 3 Design Loads'!T8,IF(OR(B6=T2,B6=T3),"",IF(OR(B6=T4,B6=T5),"","")),"") ->  | B16: =IF(A16="Target Cooling Capacity Range HIGH",'Design Load Calcs'!C16*0.8,IF(A16="Target Heating Capacity HIGH",IF(B6=T4,'Design Load Calcs'!J25,'Design Load Calcs'!C14),"")) ->  | C16: =IF(A16="Target Cooling Capacity Range HIGH","to",IF(A16="Target Heating Capacity HIGH",IF('Intro & Unit Options'!$B$12="Metric","kW","BTU/h"),"")) ->  | D16: =IF(A16="Target Cooling Capacity Range HIGH",'Design Load Calcs'!C16*1.25,"") ->  | E16: =IF(OR(A16="Target Heating Capacity HIGH",A16=""),"",IF('Intro & Unit Options'!$B$12="Metric","kW","BTU/h")) ->  | T16: Max | U16: ='Design Load Calcs'!O12 -> 110 | V16: =IF(NOT('Intro & Unit Options'!B12="Metric"),CEILING('Step 3 Design Loads'!B12,10000),CEILING('Step 3 Design Loads'!B12,10)) -> 10000
A17: ="Building Heating at "&IF('Intro & Unit Options'!B12="Metric","-8.3C","17F") -> Building Heating at 17F | T17: Min | U17: ='Design Load Calcs'!O6 -> -10 | V17: 0
A18: Building Heating Load at Heating Design Temperature | T18: Major Unit | U18: 10 | V18: =IF(NOT('Intro & Unit Options'!B12="Metric"),10000,2) -> 10000
A19: Additional Notes
A20: • Cooling Capacities at 95 oF (35 oC) outdoor temperature may be used for initial screening purposes as this information is commonly available from manufacturer data. If extended performance data is available, use capacity ratings at an outdoor temperature close to the design temperature for the site.
A22: =IF(B6=T2,"• For Two-Stage and Variable Capacity Units, ASHP capacity should be selected at the HIGH stage",IF(B6=T3,"• For Two-Stage and Variable Capacity Units, ASHP capacity should be selected at the LOW stage",IF(AND(NOT('Step 1 ASHP Configuration'!B9="New HVAC System"),B9="Yes",'Design Load Calcs'!B30>('Step 4 Sizing Approach'!B10+200),B10<>"",B8="No"),"Notes: ",""))) -> 
A23: =IF(AND(NOT('Step 1 ASHP Configuration'!B9="New HVAC System"),B9="Yes",'Design Load Calcs'!B30>'Design Load Calcs'!B31,B10<>"",B8="No"),"• Existing ductwork may not be adequately sized for HP system. User should confirm suitability of existing ductwork before system installation.","") -> 
A28: Graphs

Sheet Climate Zones (hidden)
A1: Seq | B1: Country | C1: Region | D1: City | E1: DegDay | F1: Climate Zone | G1: DHDBT | H1: DCDBT | K1: DO NOT TOUCH THESE CELLS | N1: User Choice | O1: Country | P1: Province | Q1: City | S1: A--->Z | U1: =INDEX($T$2:$T$231,MATCH(FALSE,ISNONTEXT($T$2:$T$231),0)) -> Ailsa Craig | V1: =U1 -> Ailsa Craig | X1: Source: Data for Canadian locations adapted from the Canadian Standards Association, CSA F280-12, "Determining the required capacity of residential space heating and cooling appliances".
A2: 1 | B2: CAN | C2: AB | D2: Athabasca | E2: 6000 | F2: Very-Cold | G2: -35 | H2: 27 | K2: 13 | L2: 50 | N2: ='Step 3 Design Loads'!B5 -> CAN | O2: CAN | P2: =_xlfn.IFNA(LOOKUP(2, 1/((COUNTIF($P$1:P1, $C$2:$C$1686)=0)*($N$2=$B$2:$B$1686)), $C$2:$C$1686),"") -> YT | Q2: =_xlfn.IFNA(LOOKUP(2, 1/((COUNTIF($Q$1:Q1, $D$2:$D$1686)=0)*($N$3=$C$2:$C$1686)), $D$2:$D$1686),"") -> Wyoming | R2: =IF($N$2=$O$2,K2,IF($N$2=$O$3,L2)) -> 13 | S2: =INDEX($P$2:$P$51,R2) -> AB | T2: =IFERROR(INDEX($Q$2:$Q$231,MATCH(ROWS($Q$2:Q2),COUNTIF($Q$2:$Q$231,"<="&$Q$2:$Q$231),0)),0) -> Ailsa Craig | U2: =MATCH(U1,T1:T231,0) -> 2 | V2: =IFERROR(INDEX($T$2:$T$231,U2,1),"") -> Ajax | X2: Source: Data for locations in the United States of America adapted from the Canadian Standards Association, CSA EXP-07, "Energy performance of split-system and single-package air conditioners and heat pumps".
A3: 2 | B3: CAN | C3: AB | D3: Banff | E3: 5500 | F3: Very-Cold | G3: -31 | H3: 27 | K3: =K2-1 -> 12 | L3: =L2-1 -> 49 | N3: ='Step 3 Design Loads'!B6 -> ON | O3: US | P3: =_xlfn.IFNA(LOOKUP(2, 1/((COUNTIF($P$1:P2, $C$2:$C$1686)=0)*($N$2=$B$2:$B$1686)), $C$2:$C$1686),"") -> SK | Q3: =_xlfn.IFNA(LOOKUP(2, 1/((COUNTIF($Q$1:Q2, $D$2:$D$1686)=0)*($N$3=$C$2:$C$1686)), $D$2:$D$1686),"") -> Woodstock | R3: =IF($N$2=$O$2,K3,IF($N$2=$O$3,L3)) -> 12 | S3: =INDEX($P$2:$P$51,R3) -> BC | T3: =IFERROR(INDEX($Q$2:$Q$231,MATCH(ROWS($Q$2:Q3),COUNTIF($Q$2:$Q$231,"<="&$Q$2:$Q$231),0)),0) -> Ajax | U3: =U2+1 -> 3 | V3: =IFERROR(INDEX($T$2:$T$231,U3,1),"") -> Alexandria | X3: F280 weather data for Spreadsheet project (Interpreted from CSA_F280_Table 5_Final_2012-01-03.xls by Philip Jarrett Environment Canada)
A4: 3 | B4: CAN | C4: AB | D4: Barrhead | E4: 5740 | F4: Very-Cold | G4: -33 | H4: 27 | K4: =K3-1 -> 11 | L4: =L3-1 -> 48 | P4: =_xlfn.IFNA(LOOKUP(2, 1/((COUNTIF($P$1:P3, $C$2:$C$1686)=0)*($N$2=$B$2:$B$1686)), $C$2:$C$1686),"") -> QC | Q4: =_xlfn.IFNA(LOOKUP(2, 1/((COUNTIF($Q$1:Q3, $D$2:$D$1686)=0)*($N$3=$C$2:$C$1686)), $D$2:$D$1686),"") -> Wingham | R4: 11 | S4: MB | T4: =IFERROR(INDEX($Q$2:$Q$231,MATCH(ROWS($Q$2:Q4),COUNTIF($Q$2:$Q$231,"<="&$Q$2:$Q$231),0)),0) -> Alexandria | U4: =U3+1 -> 4 | V4: Alliston
A5: 4 | B5: CAN | C5: AB | D5: Beaverlodge | E5: 5700 | F5: Very-Cold | G5: -36 | H5: 28 | K5: 10 | L5: 47 | P5: =_xlfn.IFNA(LOOKUP(2, 1/((COUNTIF($P$1:P4, $C$2:$C$1686)=0)*($N$2=$B$2:$B$1686)), $C$2:$C$1686),"") -> PE | Q5: =_xlfn.IFNA(LOOKUP(2, 1/((COUNTIF($Q$1:Q4, $D$2:$D$1686)=0)*($N$3=$C$2:$C$1686)), $D$2:$D$1686),"") -> Windsor | R5: 10 | S5: NB | T5: =IFERROR(INDEX($Q$2:$Q$231,MATCH(ROWS($Q$2:Q5),COUNTIF($Q$2:$Q$231,"<="&$Q$2:$Q$231),0)),0) -> Alliston | U5: 5 | V5: Almonte
A6: 5 | B6: CAN | C6: AB | D6: Brooks | E6: 4880 | F6: Very-Cold | G6: -32 | H6: 32 | K6: 9 | L6: 46 | P6: =_xlfn.IFNA(LOOKUP(2, 1/((COUNTIF($P$1:P5, $C$2:$C$1686)=0)*($N$2=$B$2:$B$1686)), $C$2:$C$1686),"") -> ON | Q6: =_xlfn.IFNA(LOOKUP(2, 1/((COUNTIF($Q$1:Q5, $D$2:$D$1686)=0)*($N$3=$C$2:$C$1686)), $D$2:$D$1686),"") -> Wiarton | R6: 9 | S6: NL | T6: =IFERROR(INDEX($Q$2:$Q$231,MATCH(ROWS($Q$2:Q6),COUNTIF($Q$2:$Q$231,"<="&$Q$2:$Q$231),0)),0) -> Almonte | U6: 6 | V6: Armstrong
A7: 6 | B7: CAN | C7: AB | D7: Calgary | E7: 5000 | F7: Very-Cold | G7: -30 | H7: 28 | K7: 8 | L7: 45 | P7: =_xlfn.IFNA(LOOKUP(2, 1/((COUNTIF($P$1:P6, $C$2:$C$1686)=0)*($N$2=$B$2:$B$1686)), $C$2:$C$1686),"") -> NU | Q7: =_xlfn.IFNA(LOOKUP(2, 1/((COUNTIF($Q$1:Q6, $D$2:$D$1686)=0)*($N$3=$C$2:$C$1686)), $D$2:$D$1686),"") -> White River | R7: 8 | S7: NS | T7: =IFERROR(INDEX($Q$2:$Q$231,MATCH(ROWS($Q$2:Q7),COUNTIF($Q$2:$Q$231,"<="&$Q$2:$Q$231),0)),0) -> Armstrong | U7: 7 | V7: Arnprior
A8: 7 | B8: CAN | C8: AB | D8: Campsie | E8: 5750 | F8: Very-Cold | G8: -33 | H8: 27 | K8: 7 | L8: 44 | P8: =_xlfn.IFNA(LOOKUP(2, 1/((COUNTIF($P$1:P7, $C$2:$C$1686)=0)*($N$2=$B$2:$B$1686)), $C$2:$C$1686),"") -> NT | Q8: =_xlfn.IFNA(LOOKUP(2, 1/((COUNTIF($Q$1:Q7, $D$2:$D$1686)=0)*($N$3=$C$2:$C$1686)), $D$2:$D$1686),"") -> Whitby (Brooklin) | R8: 7 | S8: NT | T8: =IFERROR(INDEX($Q$2:$Q$231,MATCH(ROWS($Q$2:Q8),COUNTIF($Q$2:$Q$231,"<="&$Q$2:$Q$231),0)),0) -> Arnprior | U8: 8 | V8: Atikokan
A9: 8 | B9: CAN | C9: AB | D9: Camrose | E9: 5500 | F9: Very-Cold | G9: -33 | H9: 29 | K9: 6 | L9: 43 | P9: =_xlfn.IFNA(LOOKUP(2, 1/((COUNTIF($P$1:P8, $C$2:$C$1686)=0)*($N$2=$B$2:$B$1686)), $C$2:$C$1686),"") -> NS | Q9: =_xlfn.IFNA(LOOKUP(2, 1/((COUNTIF($Q$1:Q8, $D$2:$D$1686)=0)*($N$3=$C$2:$C$1686)), $D$2:$D$1686),"") -> Whitby | R9: 6 | S9: NU | T9: =IFERROR(INDEX($Q$2:$Q$231,MATCH(ROWS($Q$2:Q9),COUNTIF($Q$2:$Q$231,"<="&$Q$2:$Q$231),0)),0) -> Atikokan | U9: 9 | V9: Attawapiskat
A10: 9 | B10: CAN | C10: AB | D10: Canmore | E10: 5400 | F10: Very-Cold | G10: -31 | H10: 28 | K10: 5 | L10: 42 | P10: =_xlfn.IFNA(LOOKUP(2, 1/((COUNTIF($P$1:P9, $C$2:$C$1686)=0)*($N$2=$B$2:$B$1686)), $C$2:$C$1686),"") -> NL | Q10: =_xlfn.IFNA(LOOKUP(2, 1/((COUNTIF($Q$1:Q9, $D$2:$D$1686)=0)*($N$3=$C$2:$C$1686)), $D$2:$D$1686),"") -> West Lorne | R10: 5 | S10: ON | T10: =IFERROR(INDEX($Q$2:$Q$231,MATCH(ROWS($Q$2:Q10),COUNTIF($Q$2:$Q$231,"<="&$Q$2:$Q$231),0)),0) -> Attawapiskat | U10: 10 | V10: Aurora
A11: 10 | B11: CAN | C11: AB | D11: Cardston | E11: 4700 | F11: Very-Cold | G11: -29 | H11: 30 | K11: 4 | L11: 41 | P11: =_xlfn.IFNA(LOOKUP(2, 1/((COUNTIF($P$1:P10, $C$2:$C$1686)=0)*($N$2=$B$2:$B$1686)), $C$2:$C$1686),"") -> NB | Q11: =_xlfn.IFNA(LOOKUP(2, 1/((COUNTIF($Q$1:Q10, $D$2:$D$1686)=0)*($N$3=$C$2:$C$1686)), $D$2:$D$1686),"") -> Welland | R11: 4 | S11: PE | T11: =IFERROR(INDEX($Q$2:$Q$231,MATCH(ROWS($Q$2:Q11),COUNTIF($Q$2:$Q$231,"<="&$Q$2:$Q$231),0)),0) -> Aurora | U11: 11 | V11: Bancroft
A12: 11 | B12: CAN | C12: AB | D12: Claresholm | E12: 4680 | F12: Very-Cold | G12: -30 | H12: 30 | K12: 3 | L12: 40 | P12: =_xlfn.IFNA(LOOKUP(2, 1/((COUNTIF($P$1:P11, $C$2:$C$1686)=0)*($N$2=$B$2:$B$1686)), $C$2:$C$1686),"") -> MB | Q12: =_xlfn.IFNA(LOOKUP(2, 1/((COUNTIF($Q$1:Q11, $D$2:$D$1686)=0)*($N$3=$C$2:$C$1686)), $D$2:$D$1686),"") -> Wawa | R12: 3 | S12: QC | T12: =IFERROR(INDEX($Q$2:$Q$231,MATCH(ROWS($Q$2:Q12),COUNTIF($Q$2:$Q$231,"<="&$Q$2:$Q$231),0)),0) -> Bancroft | U12: 12 | V12: Barrie
A13: 12 | B13: CAN | C13: AB | D13: Cold Lake | E13: 5860 | F13: Very-Cold | G13: -35 | H13: 28 | K13: 2 | L13: 39 | P13: =_xlfn.IFNA(LOOKUP(2, 1/((COUNTIF($P$1:P12, $C$2:$C$1686)=0)*($N$2=$B$2:$B$1686)), $C$2:$C$1686),"") -> BC | Q13: =_xlfn.IFNA(LOOKUP(2, 1/((COUNTIF($Q$1:Q12, $D$2:$D$1686)=0)*($N$3=$C$2:$C$1686)), $D$2:$D$1686),"") -> Watford | R13: 2 | S13: SK | T13: =IFERROR(INDEX($Q$2:$Q$231,MATCH(ROWS($Q$2:Q13),COUNTIF($Q$2:$Q$231,"<="&$Q$2:$Q$231),0)),0) -> Barrie | U13: 13 | V13: Barriefield
A14: 13 | B14: CAN | C14: AB | D14: Coleman | E14: 5210 | F14: Very-Cold | G14: -31 | H14: 29 | K14: 1 | L14: 38 | P14: =_xlfn.IFNA(LOOKUP(2, 1/((COUNTIF($P$1:P13, $C$2:$C$1686)=0)*($N$2=$B$2:$B$1686)), $C$2:$C$1686),"") -> AB | Q14: =_xlfn.IFNA(LOOKUP(2, 1/((COUNTIF($Q$1:Q13, $D$2:$D$1686)=0)*($N$3=$C$2:$C$1686)), $D$2:$D$1686),"") -> Waterloo | R14: 1 | S14: YT | T14: =IFERROR(INDEX($Q$2:$Q$231,MATCH(ROWS($Q$2:Q14),COUNTIF($Q$2:$Q$231,"<="&$Q$2:$Q$231),0)),0) -> Barriefield | U14: 14 | V14: Beaverton
A15: 14 | B15: CAN | C15: AB | D15: Coronation | E15: 5640 | F15: Very-Cold | G15: -32 | H15: 30 | K15: 0 | L15: 37 | P15: =_xlfn.IFNA(LOOKUP(2, 1/((COUNTIF($P$1:P14, $C$2:$C$1686)=0)*($N$2=$B$2:$B$1686)), $C$2:$C$1686),"") ->  | Q15: =_xlfn.IFNA(LOOKUP(2, 1/((COUNTIF($Q$1:Q14, $D$2:$D$1686)=0)*($N$3=$C$2:$C$1686)), $D$2:$D$1686),"") -> Wallaceburg | R15: 0 | T15: =IFERROR(INDEX($Q$2:$Q$231,MATCH(ROWS($Q$2:Q15),COUNTIF($Q$2:$Q$231,"<="&$Q$2:$Q$231),0)),0) -> Beaverton | U15: 15 | V15: Belleville
A16: 15 | B16: CAN | C16: AB | D16: Cowley | E16: 4810 | F16: Very-Cold | G16: -29 | H16: 29 | K16: 0 | L16: 36 | P16: =_xlfn.IFNA(LOOKUP(2, 1/((COUNTIF($P$1:P15, $C$2:$C$1686)=0)*($N$2=$B$2:$B$1686)), $C$2:$C$1686),"") ->  | Q16: =_xlfn.IFNA(LOOKUP(2, 1/((COUNTIF($Q$1:Q15, $D$2:$D$1686)=0)*($N$3=$C$2:$C$1686)), $D$2:$D$1686),"") -> Walkerton | R16: 0 | T16: =IFERROR(INDEX($Q$2:$Q$231,MATCH(ROWS($Q$2:Q16),COUNTIF($Q$2:$Q$231,"<="&$Q$2:$Q$231),0)),0) -> Belleville | U16: 16 | V16: Belmont
A17: 16 | B17: CAN | C17: AB | D17: Drumheller | E17: 5050 | F17: Very-Cold | G17: -32 | H17: 30 | K17: 0 | L17: 35 | P17: =_xlfn.IFNA(LOOKUP(2, 1/((COUNTIF($P$1:P16, $C$2:$C$1686)=0)*($N$2=$B$2:$B$1686)), $C$2:$C$1686),"") ->  | Q17: =_xlfn.IFNA(LOOKUP(2, 1/((COUNTIF($Q$1:Q16, $D$2:$D$1686)=0)*($N$3=$C$2:$C$1686)), $D$2:$D$1686),"") -> Vittoria | R17: 0 | T17: =IFERROR(INDEX($Q$2:$Q$231,MATCH(ROWS($Q$2:Q17),COUNTIF($Q$2:$Q$231,"<="&$Q$2:$Q$231),0)),0) -> Belmont | U17: 17 | V17: Bracebridge
A18: 17 | B18: CAN | C18: AB | D18: Edmonton | E18: 5120 | F18: Very-Cold | G18: -30 | H18: 28 | K18: 0 | L18: 34 | P18: =_xlfn.IFNA(LOOKUP(2, 1/((COUNTIF($P$1:P17, $C$2:$C$1686)=0)*($N$2=$B$2:$B$1686)), $C$2:$C$1686),"") ->  | Q18: =_xlfn.IFNA(LOOKUP(2, 1/((COUNTIF($Q$1:Q17, $D$2:$D$1686)=0)*($N$3=$C$2:$C$1686)), $D$2:$D$1686),"") -> Vaughan (Woodbridge) | R18: 0 | T18: =IFERROR(INDEX($Q$2:$Q$231,MATCH(ROWS($Q$2:Q18),COUNTIF($Q$2:$Q$231,"<="&$Q$2:$Q$231),0)),0) -> Bracebridge | U18: 18 | V18: Bradford
A19: 18 | B19: CAN | C19: AB | D19: Edson | E19: 5750 | F19: Very-Cold | G19: -34 | H19: 27 | K19: 0 | L19: 33 | P19: =_xlfn.IFNA(LOOKUP(2, 1/((COUNTIF($P$1:P18, $C$2:$C$1686)=0)*($N$2=$B$2:$B$1686)), $C$2:$C$1686),"") ->  | Q19: =_xlfn.IFNA(LOOKUP(2, 1/((COUNTIF($Q$1:Q18, $D$2:$D$1686)=0)*($N$3=$C$2:$C$1686)), $D$2:$D$1686),"") -> Uxbridge | R19: 0 | T19: =IFERROR(INDEX($Q$2:$Q$231,MATCH(ROWS($Q$2:Q19),COUNTIF($Q$2:$Q$231,"<="&$Q$2:$Q$231),0)),0) -> Bradford | U19: 19 | V19: Brampton
A20: 19 | B20: CAN | C20: AB | D20: Embarras Portage | E20: 7100 | F20: Subarctic | G20: -41 | H20: 28 | K20: 0 | L20: 32 | P20: =_xlfn.IFNA(LOOKUP(2, 1/((COUNTIF($P$1:P19, $C$2:$C$1686)=0)*($N$2=$B$2:$B$1686)), $C$2:$C$1686),"") ->  | Q20: =_xlfn.IFNA(LOOKUP(2, 1/((COUNTIF($Q$1:Q19, $D$2:$D$1686)=0)*($N$3=$C$2:$C$1686)), $D$2:$D$1686),"") -> Trout Creek | R20: 0 | T20: =IFERROR(INDEX($Q$2:$Q$231,MATCH(ROWS($Q$2:Q20),COUNTIF($Q$2:$Q$231,"<="&$Q$2:$Q$231),0)),0) -> Brampton | U20: 20 | V20: Brantford
A21: 20 | B21: CAN | C21: AB | D21: Fairview | E21: 5840 | F21: Very-Cold | G21: -37 | H21: 27 | K21: 0 | L21: 31 | P21: =_xlfn.IFNA(LOOKUP(2, 1/((COUNTIF($P$1:P20, $C$2:$C$1686)=0)*($N$2=$B$2:$B$1686)), $C$2:$C$1686),"") ->  | Q21: =_xlfn.IFNA(LOOKUP(2, 1/((COUNTIF($Q$1:Q20, $D$2:$D$1686)=0)*($N$3=$C$2:$C$1686)), $D$2:$D$1686),"") -> Trenton | R21: 0 | T21: =IFERROR(INDEX($Q$2:$Q$231,MATCH(ROWS($Q$2:Q21),COUNTIF($Q$2:$Q$231,"<="&$Q$2:$Q$231),0)),0) -> Brantford | U21: 21 | V21: Brighton
A22: 21 | B22: CAN | C22: AB | D22: Fort MacLeod | E22: 4600 | F22: Very-Cold | G22: -30 | H22: 31 | K22: 0 | L22: 30 | P22: =_xlfn.IFNA(LOOKUP(2, 1/((COUNTIF($P$1:P21, $C$2:$C$1686)=0)*($N$2=$B$2:$B$1686)), $C$2:$C$1686),"") ->  | Q22: =_xlfn.IFNA(LOOKUP(2, 1/((COUNTIF($Q$1:Q21, $D$2:$D$1686)=0)*($N$3=$C$2:$C$1686)), $D$2:$D$1686),"") -> Toronto (city hall) | R22: 0 | T22: =IFERROR(INDEX($Q$2:$Q$231,MATCH(ROWS($Q$2:Q22),COUNTIF($Q$2:$Q$231,"<="&$Q$2:$Q$231),0)),0) -> Brighton | U22: 22 | V22: Brockville
A23: 22 | B23: CAN | C23: AB | D23: Fort McMurray | E23: 6250 | F23: Very-Cold | G23: -38 | H23: 28 | K23: 0 | L23: 29 | P23: =_xlfn.IFNA(LOOKUP(2, 1/((COUNTIF($P$1:P22, $C$2:$C$1686)=0)*($N$2=$B$2:$B$1686)), $C$2:$C$1686),"") ->  | Q23: =_xlfn.IFNA(LOOKUP(2, 1/((COUNTIF($Q$1:Q22, $D$2:$D$1686)=0)*($N$3=$C$2:$C$1686)), $D$2:$D$1686),"") -> Timmins (Porcupine) | R23: 0 | T23: =IFERROR(INDEX($Q$2:$Q$231,MATCH(ROWS($Q$2:Q23),COUNTIF($Q$2:$Q$231,"<="&$Q$2:$Q$231),0)),0) -> Brockville | U23: 23 | V23: Burk's Falls
A24: 23 | B24: CAN | C24: AB | D24: Fort Saskatchewan | E24: 5420 | F24: Very-Cold | G24: -32 | H24: 28 | K24: 0 | L24: 28 | P24: =_xlfn.IFNA(LOOKUP(2, 1/((COUNTIF($P$1:P23, $C$2:$C$1686)=0)*($N$2=$B$2:$B$1686)), $C$2:$C$1686),"") ->  | Q24: =_xlfn.IFNA(LOOKUP(2, 1/((COUNTIF($Q$1:Q23, $D$2:$D$1686)=0)*($N$3=$C$2:$C$1686)), $D$2:$D$1686),"") -> Timmins | R24: 0 | T24: =IFERROR(INDEX($Q$2:$Q$231,MATCH(ROWS($Q$2:Q24),COUNTIF($Q$2:$Q$231,"<="&$Q$2:$Q$231),0)),0) -> Burk's Falls | U24: 24 | V24: Burlington
A25: 24 | B25: CAN | C25: AB | D25: Fort Vermilion | E25: 6700 | F25: Subarctic | G25: -41 | H25: 28 | K25: 0 | L25: 27 | P25: =_xlfn.IFNA(LOOKUP(2, 1/((COUNTIF($P$1:P24, $C$2:$C$1686)=0)*($N$2=$B$2:$B$1686)), $C$2:$C$1686),"") ->  | Q25: =_xlfn.IFNA(LOOKUP(2, 1/((COUNTIF($Q$1:Q24, $D$2:$D$1686)=0)*($N$3=$C$2:$C$1686)), $D$2:$D$1686),"") -> Tillsonburg | R25: 0 | T25: =IFERROR(INDEX($Q$2:$Q$231,MATCH(ROWS($Q$2:Q25),COUNTIF($Q$2:$Q$231,"<="&$Q$2:$Q$231),0)),0) -> Burlington | U25: 25 | V25: Cambridge
A26: 25 | B26: CAN | C26: AB | D26: Grande Prairie | E26: 5790 | F26: Very-Cold | G26: -36 | H26: 27 | K26: 0 | L26: 26 | P26: =_xlfn.IFNA(LOOKUP(2, 1/((COUNTIF($P$1:P25, $C$2:$C$1686)=0)*($N$2=$B$2:$B$1686)), $C$2:$C$1686),"") ->  | Q26: =_xlfn.IFNA(LOOKUP(2, 1/((COUNTIF($Q$1:Q25, $D$2:$D$1686)=0)*($N$3=$C$2:$C$1686)), $D$2:$D$1686),"") -> Thunder Bay | R26: 0 | T26: =IFERROR(INDEX($Q$2:$Q$231,MATCH(ROWS($Q$2:Q26),COUNTIF($Q$2:$Q$231,"<="&$Q$2:$Q$231),0)),0) -> Cambridge | U26: 26 | V26: Campbellford
A27: 26 | B27: CAN | C27: AB | D27: Habay | E27: 6750 | F27: Subarctic | G27: -41 | H27: 28 | K27: 0 | L27: 25 | P27: =_xlfn.IFNA(LOOKUP(2, 1/((COUNTIF($P$1:P26, $C$2:$C$1686)=0)*($N$2=$B$2:$B$1686)), $C$2:$C$1686),"") ->  | Q27: =_xlfn.IFNA(LOOKUP(2, 1/((COUNTIF($Q$1:Q26, $D$2:$D$1686)=0)*($N$3=$C$2:$C$1686)), $D$2:$D$1686),"") -> Thedford | R27: 0 | T27: =IFERROR(INDEX($Q$2:$Q$231,MATCH(ROWS($Q$2:Q27),COUNTIF($Q$2:$Q$231,"<="&$Q$2:$Q$231),0)),0) -> Campbellford | U27: 27 | V27: Cannington
A28: 27 | B28: CAN | C28: AB | D28: Hardisty | E28: 5640 | F28: Very-Cold | G28: -33 | H28: 30 | K28: 0 | L28: 24 | P28: =_xlfn.IFNA(LOOKUP(2, 1/((COUNTIF($P$1:P27, $C$2:$C$1686)=0)*($N$2=$B$2:$B$1686)), $C$2:$C$1686),"") ->  | Q28: =_xlfn.IFNA(LOOKUP(2, 1/((COUNTIF($Q$1:Q27, $D$2:$D$1686)=0)*($N$3=$C$2:$C$1686)), $D$2:$D$1686),"") -> Thamesford | R28: 0 | T28: =IFERROR(INDEX($Q$2:$Q$231,MATCH(ROWS($Q$2:Q28),COUNTIF($Q$2:$Q$231,"<="&$Q$2:$Q$231),0)),0) -> Cannington | U28: 28 | V28: Carleton Place
A29: 28 | B29: CAN | C29: AB | D29: High River | E29: 4900 | F29: Very-Cold | G29: -31 | H29: 28 | K29: 0 | L29: 23 | P29: =_xlfn.IFNA(LOOKUP(2, 1/((COUNTIF($P$1:P28, $C$2:$C$1686)=0)*($N$2=$B$2:$B$1686)), $C$2:$C$1686),"") ->  | Q29: =_xlfn.IFNA(LOOKUP(2, 1/((COUNTIF($Q$1:Q28, $D$2:$D$1686)=0)*($N$3=$C$2:$C$1686)), $D$2:$D$1686),"") -> Temagami | R29: 0 | T29: =IFERROR(INDEX($Q$2:$Q$231,MATCH(ROWS($Q$2:Q29),COUNTIF($Q$2:$Q$231,"<="&$Q$2:$Q$231),0)),0) -> Carleton Place | U29: 29 | V29: Cavan
A30: 29 | B30: CAN | C30: AB | D30: Hinton | E30: 5500 | F30: Very-Cold | G30: -34 | H30: 27 | K30: 0 | L30: 22 | P30: =_xlfn.IFNA(LOOKUP(2, 1/((COUNTIF($P$1:P29, $C$2:$C$1686)=0)*($N$2=$B$2:$B$1686)), $C$2:$C$1686),"") ->  | Q30: =_xlfn.IFNA(LOOKUP(2, 1/((COUNTIF($Q$1:Q29, $D$2:$D$1686)=0)*($N$3=$C$2:$C$1686)), $D$2:$D$1686),"") -> Tavistock | R30: 0 | T30: =IFERROR(INDEX($Q$2:$Q$231,MATCH(ROWS($Q$2:Q30),COUNTIF($Q$2:$Q$231,"<="&$Q$2:$Q$231),0)),0) -> Cavan | U30: 30 | V30: Centralia
A31: 30 | B31: CAN | C31: AB | D31: Jasper | E31: 5300 | F31: Very-Cold | G31: -31 | H31: 28 | K31: 0 | L31: 21 | P31: =_xlfn.IFNA(LOOKUP(2, 1/((COUNTIF($P$1:P30, $C$2:$C$1686)=0)*($N$2=$B$2:$B$1686)), $C$2:$C$1686),"") ->  | Q31: =_xlfn.IFNA(LOOKUP(2, 1/((COUNTIF($Q$1:Q30, $D$2:$D$1686)=0)*($N$3=$C$2:$C$1686)), $D$2:$D$1686),"") -> Sundridge | R31: 0 | T31: =IFERROR(INDEX($Q$2:$Q$231,MATCH(ROWS($Q$2:Q31),COUNTIF($Q$2:$Q$231,"<="&$Q$2:$Q$231),0)),0) -> Centralia | U31: 31 | V31: CFB Borden
A32: 31 | B32: CAN | C32: AB | D32: Keg River | E32: 6520 | F32: Subarctic | G32: -40 | H32: 28 | K32: 0 | L32: 20 | P32: =_xlfn.IFNA(LOOKUP(2, 1/((COUNTIF($P$1:P31, $C$2:$C$1686)=0)*($N$2=$B$2:$B$1686)), $C$2:$C$1686),"") ->  | Q32: =_xlfn.IFNA(LOOKUP(2, 1/((COUNTIF($Q$1:Q31, $D$2:$D$1686)=0)*($N$3=$C$2:$C$1686)), $D$2:$D$1686),"") -> Sudbury | R32: 0 | T32: =IFERROR(INDEX($Q$2:$Q$231,MATCH(ROWS($Q$2:Q32),COUNTIF($Q$2:$Q$231,"<="&$Q$2:$Q$231),0)),0) -> CFB Borden | U32: 32 | V32: Chapleau
A33: 32 | B33: CAN | C33: AB | D33: Lac la Biche | E33: 6100 | F33: Very-Cold | G33: -35 | H33: 28 | K33: 0 | L33: 19 | P33: =_xlfn.IFNA(LOOKUP(2, 1/((COUNTIF($P$1:P32, $C$2:$C$1686)=0)*($N$2=$B$2:$B$1686)), $C$2:$C$1686),"") ->  | Q33: =_xlfn.IFNA(LOOKUP(2, 1/((COUNTIF($Q$1:Q32, $D$2:$D$1686)=0)*($N$3=$C$2:$C$1686)), $D$2:$D$1686),"") -> Sturgeon Falls | R33: 0 | T33: =IFERROR(INDEX($Q$2:$Q$231,MATCH(ROWS($Q$2:Q33),COUNTIF($Q$2:$Q$231,"<="&$Q$2:$Q$231),0)),0) -> Chapleau | U33: 33 | V33: Chatham
A34: 33 | B34: CAN | C34: AB | D34: Lacombe | E34: 5500 | F34: Very-Cold | G34: -33 | H34: 28 | K34: 0 | L34: 18 | P34: =_xlfn.IFNA(LOOKUP(2, 1/((COUNTIF($P$1:P33, $C$2:$C$1686)=0)*($N$2=$B$2:$B$1686)), $C$2:$C$1686),"") ->  | Q34: =_xlfn.IFNA(LOOKUP(2, 1/((COUNTIF($Q$1:Q33, $D$2:$D$1686)=0)*($N$3=$C$2:$C$1686)), $D$2:$D$1686),"") -> Strathroy | R34: 0 | T34: =IFERROR(INDEX($Q$2:$Q$231,MATCH(ROWS($Q$2:Q34),COUNTIF($Q$2:$Q$231,"<="&$Q$2:$Q$231),0)),0) -> Chatham | U34: 34 | V34: Chesley
A35: 34 | B35: CAN | C35: AB | D35: Lethbridge | E35: 4500 | F35: Very-Cold | G35: -30 | H35: 31 | K35: 0 | L35: 17 | P35: =_xlfn.IFNA(LOOKUP(2, 1/((COUNTIF($P$1:P34, $C$2:$C$1686)=0)*($N$2=$B$2:$B$1686)), $C$2:$C$1686),"") ->  | Q35: =_xlfn.IFNA(LOOKUP(2, 1/((COUNTIF($Q$1:Q34, $D$2:$D$1686)=0)*($N$3=$C$2:$C$1686)), $D$2:$D$1686),"") -> Stratford | R35: 0 | T35: =IFERROR(INDEX($Q$2:$Q$231,MATCH(ROWS($Q$2:Q35),COUNTIF($Q$2:$Q$231,"<="&$Q$2:$Q$231),0)),0) -> Chesley | U35: 35 | V35: Clinton
A36: 35 | B36: CAN | C36: AB | D36: Manning | E36: 6300 | F36: Very-Cold | G36: -39 | H36: 27 | K36: 0 | L36: 16 | P36: =_xlfn.IFNA(LOOKUP(2, 1/((COUNTIF($P$1:P35, $C$2:$C$1686)=0)*($N$2=$B$2:$B$1686)), $C$2:$C$1686),"") ->  | Q36: =_xlfn.IFNA(LOOKUP(2, 1/((COUNTIF($Q$1:Q35, $D$2:$D$1686)=0)*($N$3=$C$2:$C$1686)), $D$2:$D$1686),"") -> Stirling | R36: 0 | T36: =IFERROR(INDEX($Q$2:$Q$231,MATCH(ROWS($Q$2:Q36),COUNTIF($Q$2:$Q$231,"<="&$Q$2:$Q$231),0)),0) -> Clinton | U36: 36 | V36: Coboconk
A37: 36 | B37: CAN | C37: AB | D37: Medicine Hat | E37: 4540 | F37: Very-Cold | G37: -31 | H37: 32 | K37: 0 | L37: 15 | P37: =_xlfn.IFNA(LOOKUP(2, 1/((COUNTIF($P$1:P36, $C$2:$C$1686)=0)*($N$2=$B$2:$B$1686)), $C$2:$C$1686),"") ->  | Q37: =_xlfn.IFNA(LOOKUP(2, 1/((COUNTIF($Q$1:Q36, $D$2:$D$1686)=0)*($N$3=$C$2:$C$1686)), $D$2:$D$1686),"") -> St. Thomas | R37: 0 | T37: =IFERROR(INDEX($Q$2:$Q$231,MATCH(ROWS($Q$2:Q37),COUNTIF($Q$2:$Q$231,"<="&$Q$2:$Q$231),0)),0) -> Coboconk | U37: 37 | V37: Cobourg
A38: 37 | B38: CAN | C38: AB | D38: Peace River | E38: 6050 | F38: Very-Cold | G38: -37 | H38: 27 | K38: 0 | L38: 14 | P38: =_xlfn.IFNA(LOOKUP(2, 1/((COUNTIF($P$1:P37, $C$2:$C$1686)=0)*($N$2=$B$2:$B$1686)), $C$2:$C$1686),"") ->  | Q38: =_xlfn.IFNA(LOOKUP(2, 1/((COUNTIF($Q$1:Q37, $D$2:$D$1686)=0)*($N$3=$C$2:$C$1686)), $D$2:$D$1686),"") -> St. Mary's | R38: 0 | T38: =IFERROR(INDEX($Q$2:$Q$231,MATCH(ROWS($Q$2:Q38),COUNTIF($Q$2:$Q$231,"<="&$Q$2:$Q$231),0)),0) -> Cobourg | U38: 38 | V38: Cochrane
A39: 38 | B39: CAN | C39: AB | D39: Pincher Creek | E39: 4740 | F39: Very-Cold | G39: -29 | H39: 29 | K39: 0 | L39: 13 | P39: =_xlfn.IFNA(LOOKUP(2, 1/((COUNTIF($P$1:P38, $C$2:$C$1686)=0)*($N$2=$B$2:$B$1686)), $C$2:$C$1686),"") ->  | Q39: =_xlfn.IFNA(LOOKUP(2, 1/((COUNTIF($Q$1:Q38, $D$2:$D$1686)=0)*($N$3=$C$2:$C$1686)), $D$2:$D$1686),"") -> St. Catharines | R39: 0 | T39: =IFERROR(INDEX($Q$2:$Q$231,MATCH(ROWS($Q$2:Q39),COUNTIF($Q$2:$Q$231,"<="&$Q$2:$Q$231),0)),0) -> Cochrane | U39: 39 | V39: Colborne
A40: 39 | B40: CAN | C40: AB | D40: Ranfurly | E40: 5700 | F40: Very-Cold | G40: -34 | H40: 29 | K40: 0 | L40: 12 | P40: =_xlfn.IFNA(LOOKUP(2, 1/((COUNTIF($P$1:P39, $C$2:$C$1686)=0)*($N$2=$B$2:$B$1686)), $C$2:$C$1686),"") ->  | Q40: =_xlfn.IFNA(LOOKUP(2, 1/((COUNTIF($Q$1:Q39, $D$2:$D$1686)=0)*($N$3=$C$2:$C$1686)), $D$2:$D$1686),"") -> Southampton | R40: 0 | T40: =IFERROR(INDEX($Q$2:$Q$231,MATCH(ROWS($Q$2:Q40),COUNTIF($Q$2:$Q$231,"<="&$Q$2:$Q$231),0)),0) -> Colborne | U40: 40 | V40: Collingwood
A41: 40 | B41: CAN | C41: AB | D41: Red Deer | E41: 5550 | F41: Very-Cold | G41: -32 | H41: 28 | K41: 0 | L41: 11 | P41: =_xlfn.IFNA(LOOKUP(2, 1/((COUNTIF($P$1:P40, $C$2:$C$1686)=0)*($N$2=$B$2:$B$1686)), $C$2:$C$1686),"") ->  | Q41: =_xlfn.IFNA(LOOKUP(2, 1/((COUNTIF($Q$1:Q40, $D$2:$D$1686)=0)*($N$3=$C$2:$C$1686)), $D$2:$D$1686),"") -> South River | R41: 0 | T41: =IFERROR(INDEX($Q$2:$Q$231,MATCH(ROWS($Q$2:Q41),COUNTIF($Q$2:$Q$231,"<="&$Q$2:$Q$231),0)),0) -> Collingwood | U41: 41 | V41: Cornwall
A42: 41 | B42: CAN | C42: AB | D42: Rocky Mountain House | E42: 5640 | F42: Very-Cold | G42: -32 | H42: 27 | K42: 0 | L42: 10 | P42: =_xlfn.IFNA(LOOKUP(2, 1/((COUNTIF($P$1:P41, $C$2:$C$1686)=0)*($N$2=$B$2:$B$1686)), $C$2:$C$1686),"") ->  | Q42: =_xlfn.IFNA(LOOKUP(2, 1/((COUNTIF($Q$1:Q41, $D$2:$D$1686)=0)*($N$3=$C$2:$C$1686)), $D$2:$D$1686),"") -> Smooth Rock Falls | R42: 0 | T42: =IFERROR(INDEX($Q$2:$Q$231,MATCH(ROWS($Q$2:Q42),COUNTIF($Q$2:$Q$231,"<="&$Q$2:$Q$231),0)),0) -> Cornwall | U42: 42 | V42: Corunna
A43: 42 | B43: CAN | C43: AB | D43: Slave Lake | E43: 5850 | F43: Very-Cold | G43: -35 | H43: 26 | K43: 0 | L43: 9 | P43: =_xlfn.IFNA(LOOKUP(2, 1/((COUNTIF($P$1:P42, $C$2:$C$1686)=0)*($N$2=$B$2:$B$1686)), $C$2:$C$1686),"") ->  | Q43: =_xlfn.IFNA(LOOKUP(2, 1/((COUNTIF($Q$1:Q42, $D$2:$D$1686)=0)*($N$3=$C$2:$C$1686)), $D$2:$D$1686),"") -> Smithville | R43: 0 | T43: =IFERROR(INDEX($Q$2:$Q$231,MATCH(ROWS($Q$2:Q43),COUNTIF($Q$2:$Q$231,"<="&$Q$2:$Q$231),0)),0) -> Corunna | U43: 43 | V43: Deep River
A44: 43 | B44: CAN | C44: AB | D44: Stettler | E44: 5300 | F44: Very-Cold | G44: -32 | H44: 30 | K44: 0 | L44: 8 | P44: =_xlfn.IFNA(LOOKUP(2, 1/((COUNTIF($P$1:P43, $C$2:$C$1686)=0)*($N$2=$B$2:$B$1686)), $C$2:$C$1686),"") ->  | Q44: =_xlfn.IFNA(LOOKUP(2, 1/((COUNTIF($Q$1:Q43, $D$2:$D$1686)=0)*($N$3=$C$2:$C$1686)), $D$2:$D$1686),"") -> Smiths Falls | R44: 0 | T44: =IFERROR(INDEX($Q$2:$Q$231,MATCH(ROWS($Q$2:Q44),COUNTIF($Q$2:$Q$231,"<="&$Q$2:$Q$231),0)),0) -> Deep River | U44: 44 | V44: Deseronto
A45: 44 | B45: CAN | C45: AB | D45: Stony Plain | E45: 5300 | F45: Very-Cold | G45: -32 | H45: 28 | K45: 0 | L45: 7 | P45: =_xlfn.IFNA(LOOKUP(2, 1/((COUNTIF($P$1:P44, $C$2:$C$1686)=0)*($N$2=$B$2:$B$1686)), $C$2:$C$1686),"") ->  | Q45: =_xlfn.IFNA(LOOKUP(2, 1/((COUNTIF($Q$1:Q44, $D$2:$D$1686)=0)*($N$3=$C$2:$C$1686)), $D$2:$D$1686),"") -> Sioux Lookout | R45: 0 | T45: =IFERROR(INDEX($Q$2:$Q$231,MATCH(ROWS($Q$2:Q45),COUNTIF($Q$2:$Q$231,"<="&$Q$2:$Q$231),0)),0) -> Deseronto | U45: 45 | V45: Dorchester
A46: 45 | B46: CAN | C46: AB | D46: Suffield | E46: 4770 | F46: Very-Cold | G46: -31 | H46: 32 | K46: 0 | L46: 6 | P46: =_xlfn.IFNA(LOOKUP(2, 1/((COUNTIF($P$1:P45, $C$2:$C$1686)=0)*($N$2=$B$2:$B$1686)), $C$2:$C$1686),"") ->  | Q46: =_xlfn.IFNA(LOOKUP(2, 1/((COUNTIF($Q$1:Q45, $D$2:$D$1686)=0)*($N$3=$C$2:$C$1686)), $D$2:$D$1686),"") -> Simcoe | R46: 0 | T46: =IFERROR(INDEX($Q$2:$Q$231,MATCH(ROWS($Q$2:Q46),COUNTIF($Q$2:$Q$231,"<="&$Q$2:$Q$231),0)),0) -> Dorchester | U46: 46 | V46: Dorion
A47: 46 | B47: CAN | C47: AB | D47: Taber | E47: 4580 | F47: Very-Cold | G47: -31 | H47: 31 | K47: 0 | L47: 5 | P47: =_xlfn.IFNA(LOOKUP(2, 1/((COUNTIF($P$1:P46, $C$2:$C$1686)=0)*($N$2=$B$2:$B$1686)), $C$2:$C$1686),"") ->  | Q47: =_xlfn.IFNA(LOOKUP(2, 1/((COUNTIF($Q$1:Q46, $D$2:$D$1686)=0)*($N$3=$C$2:$C$1686)), $D$2:$D$1686),"") -> Shelburne | R47: 0 | T47: =IFERROR(INDEX($Q$2:$Q$231,MATCH(ROWS($Q$2:Q47),COUNTIF($Q$2:$Q$231,"<="&$Q$2:$Q$231),0)),0) -> Dorion | U47: 47 | V47: Dresden
A48: 47 | B48: CAN | C48: AB | D48: Turner Valley | E48: 5220 | F48: Very-Cold | G48: -31 | H48: 28 | K48: 0 | L48: 4 | P48: =_xlfn.IFNA(LOOKUP(2, 1/((COUNTIF($P$1:P47, $C$2:$C$1686)=0)*($N$2=$B$2:$B$1686)), $C$2:$C$1686),"") ->  | Q48: =_xlfn.IFNA(LOOKUP(2, 1/((COUNTIF($Q$1:Q47, $D$2:$D$1686)=0)*($N$3=$C$2:$C$1686)), $D$2:$D$1686),"") -> Seaforth | R48: 0 | T48: =IFERROR(INDEX($Q$2:$Q$231,MATCH(ROWS($Q$2:Q48),COUNTIF($Q$2:$Q$231,"<="&$Q$2:$Q$231),0)),0) -> Dresden | U48: 48 | V48: Dryden
A49: 48 | B49: CAN | C49: AB | D49: Valleyview | E49: 5600 | F49: Very-Cold | G49: -37 | H49: 27 | K49: 0 | L49: 3 | P49: =_xlfn.IFNA(LOOKUP(2, 1/((COUNTIF($P$1:P48, $C$2:$C$1686)=0)*($N$2=$B$2:$B$1686)), $C$2:$C$1686),"") ->  | Q49: =_xlfn.IFNA(LOOKUP(2, 1/((COUNTIF($Q$1:Q48, $D$2:$D$1686)=0)*($N$3=$C$2:$C$1686)), $D$2:$D$1686),"") -> Schreiber | R49: 0 | T49: =IFERROR(INDEX($Q$2:$Q$231,MATCH(ROWS($Q$2:Q49),COUNTIF($Q$2:$Q$231,"<="&$Q$2:$Q$231),0)),0) -> Dryden | U49: 49 | V49: Dundalk
A50: 49 | B50: CAN | C50: AB | D50: Vegreville | E50: 5780 | F50: Very-Cold | G50: -34 | H50: 29 | K50: 0 | L50: 2 | P50: =_xlfn.IFNA(LOOKUP(2, 1/((COUNTIF($P$1:P49, $C$2:$C$1686)=0)*($N$2=$B$2:$B$1686)), $C$2:$C$1686),"") ->  | Q50: =_xlfn.IFNA(LOOKUP(2, 1/((COUNTIF($Q$1:Q49, $D$2:$D$1686)=0)*($N$3=$C$2:$C$1686)), $D$2:$D$1686),"") -> Scarborough | R50: 0 | T50: =IFERROR(INDEX($Q$2:$Q$231,MATCH(ROWS($Q$2:Q50),COUNTIF($Q$2:$Q$231,"<="&$Q$2:$Q$231),0)),0) -> Dundalk | U50: 50 | V50: Dunnville
A51: 50 | B51: CAN | C51: AB | D51: Vermilion | E51: 5740 | F51: Very-Cold | G51: -35 | H51: 29 | K51: 0 | L51: =L50-1 -> 1 | P51: =_xlfn.IFNA(LOOKUP(2, 1/((COUNTIF($P$1:P50, $C$2:$C$1686)=0)*($N$2=$B$2:$B$1686)), $C$2:$C$1686),"") ->  | Q51: =_xlfn.IFNA(LOOKUP(2, 1/((COUNTIF($Q$1:Q50, $D$2:$D$1686)=0)*($N$3=$C$2:$C$1686)), $D$2:$D$1686),"") -> Sault Ste. Marie | R51: 0 | T51: =IFERROR(INDEX($Q$2:$Q$231,MATCH(ROWS($Q$2:Q51),COUNTIF($Q$2:$Q$231,"<="&$Q$2:$Q$231),0)),0) -> Dunnville | U51: 51 | V51: Durham
A52: 51 | B52: CAN | C52: AB | D52: Wagner | E52: 5850 | F52: Very-Cold | G52: -35 | H52: 26 | P52: =_xlfn.IFNA(LOOKUP(2, 1/((COUNTIF($P$1:P51, $C$2:$C$1686)=0)*($N$2=$B$2:$B$1686)), $C$2:$C$1686),"") ->  | Q52: =_xlfn.IFNA(LOOKUP(2, 1/((COUNTIF($Q$1:Q51, $D$2:$D$1686)=0)*($N$3=$C$2:$C$1686)), $D$2:$D$1686),"") -> Sarnia | T52: =IFERROR(INDEX($Q$2:$Q$231,MATCH(ROWS($Q$2:Q52),COUNTIF($Q$2:$Q$231,"<="&$Q$2:$Q$231),0)),0) -> Durham | U52: 52 | V52: Dutton
A53: 52 | B53: CAN | C53: AB | D53: Wainwright | E53: 5700 | F53: Very-Cold | G53: -33 | H53: 29 | P53: =_xlfn.IFNA(LOOKUP(2, 1/((COUNTIF($P$1:P52, $C$2:$C$1686)=0)*($N$2=$B$2:$B$1686)), $C$2:$C$1686),"") ->  | Q53: =_xlfn.IFNA(LOOKUP(2, 1/((COUNTIF($Q$1:Q52, $D$2:$D$1686)=0)*($N$3=$C$2:$C$1686)), $D$2:$D$1686),"") -> Rockland | T53: =IFERROR(INDEX($Q$2:$Q$231,MATCH(ROWS($Q$2:Q53),COUNTIF($Q$2:$Q$231,"<="&$Q$2:$Q$231),0)),0) -> Dutton | U53: 53 | V53: Earlton
A54: 53 | B54: CAN | C54: AB | D54: Wetaskiwin | E54: 5500 | F54: Very-Cold | G54: -33 | H54: 29 | P54: =_xlfn.IFNA(LOOKUP(2, 1/((COUNTIF($P$1:P53, $C$2:$C$1686)=0)*($N$2=$B$2:$B$1686)), $C$2:$C$1686),"") ->  | Q54: =_xlfn.IFNA(LOOKUP(2, 1/((COUNTIF($Q$1:Q53, $D$2:$D$1686)=0)*($N$3=$C$2:$C$1686)), $D$2:$D$1686),"") -> Richmond Hill | T54: =IFERROR(INDEX($Q$2:$Q$231,MATCH(ROWS($Q$2:Q54),COUNTIF($Q$2:$Q$231,"<="&$Q$2:$Q$231),0)),0) -> Earlton | U54: 54 | V54: Edison
A55: 54 | B55: CAN | C55: AB | D55: Whitecourt | E55: 5650 | F55: Very-Cold | G55: -33 | H55: 27 | P55: =_xlfn.IFNA(LOOKUP(2, 1/((COUNTIF($P$1:P54, $C$2:$C$1686)=0)*($N$2=$B$2:$B$1686)), $C$2:$C$1686),"") ->  | Q55: =_xlfn.IFNA(LOOKUP(2, 1/((COUNTIF($Q$1:Q54, $D$2:$D$1686)=0)*($N$3=$C$2:$C$1686)), $D$2:$D$1686),"") -> Renfrew | T55: =IFERROR(INDEX($Q$2:$Q$231,MATCH(ROWS($Q$2:Q55),COUNTIF($Q$2:$Q$231,"<="&$Q$2:$Q$231),0)),0) -> Edison | U55: 55 | V55: Elliot Lake
A56: 55 | B56: CAN | C56: AB | D56: Wimborne | E56: 5310 | F56: Very-Cold | G56: -31 | H56: 29 | P56: =_xlfn.IFNA(LOOKUP(2, 1/((COUNTIF($P$1:P55, $C$2:$C$1686)=0)*($N$2=$B$2:$B$1686)), $C$2:$C$1686),"") ->  | Q56: =_xlfn.IFNA(LOOKUP(2, 1/((COUNTIF($Q$1:Q55, $D$2:$D$1686)=0)*($N$3=$C$2:$C$1686)), $D$2:$D$1686),"") -> Red Lake | T56: =IFERROR(INDEX($Q$2:$Q$231,MATCH(ROWS($Q$2:Q56),COUNTIF($Q$2:$Q$231,"<="&$Q$2:$Q$231),0)),0) -> Elliot Lake | U56: 56 | V56: Elmvale
A57: 56 | B57: CAN | C57: BC | D57: 100 Mile House | E57: 5030 | F57: Very-Cold | G57: -30 | H57: 29 | P57: =_xlfn.IFNA(LOOKUP(2, 1/((COUNTIF($P$1:P56, $C$2:$C$1686)=0)*($N$2=$B$2:$B$1686)), $C$2:$C$1686),"") ->  | Q57: =_xlfn.IFNA(LOOKUP(2, 1/((COUNTIF($Q$1:Q56, $D$2:$D$1686)=0)*($N$3=$C$2:$C$1686)), $D$2:$D$1686),"") -> Rayside-Balfour (Chelmsford) | T57: =IFERROR(INDEX($Q$2:$Q$231,MATCH(ROWS($Q$2:Q57),COUNTIF($Q$2:$Q$231,"<="&$Q$2:$Q$231),0)),0) -> Elmvale | U57: 57 | V57: Embro
A58: 57 | B58: CAN | C58: BC | D58: Abbotsford | E58: 2860 | F58: Marine | G58: -8 | H58: 29 | P58: =_xlfn.IFNA(LOOKUP(2, 1/((COUNTIF($P$1:P57, $C$2:$C$1686)=0)*($N$2=$B$2:$B$1686)), $C$2:$C$1686),"") ->  | Q58: =_xlfn.IFNA(LOOKUP(2, 1/((COUNTIF($Q$1:Q57, $D$2:$D$1686)=0)*($N$3=$C$2:$C$1686)), $D$2:$D$1686),"") -> Raith | T58: =IFERROR(INDEX($Q$2:$Q$231,MATCH(ROWS($Q$2:Q58),COUNTIF($Q$2:$Q$231,"<="&$Q$2:$Q$231),0)),0) -> Embro | U58: 58 | V58: Englehart
A59: 58 | B59: CAN | C59: BC | D59: Agassiz | E59: 2750 | F59: Cold-Humid | G59: -9 | H59: 31 | P59: =_xlfn.IFNA(LOOKUP(2, 1/((COUNTIF($P$1:P58, $C$2:$C$1686)=0)*($N$2=$B$2:$B$1686)), $C$2:$C$1686),"") ->  | Q59: =_xlfn.IFNA(LOOKUP(2, 1/((COUNTIF($Q$1:Q58, $D$2:$D$1686)=0)*($N$3=$C$2:$C$1686)), $D$2:$D$1686),"") -> Princeton | T59: =IFERROR(INDEX($Q$2:$Q$231,MATCH(ROWS($Q$2:Q59),COUNTIF($Q$2:$Q$231,"<="&$Q$2:$Q$231),0)),0) -> Englehart | U59: 59 | V59: Espanola
A60: 59 | B60: CAN | C60: BC | D60: Alberni | E60: 3100 | F60: Marine | G60: -5 | H60: 31 | P60: =_xlfn.IFNA(LOOKUP(2, 1/((COUNTIF($P$1:P59, $C$2:$C$1686)=0)*($N$2=$B$2:$B$1686)), $C$2:$C$1686),"") ->  | Q60: =_xlfn.IFNA(LOOKUP(2, 1/((COUNTIF($Q$1:Q59, $D$2:$D$1686)=0)*($N$3=$C$2:$C$1686)), $D$2:$D$1686),"") -> Prescott | T60: =IFERROR(INDEX($Q$2:$Q$231,MATCH(ROWS($Q$2:Q60),COUNTIF($Q$2:$Q$231,"<="&$Q$2:$Q$231),0)),0) -> Espanola | U60: 60 | V60: Etobicoke
A61: 60 | B61: CAN | C61: BC | D61: Ashcroft | E61: 3700 | F61: Cold-Dry | G61: -24 | H61: 34 | P61: =_xlfn.IFNA(LOOKUP(2, 1/((COUNTIF($P$1:P60, $C$2:$C$1686)=0)*($N$2=$B$2:$B$1686)), $C$2:$C$1686),"") ->  | Q61: =_xlfn.IFNA(LOOKUP(2, 1/((COUNTIF($Q$1:Q60, $D$2:$D$1686)=0)*($N$3=$C$2:$C$1686)), $D$2:$D$1686),"") -> Port Stanley | T61: =IFERROR(INDEX($Q$2:$Q$231,MATCH(ROWS($Q$2:Q61),COUNTIF($Q$2:$Q$231,"<="&$Q$2:$Q$231),0)),0) -> Etobicoke | U61: 61 | V61: Exeter
A62: 61 | B62: CAN | C62: BC | D62: Bamfield | E62: 3080 | F62: Marine | G62: -2 | H62: 23 | P62: =_xlfn.IFNA(LOOKUP(2, 1/((COUNTIF($P$1:P61, $C$2:$C$1686)=0)*($N$2=$B$2:$B$1686)), $C$2:$C$1686),"") ->  | Q62: =_xlfn.IFNA(LOOKUP(2, 1/((COUNTIF($Q$1:Q61, $D$2:$D$1686)=0)*($N$3=$C$2:$C$1686)), $D$2:$D$1686),"") -> Port Perry | T62: =IFERROR(INDEX($Q$2:$Q$231,MATCH(ROWS($Q$2:Q62),COUNTIF($Q$2:$Q$231,"<="&$Q$2:$Q$231),0)),0) -> Exeter | U62: 62 | V62: Fenelon Falls
A63: 62 | B63: CAN | C63: BC | D63: Beatton River | E63: 6300 | F63: Very-Cold | G63: -37 | H63: 26 | P63: =_xlfn.IFNA(LOOKUP(2, 1/((COUNTIF($P$1:P62, $C$2:$C$1686)=0)*($N$2=$B$2:$B$1686)), $C$2:$C$1686),"") ->  | Q63: =_xlfn.IFNA(LOOKUP(2, 1/((COUNTIF($Q$1:Q62, $D$2:$D$1686)=0)*($N$3=$C$2:$C$1686)), $D$2:$D$1686),"") -> Port Hope | T63: =IFERROR(INDEX($Q$2:$Q$231,MATCH(ROWS($Q$2:Q63),COUNTIF($Q$2:$Q$231,"<="&$Q$2:$Q$231),0)),0) -> Fenelon Falls | U63: 63 | V63: Fergus
A64: 63 | B64: CAN | C64: BC | D64: Bella Bella | E64: 3180 | F64: Marine | G64: -5 | H64: 23 | P64: =_xlfn.IFNA(LOOKUP(2, 1/((COUNTIF($P$1:P63, $C$2:$C$1686)=0)*($N$2=$B$2:$B$1686)), $C$2:$C$1686),"") ->  | Q64: =_xlfn.IFNA(LOOKUP(2, 1/((COUNTIF($Q$1:Q63, $D$2:$D$1686)=0)*($N$3=$C$2:$C$1686)), $D$2:$D$1686),"") -> Port Elgin | T64: =IFERROR(INDEX($Q$2:$Q$231,MATCH(ROWS($Q$2:Q64),COUNTIF($Q$2:$Q$231,"<="&$Q$2:$Q$231),0)),0) -> Fergus | U64: 64 | V64: Forest
A65: 64 | B65: CAN | C65: BC | D65: Bella Coola | E65: 3560 | F65: Cold-Humid | G65: -14 | H65: 27 | P65: =_xlfn.IFNA(LOOKUP(2, 1/((COUNTIF($P$1:P64, $C$2:$C$1686)=0)*($N$2=$B$2:$B$1686)), $C$2:$C$1686),"") ->  | Q65: =_xlfn.IFNA(LOOKUP(2, 1/((COUNTIF($Q$1:Q64, $D$2:$D$1686)=0)*($N$3=$C$2:$C$1686)), $D$2:$D$1686),"") -> Port Colborne | T65: =IFERROR(INDEX($Q$2:$Q$231,MATCH(ROWS($Q$2:Q65),COUNTIF($Q$2:$Q$231,"<="&$Q$2:$Q$231),0)),0) -> Forest | U65: 65 | V65: Fort Erie
A66: 65 | B66: CAN | C66: BC | D66: Burnaby (Simon Fraser Univ.) | E66: 3100 | F66: Marine | G66: -7 | H66: 25 | Q66: =_xlfn.IFNA(LOOKUP(2, 1/((COUNTIF($Q$1:Q65, $D$2:$D$1686)=0)*($N$3=$C$2:$C$1686)), $D$2:$D$1686),"") -> Port Burwell | T66: =IFERROR(INDEX($Q$2:$Q$231,MATCH(ROWS($Q$2:Q66),COUNTIF($Q$2:$Q$231,"<="&$Q$2:$Q$231),0)),0) -> Fort Erie | U66: 66 | V66: Fort Erie (Ridgeway)
A67: 66 | B67: CAN | C67: BC | D67: Burns Lake | E67: 5450 | F67: Very-Cold | G67: -31 | H67: 26 | Q67: =_xlfn.IFNA(LOOKUP(2, 1/((COUNTIF($Q$1:Q66, $D$2:$D$1686)=0)*($N$3=$C$2:$C$1686)), $D$2:$D$1686),"") -> Point Alexander | T67: =IFERROR(INDEX($Q$2:$Q$231,MATCH(ROWS($Q$2:Q67),COUNTIF($Q$2:$Q$231,"<="&$Q$2:$Q$231),0)),0) -> Fort Erie (Ridgeway) | U67: 67 | V67: =IFERROR(INDEX($T$2:$T$231,U67,1),"") -> Fort Frances
A68: 67 | B68: CAN | C68: BC | D68: Cache Creek | E68: 3700 | F68: Cold-Dry | G68: -24 | H68: 34 | Q68: =_xlfn.IFNA(LOOKUP(2, 1/((COUNTIF($Q$1:Q67, $D$2:$D$1686)=0)*($N$3=$C$2:$C$1686)), $D$2:$D$1686),"") -> Plattsville | T68: =IFERROR(INDEX($Q$2:$Q$231,MATCH(ROWS($Q$2:Q68),COUNTIF($Q$2:$Q$231,"<="&$Q$2:$Q$231),0)),0) -> Fort Frances | U68: =U67+1 -> 68 | V68: Gananoque
A69: 68 | B69: CAN | C69: BC | D69: Campbell River | E69: 3000 | F69: Marine | G69: -5 | H69: 26 | Q69: =_xlfn.IFNA(LOOKUP(2, 1/((COUNTIF($Q$1:Q68, $D$2:$D$1686)=0)*($N$3=$C$2:$C$1686)), $D$2:$D$1686),"") -> Picton | T69: =IFERROR(INDEX($Q$2:$Q$231,MATCH(ROWS($Q$2:Q69),COUNTIF($Q$2:$Q$231,"<="&$Q$2:$Q$231),0)),0) -> Gananoque | U69: 69 | V69: Geraldton
A70: 69 | B70: CAN | C70: BC | D70: Carmi | E70: 4750 | F70: Very-Cold | G70: -24 | H70: 31 | Q70: =_xlfn.IFNA(LOOKUP(2, 1/((COUNTIF($Q$1:Q69, $D$2:$D$1686)=0)*($N$3=$C$2:$C$1686)), $D$2:$D$1686),"") -> Pickering (Dunbarton) | T70: =IFERROR(INDEX($Q$2:$Q$231,MATCH(ROWS($Q$2:Q70),COUNTIF($Q$2:$Q$231,"<="&$Q$2:$Q$231),0)),0) -> Geraldton | U70: 70 | V70: Glencoe
A71: 70 | B71: CAN | C71: BC | D71: Castlegar | E71: 3580 | F71: Cold-Humid | G71: -18 | H71: 32 | Q71: =_xlfn.IFNA(LOOKUP(2, 1/((COUNTIF($Q$1:Q70, $D$2:$D$1686)=0)*($N$3=$C$2:$C$1686)), $D$2:$D$1686),"") -> Petrolia | T71: =IFERROR(INDEX($Q$2:$Q$231,MATCH(ROWS($Q$2:Q71),COUNTIF($Q$2:$Q$231,"<="&$Q$2:$Q$231),0)),0) -> Glencoe | U71: 71 | V71: Goderich
A72: 71 | B72: CAN | C72: BC | D72: Chetwynd | E72: 5500 | F72: Very-Cold | G72: -35 | H72: 27 | Q72: =_xlfn.IFNA(LOOKUP(2, 1/((COUNTIF($Q$1:Q71, $D$2:$D$1686)=0)*($N$3=$C$2:$C$1686)), $D$2:$D$1686),"") -> Peterborough | T72: =IFERROR(INDEX($Q$2:$Q$231,MATCH(ROWS($Q$2:Q72),COUNTIF($Q$2:$Q$231,"<="&$Q$2:$Q$231),0)),0) -> Goderich | U72: 72 | V72: Gore Bay
A73: 72 | B73: CAN | C73: BC | D73: Chilliwack | E73: 2780 | F73: Cold-Humid | G73: -9 | H73: 30 | Q73: =_xlfn.IFNA(LOOKUP(2, 1/((COUNTIF($Q$1:Q72, $D$2:$D$1686)=0)*($N$3=$C$2:$C$1686)), $D$2:$D$1686),"") -> Petawawa | T73: =IFERROR(INDEX($Q$2:$Q$231,MATCH(ROWS($Q$2:Q73),COUNTIF($Q$2:$Q$231,"<="&$Q$2:$Q$231),0)),0) -> Gore Bay | U73: 73 | V73: Graham
A74: 73 | B74: CAN | C74: BC | D74: Cloverdale | E74: 2700 | F74: Marine | G74: -8 | H74: 29 | Q74: =_xlfn.IFNA(LOOKUP(2, 1/((COUNTIF($Q$1:Q73, $D$2:$D$1686)=0)*($N$3=$C$2:$C$1686)), $D$2:$D$1686),"") -> Perth | T74: =IFERROR(INDEX($Q$2:$Q$231,MATCH(ROWS($Q$2:Q74),COUNTIF($Q$2:$Q$231,"<="&$Q$2:$Q$231),0)),0) -> Graham | U74: 74 | V74: Gravenhurst (Muskoka Airport)
A75: 74 | B75: CAN | C75: BC | D75: Comox | E75: 3100 | F75: Marine | G75: -7 | H75: 27 | Q75: =_xlfn.IFNA(LOOKUP(2, 1/((COUNTIF($Q$1:Q74, $D$2:$D$1686)=0)*($N$3=$C$2:$C$1686)), $D$2:$D$1686),"") -> Penetanguishene | T75: =IFERROR(INDEX($Q$2:$Q$231,MATCH(ROWS($Q$2:Q75),COUNTIF($Q$2:$Q$231,"<="&$Q$2:$Q$231),0)),0) -> Gravenhurst (Muskoka Airport) | U75: 75 | V75: Grimsby
A76: 75 | B76: CAN | C76: BC | D76: Courtenay | E76: 3100 | F76: Marine | G76: -7 | H76: 28 | Q76: =_xlfn.IFNA(LOOKUP(2, 1/((COUNTIF($Q$1:Q75, $D$2:$D$1686)=0)*($N$3=$C$2:$C$1686)), $D$2:$D$1686),"") -> Pembroke | T76: =IFERROR(INDEX($Q$2:$Q$231,MATCH(ROWS($Q$2:Q76),COUNTIF($Q$2:$Q$231,"<="&$Q$2:$Q$231),0)),0) -> Grimsby | U76: 76 | V76: Guelph
A77: 76 | B77: CAN | C77: BC | D77: Cranbrook | E77: 4400 | F77: Cold-Dry | G77: -26 | H77: 32 | Q77: =_xlfn.IFNA(LOOKUP(2, 1/((COUNTIF($Q$1:Q76, $D$2:$D$1686)=0)*($N$3=$C$2:$C$1686)), $D$2:$D$1686),"") -> Pelham (Fonthill) | T77: =IFERROR(INDEX($Q$2:$Q$231,MATCH(ROWS($Q$2:Q77),COUNTIF($Q$2:$Q$231,"<="&$Q$2:$Q$231),0)),0) -> Guelph | U77: 77 | V77: Guthrie
A78: 77 | B78: CAN | C78: BC | D78: Crescent Valley | E78: 3650 | F78: Cold-Humid | G78: -18 | H78: 31 | Q78: =_xlfn.IFNA(LOOKUP(2, 1/((COUNTIF($Q$1:Q77, $D$2:$D$1686)=0)*($N$3=$C$2:$C$1686)), $D$2:$D$1686),"") -> Parry Sound | T78: =IFERROR(INDEX($Q$2:$Q$231,MATCH(ROWS($Q$2:Q78),COUNTIF($Q$2:$Q$231,"<="&$Q$2:$Q$231),0)),0) -> Guthrie | U78: 78 | V78: Haileybury
A79: 78 | B79: CAN | C79: BC | D79: Crofton | E79: 2880 | F79: Marine | G79: -4 | H79: 28 | Q79: =_xlfn.IFNA(LOOKUP(2, 1/((COUNTIF($Q$1:Q78, $D$2:$D$1686)=0)*($N$3=$C$2:$C$1686)), $D$2:$D$1686),"") -> Parkhill | T79: =IFERROR(INDEX($Q$2:$Q$231,MATCH(ROWS($Q$2:Q79),COUNTIF($Q$2:$Q$231,"<="&$Q$2:$Q$231),0)),0) -> Haileybury | U79: 79 | V79: Haldimand (Caledonia)
A80: 79 | B80: CAN | C80: BC | D80: Dawson Creek | E80: 5900 | F80: Very-Cold | G80: -38 | H80: 27 | Q80: =_xlfn.IFNA(LOOKUP(2, 1/((COUNTIF($Q$1:Q79, $D$2:$D$1686)=0)*($N$3=$C$2:$C$1686)), $D$2:$D$1686),"") -> Paris | T80: =IFERROR(INDEX($Q$2:$Q$231,MATCH(ROWS($Q$2:Q80),COUNTIF($Q$2:$Q$231,"<="&$Q$2:$Q$231),0)),0) -> Haldimand (Caledonia) | U80: 80 | V80: Haldimand (Hagersville)
A81: 80 | B81: CAN | C81: BC | D81: Dease Lake | E81: 6730 | F81: Subarctic | G81: -37 | H81: 24 | Q81: =_xlfn.IFNA(LOOKUP(2, 1/((COUNTIF($Q$1:Q80, $D$2:$D$1686)=0)*($N$3=$C$2:$C$1686)), $D$2:$D$1686),"") -> Pagwa River | T81: =IFERROR(INDEX($Q$2:$Q$231,MATCH(ROWS($Q$2:Q81),COUNTIF($Q$2:$Q$231,"<="&$Q$2:$Q$231),0)),0) -> Haldimand (Hagersville) | U81: 81 | V81: Haliburton
A82: 81 | B82: CAN | C82: BC | D82: Dog Creek | E82: 4800 | F82: Very-Cold | G82: -28 | H82: 29 | Q82: =_xlfn.IFNA(LOOKUP(2, 1/((COUNTIF($Q$1:Q81, $D$2:$D$1686)=0)*($N$3=$C$2:$C$1686)), $D$2:$D$1686),"") -> Owen Sound | T82: =IFERROR(INDEX($Q$2:$Q$231,MATCH(ROWS($Q$2:Q82),COUNTIF($Q$2:$Q$231,"<="&$Q$2:$Q$231),0)),0) -> Haliburton | U82: 82 | V82: Halton Hills (Georgetown)
A83: 82 | B83: CAN | C83: BC | D83: Duncan | E83: 2980 | F83: Marine | G83: -6 | H83: 28 | Q83: =_xlfn.IFNA(LOOKUP(2, 1/((COUNTIF($Q$1:Q82, $D$2:$D$1686)=0)*($N$3=$C$2:$C$1686)), $D$2:$D$1686),"") -> Ottawa (Orleans) | T83: =IFERROR(INDEX($Q$2:$Q$231,MATCH(ROWS($Q$2:Q83),COUNTIF($Q$2:$Q$231,"<="&$Q$2:$Q$231),0)),0) -> Halton Hills (Georgetown) | U83: 83 | V83: Hamilton
A84: 83 | B84: CAN | C84: BC | D84: Elko | E84: 4600 | F84: Very-Cold | G84: -28 | H84: 30 | Q84: =_xlfn.IFNA(LOOKUP(2, 1/((COUNTIF($Q$1:Q83, $D$2:$D$1686)=0)*($N$3=$C$2:$C$1686)), $D$2:$D$1686),"") -> Ottawa (M-C Int'l Airport) | T84: =IFERROR(INDEX($Q$2:$Q$231,MATCH(ROWS($Q$2:Q84),COUNTIF($Q$2:$Q$231,"<="&$Q$2:$Q$231),0)),0) -> Hamilton | U84: 84 | V84: Hanover
A85: 84 | B85: CAN | C85: BC | D85: Fernie | E85: 4750 | F85: Very-Cold | G85: -27 | H85: 30 | Q85: =_xlfn.IFNA(LOOKUP(2, 1/((COUNTIF($Q$1:Q84, $D$2:$D$1686)=0)*($N$3=$C$2:$C$1686)), $D$2:$D$1686),"") -> Ottawa (Kanata) | T85: =IFERROR(INDEX($Q$2:$Q$231,MATCH(ROWS($Q$2:Q85),COUNTIF($Q$2:$Q$231,"<="&$Q$2:$Q$231),0)),0) -> Hanover | U85: 85 | V85: Hastings
A86: 85 | B86: CAN | C86: BC | D86: Fort Nelson | E86: 6710 | F86: Subarctic | G86: -39 | H86: 28 | Q86: =_xlfn.IFNA(LOOKUP(2, 1/((COUNTIF($Q$1:Q85, $D$2:$D$1686)=0)*($N$3=$C$2:$C$1686)), $D$2:$D$1686),"") -> Ottawa (city hall) | T86: =IFERROR(INDEX($Q$2:$Q$231,MATCH(ROWS($Q$2:Q86),COUNTIF($Q$2:$Q$231,"<="&$Q$2:$Q$231),0)),0) -> Hastings | U86: 86 | V86: Hawkesbury
A87: 86 | B87: CAN | C87: BC | D87: Fort St. John | E87: 5750 | F87: Very-Cold | G87: -35 | H87: 26 | Q87: =_xlfn.IFNA(LOOKUP(2, 1/((COUNTIF($Q$1:Q86, $D$2:$D$1686)=0)*($N$3=$C$2:$C$1686)), $D$2:$D$1686),"") -> Ottawa (Barrhaven) | T87: =IFERROR(INDEX($Q$2:$Q$231,MATCH(ROWS($Q$2:Q87),COUNTIF($Q$2:$Q$231,"<="&$Q$2:$Q$231),0)),0) -> Hawkesbury | U87: 87 | V87: Hearst
A88: 87 | B88: CAN | C88: BC | D88: Glacier | E88: 5800 | F88: Very-Cold | G88: -27 | H88: 27 | Q88: =_xlfn.IFNA(LOOKUP(2, 1/((COUNTIF($Q$1:Q87, $D$2:$D$1686)=0)*($N$3=$C$2:$C$1686)), $D$2:$D$1686),"") -> Oshawa | T88: =IFERROR(INDEX($Q$2:$Q$231,MATCH(ROWS($Q$2:Q88),COUNTIF($Q$2:$Q$231,"<="&$Q$2:$Q$231),0)),0) -> Hearst | U88: 88 | V88: Honey Harbour
A89: 88 | B89: CAN | C89: BC | D89: Gold River | E89: 3230 | F89: Marine | G89: -8 | H89: 31 | Q89: =_xlfn.IFNA(LOOKUP(2, 1/((COUNTIF($Q$1:Q88, $D$2:$D$1686)=0)*($N$3=$C$2:$C$1686)), $D$2:$D$1686),"") -> Orillia | T89: =IFERROR(INDEX($Q$2:$Q$231,MATCH(ROWS($Q$2:Q89),COUNTIF($Q$2:$Q$231,"<="&$Q$2:$Q$231),0)),0) -> Honey Harbour | U89: 89 | V89: Hornepayne
A90: 89 | B90: CAN | C90: BC | D90: Golden | E90: 4750 | F90: Very-Cold | G90: -27 | H90: 30 | Q90: =_xlfn.IFNA(LOOKUP(2, 1/((COUNTIF($Q$1:Q89, $D$2:$D$1686)=0)*($N$3=$C$2:$C$1686)), $D$2:$D$1686),"") -> Orangeville | T90: =IFERROR(INDEX($Q$2:$Q$231,MATCH(ROWS($Q$2:Q90),COUNTIF($Q$2:$Q$231,"<="&$Q$2:$Q$231),0)),0) -> Hornepayne | U90: 90 | V90: Huntsville
A91: 90 | B91: CAN | C91: BC | D91: Grand Forks | E91: 3820 | F91: Cold-Dry | G91: -19 | H91: 34 | Q91: =_xlfn.IFNA(LOOKUP(2, 1/((COUNTIF($Q$1:Q90, $D$2:$D$1686)=0)*($N$3=$C$2:$C$1686)), $D$2:$D$1686),"") -> Oakville | T91: =IFERROR(INDEX($Q$2:$Q$231,MATCH(ROWS($Q$2:Q91),COUNTIF($Q$2:$Q$231,"<="&$Q$2:$Q$231),0)),0) -> Huntsville | U91: 91 | V91: Ingersoll
A92: 91 | B92: CAN | C92: BC | D92: Greenwood | E92: 4100 | F92: Cold-Dry | G92: -20 | H92: 34 | Q92: =_xlfn.IFNA(LOOKUP(2, 1/((COUNTIF($Q$1:Q91, $D$2:$D$1686)=0)*($N$3=$C$2:$C$1686)), $D$2:$D$1686),"") -> Norwood | T92: =IFERROR(INDEX($Q$2:$Q$231,MATCH(ROWS($Q$2:Q92),COUNTIF($Q$2:$Q$231,"<="&$Q$2:$Q$231),0)),0) -> Ingersoll | U92: 92 | V92: Iroquois Falls
A93: 92 | B93: CAN | C93: BC | D93: Haney | E93: 2840 | F93: Cold-Humid | G93: -9 | H93: 30 | Q93: =_xlfn.IFNA(LOOKUP(2, 1/((COUNTIF($Q$1:Q92, $D$2:$D$1686)=0)*($N$3=$C$2:$C$1686)), $D$2:$D$1686),"") -> North York | T93: =IFERROR(INDEX($Q$2:$Q$231,MATCH(ROWS($Q$2:Q93),COUNTIF($Q$2:$Q$231,"<="&$Q$2:$Q$231),0)),0) -> Iroquois Falls | U93: 93 | V93: Jellicoe
A94: 93 | B94: CAN | C94: BC | D94: Hope | E94: 3000 | F94: Cold-Humid | G94: -13 | H94: 31 | Q94: =_xlfn.IFNA(LOOKUP(2, 1/((COUNTIF($Q$1:Q93, $D$2:$D$1686)=0)*($N$3=$C$2:$C$1686)), $D$2:$D$1686),"") -> North Bay | T94: =IFERROR(INDEX($Q$2:$Q$231,MATCH(ROWS($Q$2:Q94),COUNTIF($Q$2:$Q$231,"<="&$Q$2:$Q$231),0)),0) -> Jellicoe | U94: 94 | V94: Kapuskasing
A95: 94 | B95: CAN | C95: BC | D95: Jordan River | E95: 2900 | F95: Marine | G95: -1 | H95: 22 | Q95: =_xlfn.IFNA(LOOKUP(2, 1/((COUNTIF($Q$1:Q94, $D$2:$D$1686)=0)*($N$3=$C$2:$C$1686)), $D$2:$D$1686),"") -> Niagara Falls | T95: =IFERROR(INDEX($Q$2:$Q$231,MATCH(ROWS($Q$2:Q95),COUNTIF($Q$2:$Q$231,"<="&$Q$2:$Q$231),0)),0) -> Kapuskasing | U95: 95 | V95: Kemptville
A96: 95 | B96: CAN | C96: BC | D96: Kamloops | E96: 3450 | F96: Cold-Dry | G96: -23 | H96: 34 | Q96: =_xlfn.IFNA(LOOKUP(2, 1/((COUNTIF($Q$1:Q95, $D$2:$D$1686)=0)*($N$3=$C$2:$C$1686)), $D$2:$D$1686),"") -> Newmarket | T96: =IFERROR(INDEX($Q$2:$Q$231,MATCH(ROWS($Q$2:Q96),COUNTIF($Q$2:$Q$231,"<="&$Q$2:$Q$231),0)),0) -> Kemptville | U96: 96 | V96: Kenora
A97: 96 | B97: CAN | C97: BC | D97: Kaslo | E97: 3830 | F97: Cold-Dry | G97: -17 | H97: 30 | Q97: =_xlfn.IFNA(LOOKUP(2, 1/((COUNTIF($Q$1:Q96, $D$2:$D$1686)=0)*($N$3=$C$2:$C$1686)), $D$2:$D$1686),"") -> Newcastle (Bowmanville) | T97: =IFERROR(INDEX($Q$2:$Q$231,MATCH(ROWS($Q$2:Q97),COUNTIF($Q$2:$Q$231,"<="&$Q$2:$Q$231),0)),0) -> Kenora | U97: 97 | V97: Killaloe
A98: 97 | B98: CAN | C98: BC | D98: Kelowna | E98: 3400 | F98: Cold-Dry | G98: -17 | H98: 33 | Q98: =_xlfn.IFNA(LOOKUP(2, 1/((COUNTIF($Q$1:Q97, $D$2:$D$1686)=0)*($N$3=$C$2:$C$1686)), $D$2:$D$1686),"") -> Newcastle | T98: =IFERROR(INDEX($Q$2:$Q$231,MATCH(ROWS($Q$2:Q98),COUNTIF($Q$2:$Q$231,"<="&$Q$2:$Q$231),0)),0) -> Killaloe | U98: 98 | V98: Kincardine
A99: 98 | B99: CAN | C99: BC | D99: Kimberley | E99: 4650 | F99: Very-Cold | G99: -25 | H99: 31 | Q99: =_xlfn.IFNA(LOOKUP(2, 1/((COUNTIF($Q$1:Q98, $D$2:$D$1686)=0)*($N$3=$C$2:$C$1686)), $D$2:$D$1686),"") -> New Liskeard | T99: =IFERROR(INDEX($Q$2:$Q$231,MATCH(ROWS($Q$2:Q99),COUNTIF($Q$2:$Q$231,"<="&$Q$2:$Q$231),0)),0) -> Kincardine | U99: 99 | V99: Kingston
A100: 99 | B100: CAN | C100: BC | D100: Kitimat Plant | E100: 3750 | F100: Cold-Dry | G100: -16 | H100: 25 | Q100: =_xlfn.IFNA(LOOKUP(2, 1/((COUNTIF($Q$1:Q99, $D$2:$D$1686)=0)*($N$3=$C$2:$C$1686)), $D$2:$D$1686),"") -> Napanee | T100: =IFERROR(INDEX($Q$2:$Q$231,MATCH(ROWS($Q$2:Q100),COUNTIF($Q$2:$Q$231,"<="&$Q$2:$Q$231),0)),0) -> Kingston | U100: 100 | V100: Kinmount
A101: 100 | B101: CAN | C101: BC | D101: Kitimat Townsite | E101: 3900 | F101: Cold-Dry | G101: -16 | H101: 24 | Q101: =_xlfn.IFNA(LOOKUP(2, 1/((COUNTIF($Q$1:Q100, $D$2:$D$1686)=0)*($N$3=$C$2:$C$1686)), $D$2:$D$1686),"") -> Nanticoke (Port Dover) | T101: =IFERROR(INDEX($Q$2:$Q$231,MATCH(ROWS($Q$2:Q101),COUNTIF($Q$2:$Q$231,"<="&$Q$2:$Q$231),0)),0) -> Kinmount | U101: 101 | V101: Kirkland Lake
A102: 101 | B102: CAN | C102: BC | D102: Ladner | E102: 2600 | F102: Marine | G102: -6 | H102: 27 | Q102: =_xlfn.IFNA(LOOKUP(2, 1/((COUNTIF($Q$1:Q101, $D$2:$D$1686)=0)*($N$3=$C$2:$C$1686)), $D$2:$D$1686),"") -> Nanticoke (Jarvis) | T102: =IFERROR(INDEX($Q$2:$Q$231,MATCH(ROWS($Q$2:Q102),COUNTIF($Q$2:$Q$231,"<="&$Q$2:$Q$231),0)),0) -> Kirkland Lake | U102: 102 | V102: Kitchener
A103: 102 | B103: CAN | C103: BC | D103: Ladysmith | E103: 3000 | F103: Marine | G103: -7 | H103: 27 | Q103: =_xlfn.IFNA(LOOKUP(2, 1/((COUNTIF($Q$1:Q102, $D$2:$D$1686)=0)*($N$3=$C$2:$C$1686)), $D$2:$D$1686),"") -> Nakina | T103: =IFERROR(INDEX($Q$2:$Q$231,MATCH(ROWS($Q$2:Q103),COUNTIF($Q$2:$Q$231,"<="&$Q$2:$Q$231),0)),0) -> Kitchener | U103: 103 | V103: Kitchenuhmaykoosib
A104: 103 | B104: CAN | C104: BC | D104: Langford | E104: 2750 | F104: Marine | G104: -4 | H104: 27 | Q104: =_xlfn.IFNA(LOOKUP(2, 1/((COUNTIF($Q$1:Q103, $D$2:$D$1686)=0)*($N$3=$C$2:$C$1686)), $D$2:$D$1686),"") -> Mount Forest | T104: =IFERROR(INDEX($Q$2:$Q$231,MATCH(ROWS($Q$2:Q104),COUNTIF($Q$2:$Q$231,"<="&$Q$2:$Q$231),0)),0) -> Kitchenuhmaykoosib | U104: 104 | V104: Lakefield
A105: 104 | B105: CAN | C105: BC | D105: Langley | E105: 2700 | F105: Marine | G105: -8 | H105: 29 | Q105: =_xlfn.IFNA(LOOKUP(2, 1/((COUNTIF($Q$1:Q104, $D$2:$D$1686)=0)*($N$3=$C$2:$C$1686)), $D$2:$D$1686),"") -> Morrisburg | T105: =IFERROR(INDEX($Q$2:$Q$231,MATCH(ROWS($Q$2:Q105),COUNTIF($Q$2:$Q$231,"<="&$Q$2:$Q$231),0)),0) -> Lakefield | U105: 105 | V105: Lansdowne House
A106: 105 | B106: CAN | C106: BC | D106: Lillooet | E106: 3400 | F106: Cold-Dry | G106: -21 | H106: 34 | Q106: =_xlfn.IFNA(LOOKUP(2, 1/((COUNTIF($Q$1:Q105, $D$2:$D$1686)=0)*($N$3=$C$2:$C$1686)), $D$2:$D$1686),"") -> Moosonee | T106: =IFERROR(INDEX($Q$2:$Q$231,MATCH(ROWS($Q$2:Q106),COUNTIF($Q$2:$Q$231,"<="&$Q$2:$Q$231),0)),0) -> Lansdowne House | U106: 106 | V106: Leamington
A107: 106 | B107: CAN | C107: BC | D107: Lytton | E107: 3300 | F107: Cold-Dry | G107: -17 | H107: 35 | Q107: =_xlfn.IFNA(LOOKUP(2, 1/((COUNTIF($Q$1:Q106, $D$2:$D$1686)=0)*($N$3=$C$2:$C$1686)), $D$2:$D$1686),"") -> Mitchell | T107: =IFERROR(INDEX($Q$2:$Q$231,MATCH(ROWS($Q$2:Q107),COUNTIF($Q$2:$Q$231,"<="&$Q$2:$Q$231),0)),0) -> Leamington | U107: 107 | V107: Lindsay
A108: 107 | B108: CAN | C108: BC | D108: Mackenzie | E108: 5550 | F108: Very-Cold | G108: -34 | H108: 27 | Q108: =_xlfn.IFNA(LOOKUP(2, 1/((COUNTIF($Q$1:Q107, $D$2:$D$1686)=0)*($N$3=$C$2:$C$1686)), $D$2:$D$1686),"") -> Mississauga (Port Credit) | T108: =IFERROR(INDEX($Q$2:$Q$231,MATCH(ROWS($Q$2:Q108),COUNTIF($Q$2:$Q$231,"<="&$Q$2:$Q$231),0)),0) -> Lindsay | U108: 108 | V108: Lion's Head
A109: 108 | B109: CAN | C109: BC | D109: Masset | E109: 3700 | F109: Marine | G109: -5 | H109: 17 | Q109: =_xlfn.IFNA(LOOKUP(2, 1/((COUNTIF($Q$1:Q108, $D$2:$D$1686)=0)*($N$3=$C$2:$C$1686)), $D$2:$D$1686),"") -> Mississauga (LBP Int'l Airport) | T109: =IFERROR(INDEX($Q$2:$Q$231,MATCH(ROWS($Q$2:Q109),COUNTIF($Q$2:$Q$231,"<="&$Q$2:$Q$231),0)),0) -> Lion's Head | U109: 109 | V109: Listowel
A110: 109 | B110: CAN | C110: BC | D110: McBride | E110: 4980 | F110: Very-Cold | G110: -29 | H110: 29 | Q110: =_xlfn.IFNA(LOOKUP(2, 1/((COUNTIF($Q$1:Q109, $D$2:$D$1686)=0)*($N$3=$C$2:$C$1686)), $D$2:$D$1686),"") -> Mississauga | T110: =IFERROR(INDEX($Q$2:$Q$231,MATCH(ROWS($Q$2:Q110),COUNTIF($Q$2:$Q$231,"<="&$Q$2:$Q$231),0)),0) -> Listowel | U110: 110 | V110: London
A111: 110 | B111: CAN | C111: BC | D111: McLeod Lake | E111: 5450 | F111: Very-Cold | G111: -35 | H111: 27 | Q111: =_xlfn.IFNA(LOOKUP(2, 1/((COUNTIF($Q$1:Q110, $D$2:$D$1686)=0)*($N$3=$C$2:$C$1686)), $D$2:$D$1686),"") -> Minden | T111: =IFERROR(INDEX($Q$2:$Q$231,MATCH(ROWS($Q$2:Q111),COUNTIF($Q$2:$Q$231,"<="&$Q$2:$Q$231),0)),0) -> London | U111: 111 | V111: Lucan
A112: 111 | B112: CAN | C112: BC | D112: Merritt | E112: 3900 | F112: Cold-Dry | G112: -24 | H112: 34 | Q112: =_xlfn.IFNA(LOOKUP(2, 1/((COUNTIF($Q$1:Q111, $D$2:$D$1686)=0)*($N$3=$C$2:$C$1686)), $D$2:$D$1686),"") -> Milverton | T112: =IFERROR(INDEX($Q$2:$Q$231,MATCH(ROWS($Q$2:Q112),COUNTIF($Q$2:$Q$231,"<="&$Q$2:$Q$231),0)),0) -> Lucan | U112: 112 | V112: Maitland
A113: 112 | B113: CAN | C113: BC | D113: Mission City | E113: 2850 | F113: Cold-Humid | G113: -9 | H113: 30 | Q113: =_xlfn.IFNA(LOOKUP(2, 1/((COUNTIF($Q$1:Q112, $D$2:$D$1686)=0)*($N$3=$C$2:$C$1686)), $D$2:$D$1686),"") -> Milton | T113: =IFERROR(INDEX($Q$2:$Q$231,MATCH(ROWS($Q$2:Q113),COUNTIF($Q$2:$Q$231,"<="&$Q$2:$Q$231),0)),0) -> Maitland | U113: 113 | V113: Markdale
A114: 113 | B114: CAN | C114: BC | D114: Montrose | E114: 3600 | F114: Cold-Humid | G114: -16 | H114: 32 | Q114: =_xlfn.IFNA(LOOKUP(2, 1/((COUNTIF($Q$1:Q113, $D$2:$D$1686)=0)*($N$3=$C$2:$C$1686)), $D$2:$D$1686),"") -> Midland | T114: =IFERROR(INDEX($Q$2:$Q$231,MATCH(ROWS($Q$2:Q114),COUNTIF($Q$2:$Q$231,"<="&$Q$2:$Q$231),0)),0) -> Markdale | U114: 114 | V114: Markham
A115: 114 | B115: CAN | C115: BC | D115: Nakusp | E115: 3560 | F115: Cold-Humid | G115: -20 | H115: 31 | Q115: =_xlfn.IFNA(LOOKUP(2, 1/((COUNTIF($Q$1:Q114, $D$2:$D$1686)=0)*($N$3=$C$2:$C$1686)), $D$2:$D$1686),"") -> Mattawa | T115: =IFERROR(INDEX($Q$2:$Q$231,MATCH(ROWS($Q$2:Q115),COUNTIF($Q$2:$Q$231,"<="&$Q$2:$Q$231),0)),0) -> Markham | U115: 115 | V115: Martin
A116: 115 | B116: CAN | C116: BC | D116: Nanaimo | E116: 3000 | F116: Marine | G116: -6 | H116: 27 | Q116: =_xlfn.IFNA(LOOKUP(2, 1/((COUNTIF($Q$1:Q115, $D$2:$D$1686)=0)*($N$3=$C$2:$C$1686)), $D$2:$D$1686),"") -> Matheson | T116: =IFERROR(INDEX($Q$2:$Q$231,MATCH(ROWS($Q$2:Q116),COUNTIF($Q$2:$Q$231,"<="&$Q$2:$Q$231),0)),0) -> Martin | U116: 116 | V116: Matheson
A117: 116 | B117: CAN | C117: BC | D117: Nelson | E117: 3500 | F117: Cold-Humid | G117: -18 | H117: 31 | Q117: =_xlfn.IFNA(LOOKUP(2, 1/((COUNTIF($Q$1:Q116, $D$2:$D$1686)=0)*($N$3=$C$2:$C$1686)), $D$2:$D$1686),"") -> Martin | T117: =IFERROR(INDEX($Q$2:$Q$231,MATCH(ROWS($Q$2:Q117),COUNTIF($Q$2:$Q$231,"<="&$Q$2:$Q$231),0)),0) -> Matheson | U117: 117 | V117: Mattawa
A118: 117 | B118: CAN | C118: BC | D118: New Westminster | E118: 2800 | F118: Marine | G118: -8 | H118: 29 | Q118: =_xlfn.IFNA(LOOKUP(2, 1/((COUNTIF($Q$1:Q117, $D$2:$D$1686)=0)*($N$3=$C$2:$C$1686)), $D$2:$D$1686),"") -> Markham | T118: =IFERROR(INDEX($Q$2:$Q$231,MATCH(ROWS($Q$2:Q118),COUNTIF($Q$2:$Q$231,"<="&$Q$2:$Q$231),0)),0) -> Mattawa | U118: 118 | V118: Midland
A119: 118 | B119: CAN | C119: BC | D119: North Vancouver | E119: 2910 | F119: Marine | G119: -7 | H119: 26 | Q119: =_xlfn.IFNA(LOOKUP(2, 1/((COUNTIF($Q$1:Q118, $D$2:$D$1686)=0)*($N$3=$C$2:$C$1686)), $D$2:$D$1686),"") -> Markdale | T119: =IFERROR(INDEX($Q$2:$Q$231,MATCH(ROWS($Q$2:Q119),COUNTIF($Q$2:$Q$231,"<="&$Q$2:$Q$231),0)),0) -> Midland | U119: 119 | V119: Milton
A120: 119 | B120: CAN | C120: BC | D120: Ocean Falls | E120: 3400 | F120: Cold-Humid | G120: -10 | H120: 23 | Q120: =_xlfn.IFNA(LOOKUP(2, 1/((COUNTIF($Q$1:Q119, $D$2:$D$1686)=0)*($N$3=$C$2:$C$1686)), $D$2:$D$1686),"") -> Maitland | T120: =IFERROR(INDEX($Q$2:$Q$231,MATCH(ROWS($Q$2:Q120),COUNTIF($Q$2:$Q$231,"<="&$Q$2:$Q$231),0)),0) -> Milton | U120: 120 | V120: Milverton
A121: 120 | B121: CAN | C121: BC | D121: Osoyoos | E121: 3100 | F121: Cold-Humid | G121: -14 | H121: 35 | Q121: =_xlfn.IFNA(LOOKUP(2, 1/((COUNTIF($Q$1:Q120, $D$2:$D$1686)=0)*($N$3=$C$2:$C$1686)), $D$2:$D$1686),"") -> Lucan | T121: =IFERROR(INDEX($Q$2:$Q$231,MATCH(ROWS($Q$2:Q121),COUNTIF($Q$2:$Q$231,"<="&$Q$2:$Q$231),0)),0) -> Milverton | U121: 121 | V121: Minden
A122: 121 | B122: CAN | C122: BC | D122: Parksville | E122: 3200 | F122: Marine | G122: -6 | H122: 26 | Q122: =_xlfn.IFNA(LOOKUP(2, 1/((COUNTIF($Q$1:Q121, $D$2:$D$1686)=0)*($N$3=$C$2:$C$1686)), $D$2:$D$1686),"") -> London | T122: =IFERROR(INDEX($Q$2:$Q$231,MATCH(ROWS($Q$2:Q122),COUNTIF($Q$2:$Q$231,"<="&$Q$2:$Q$231),0)),0) -> Minden | U122: 122 | V122: Mississauga
A123: 122 | B123: CAN | C123: BC | D123: Penticton | E123: 3350 | F123: Cold-Dry | G123: -15 | H123: 33 | Q123: =_xlfn.IFNA(LOOKUP(2, 1/((COUNTIF($Q$1:Q122, $D$2:$D$1686)=0)*($N$3=$C$2:$C$1686)), $D$2:$D$1686),"") -> Listowel | T123: =IFERROR(INDEX($Q$2:$Q$231,MATCH(ROWS($Q$2:Q123),COUNTIF($Q$2:$Q$231,"<="&$Q$2:$Q$231),0)),0) -> Mississauga | U123: 123 | V123: Mississauga (LBP Int'l Airport)
A124: 123 | B124: CAN | C124: BC | D124: Port Alberni | E124: 3100 | F124: Marine | G124: -5 | H124: 31 | Q124: =_xlfn.IFNA(LOOKUP(2, 1/((COUNTIF($Q$1:Q123, $D$2:$D$1686)=0)*($N$3=$C$2:$C$1686)), $D$2:$D$1686),"") -> Lion's Head | T124: =IFERROR(INDEX($Q$2:$Q$231,MATCH(ROWS($Q$2:Q124),COUNTIF($Q$2:$Q$231,"<="&$Q$2:$Q$231),0)),0) -> Mississauga (LBP Int'l Airport) | U124: 124 | V124: Mississauga (Port Credit)
A125: 124 | B125: CAN | C125: BC | D125: Port Alice | E125: 3010 | F125: Marine | G125: -3 | H125: 26 | Q125: =_xlfn.IFNA(LOOKUP(2, 1/((COUNTIF($Q$1:Q124, $D$2:$D$1686)=0)*($N$3=$C$2:$C$1686)), $D$2:$D$1686),"") -> Lindsay | T125: =IFERROR(INDEX($Q$2:$Q$231,MATCH(ROWS($Q$2:Q125),COUNTIF($Q$2:$Q$231,"<="&$Q$2:$Q$231),0)),0) -> Mississauga (Port Credit) | U125: 125 | V125: Mitchell
A126: 125 | B126: CAN | C126: BC | D126: Port Hardy | E126: 3440 | F126: Marine | G126: -5 | H126: 20 | Q126: =_xlfn.IFNA(LOOKUP(2, 1/((COUNTIF($Q$1:Q125, $D$2:$D$1686)=0)*($N$3=$C$2:$C$1686)), $D$2:$D$1686),"") -> Leamington | T126: =IFERROR(INDEX($Q$2:$Q$231,MATCH(ROWS($Q$2:Q126),COUNTIF($Q$2:$Q$231,"<="&$Q$2:$Q$231),0)),0) -> Mitchell | U126: 126 | V126: Moosonee
A127: 126 | B127: CAN | C127: BC | D127: Port McNeill | E127: 3410 | F127: Marine | G127: -5 | H127: 22 | Q127: =_xlfn.IFNA(LOOKUP(2, 1/((COUNTIF($Q$1:Q126, $D$2:$D$1686)=0)*($N$3=$C$2:$C$1686)), $D$2:$D$1686),"") -> Lansdowne House | T127: =IFERROR(INDEX($Q$2:$Q$231,MATCH(ROWS($Q$2:Q127),COUNTIF($Q$2:$Q$231,"<="&$Q$2:$Q$231),0)),0) -> Moosonee | U127: 127 | V127: Morrisburg
A128: 127 | B128: CAN | C128: BC | D128: Port Renfrew | E128: 2900 | F128: Marine | G128: -3 | H128: 24 | Q128: =_xlfn.IFNA(LOOKUP(2, 1/((COUNTIF($Q$1:Q127, $D$2:$D$1686)=0)*($N$3=$C$2:$C$1686)), $D$2:$D$1686),"") -> Lakefield | T128: =IFERROR(INDEX($Q$2:$Q$231,MATCH(ROWS($Q$2:Q128),COUNTIF($Q$2:$Q$231,"<="&$Q$2:$Q$231),0)),0) -> Morrisburg | U128: 128 | V128: Mount Forest
A129: 128 | B129: CAN | C129: BC | D129: Powell River | E129: 3100 | F129: Marine | G129: -7 | H129: 26 | Q129: =_xlfn.IFNA(LOOKUP(2, 1/((COUNTIF($Q$1:Q128, $D$2:$D$1686)=0)*($N$3=$C$2:$C$1686)), $D$2:$D$1686),"") -> Kitchenuhmaykoosib | T129: =IFERROR(INDEX($Q$2:$Q$231,MATCH(ROWS($Q$2:Q129),COUNTIF($Q$2:$Q$231,"<="&$Q$2:$Q$231),0)),0) -> Mount Forest | U129: 129 | V129: Nakina
A130: 129 | B130: CAN | C130: BC | D130: Prince George | E130: 4720 | F130: Very-Cold | G130: -32 | H130: 28 | Q130: =_xlfn.IFNA(LOOKUP(2, 1/((COUNTIF($Q$1:Q129, $D$2:$D$1686)=0)*($N$3=$C$2:$C$1686)), $D$2:$D$1686),"") -> Kitchener | T130: =IFERROR(INDEX($Q$2:$Q$231,MATCH(ROWS($Q$2:Q130),COUNTIF($Q$2:$Q$231,"<="&$Q$2:$Q$231),0)),0) -> Nakina | U130: 130 | V130: Nanticoke (Jarvis)
A131: 130 | B131: CAN | C131: BC | D131: Prince Rupert | E131: 3900 | F131: Cold-Dry | G131: -13 | H131: 19 | Q131: =_xlfn.IFNA(LOOKUP(2, 1/((COUNTIF($Q$1:Q130, $D$2:$D$1686)=0)*($N$3=$C$2:$C$1686)), $D$2:$D$1686),"") -> Kirkland Lake | T131: =IFERROR(INDEX($Q$2:$Q$231,MATCH(ROWS($Q$2:Q131),COUNTIF($Q$2:$Q$231,"<="&$Q$2:$Q$231),0)),0) -> Nanticoke (Jarvis) | U131: 131 | V131: =IFERROR(INDEX($T$2:$T$231,U131,1),"") -> Nanticoke (Port Dover)
A132: 131 | B132: CAN | C132: BC | D132: Princeton | E132: 4250 | F132: Cold-Dry | G132: -24 | H132: 33 | Q132: =_xlfn.IFNA(LOOKUP(2, 1/((COUNTIF($Q$1:Q131, $D$2:$D$1686)=0)*($N$3=$C$2:$C$1686)), $D$2:$D$1686),"") -> Kinmount | T132: =IFERROR(INDEX($Q$2:$Q$231,MATCH(ROWS($Q$2:Q132),COUNTIF($Q$2:$Q$231,"<="&$Q$2:$Q$231),0)),0) -> Nanticoke (Port Dover) | U132: =U131+1 -> 132 | V132: Napanee
A133: 132 | B133: CAN | C133: BC | D133: Qualicum Beach | E133: 3200 | F133: Marine | G133: -7 | H133: 27 | Q133: =_xlfn.IFNA(LOOKUP(2, 1/((COUNTIF($Q$1:Q132, $D$2:$D$1686)=0)*($N$3=$C$2:$C$1686)), $D$2:$D$1686),"") -> Kingston | T133: =IFERROR(INDEX($Q$2:$Q$231,MATCH(ROWS($Q$2:Q133),COUNTIF($Q$2:$Q$231,"<="&$Q$2:$Q$231),0)),0) -> Napanee | U133: 133 | V133: New Liskeard
A134: 133 | B134: CAN | C134: BC | D134: Queen Charlotte City | E134: 3520 | F134: Marine | G134: -6 | H134: 21 | Q134: =_xlfn.IFNA(LOOKUP(2, 1/((COUNTIF($Q$1:Q133, $D$2:$D$1686)=0)*($N$3=$C$2:$C$1686)), $D$2:$D$1686),"") -> Kincardine | T134: =IFERROR(INDEX($Q$2:$Q$231,MATCH(ROWS($Q$2:Q134),COUNTIF($Q$2:$Q$231,"<="&$Q$2:$Q$231),0)),0) -> New Liskeard | U134: 134 | V134: Newcastle
A135: 134 | B135: CAN | C135: BC | D135: Quesnel | E135: 4650 | F135: Very-Cold | G135: -31 | H135: 30 | Q135: =_xlfn.IFNA(LOOKUP(2, 1/((COUNTIF($Q$1:Q134, $D$2:$D$1686)=0)*($N$3=$C$2:$C$1686)), $D$2:$D$1686),"") -> Killaloe | T135: =IFERROR(INDEX($Q$2:$Q$231,MATCH(ROWS($Q$2:Q135),COUNTIF($Q$2:$Q$231,"<="&$Q$2:$Q$231),0)),0) -> Newcastle | U135: 135 | V135: Newcastle (Bowmanville)
A136: 135 | B136: CAN | C136: BC | D136: Revelstoke | E136: 4000 | F136: Cold-Dry | G136: -20 | H136: 31 | Q136: =_xlfn.IFNA(LOOKUP(2, 1/((COUNTIF($Q$1:Q135, $D$2:$D$1686)=0)*($N$3=$C$2:$C$1686)), $D$2:$D$1686),"") -> Kenora | T136: =IFERROR(INDEX($Q$2:$Q$231,MATCH(ROWS($Q$2:Q136),COUNTIF($Q$2:$Q$231,"<="&$Q$2:$Q$231),0)),0) -> Newcastle (Bowmanville) | U136: 136 | V136: Newmarket
A137: 136 | B137: CAN | C137: BC | D137: Richmond | E137: 2800 | F137: Marine | G137: -7 | H137: 27 | Q137: =_xlfn.IFNA(LOOKUP(2, 1/((COUNTIF($Q$1:Q136, $D$2:$D$1686)=0)*($N$3=$C$2:$C$1686)), $D$2:$D$1686),"") -> Kemptville | T137: =IFERROR(INDEX($Q$2:$Q$231,MATCH(ROWS($Q$2:Q137),COUNTIF($Q$2:$Q$231,"<="&$Q$2:$Q$231),0)),0) -> Newmarket | U137: 137 | V137: Niagara Falls
A138: 137 | B138: CAN | C138: BC | D138: Salmon Arm | E138: 3650 | F138: Cold-Humid | G138: -19 | H138: 33 | Q138: =_xlfn.IFNA(LOOKUP(2, 1/((COUNTIF($Q$1:Q137, $D$2:$D$1686)=0)*($N$3=$C$2:$C$1686)), $D$2:$D$1686),"") -> Kapuskasing | T138: =IFERROR(INDEX($Q$2:$Q$231,MATCH(ROWS($Q$2:Q138),COUNTIF($Q$2:$Q$231,"<="&$Q$2:$Q$231),0)),0) -> Niagara Falls | U138: 138 | V138: North Bay
A139: 138 | B139: CAN | C139: BC | D139: Sandspit | E139: 3450 | F139: Marine | G139: -4 | H139: 18 | Q139: =_xlfn.IFNA(LOOKUP(2, 1/((COUNTIF($Q$1:Q138, $D$2:$D$1686)=0)*($N$3=$C$2:$C$1686)), $D$2:$D$1686),"") -> Jellicoe | T139: =IFERROR(INDEX($Q$2:$Q$231,MATCH(ROWS($Q$2:Q139),COUNTIF($Q$2:$Q$231,"<="&$Q$2:$Q$231),0)),0) -> North Bay | U139: 139 | V139: North York
A140: 139 | B140: CAN | C140: BC | D140: Sechelt | E140: 2680 | F140: Marine | G140: -6 | H140: 27 | Q140: =_xlfn.IFNA(LOOKUP(2, 1/((COUNTIF($Q$1:Q139, $D$2:$D$1686)=0)*($N$3=$C$2:$C$1686)), $D$2:$D$1686),"") -> Iroquois Falls | T140: =IFERROR(INDEX($Q$2:$Q$231,MATCH(ROWS($Q$2:Q140),COUNTIF($Q$2:$Q$231,"<="&$Q$2:$Q$231),0)),0) -> North York | U140: 140 | V140: Norwood
A141: 140 | B141: CAN | C141: BC | D141: Sidney | E141: 2850 | F141: Marine | G141: -4 | H141: 26 | Q141: =_xlfn.IFNA(LOOKUP(2, 1/((COUNTIF($Q$1:Q140, $D$2:$D$1686)=0)*($N$3=$C$2:$C$1686)), $D$2:$D$1686),"") -> Ingersoll | T141: =IFERROR(INDEX($Q$2:$Q$231,MATCH(ROWS($Q$2:Q141),COUNTIF($Q$2:$Q$231,"<="&$Q$2:$Q$231),0)),0) -> Norwood | U141: 141 | V141: Oakville
A142: 141 | B142: CAN | C142: BC | D142: Smith River | E142: 7100 | F142: Subarctic | G142: -45 | H142: 26 | Q142: =_xlfn.IFNA(LOOKUP(2, 1/((COUNTIF($Q$1:Q141, $D$2:$D$1686)=0)*($N$3=$C$2:$C$1686)), $D$2:$D$1686),"") -> Huntsville | T142: =IFERROR(INDEX($Q$2:$Q$231,MATCH(ROWS($Q$2:Q142),COUNTIF($Q$2:$Q$231,"<="&$Q$2:$Q$231),0)),0) -> Oakville | U142: 142 | V142: Orangeville
A143: 142 | B143: CAN | C143: BC | D143: Smithers | E143: 5040 | F143: Very-Cold | G143: -29 | H143: 26 | Q143: =_xlfn.IFNA(LOOKUP(2, 1/((COUNTIF($Q$1:Q142, $D$2:$D$1686)=0)*($N$3=$C$2:$C$1686)), $D$2:$D$1686),"") -> Hornepayne | T143: =IFERROR(INDEX($Q$2:$Q$231,MATCH(ROWS($Q$2:Q143),COUNTIF($Q$2:$Q$231,"<="&$Q$2:$Q$231),0)),0) -> Orangeville | U143: 143 | V143: Orillia
A144: 143 | B144: CAN | C144: BC | D144: Sooke | E144: 2900 | F144: Marine | G144: -1 | H144: 21 | Q144: =_xlfn.IFNA(LOOKUP(2, 1/((COUNTIF($Q$1:Q143, $D$2:$D$1686)=0)*($N$3=$C$2:$C$1686)), $D$2:$D$1686),"") -> Honey Harbour | T144: =IFERROR(INDEX($Q$2:$Q$231,MATCH(ROWS($Q$2:Q144),COUNTIF($Q$2:$Q$231,"<="&$Q$2:$Q$231),0)),0) -> Orillia | U144: 144 | V144: Oshawa
A145: 144 | B145: CAN | C145: BC | D145: Squamish | E145: 2950 | F145: Cold-Humid | G145: -9 | H145: 29 | Q145: =_xlfn.IFNA(LOOKUP(2, 1/((COUNTIF($Q$1:Q144, $D$2:$D$1686)=0)*($N$3=$C$2:$C$1686)), $D$2:$D$1686),"") -> Hearst | T145: =IFERROR(INDEX($Q$2:$Q$231,MATCH(ROWS($Q$2:Q145),COUNTIF($Q$2:$Q$231,"<="&$Q$2:$Q$231),0)),0) -> Oshawa | U145: 145 | V145: Ottawa (Barrhaven)
A146: 145 | B146: CAN | C146: BC | D146: Stewart | E146: 4350 | F146: Cold-Dry | G146: -17 | H146: 25 | Q146: =_xlfn.IFNA(LOOKUP(2, 1/((COUNTIF($Q$1:Q145, $D$2:$D$1686)=0)*($N$3=$C$2:$C$1686)), $D$2:$D$1686),"") -> Hawkesbury | T146: =IFERROR(INDEX($Q$2:$Q$231,MATCH(ROWS($Q$2:Q146),COUNTIF($Q$2:$Q$231,"<="&$Q$2:$Q$231),0)),0) -> Ottawa (Barrhaven) | U146: 146 | V146: Ottawa (city hall)
A147: 146 | B147: CAN | C147: BC | D147: Surrey (88 Ave & 156 St.) | E147: 2750 | F147: Marine | G147: -8 | H147: 29 | Q147: =_xlfn.IFNA(LOOKUP(2, 1/((COUNTIF($Q$1:Q146, $D$2:$D$1686)=0)*($N$3=$C$2:$C$1686)), $D$2:$D$1686),"") -> Hastings | T147: =IFERROR(INDEX($Q$2:$Q$231,MATCH(ROWS($Q$2:Q147),COUNTIF($Q$2:$Q$231,"<="&$Q$2:$Q$231),0)),0) -> Ottawa (city hall) | U147: 147 | V147: Ottawa (Kanata)
A148: 147 | B148: CAN | C148: BC | D148: Tahsis | E148: 3150 | F148: Marine | G148: -4 | H148: 26 | Q148: =_xlfn.IFNA(LOOKUP(2, 1/((COUNTIF($Q$1:Q147, $D$2:$D$1686)=0)*($N$3=$C$2:$C$1686)), $D$2:$D$1686),"") -> Hanover | T148: =IFERROR(INDEX($Q$2:$Q$231,MATCH(ROWS($Q$2:Q148),COUNTIF($Q$2:$Q$231,"<="&$Q$2:$Q$231),0)),0) -> Ottawa (Kanata) | U148: 148 | V148: Ottawa (M-C Int'l Airport)
A149: 148 | B149: CAN | C149: BC | D149: Taylor | E149: 5720 | F149: Very-Cold | G149: -35 | H149: 26 | Q149: =_xlfn.IFNA(LOOKUP(2, 1/((COUNTIF($Q$1:Q148, $D$2:$D$1686)=0)*($N$3=$C$2:$C$1686)), $D$2:$D$1686),"") -> Hamilton | T149: =IFERROR(INDEX($Q$2:$Q$231,MATCH(ROWS($Q$2:Q149),COUNTIF($Q$2:$Q$231,"<="&$Q$2:$Q$231),0)),0) -> Ottawa (M-C Int'l Airport) | U149: 149 | V149: Ottawa (Orleans)
A150: 149 | B150: CAN | C150: BC | D150: Terrace | E150: 4150 | F150: Cold-Dry | G150: -19 | H150: 27 | Q150: =_xlfn.IFNA(LOOKUP(2, 1/((COUNTIF($Q$1:Q149, $D$2:$D$1686)=0)*($N$3=$C$2:$C$1686)), $D$2:$D$1686),"") -> Halton Hills (Georgetown) | T150: =IFERROR(INDEX($Q$2:$Q$231,MATCH(ROWS($Q$2:Q150),COUNTIF($Q$2:$Q$231,"<="&$Q$2:$Q$231),0)),0) -> Ottawa (Orleans) | U150: 150 | V150: Owen Sound
A151: 150 | B151: CAN | C151: BC | D151: Tofino | E151: 3150 | F151: Marine | G151: -2 | H151: 20 | Q151: =_xlfn.IFNA(LOOKUP(2, 1/((COUNTIF($Q$1:Q150, $D$2:$D$1686)=0)*($N$3=$C$2:$C$1686)), $D$2:$D$1686),"") -> Haliburton | T151: =IFERROR(INDEX($Q$2:$Q$231,MATCH(ROWS($Q$2:Q151),COUNTIF($Q$2:$Q$231,"<="&$Q$2:$Q$231),0)),0) -> Owen Sound | U151: 151 | V151: Pagwa River
A152: 151 | B152: CAN | C152: BC | D152: Trail | E152: 3600 | F152: Cold-Dry | G152: -14 | H152: 33 | Q152: =_xlfn.IFNA(LOOKUP(2, 1/((COUNTIF($Q$1:Q151, $D$2:$D$1686)=0)*($N$3=$C$2:$C$1686)), $D$2:$D$1686),"") -> Haldimand (Hagersville) | T152: =IFERROR(INDEX($Q$2:$Q$231,MATCH(ROWS($Q$2:Q152),COUNTIF($Q$2:$Q$231,"<="&$Q$2:$Q$231),0)),0) -> Pagwa River | U152: 152 | V152: Paris
A153: 152 | B153: CAN | C153: BC | D153: Ucluelet | E153: 3120 | F153: Marine | G153: -2 | H153: 18 | Q153: =_xlfn.IFNA(LOOKUP(2, 1/((COUNTIF($Q$1:Q152, $D$2:$D$1686)=0)*($N$3=$C$2:$C$1686)), $D$2:$D$1686),"") -> Haldimand (Caledonia) | T153: =IFERROR(INDEX($Q$2:$Q$231,MATCH(ROWS($Q$2:Q153),COUNTIF($Q$2:$Q$231,"<="&$Q$2:$Q$231),0)),0) -> Paris | U153: 153 | V153: Parkhill
A154: 153 | B154: CAN | C154: BC | D154: Vancouver (city hall) | E154: 2825 | F154: Marine | G154: -7 | H154: 28 | Q154: =_xlfn.IFNA(LOOKUP(2, 1/((COUNTIF($Q$1:Q153, $D$2:$D$1686)=0)*($N$3=$C$2:$C$1686)), $D$2:$D$1686),"") -> Haileybury | T154: =IFERROR(INDEX($Q$2:$Q$231,MATCH(ROWS($Q$2:Q154),COUNTIF($Q$2:$Q$231,"<="&$Q$2:$Q$231),0)),0) -> Parkhill | U154: 154 | V154: Parry Sound
A155: 154 | B155: CAN | C155: BC | D155: Vancouver (Granville & 41 Ave) | E155: 2925 | F155: Marine | G155: -6 | H155: 28 | Q155: =_xlfn.IFNA(LOOKUP(2, 1/((COUNTIF($Q$1:Q154, $D$2:$D$1686)=0)*($N$3=$C$2:$C$1686)), $D$2:$D$1686),"") -> Guthrie | T155: =IFERROR(INDEX($Q$2:$Q$231,MATCH(ROWS($Q$2:Q155),COUNTIF($Q$2:$Q$231,"<="&$Q$2:$Q$231),0)),0) -> Parry Sound | U155: 155 | V155: Pelham (Fonthill)
A156: 155 | B156: CAN | C156: BC | D156: Vernon | E156: 3600 | F156: Cold-Dry | G156: -20 | H156: 33 | Q156: =_xlfn.IFNA(LOOKUP(2, 1/((COUNTIF($Q$1:Q155, $D$2:$D$1686)=0)*($N$3=$C$2:$C$1686)), $D$2:$D$1686),"") -> Guelph | T156: =IFERROR(INDEX($Q$2:$Q$231,MATCH(ROWS($Q$2:Q156),COUNTIF($Q$2:$Q$231,"<="&$Q$2:$Q$231),0)),0) -> Pelham (Fonthill) | U156: 156 | V156: Pembroke
A157: 156 | B157: CAN | C157: BC | D157: Victoria | E157: 2650 | F157: Marine | G157: -4 | H157: 24 | Q157: =_xlfn.IFNA(LOOKUP(2, 1/((COUNTIF($Q$1:Q156, $D$2:$D$1686)=0)*($N$3=$C$2:$C$1686)), $D$2:$D$1686),"") -> Grimsby | T157: =IFERROR(INDEX($Q$2:$Q$231,MATCH(ROWS($Q$2:Q157),COUNTIF($Q$2:$Q$231,"<="&$Q$2:$Q$231),0)),0) -> Pembroke | U157: 157 | V157: Penetanguishene
A158: 157 | B158: CAN | C158: BC | D158: Victoria Gonzales Height | E158: 2700 | F158: Marine | G158: -4 | H158: 24 | Q158: =_xlfn.IFNA(LOOKUP(2, 1/((COUNTIF($Q$1:Q157, $D$2:$D$1686)=0)*($N$3=$C$2:$C$1686)), $D$2:$D$1686),"") -> Gravenhurst (Muskoka Airport) | T158: =IFERROR(INDEX($Q$2:$Q$231,MATCH(ROWS($Q$2:Q158),COUNTIF($Q$2:$Q$231,"<="&$Q$2:$Q$231),0)),0) -> Penetanguishene | U158: 158 | V158: Perth
A159: 158 | B159: CAN | C159: BC | D159: Victoria Mt Tolmie | E159: 2700 | F159: Marine | G159: -6 | H159: 24 | Q159: =_xlfn.IFNA(LOOKUP(2, 1/((COUNTIF($Q$1:Q158, $D$2:$D$1686)=0)*($N$3=$C$2:$C$1686)), $D$2:$D$1686),"") -> Graham | T159: =IFERROR(INDEX($Q$2:$Q$231,MATCH(ROWS($Q$2:Q159),COUNTIF($Q$2:$Q$231,"<="&$Q$2:$Q$231),0)),0) -> Perth | U159: 159 | V159: Petawawa
A160: 159 | B160: CAN | C160: BC | D160: West Vancouver | E160: 2950 | F160: Marine | G160: -7 | H160: 28 | Q160: =_xlfn.IFNA(LOOKUP(2, 1/((COUNTIF($Q$1:Q159, $D$2:$D$1686)=0)*($N$3=$C$2:$C$1686)), $D$2:$D$1686),"") -> Gore Bay | T160: =IFERROR(INDEX($Q$2:$Q$231,MATCH(ROWS($Q$2:Q160),COUNTIF($Q$2:$Q$231,"<="&$Q$2:$Q$231),0)),0) -> Petawawa | U160: 160 | V160: Peterborough
A161: 160 | B161: CAN | C161: BC | D161: Whistler | E161: 4180 | F161: Cold-Humid | G161: -17 | H161: 30 | Q161: =_xlfn.IFNA(LOOKUP(2, 1/((COUNTIF($Q$1:Q160, $D$2:$D$1686)=0)*($N$3=$C$2:$C$1686)), $D$2:$D$1686),"") -> Goderich | T161: =IFERROR(INDEX($Q$2:$Q$231,MATCH(ROWS($Q$2:Q161),COUNTIF($Q$2:$Q$231,"<="&$Q$2:$Q$231),0)),0) -> Peterborough | U161: 161 | V161: Petrolia
A162: 161 | B162: CAN | C162: BC | D162: White Rock | E162: 2620 | F162: Marine | G162: -5 | H162: 25 | Q162: =_xlfn.IFNA(LOOKUP(2, 1/((COUNTIF($Q$1:Q161, $D$2:$D$1686)=0)*($N$3=$C$2:$C$1686)), $D$2:$D$1686),"") -> Glencoe | T162: =IFERROR(INDEX($Q$2:$Q$231,MATCH(ROWS($Q$2:Q162),COUNTIF($Q$2:$Q$231,"<="&$Q$2:$Q$231),0)),0) -> Petrolia | U162: 162 | V162: Pickering (Dunbarton)
A163: 162 | B163: CAN | C163: BC | D163: Williams Lake | E163: 4400 | F163: Cold-Dry | G163: -30 | H163: 29 | Q163: =_xlfn.IFNA(LOOKUP(2, 1/((COUNTIF($Q$1:Q162, $D$2:$D$1686)=0)*($N$3=$C$2:$C$1686)), $D$2:$D$1686),"") -> Geraldton | T163: =IFERROR(INDEX($Q$2:$Q$231,MATCH(ROWS($Q$2:Q163),COUNTIF($Q$2:$Q$231,"<="&$Q$2:$Q$231),0)),0) -> Pickering (Dunbarton) | U163: 163 | V163: Picton
A164: 163 | B164: CAN | C164: BC | D164: Youbou | E164: 3050 | F164: Marine | G164: -5 | H164: 31 | Q164: =_xlfn.IFNA(LOOKUP(2, 1/((COUNTIF($Q$1:Q163, $D$2:$D$1686)=0)*($N$3=$C$2:$C$1686)), $D$2:$D$1686),"") -> Gananoque | T164: =IFERROR(INDEX($Q$2:$Q$231,MATCH(ROWS($Q$2:Q164),COUNTIF($Q$2:$Q$231,"<="&$Q$2:$Q$231),0)),0) -> Picton | U164: 164 | V164: Plattsville
A165: 164 | B165: CAN | C165: MB | D165: Beausejour | E165: 5680 | F165: Very-Cold | G165: -33 | H165: 29 | Q165: =_xlfn.IFNA(LOOKUP(2, 1/((COUNTIF($Q$1:Q164, $D$2:$D$1686)=0)*($N$3=$C$2:$C$1686)), $D$2:$D$1686),"") -> Fort Frances | T165: =IFERROR(INDEX($Q$2:$Q$231,MATCH(ROWS($Q$2:Q165),COUNTIF($Q$2:$Q$231,"<="&$Q$2:$Q$231),0)),0) -> Plattsville | U165: 165 | V165: Point Alexander
A166: 165 | B166: CAN | C166: MB | D166: Boissevain | E166: 5500 | F166: Very-Cold | G166: -32 | H166: 30 | Q166: =_xlfn.IFNA(LOOKUP(2, 1/((COUNTIF($Q$1:Q165, $D$2:$D$1686)=0)*($N$3=$C$2:$C$1686)), $D$2:$D$1686),"") -> Fort Erie (Ridgeway) | T166: =IFERROR(INDEX($Q$2:$Q$231,MATCH(ROWS($Q$2:Q166),COUNTIF($Q$2:$Q$231,"<="&$Q$2:$Q$231),0)),0) -> Point Alexander | U166: 166 | V166: Port Burwell
A167: 166 | B167: CAN | C167: MB | D167: Brandon | E167: 5760 | F167: Very-Cold | G167: -33 | H167: 30 | Q167: =_xlfn.IFNA(LOOKUP(2, 1/((COUNTIF($Q$1:Q166, $D$2:$D$1686)=0)*($N$3=$C$2:$C$1686)), $D$2:$D$1686),"") -> Fort Erie | T167: =IFERROR(INDEX($Q$2:$Q$231,MATCH(ROWS($Q$2:Q167),COUNTIF($Q$2:$Q$231,"<="&$Q$2:$Q$231),0)),0) -> Port Burwell | U167: 167 | V167: Port Colborne
A168: 167 | B168: CAN | C168: MB | D168: Churchill | E168: 8950 | F168: Subarctic | G168: -38 | H168: 25 | Q168: =_xlfn.IFNA(LOOKUP(2, 1/((COUNTIF($Q$1:Q167, $D$2:$D$1686)=0)*($N$3=$C$2:$C$1686)), $D$2:$D$1686),"") -> Forest | T168: =IFERROR(INDEX($Q$2:$Q$231,MATCH(ROWS($Q$2:Q168),COUNTIF($Q$2:$Q$231,"<="&$Q$2:$Q$231),0)),0) -> Port Colborne | U168: 168 | V168: Port Elgin
A169: 168 | B169: CAN | C169: MB | D169: Dauphin | E169: 5900 | F169: Very-Cold | G169: -33 | H169: 30 | Q169: =_xlfn.IFNA(LOOKUP(2, 1/((COUNTIF($Q$1:Q168, $D$2:$D$1686)=0)*($N$3=$C$2:$C$1686)), $D$2:$D$1686),"") -> Fergus | T169: =IFERROR(INDEX($Q$2:$Q$231,MATCH(ROWS($Q$2:Q169),COUNTIF($Q$2:$Q$231,"<="&$Q$2:$Q$231),0)),0) -> Port Elgin | U169: 169 | V169: Port Hope
A170: 169 | B170: CAN | C170: MB | D170: Flin Flon | E170: 6440 | F170: Very-Cold | G170: -38 | H170: 27 | Q170: =_xlfn.IFNA(LOOKUP(2, 1/((COUNTIF($Q$1:Q169, $D$2:$D$1686)=0)*($N$3=$C$2:$C$1686)), $D$2:$D$1686),"") -> Fenelon Falls | T170: =IFERROR(INDEX($Q$2:$Q$231,MATCH(ROWS($Q$2:Q170),COUNTIF($Q$2:$Q$231,"<="&$Q$2:$Q$231),0)),0) -> Port Hope | U170: 170 | V170: Port Perry
A171: 170 | B171: CAN | C171: MB | D171: Gimli | E171: 5800 | F171: Very-Cold | G171: -34 | H171: 29 | Q171: =_xlfn.IFNA(LOOKUP(2, 1/((COUNTIF($Q$1:Q170, $D$2:$D$1686)=0)*($N$3=$C$2:$C$1686)), $D$2:$D$1686),"") -> Exeter | T171: =IFERROR(INDEX($Q$2:$Q$231,MATCH(ROWS($Q$2:Q171),COUNTIF($Q$2:$Q$231,"<="&$Q$2:$Q$231),0)),0) -> Port Perry | U171: 171 | V171: Port Stanley
A172: 171 | B172: CAN | C172: MB | D172: Island Lake | E172: 6900 | F172: Subarctic | G172: -36 | H172: 27 | Q172: =_xlfn.IFNA(LOOKUP(2, 1/((COUNTIF($Q$1:Q171, $D$2:$D$1686)=0)*($N$3=$C$2:$C$1686)), $D$2:$D$1686),"") -> Etobicoke | T172: =IFERROR(INDEX($Q$2:$Q$231,MATCH(ROWS($Q$2:Q172),COUNTIF($Q$2:$Q$231,"<="&$Q$2:$Q$231),0)),0) -> Port Stanley | U172: 172 | V172: Prescott
A173: 172 | B173: CAN | C173: MB | D173: Lac du Bonnet | E173: 5730 | F173: Very-Cold | G173: -34 | H173: 29 | Q173: =_xlfn.IFNA(LOOKUP(2, 1/((COUNTIF($Q$1:Q172, $D$2:$D$1686)=0)*($N$3=$C$2:$C$1686)), $D$2:$D$1686),"") -> Espanola | T173: =IFERROR(INDEX($Q$2:$Q$231,MATCH(ROWS($Q$2:Q173),COUNTIF($Q$2:$Q$231,"<="&$Q$2:$Q$231),0)),0) -> Prescott | U173: 173 | V173: Princeton
A174: 173 | B174: CAN | C174: MB | D174: Lynn Lake | E174: 7770 | F174: Subarctic | G174: -40 | H174: 27 | Q174: =_xlfn.IFNA(LOOKUP(2, 1/((COUNTIF($Q$1:Q173, $D$2:$D$1686)=0)*($N$3=$C$2:$C$1686)), $D$2:$D$1686),"") -> Englehart | T174: =IFERROR(INDEX($Q$2:$Q$231,MATCH(ROWS($Q$2:Q174),COUNTIF($Q$2:$Q$231,"<="&$Q$2:$Q$231),0)),0) -> Princeton | U174: 174 | V174: Raith
A175: 174 | B175: CAN | C175: MB | D175: Morden | E175: 5400 | F175: Very-Cold | G175: -31 | H175: 30 | Q175: =_xlfn.IFNA(LOOKUP(2, 1/((COUNTIF($Q$1:Q174, $D$2:$D$1686)=0)*($N$3=$C$2:$C$1686)), $D$2:$D$1686),"") -> Embro | T175: =IFERROR(INDEX($Q$2:$Q$231,MATCH(ROWS($Q$2:Q175),COUNTIF($Q$2:$Q$231,"<="&$Q$2:$Q$231),0)),0) -> Raith | U175: 175 | V175: Rayside-Balfour (Chelmsford)
A176: 175 | B176: CAN | C176: MB | D176: Neepawa | E176: 5760 | F176: Very-Cold | G176: -32 | H176: 29 | Q176: =_xlfn.IFNA(LOOKUP(2, 1/((COUNTIF($Q$1:Q175, $D$2:$D$1686)=0)*($N$3=$C$2:$C$1686)), $D$2:$D$1686),"") -> Elmvale | T176: =IFERROR(INDEX($Q$2:$Q$231,MATCH(ROWS($Q$2:Q176),COUNTIF($Q$2:$Q$231,"<="&$Q$2:$Q$231),0)),0) -> Rayside-Balfour (Chelmsford) | U176: 176 | V176: Red Lake
A177: 176 | B177: CAN | C177: MB | D177: Pine Falls | E177: 5900 | F177: Very-Cold | G177: -34 | H177: 28 | Q177: =_xlfn.IFNA(LOOKUP(2, 1/((COUNTIF($Q$1:Q176, $D$2:$D$1686)=0)*($N$3=$C$2:$C$1686)), $D$2:$D$1686),"") -> Elliot Lake | T177: =IFERROR(INDEX($Q$2:$Q$231,MATCH(ROWS($Q$2:Q177),COUNTIF($Q$2:$Q$231,"<="&$Q$2:$Q$231),0)),0) -> Red Lake | U177: 177 | V177: Renfrew
A178: 177 | B178: CAN | C178: MB | D178: Portage la Prairie | E178: 5600 | F178: Very-Cold | G178: -31 | H178: 30 | Q178: =_xlfn.IFNA(LOOKUP(2, 1/((COUNTIF($Q$1:Q177, $D$2:$D$1686)=0)*($N$3=$C$2:$C$1686)), $D$2:$D$1686),"") -> Edison | T178: =IFERROR(INDEX($Q$2:$Q$231,MATCH(ROWS($Q$2:Q178),COUNTIF($Q$2:$Q$231,"<="&$Q$2:$Q$231),0)),0) -> Renfrew | U178: 178 | V178: Richmond Hill
A179: 178 | B179: CAN | C179: MB | D179: Rivers | E179: 5840 | F179: Very-Cold | G179: -34 | H179: 29 | Q179: =_xlfn.IFNA(LOOKUP(2, 1/((COUNTIF($Q$1:Q178, $D$2:$D$1686)=0)*($N$3=$C$2:$C$1686)), $D$2:$D$1686),"") -> Earlton | T179: =IFERROR(INDEX($Q$2:$Q$231,MATCH(ROWS($Q$2:Q179),COUNTIF($Q$2:$Q$231,"<="&$Q$2:$Q$231),0)),0) -> Richmond Hill | U179: 179 | V179: Rockland
A180: 179 | B180: CAN | C180: MB | D180: Sandilands | E180: 5650 | F180: Very-Cold | G180: -32 | H180: 29 | Q180: =_xlfn.IFNA(LOOKUP(2, 1/((COUNTIF($Q$1:Q179, $D$2:$D$1686)=0)*($N$3=$C$2:$C$1686)), $D$2:$D$1686),"") -> Dutton | T180: =IFERROR(INDEX($Q$2:$Q$231,MATCH(ROWS($Q$2:Q180),COUNTIF($Q$2:$Q$231,"<="&$Q$2:$Q$231),0)),0) -> Rockland | U180: 180 | V180: Sarnia
A181: 180 | B181: CAN | C181: MB | D181: Selkirk | E181: 5700 | F181: Very-Cold | G181: -33 | H181: 29 | Q181: =_xlfn.IFNA(LOOKUP(2, 1/((COUNTIF($Q$1:Q180, $D$2:$D$1686)=0)*($N$3=$C$2:$C$1686)), $D$2:$D$1686),"") -> Durham | T181: =IFERROR(INDEX($Q$2:$Q$231,MATCH(ROWS($Q$2:Q181),COUNTIF($Q$2:$Q$231,"<="&$Q$2:$Q$231),0)),0) -> Sarnia | U181: 181 | V181: Sault Ste. Marie
A182: 181 | B182: CAN | C182: MB | D182: Split Lake | E182: 7900 | F182: Subarctic | G182: -38 | H182: 27 | Q182: =_xlfn.IFNA(LOOKUP(2, 1/((COUNTIF($Q$1:Q181, $D$2:$D$1686)=0)*($N$3=$C$2:$C$1686)), $D$2:$D$1686),"") -> Dunnville | T182: =IFERROR(INDEX($Q$2:$Q$231,MATCH(ROWS($Q$2:Q182),COUNTIF($Q$2:$Q$231,"<="&$Q$2:$Q$231),0)),0) -> Sault Ste. Marie | U182: 182 | V182: Scarborough
A183: 182 | B183: CAN | C183: MB | D183: Steinbach | E183: 5700 | F183: Very-Cold | G183: -33 | H183: 29 | Q183: =_xlfn.IFNA(LOOKUP(2, 1/((COUNTIF($Q$1:Q182, $D$2:$D$1686)=0)*($N$3=$C$2:$C$1686)), $D$2:$D$1686),"") -> Dundalk | T183: =IFERROR(INDEX($Q$2:$Q$231,MATCH(ROWS($Q$2:Q183),COUNTIF($Q$2:$Q$231,"<="&$Q$2:$Q$231),0)),0) -> Scarborough | U183: 183 | V183: Schreiber
A184: 183 | B184: CAN | C184: MB | D184: Swan River | E184: 6100 | F184: Very-Cold | G184: -34 | H184: 29 | Q184: =_xlfn.IFNA(LOOKUP(2, 1/((COUNTIF($Q$1:Q183, $D$2:$D$1686)=0)*($N$3=$C$2:$C$1686)), $D$2:$D$1686),"") -> Dryden | T184: =IFERROR(INDEX($Q$2:$Q$231,MATCH(ROWS($Q$2:Q184),COUNTIF($Q$2:$Q$231,"<="&$Q$2:$Q$231),0)),0) -> Schreiber | U184: 184 | V184: Seaforth
A185: 184 | B185: CAN | C185: MB | D185: The Pas | E185: 6480 | F185: Very-Cold | G185: -36 | H185: 28 | Q185: =_xlfn.IFNA(LOOKUP(2, 1/((COUNTIF($Q$1:Q184, $D$2:$D$1686)=0)*($N$3=$C$2:$C$1686)), $D$2:$D$1686),"") -> Dresden | T185: =IFERROR(INDEX($Q$2:$Q$231,MATCH(ROWS($Q$2:Q185),COUNTIF($Q$2:$Q$231,"<="&$Q$2:$Q$231),0)),0) -> Seaforth | U185: 185 | V185: Shelburne
A186: 185 | B186: CAN | C186: MB | D186: Thompson | E186: 7600 | F186: Subarctic | G186: -40 | H186: 27 | Q186: =_xlfn.IFNA(LOOKUP(2, 1/((COUNTIF($Q$1:Q185, $D$2:$D$1686)=0)*($N$3=$C$2:$C$1686)), $D$2:$D$1686),"") -> Dorion | T186: =IFERROR(INDEX($Q$2:$Q$231,MATCH(ROWS($Q$2:Q186),COUNTIF($Q$2:$Q$231,"<="&$Q$2:$Q$231),0)),0) -> Shelburne | U186: 186 | V186: Simcoe
A187: 186 | B187: CAN | C187: MB | D187: Virden | E187: 5620 | F187: Very-Cold | G187: -33 | H187: 30 | Q187: =_xlfn.IFNA(LOOKUP(2, 1/((COUNTIF($Q$1:Q186, $D$2:$D$1686)=0)*($N$3=$C$2:$C$1686)), $D$2:$D$1686),"") -> Dorchester | T187: =IFERROR(INDEX($Q$2:$Q$231,MATCH(ROWS($Q$2:Q187),COUNTIF($Q$2:$Q$231,"<="&$Q$2:$Q$231),0)),0) -> Simcoe | U187: 187 | V187: Sioux Lookout
A188: 187 | B188: CAN | C188: MB | D188: Winnipeg | E188: 5670 | F188: Very-Cold | G188: -33 | H188: 30 | Q188: =_xlfn.IFNA(LOOKUP(2, 1/((COUNTIF($Q$1:Q187, $D$2:$D$1686)=0)*($N$3=$C$2:$C$1686)), $D$2:$D$1686),"") -> Deseronto | T188: =IFERROR(INDEX($Q$2:$Q$231,MATCH(ROWS($Q$2:Q188),COUNTIF($Q$2:$Q$231,"<="&$Q$2:$Q$231),0)),0) -> Sioux Lookout | U188: 188 | V188: Smiths Falls
A189: 188 | B189: CAN | C189: NB | D189: Alma | E189: 4500 | F189: Very-Cold | G189: -21 | H189: 26 | Q189: =_xlfn.IFNA(LOOKUP(2, 1/((COUNTIF($Q$1:Q188, $D$2:$D$1686)=0)*($N$3=$C$2:$C$1686)), $D$2:$D$1686),"") -> Deep River | T189: =IFERROR(INDEX($Q$2:$Q$231,MATCH(ROWS($Q$2:Q189),COUNTIF($Q$2:$Q$231,"<="&$Q$2:$Q$231),0)),0) -> Smiths Falls | U189: 189 | V189: Smithville
A190: 189 | B190: CAN | C190: NB | D190: Bathurst | E190: 5020 | F190: Very-Cold | G190: -23 | H190: 30 | Q190: =_xlfn.IFNA(LOOKUP(2, 1/((COUNTIF($Q$1:Q189, $D$2:$D$1686)=0)*($N$3=$C$2:$C$1686)), $D$2:$D$1686),"") -> Corunna | T190: =IFERROR(INDEX($Q$2:$Q$231,MATCH(ROWS($Q$2:Q190),COUNTIF($Q$2:$Q$231,"<="&$Q$2:$Q$231),0)),0) -> Smithville | U190: 190 | V190: Smooth Rock Falls
A191: 190 | B191: CAN | C191: NB | D191: Campbellton | E191: 5500 | F191: Very-Cold | G191: -26 | H191: 29 | Q191: =_xlfn.IFNA(LOOKUP(2, 1/((COUNTIF($Q$1:Q190, $D$2:$D$1686)=0)*($N$3=$C$2:$C$1686)), $D$2:$D$1686),"") -> Cornwall | T191: =IFERROR(INDEX($Q$2:$Q$231,MATCH(ROWS($Q$2:Q191),COUNTIF($Q$2:$Q$231,"<="&$Q$2:$Q$231),0)),0) -> Smooth Rock Falls | U191: 191 | V191: South River
A192: 191 | B192: CAN | C192: NB | D192: Edmundston | E192: 5320 | F192: Very-Cold | G192: -27 | H192: 28 | Q192: =_xlfn.IFNA(LOOKUP(2, 1/((COUNTIF($Q$1:Q191, $D$2:$D$1686)=0)*($N$3=$C$2:$C$1686)), $D$2:$D$1686),"") -> Collingwood | T192: =IFERROR(INDEX($Q$2:$Q$231,MATCH(ROWS($Q$2:Q192),COUNTIF($Q$2:$Q$231,"<="&$Q$2:$Q$231),0)),0) -> South River | U192: 192 | V192: Southampton
A193: 192 | B193: CAN | C193: NB | D193: Fredericton | E193: 4670 | F193: Very-Cold | G193: -24 | H193: 29 | Q193: =_xlfn.IFNA(LOOKUP(2, 1/((COUNTIF($Q$1:Q192, $D$2:$D$1686)=0)*($N$3=$C$2:$C$1686)), $D$2:$D$1686),"") -> Colborne | T193: =IFERROR(INDEX($Q$2:$Q$231,MATCH(ROWS($Q$2:Q193),COUNTIF($Q$2:$Q$231,"<="&$Q$2:$Q$231),0)),0) -> Southampton | U193: 193 | V193: St. Catharines
A194: 193 | B194: CAN | C194: NB | D194: Gagetown | E194: 4460 | F194: Cold-Humid | G194: -24 | H194: 29 | Q194: =_xlfn.IFNA(LOOKUP(2, 1/((COUNTIF($Q$1:Q193, $D$2:$D$1686)=0)*($N$3=$C$2:$C$1686)), $D$2:$D$1686),"") -> Cochrane | T194: =IFERROR(INDEX($Q$2:$Q$231,MATCH(ROWS($Q$2:Q194),COUNTIF($Q$2:$Q$231,"<="&$Q$2:$Q$231),0)),0) -> St. Catharines | U194: 194 | V194: St. Mary's
A195: 194 | B195: CAN | C195: NB | D195: Grand Falls | E195: 5300 | F195: Very-Cold | G195: -27 | H195: 28 | Q195: =_xlfn.IFNA(LOOKUP(2, 1/((COUNTIF($Q$1:Q194, $D$2:$D$1686)=0)*($N$3=$C$2:$C$1686)), $D$2:$D$1686),"") -> Cobourg | T195: =IFERROR(INDEX($Q$2:$Q$231,MATCH(ROWS($Q$2:Q195),COUNTIF($Q$2:$Q$231,"<="&$Q$2:$Q$231),0)),0) -> St. Mary's | U195: 195 | V195: =IFERROR(INDEX($T$2:$T$231,U195,1),"") -> St. Thomas
A196: 195 | B196: CAN | C196: NB | D196: Miramichi | E196: 4950 | F196: Very-Cold | G196: -24 | H196: 30 | Q196: =_xlfn.IFNA(LOOKUP(2, 1/((COUNTIF($Q$1:Q195, $D$2:$D$1686)=0)*($N$3=$C$2:$C$1686)), $D$2:$D$1686),"") -> Coboconk | T196: =IFERROR(INDEX($Q$2:$Q$231,MATCH(ROWS($Q$2:Q196),COUNTIF($Q$2:$Q$231,"<="&$Q$2:$Q$231),0)),0) -> St. Thomas | U196: =U195+1 -> 196 | V196: Stirling
A197: 196 | B197: CAN | C197: NB | D197: Moncton | E197: 4680 | F197: Very-Cold | G197: -23 | H197: 28 | Q197: =_xlfn.IFNA(LOOKUP(2, 1/((COUNTIF($Q$1:Q196, $D$2:$D$1686)=0)*($N$3=$C$2:$C$1686)), $D$2:$D$1686),"") -> Clinton | T197: =IFERROR(INDEX($Q$2:$Q$231,MATCH(ROWS($Q$2:Q197),COUNTIF($Q$2:$Q$231,"<="&$Q$2:$Q$231),0)),0) -> Stirling | U197: 197 | V197: Stratford
A198: 197 | B198: CAN | C198: NB | D198: Oromocto | E198: 4650 | F198: Very-Cold | G198: -24 | H198: 29 | Q198: =_xlfn.IFNA(LOOKUP(2, 1/((COUNTIF($Q$1:Q197, $D$2:$D$1686)=0)*($N$3=$C$2:$C$1686)), $D$2:$D$1686),"") -> Chesley | T198: =IFERROR(INDEX($Q$2:$Q$231,MATCH(ROWS($Q$2:Q198),COUNTIF($Q$2:$Q$231,"<="&$Q$2:$Q$231),0)),0) -> Stratford | U198: 198 | V198: Strathroy
A199: 198 | B199: CAN | C199: NB | D199: Sackville | E199: 4590 | F199: Very-Cold | G199: -22 | H199: 27 | Q199: =_xlfn.IFNA(LOOKUP(2, 1/((COUNTIF($Q$1:Q198, $D$2:$D$1686)=0)*($N$3=$C$2:$C$1686)), $D$2:$D$1686),"") -> Chatham | T199: =IFERROR(INDEX($Q$2:$Q$231,MATCH(ROWS($Q$2:Q199),COUNTIF($Q$2:$Q$231,"<="&$Q$2:$Q$231),0)),0) -> Strathroy | U199: 199 | V199: Sturgeon Falls
A200: 199 | B200: CAN | C200: NB | D200: Saint Andrews | E200: 4680 | F200: Very-Cold | G200: -22 | H200: 25 | Q200: =_xlfn.IFNA(LOOKUP(2, 1/((COUNTIF($Q$1:Q199, $D$2:$D$1686)=0)*($N$3=$C$2:$C$1686)), $D$2:$D$1686),"") -> Chapleau | T200: =IFERROR(INDEX($Q$2:$Q$231,MATCH(ROWS($Q$2:Q200),COUNTIF($Q$2:$Q$231,"<="&$Q$2:$Q$231),0)),0) -> Sturgeon Falls | U200: 200 | V200: Sudbury
... 1486 more rows

Sheet Step 5 Identify & Select ASHPs
A1: DESIGN STEP 5: Identify & Select ASHP Matching Key Requirements | V1: DO NOT TOUCH THESE CELLS
A2: Climate Inputs | AB2: Subarctic
A3: Analysis Parameters | G3: Notes: | W3: 1 | AB3: Very Cold
A4: Climate Summary (Selected in Step 3) | W4: 2 | AB4: Cold/Dry
A5: Location | B5: ='Step 3 Design Loads'!B7 -> Toronto (city hall) | C5: ='Step 3 Design Loads'!B6 -> ON | D5: ='Step 3 Design Loads'!B5 -> CAN | G5: Representative curves are activated only if insufficient heating data is provided | W5: 3 | AB5: Cold/Humid
A6: Climate Zone | B6: ='Step 3 Design Loads'!B8 -> Cold-Humid | G6: Additional, user entered data points must be in order of descending outdoor temperature | W6: 4 | AB6: Marine
A7: HDD (metric) | B7: ='Step 3 Design Loads'!B9 -> 3520 | G7: All data entry points must be completed In order | AB7: Mixed/Humid
A8: Selection: HPs to Examine | B8: ='Step 3 Design Loads'!B7 -> Toronto (city hall) | G8: See climate zones tab for details as to which climate zone your location is most closely located | W8: =IF(A27="","","High Stage") ->  | X8: =IF(F27="","","High Stage") ->  | Y8: =IF(K27="","","High Stage") -> High Stage | Z8: =IF(P27="","","High Stage") -> High Stage | AB8: Hot/Dry
A9: # of HP to examine | B9: 4 | G9: Attention: Refresh buttons will zero all inputs in the additional data points section. | W9: =IF(A27="","","Low Stage") ->  | X9: =IF(F27="","","Low Stage") ->  | Y9: =IF(K27="","","Low Stage") -> Low Stage | Z9: =IF(P27="","","Low Stage") -> Low Stage | AB9: Hot/Humid
G10: Use refresh only if changing heat pump type, inputting data for different HP model, or switching between entering Power or COP/EER
W11: =IF(OR(B25="Centrally Ducted",B25="Ducted Mini split"),"Single Speed",IF(B25="Single Split Ductless","Regular Variable",IF(B25="Multi-Split Ductless","Regular Variable",""))) -> Single Speed
G12: Reference to Guide | W12: =IF(OR(B25="Centrally Ducted",B25="Ducted Mini split"),"Two-Stage",IF(B25="Single Split Ductless","Cold Climate Variable",IF(B25="Multi-Split Ductless","Cold Climate Variable",""))) -> Two-Stage
A13: Indoor Conditions for Heat Pump Selection: | W13: =IF(OR(B25="Centrally Ducted",B25="Ducted Mini split"),"Variable","") -> Variable
A14: Heating: | B14: =IF('Intro & Unit Options'!B12="Metric",21.1,70)&'Step 3 Design Loads'!C13&" dry bulb temperature" -> 70F dry bulb temperature | G14: Pages 25-33
A16: Cooling: | B16: =IF('Intro & Unit Options'!B12="Metric",24,75)&'Step 3 Design Loads'!C13&" dry bulb temperature" -> 75F dry bulb temperature | G16: Upon completing Step 5, you will have: | W16: =IF('Intro & Unit Options'!$B$12="Metric","@ -8.3C","@ 17F") -> @ 17F | X16: =IF('Intro & Unit Options'!$B$12="Metric","@ -8.3C","@ 17F") -> @ 17F | Y16: =IF('Intro & Unit Options'!$B$12="Metric","@ -8.3C","@ 17F") -> @ 17F | Z16: =IF('Intro & Unit Options'!$B$12="Metric","@ -8.3C","@ 17F") -> @ 17F
B17: =IF('Intro & Unit Options'!B12="Metric",17,63)&'Step 3 Design Loads'!C13&" wet bulb temperature" -> 63F wet bulb temperature | G17: Selected a specific model and size of ASHP(s) that ''Best Fits'' the application requirements and client expectations as defined by the options selected in Steps 1 through 4. | W17: =IF('Intro & Unit Options'!$B$12="Metric","@ 8.3C","@ 47F") -> @ 47F | X17: =IF('Intro & Unit Options'!$B$12="Metric","@ 8.3C","@ 47F") -> @ 47F | Y17: =IF('Intro & Unit Options'!$B$12="Metric","@ 8.3C","@ 47F") -> @ 47F | Z17: =IF('Intro & Unit Options'!$B$12="Metric","@ 8.3C","@ 47F") -> @ 47F
A18: Heat Pump Inputs | W18: =IF(B37="Yes","@ "&'Step 3 Design Loads'!B13&'Step 3 Design Loads'!C13,IFERROR(IF(INDEX('HP Calcs'!B4:B20,MATCH('HP Calcs'!J18,'HP Calcs'!A4:A20,1))="-","","@ "&'Step 3 Design Loads'!B13&'Step 3 Design Loads'!C13),"")) -> @ 0F | X18: =IF(G37="Yes","@ "&'Step 3 Design Loads'!B13&'Step 3 Design Loads'!C13,IFERROR(IF(INDEX('HP Calcs'!B26:B42,MATCH('HP Calcs'!J18,'HP Calcs'!A26:A42,1))="-","","@ "&'Step 3 Design Loads'!B13&'Step 3 Design Loads'!C13),"")) -> @ 0F | Y18: =IF(L37="Yes","@ "&'Step 3 Design Loads'!B13&'Step 3 Design Loads'!C13,IFERROR(IF(INDEX('HP Calcs'!B48:B64,MATCH('HP Calcs'!J18,'HP Calcs'!A48:A64,1))="-","","@ "&'Step 3 Design Loads'!B13&'Step 3 Design Loads'!C13),"")) -> @ 0F | Z18: =IF(B37="Yes","@ "&'Step 3 Design Loads'!B13&'Step 3 Design Loads'!C13,IFERROR(IF(INDEX('HP Calcs'!B70:B86,MATCH('HP Calcs'!J18,'HP Calcs'!A70:A86,1))="-","","@ "&'Step 3 Design Loads'!B13&'Step 3 Design Loads'!C13),"")) -> @ 0F
A19: Heat Pump #1 | F19: Heat Pump #2 | K19: Heat Pump #3 | P19: Heat Pump #4
A20: HP#1 | F20: HP#2 | K20: HP#3 | P20: HP#4
A21: Model Name | F21: Model Name | K21: Model Name | P21: Model Name
A22: Noise Rating | C22: dB(A) | F22: Noise Rating | H22: dB(A) | K22: Noise Rating | M22: dB(A) | P22: Noise Rating | R22: dB(A)
A23: Rated Airflow | B23: 100 | C23: CFM | F23: Rated Airflow | G23: 150 | H23: CFM | K23: Rated Airflow | L23: 200 | M23: CFM | P23: Rated Airflow | Q23: 4000 | R23: CFM
A24: Data Entry Type | B24: =IF(OR(B32=0,ISBLANK(B32),B33=0,ISBLANK(B33)),"Representative Curve","User Input Curve") -> User Input Curve | F24: Data Entry Type | G24: =IF(OR(G32=0,ISBLANK(G32),G33=0,ISBLANK(G33)),"Representative Curve","User Input Curve") -> User Input Curve | K24: Data Entry Type | L24: =IF(OR(L32=0,ISBLANK(L32),L33=0,ISBLANK(L33)),"Representative Curve","User Input Curve") -> User Input Curve | P24: Data Entry Type | Q24: =IF(OR(Q32=0,ISBLANK(Q32),Q33=0,ISBLANK(Q33)),"Representative Curve","User Input Curve") -> User Input Curve
A25: HP Integration | B25: =IF('Step 1 ASHP Configuration'!B6='Step 1 ASHP Configuration'!T2,"Centrally Ducted",IF('Step 1 ASHP Configuration'!B6='Step 1 ASHP Configuration'!T3,"Single Split Ductless",IF('Step 1 ASHP Configuration'!B6='Step 1 ASHP Configuration'!T4,"Multi-split Ductless",IF('Step 1 ASHP Configuration'!B6='Step 1 ASHP Configuration'!T5,"Ducted Mini-split","")))) -> Centrally Ducted | F25: HP Integration | G25: =IF('Step 1 ASHP Configuration'!B6='Step 1 ASHP Configuration'!T2,"Centrally Ducted",IF('Step 1 ASHP Configuration'!B6='Step 1 ASHP Configuration'!T3,"Single Split Ductless",IF('Step 1 ASHP Configuration'!B6='Step 1 ASHP Configuration'!T4,"Multi-split Ductless",IF('Step 1 ASHP Configuration'!B6='Step 1 ASHP Configuration'!T5,"Ducted Mini-split","")))) -> Centrally Ducted | K25: HP Integration | L25: =IF('Step 1 ASHP Configuration'!B6='Step 1 ASHP Configuration'!T2,"Centrally Ducted",IF('Step 1 ASHP Configuration'!B6='Step 1 ASHP Configuration'!T3,"Single Split Ductless",IF('Step 1 ASHP Configuration'!B6='Step 1 ASHP Configuration'!T4,"Multi-split Ductless",IF('Step 1 ASHP Configuration'!B6='Step 1 ASHP Configuration'!T5,"Ducted Mini-split","")))) -> Centrally Ducted | P25: HP Integration | Q25: =IF('Step 1 ASHP Configuration'!B6='Step 1 ASHP Configuration'!T2,"Centrally Ducted",IF('Step 1 ASHP Configuration'!B6='Step 1 ASHP Configuration'!T3,"Single Split Ductless",IF('Step 1 ASHP Configuration'!B6='Step 1 ASHP Configuration'!T4,"Multi-split Ductless",IF('Step 1 ASHP Configuration'!B6='Step 1 ASHP Configuration'!T5,"Ducted Mini-split","")))) -> Centrally Ducted
A26: HP Type | B26: Single Speed | F26: HP Type | G26: Single Speed | K26: HP Type | L26: Variable | P26: HP Type | Q26: Variable
A27: =IF(OR(B26="Two-Stage",B26="Variable",B26="Regular Variable",B26="Cold Climate Variable"),"Rating Condition; High/Low Stage","") ->  | B27: High Stage | F27: =IF(OR(G26="Two-Stage",G26="Variable",G26="Regular Variable",G26="Cold Climate Variable"),"Rating Condition; High/Low Stage","") ->  | G27: High Stage | K27: =IF(OR(L26="Two-Stage",L26="Variable",L26="Regular Variable",L26="Cold Climate Variable"),"Rating Condition; High/Low Stage","") -> Rating Condition; High/Low Stage | L27: High Stage | P27: =IF(OR(Q26="Two-Stage",Q26="Variable",Q26="Regular Variable",Q26="Cold Climate Variable"),"Rating Condition; High/Low Stage","") -> Rating Condition; High/Low Stage | Q27: High Stage
A28: Sizing Approach | B28: =IF('Step 4 Sizing Approach'!B6='Step 4 Sizing Approach'!T2,"A",IF('Step 4 Sizing Approach'!B6:F6='Step 4 Sizing Approach'!T3,"B",IF('Step 4 Sizing Approach'!B6:F6='Step 4 Sizing Approach'!T4,"C",IF('Step 4 Sizing Approach'!B6:F6='Step 4 Sizing Approach'!T5,"D","")))) -> C | F28: Sizing Approach | G28: =IF('Step 4 Sizing Approach'!B6='Step 4 Sizing Approach'!T2,"A",IF('Step 4 Sizing Approach'!B6='Step 4 Sizing Approach'!T3,"B",IF('Step 4 Sizing Approach'!B6='Step 4 Sizing Approach'!T4,"C",IF('Step 4 Sizing Approach'!B6='Step 4 Sizing Approach'!T5,"D","")))) -> C | K28: Sizing Approach | L28: =IF('Step 4 Sizing Approach'!B6='Step 4 Sizing Approach'!T2,"A",IF('Step 4 Sizing Approach'!B6='Step 4 Sizing Approach'!T3,"B",IF('Step 4 Sizing Approach'!B6='Step 4 Sizing Approach'!T4,"C",IF('Step 4 Sizing Approach'!B6='Step 4 Sizing Approach'!T5,"D","")))) -> C | P28: Sizing Approach | Q28: =IF('Step 4 Sizing Approach'!B6='Step 4 Sizing Approach'!T2,"A",IF('Step 4 Sizing Approach'!B6='Step 4 Sizing Approach'!T3,"B",IF('Step 4 Sizing Approach'!B6='Step 4 Sizing Approach'!T4,"C",IF('Step 4 Sizing Approach'!B6='Step 4 Sizing Approach'!T5,"D","")))) -> C
A29: Heating Power/COP | B29: Power | F29: Heating Power/COP | G29: Power | K29: Heating Power/COP | L29: Power | P29: Heating Power/COP | Q29: Power
A30: Heating Capacity | B30: 12000 | C30: =IF('Intro & Unit Options'!$B$12="Metric","kW","BTU/h") -> BTU/h | D30: =IF('Intro & Unit Options'!$B$12="Metric","@ 8.3C","@ 47F") -> @ 47F | F30: Heating Capacity | G30: 24000 | H30: =IF('Intro & Unit Options'!$B$12="Metric","kW","BTU/h") -> BTU/h | I30: =IF('Intro & Unit Options'!$B$12="Metric","@ 8.3C","@ 47F") -> @ 47F | K30: Heating Capacity | L30: 36000 | M30: =IF('Intro & Unit Options'!$B$12="Metric","kW","BTU/h") -> BTU/h | N30: =IF('Intro & Unit Options'!$B$12="Metric","@ 8.3C","@ 47F") -> @ 47F | P30: Heating Capacity | Q30: 48000 | R30: =IF('Intro & Unit Options'!$B$12="Metric","kW","BTU/h") -> BTU/h | S30: =IF('Intro & Unit Options'!$B$12="Metric","@ 8.3C","@ 47F") -> @ 47F
A31: =IF(B29="Power","Heating Power","Heating COP") -> Heating Power | B31: 2 | C31: =IF(B29="Power","kW","") -> kW | D31: =IF(D30="","",D30) -> @ 47F | F31: =IF(G29="Power","Heating Power","Heating COP") -> Heating Power | G31: 4 | H31: =IF(G29="Power","kW","") -> kW | I31: =IF(I30="","",I30) -> @ 47F | K31: =IF(L29="Power","Heating Power","Heating COP") -> Heating Power | L31: 6 | M31: =IF(L29="Power","kW","") -> kW | N31: =IF(N30="","",N30) -> @ 47F | P31: =IF(Q29="Power","Heating Power","Heating COP") -> Heating Power | Q31: 8 | R31: =IF(Q29="Power","kW","") -> kW | S31: =IF(S30="","",S30) -> @ 47F | X31: X-axis | Y31: Y-axis
A32: Heating Capacity | B32: 6000 | C32: =IF('Intro & Unit Options'!$B$12="Metric","kW","BTU/h") -> BTU/h | D32: =IF('Intro & Unit Options'!$B$12="Metric","@ -8.3C","@ 17F") -> @ 17F | F32: Heating Capacity | G32: 12000 | H32: =IF('Intro & Unit Options'!$B$12="Metric","kW","BTU/h") -> BTU/h | I32: =IF('Intro & Unit Options'!$B$12="Metric","@ -8.3C","@ 17F") -> @ 17F | K32: Heating Capacity | L32: 18000 | M32: =IF('Intro & Unit Options'!$B$12="Metric","kW","BTU/h") -> BTU/h | N32: =IF('Intro & Unit Options'!$B$12="Metric","@ -8.3C","@ 17F") -> @ 17F | P32: Heating Capacity | Q32: 24000 | R32: =IF('Intro & Unit Options'!$B$12="Metric","kW","BTU/h") -> BTU/h | S32: =IF('Intro & Unit Options'!$B$12="Metric","@ -8.3C","@ 17F") -> @ 17F | W32: Max | X32: ='Design Load Calcs'!O12 -> 110 | Y32: =CEILING(MAX('Step 3 Design Loads'!B12,'HP Calcs'!D86,'HP Calcs'!D64,'HP Calcs'!D42,'HP Calcs'!D20),10000) -> 60000
A33: =IF(B29="Power","Heating Power","Heating COP") -> Heating Power | B33: 1 | C33: =IF(B29="Power","kW","") -> kW | D33: =IF(D32="","",D32) -> @ 17F | F33: =IF(G29="Power","Heating Power","Heating COP") -> Heating Power | G33: 2 | H33: =H31 -> kW | I33: =IF(I32="","",I32) -> @ 17F | K33: =IF(L29="Power","Heating Power","Heating COP") -> Heating Power | L33: 3 | M33: =M31 -> kW | N33: =IF(N32="","",N32) -> @ 17F | P33: =IF(Q29="Power","Heating Power","Heating COP") -> Heating Power | Q33: 4 | R33: =R31 -> kW | S33: =IF(S32="","",S32) -> @ 17F | W33: Min | X33: ='Design Load Calcs'!O6 -> -10 | Y33: 0
A34: Cooling Power/EER | B34: Power | F34: Cooling Power/EER | G34: Power | K34: Cooling Power/EER | L34: Power | P34: Cooling Power/EER | Q34: Power | W34: MajorUnit | X34: 10 | Y34: =IF(NOT('Intro & Unit Options'!B12="Metric"),10000,2) -> 10000
A35: Cooling Capacity | B35: 12000 | C35: =IF('Intro & Unit Options'!$B$12="Metric","kW","BTU/h") -> BTU/h | D35: =IF('Intro & Unit Options'!$B$12="Metric","@ 35C","@ 95F") -> @ 95F | E35: Dry Bulb | F35: Cooling Capacity | G35: 24000 | H35: =IF('Intro & Unit Options'!$B$12="Metric","kW","BTU/h") -> BTU/h | I35: =IF('Intro & Unit Options'!$B$12="Metric","@ 35C","@ 95F") -> @ 95F | J35: Dry Bulb | K35: Cooling Capacity | L35: 36000 | M35: =IF('Intro & Unit Options'!$B$12="Metric","kW","BTU/h") -> BTU/h | N35: =IF('Intro & Unit Options'!$B$12="Metric","@ 35C","@ 95F") -> @ 95F | O35: Dry Bulb | P35: Cooling Capacity | Q35: 48000 | R35: =IF('Intro & Unit Options'!$B$12="Metric","kW","BTU/h") -> BTU/h | S35: =IF('Intro & Unit Options'!$B$12="Metric","@ 35C","@ 95F") -> @ 95F | T35: Dry Bulb
A36: =IF(B34="Power","Cooling Power","Cooling EER") -> Cooling Power | B36: 2 | C36: =IF(B34="Power","kW","") -> kW | D36: =IF(D35="","",D35) -> @ 95F | E36: Dry Bulb | F36: =IF(G34="Power","Cooling Power","Cooling EER") -> Cooling Power | G36: 4 | H36: =IF(G34="Power","kW","") -> kW | I36: =IF(I35="","",I35) -> @ 95F | J36: Dry Bulb | K36: =IF(L34="Power","Cooling Power","Cooling EER") -> Cooling Power | L36: 6 | M36: =IF(L34="Power","kW","") -> kW | N36: =IF(N35="","",N35) -> @ 95F | O36: Dry Bulb | P36: =IF(Q34="Power","Cooling Power","Cooling EER") -> Cooling Power | Q36: 8 | R36: =IF(Q34="Power","kW","") -> kW | S36: =IF(S35="","",S35) -> @ 95F | T36: Dry Bulb | X36: X-axis | Y36: Y-axis
A37: HP Low Temp Cut-off | B37: 32 | F37: HP Low Temp Cut-off | G37: 32 | K37: HP Low Temp Cut-off | L37: 32 | P37: HP Low Temp Cut-off | Q37: 32 | W37: Max | Y37: =CEILING(MAX('Step 3 Design Loads'!#REF!,'HP Calcs'!D91,'HP Calcs'!D69,'HP Calcs'!D47,'HP Calcs'!D25),10000) -> 
A38: =IF(OR(B37="No",B37="Not Sure"),"","Cut-Off Temperature") -> Cut-Off Temperature | B38: -13 | D38: =IF('Intro & Unit Options'!B12="Metric","C","F") -> F | F38: =IF(OR(G37="No",G37="Not Sure"),"","Cut-Off Temperature") -> Cut-Off Temperature | G38: -13 | I38: =IF('Intro & Unit Options'!B12="Metric","C","F") -> F | K38: =IF(OR(L37="No",L37="Not Sure"),"","Cut-Off Temperature") -> Cut-Off Temperature | L38: -13 | N38: =IF('Intro & Unit Options'!B12="Metric","C","F") -> F | P38: =IF(OR(Q37="No",Q37="Not Sure"),"","Cut-Off Temperature") -> Cut-Off Temperature | Q38: -13 | S38: =IF('Intro & Unit Options'!B12="Metric","C","F") -> F | W38: Min | X38: =FLOOR('Load %s'!B11,10) -> -10 | Y38: 0
A39: =B26 -> Single Speed | F39: =G26 -> Single Speed | K39: =L26 -> Variable | P39: =Q26 -> Variable | W39: MajorUnit | X39: 10 | Y39: =Y34 -> 10000
A40: Additional Data Points | F40: Additional Data Points | K40: Additional Data Points | P40: Additional Data Points
A41: ="# of points above "&IF('Intro & Unit Options'!$B$12="Metric","8.3C","47F") -> # of points above 47F | B41: 0 | C41: Limit of 5 | F41: ="# of points above "&IF('Intro & Unit Options'!$B$12="Metric","8.3C","47F") -> # of points above 47F | G41: 0 | H41: =IF(F41=" "," ","Limit of 5") -> Limit of 5 | K41: ="# of points above "&IF('Intro & Unit Options'!$B$12="Metric","8.3C","47F") -> # of points above 47F | L41: 0 | M41: Limit of 5 | P41: ="# of points above "&IF('Intro & Unit Options'!$B$12="Metric","8.3C","47F") -> # of points above 47F | Q41: 0 | R41: Limit of 5
A42: ="# of points between "&IF('Intro & Unit Options'!$B$12="Metric","8.3C","47F")&" and "&IF('Intro & Unit Options'!$B$12="Metric","-8.3C","17F") -> # of points between 47F and 17F | B42: 0 | C42: Limit of 5 | F42: ="# of points between "&IF('Intro & Unit Options'!$B$12="Metric","8.3C","47F")&" and "&IF('Intro & Unit Options'!$B$12="Metric","-8.3C","17F") -> # of points between 47F and 17F | G42: 0 | H42: Limit of 5 | K42: ="# of points between "&IF('Intro & Unit Options'!$B$12="Metric","8.3C","47F")&" and "&IF('Intro & Unit Options'!$B$12="Metric","-8.3C","17F") -> # of points between 47F and 17F | L42: 0 | M42: Limit of 5 | P42: ="# of points between "&IF('Intro & Unit Options'!$B$12="Metric","8.3C","47F")&" and "&IF('Intro & Unit Options'!$B$12="Metric","-8.3C","17F") -> # of points between 47F and 17F | Q42: 0 | R42: Limit of 5
A43: ="# of points below "&IF('Intro & Unit Options'!$B$12="Metric","-8.3C","17F") -> # of points below 17F | B43: 0 | C43: Limit of 5 | F43: ="# of points below "&IF('Intro & Unit Options'!$B$12="Metric","-8.3C","17F") -> # of points below 17F | G43: 0 | H43: Limit of 5 | K43: ="# of points below "&IF('Intro & Unit Options'!$B$12="Metric","-8.3C","17F") -> # of points below 17F | L43: 0 | M43: Limit of 5 | P43: ="# of points below "&IF('Intro & Unit Options'!$B$12="Metric","-8.3C","17F") -> # of points below 17F | Q43: 0 | R43: Limit of 5 | W43: ="@ "&ROUND('Step 3 Design Loads'!B15,0)&'Step 3 Design Loads'!C13 -> @ 88F
A44: ="# of points above "&IF('Intro & Unit Options'!$B$12="Metric","35C","95F") -> # of points above 95F | B44: 0 | C44: Limit of 6 | F44: ="# of points above "&IF('Intro & Unit Options'!$B$12="Metric","35C","95F") -> # of points above 95F | G44: 0 | H44: Limit of 6 | K44: ="# of points above "&IF('Intro & Unit Options'!$B$12="Metric","35C","95F") -> # of points above 95F | L44: 0 | M44: Limit of 6 | P44: ="# of points above "&IF('Intro & Unit Options'!$B$12="Metric","35C","95F") -> # of points above 95F | Q44: 0 | R44: Limit of 6 | W44: =IF('Intro & Unit Options'!$B$12="Metric","@ 35C","@ 95F") -> @ 95F
A45: ="# of points below "&IF('Intro & Unit Options'!$B$12="Metric","35C","95F") -> # of points below 95F | B45: 0 | C45: Limit of 6 | F45: ="# of points below "&IF('Intro & Unit Options'!$B$12="Metric","35C","95F") -> # of points below 95F | G45: 0 | H45: Limit of 6 | K45: ="# of points below "&IF('Intro & Unit Options'!$B$12="Metric","35C","95F") -> # of points below 95F | L45: 0 | M45: Limit of 6 | P45: ="# of points below "&IF('Intro & Unit Options'!$B$12="Metric","35C","95F") -> # of points below 95F | Q45: 0 | R45: Limit of 6
A46: =IF(B24="Representative Curve","","Heating: COP or Power?") -> Heating: COP or Power? | B46: Power | F46: =IF(G24="Representative Curve","","Heating: COP or Power?") -> Heating: COP or Power? | G46: Power | K46: =IF(L24="Representative Curve","","Heating: COP or Power?") -> Heating: COP or Power? | L46: Power | P46: =IF(Q24="Representative Curve","","Heating: COP or Power?") -> Heating: COP or Power? | Q46: Power | W46: User Input Curve
A47: =IF(B24="Representative Curve","","Cooling: EER or Power?") -> Cooling: EER or Power? | B47: Power | F47: =IF(G24="Representative Curve","","Cooling: EER or Power?") -> Cooling: EER or Power? | G47: Power | K47: =IF(L24="Representative Curve","","Cooling: EER or Power?") -> Cooling: EER or Power? | L47: Power | P47: =IF(Q24="Representative Curve","","Cooling: EER or Power?") -> Cooling: EER or Power? | Q47: Power
A49: Heating | F49: Heating | K49: Heating | P49: Heating
A50: Temperature | B50: Heating Capacity | C50: Heating Power (kW) | D50: Heating COP (-) | F50: Temperature | G50: Heating Capacity | H50: Heating Power | I50: Heating COP (-) | K50: Temperature | L50: Heating Capacity | M50: Heating Power | N50: Heating COP (-) | P50: Temperature | Q50: Heating Capacity | R50: Heating Power | S50: Heating COP (-) | W50: Representative Curve
A51: 47 | B51: 12000 | C51: 2 | D51: 1.76 | E51: 1 | F51: 47 | G51: 24000 | H51: 4 | I51: 1.76 | J51: 1 | K51: 47 | L51: 36000 | M51: 6 | N51: 1.76 | O51: 1 | P51: 47 | Q51: 48000 | R51: 8 | S51: 1.76 | T51: 1
A52: 17 | B52: 6000 | C52: 1 | D52: 1.76 | E52: 2 | F52: 17 | G52: 12000 | H52: 2 | I52: 1.76 | J52: 2 | K52: 17 | L52: 18000 | M52: 3 | N52: 1.76 | O52: 2 | P52: 17 | Q52: 24000 | R52: 4 | S52: 1.76 | T52: 2
E53: 3 | J53: 3 | O53: 3 | T53: 3 | W53: Yes
E54: 4 | J54: 4 | O54: 4 | T54: 4 | W54: No
E55: 5 | J55: 5 | O55: 5 | T55: 5 | W55: Not Sure
E56: 6 | J56: 6 | O56: 6 | T56: 6
E57: 7 | J57: 7 | O57: 7 | T57: 7 | W57: Power
E58: 8 | J58: 8 | O58: 8 | T58: 8 | W58: COP
E59: 9 | J59: 9 | O59: 9 | T59: 9
E60: 10 | J60: 10 | O60: 10 | T60: 10
E61: 11 | J61: 11 | O61: 11 | T61: 11 | W61: EER
E62: 12 | J62: 12 | O62: 12 | T62: 12 | W62: Power
E63: 13 | J63: 13 | O63: 13 | T63: 13
E64: 14 | J64: 14 | O64: 14 | T64: 14 | W64: COP
E65: 15 | J65: 15 | O65: 15 | T65: 15 | W65: Power
E66: 16 | J66: 16 | O66: 16 | T66: 16
E67: 17 | J67: 17 | O67: 17 | T67: 17
A68: Cooling | F68: Cooling | K68: Cooling | P68: Cooling
A69: Temperature | B69: Total Cooling Capacity (BTU/h) | C69: Cooling Power (kW) | D69: Cooling EER (-) | F69: Temperature | G69: Total Cooling Capacity | H69: Cooling Power | I69: Cooling EER (-) | K69: Temperature | L69: Total Cooling Capacity | M69: Cooling Power | N69: Cooling EER (-) | P69: Temperature | Q69: Total Cooling Capacity | R69: Cooling Power | S69: Cooling EER (-)
A70: 95 | B70: 12000 | C70: 2 | D70: 6 | E70: 1 | F70: 95 | G70: 24000 | H70: 4 | I70: 6 | J70: 1 | K70: 95 | L70: 36000 | M70: 6 | N70: 6 | O70: 1 | P70: 95 | Q70: 48000 | R70: 8 | S70: 6 | T70: 1 | W70: Yes
E71: 2 | J71: 2 | O71: 2 | T71: 2 | W71: No
E72: 3 | J72: 3 | O72: 3 | T72: 3 | W72: Not Sure
E73: 4 | J73: 4 | O73: 4 | T73: 4
E74: 5 | J74: 5 | O74: 5 | T74: 5
E75: 6 | J75: 6 | O75: 6 | T75: 6
E76: 7 | J76: 7 | O76: 7 | T76: 7
E77: 8 | J77: 8 | O77: 8 | T77: 8
E78: 9 | J78: 9 | O78: 9 | T78: 9
E79: 10 | J79: 10 | O79: 10 | T79: 10
E80: 11 | J80: 11 | O80: 11 | T80: 11
E81: 12 | J81: 12 | O81: 12 | T81: 12
E82: 13 | J82: 13 | O82: 13 | T82: 13
E83: 14 | J83: 14 | O83: 14 | T83: 14
A84: Outputs
A85: Outputs
B86: Design Loads (Step 3) | E86: Sizing Option (Step 4) | G86: Selected HP Staging; Heat Capacity; Cool Capacity (Step 5) | K86: Heat Pump Cut-Off Temperature | L86: Cooling Output at Tdesign,Cool (% of Design) | N86: Thermal Balance Point Temperature (t-BPT) | P86: Fraction of Heating above t-BPT
A87: HP#1 | B87: =IF('Step 3 Design Loads'!B11='Step 3 Design Loads'!T8, "Heating: "&ROUND('Design Load Calcs'!B23,IF('Intro & Unit Options'!B12="Metric",1,-2))&" "&'Step 3 Design Loads'!C12&" at "&'Step 3 Design Loads'!B13&'Step 3 Design Loads'!C13&" Cooling: "&ROUND('Design Load Calcs'!B25,IF('Intro & Unit Options'!B12="Metric",1,-2))&" "&'Step 3 Design Loads'!C14&" at "&'Step 3 Design Loads'!B15&'Step 3 Design Loads'!C15, "Heating: "&ROUND('Design Load Calcs'!B23,IF('Intro & Unit Options'!B12="Metric",1,-2))&" "&'Step 3 Design Loads'!C12&" at "&'Step 3 Design Loads'!B13&'Step 3 Design Loads'!C13&" Cooling: "&ROUND('Design Load Calcs'!B25,IF('Intro & Unit Options'!B12="Metric",1,-2))&" "&'Step 3 Design Loads'!C14&" at "&'Step 3 Design Loads'!B15&'Step 3 Design Loads'!C15) -> Heating: 11400 BTU/h at 0F Cooling: 10000 BTU/h at 88F | E87: ='Step 4 Sizing Approach'!B6 -> Option C: Emphasis on Heating | G87: =B26&"; "&B30&" "&C30&"; "&B35&" "&C35 -> Single Speed; 12000 BTU/h; 12000 BTU/h | K87: =ROUND(IF(AND(OR(B37="No",B37="Not Sure"),B24="Representative Curve"),'Control Strategy Calcs'!U4,IF(AND(OR(B37="No",B37="Not Sure"),B24="User Input Curve"),MIN(A51:A66),B38)),0)&'Step 3 Design Loads'!C13 -> -13F | L87: =ROUND(IF(B24="Representative Curve",'HP Calcs'!H16,'HP1'!J18),IF('Intro & Unit Options'!B12="Metric",1,-2))&" "&C30&" ("&ROUND(IF(B24="Representative Curve",'HP Calcs'!H18,'HP1'!J21),2)*100&"%)" -> 12000 BTU/h (120%) | N87: =IFERROR(ROUND(IF(B24="Representative Curve",'HP Calcs'!X4,'HP1'!L7),0)&'Step 3 Design Loads'!C13,"None") -> 23F | P87: =IF(OR(N87="None. Heat pump capacity > heating load",IFERROR(ROUND(IF(B24="Representative Curve",'HP Calcs'!X4,'HP1'!L7),0)&'Step 3 Design Loads'!C13,"None. Heat pump capacity > heating load")="None. Heat pump capacity > heating load"),"100%",IF(IF(B24="Representative Curve",'HP Calcs'!X4,'HP1'!L7)<'Step 3 Design Loads'!B13,"100%",ROUND(IF(B24="Representative Curve",'HP Calcs'!Z4,'HP1'!L8),2)*100&"%")) -> 66%
A88: HP#2 | B88: =IF('Step 3 Design Loads'!B11='Step 3 Design Loads'!T8,"Heating: "&ROUND('Design Load Calcs'!B23,IF('Intro & Unit Options'!B12="Metric",1,-2))&" "&'Step 3 Design Loads'!C12&" at "&'Step 3 Design Loads'!B13&'Step 3 Design Loads'!C13&" Cooling: "&ROUND('Design Load Calcs'!B25,IF('Intro & Unit Options'!B12="Metric",1,-2))&" "&'Step 3 Design Loads'!C14&" at "&'Step 3 Design Loads'!B15&'Step 3 Design Loads'!C15, "Heating: "&ROUND('Design Load Calcs'!B23,IF('Intro & Unit Options'!B12="Metric",1,-2))&" "&'Step 3 Design Loads'!C12&" at "&'Step 3 Design Loads'!B13&'Step 3 Design Loads'!C13&" Cooling: "&ROUND('Design Load Calcs'!B25,IF('Intro & Unit Options'!B12="Metric",1,-2))&" "&'Step 3 Design Loads'!C14&" at "&'Step 3 Design Loads'!B15&'Step 3 Design Loads'!C15) -> Heating: 11400 BTU/h at 0F Cooling: 10000 BTU/h at 88F | E88: ='Step 4 Sizing Approach'!B6 -> Option C: Emphasis on Heating | G88: =G26&"; "&G30&" "&C30&"; "&G35&" "&C35 -> Single Speed; 24000 BTU/h; 24000 BTU/h | K88: =ROUND(IF(AND(OR(G37="No",G37="Not Sure"),G24="Representative Curve"),'Control Strategy Calcs'!U6,IF(AND(OR(G37="No",G37="Not Sure"),G24="User Input Curve"),MIN(F51:F66),G38)),0)&'Step 3 Design Loads'!C13 -> -13F | L88: =ROUND(IF(G24="Representative Curve",'HP Calcs'!H38,'HP2'!J18),IF('Intro & Unit Options'!B12="Metric",1,-2))&" "&C30&" ("&ROUND(IF(G24="Representative Curve",'HP Calcs'!H40,'HP2'!J21),2)*100&"%)" -> 24000 BTU/h (240%) | N88: =IFERROR(ROUND(IF(G24="Representative Curve",'HP Calcs'!X26,'HP2'!L7),0)&'Step 3 Design Loads'!C13,"None") -> 10F | P88: =IF(OR(N88="None. Heat pump capacity > heating load",IFERROR(ROUND(IF(G24="Representative Curve",'HP Calcs'!X26,'HP2'!L7),0)&'Step 3 Design Loads'!C13,"None. Heat pump capacity > heating load")="None. Heat pump capacity > heating load"),"100%",IF(IF(G24="Representative Curve",'HP Calcs'!X26,'HP2'!L7)<'Step 3 Design Loads'!B13,"100%",ROUND(IF(G24="Representative Curve",'HP Calcs'!Z26,'HP2'!L8),2)*100&"%")) -> 86%
A89: HP#3 | B89: =IF('Step 3 Design Loads'!B11='Step 3 Design Loads'!T8, "Heating: "&ROUND('Design Load Calcs'!B23,IF('Intro & Unit Options'!B12="Metric",1,-2))&" "&'Step 3 Design Loads'!C12&" at "&'Step 3 Design Loads'!B13&'Step 3 Design Loads'!C13&" Cooling: "&ROUND('Design Load Calcs'!B25,IF('Intro & Unit Options'!B12="Metric",1,-2))&" "&'Step 3 Design Loads'!C14&" at "&'Step 3 Design Loads'!B15&'Step 3 Design Loads'!C15, "Heating: "&ROUND('Design Load Calcs'!B23,IF('Intro & Unit Options'!B12="Metric",1,-2))&" "&'Step 3 Design Loads'!C12&" at "&'Step 3 Design Loads'!B13&'Step 3 Design Loads'!C13&" Cooling: "&ROUND('Design Load Calcs'!B25,IF('Intro & Unit Options'!B12="Metric",1,-2))&" "&'Step 3 Design Loads'!C14&" at "&'Step 3 Design Loads'!B15&'Step 3 Design Loads'!C15) -> Heating: 11400 BTU/h at 0F Cooling: 10000 BTU/h at 88F | E89: ='Step 4 Sizing Approach'!B6 -> Option C: Emphasis on Heating | G89: =L26&"; "&L30&" "&C30&"; "&L35&" "&C35 -> Variable; 36000 BTU/h; 36000 BTU/h | K89: =ROUND(IF(AND(OR(L37="No",L37="Not Sure"),L24="Representative Curve"),'Control Strategy Calcs'!U8,IF(AND(OR(L37="No",L37="Not Sure"),L24="User Input Curve"),MIN(K51:K66),L38)),0)&'Step 3 Design Loads'!C13 -> -13F | L89: =ROUND(IF(L24="Representative Curve",'HP Calcs'!H60,'HP3'!J18),IF('Intro & Unit Options'!B12="Metric",1,-2))&" "&C30&" ("&ROUND(IF(L24="Representative Curve",'HP Calcs'!H62,'HP3'!J21),2)*100&"%)" -> 36000 BTU/h (360%) | N89: =IFERROR(ROUND(IF(L24="Representative Curve",'HP Calcs'!X48,'HP3'!L7),0)&'Step 3 Design Loads'!C13,"None") -> 5F | P89: =IF(OR(N89="None. Heat pump capacity > heating load",IFERROR(ROUND(IF(L24="Representative Curve",'HP Calcs'!X48,'HP3'!L7),0)&'Step 3 Design Loads'!C13,"None. Heat pump capacity > heating load")="None. Heat pump capacity > heating load"),"100%",IF(IF(L24="Representative Curve",'HP Calcs'!X48,'HP3'!L7)<'Step 3 Design Loads'!B13,"100%",ROUND(IF(L24="Representative Curve",'HP Calcs'!Z48,'HP3'!L8),2)*100&"%")) -> 92%
A90: HP#4 | B90: =IF('Step 3 Design Loads'!B11='Step 3 Design Loads'!T8, "Heating: "&ROUND('Design Load Calcs'!B23,IF('Intro & Unit Options'!B12="Metric",1,-2))&" "&'Step 3 Design Loads'!C12&" at "&'Step 3 Design Loads'!B13&'Step 3 Design Loads'!C13&" Cooling: "&ROUND('Design Load Calcs'!B25,IF('Intro & Unit Options'!B12="Metric",1,-2))&" "&'Step 3 Design Loads'!C14&" at "&'Step 3 Design Loads'!B15&'Step 3 Design Loads'!C15, "Heating: "&ROUND('Design Load Calcs'!B23,IF('Intro & Unit Options'!B12="Metric",1,-2))&" "&'Step 3 Design Loads'!C12&" at "&'Step 3 Design Loads'!B13&'Step 3 Design Loads'!C13&" Cooling: "&ROUND('Design Load Calcs'!B25,IF('Intro & Unit Options'!B12="Metric",1,-2))&" "&'Step 3 Design Loads'!C14&" at "&'Step 3 Design Loads'!B15&'Step 3 Design Loads'!C15) -> Heating: 11400 BTU/h at 0F Cooling: 10000 BTU/h at 88F | E90: ='Step 4 Sizing Approach'!B6 -> Option C: Emphasis on Heating | G90: =Q26&"; "&Q30&" "&C30&"; "&Q35&" "&C35 -> Variable; 48000 BTU/h; 48000 BTU/h | K90: =ROUND(IF(AND(OR(Q37="No",Q37="Not Sure"),Q24="Representative Curve"),'Control Strategy Calcs'!U10,IF(AND(OR(Q37="No",Q37="Not Sure"),Q24="User Input Curve"),MIN(P51:P66),Q38)),0)&'Step 3 Design Loads'!C13 -> -13F | L90: =ROUND(IF(Q24="Representative Curve",'HP Calcs'!H82,'HP4'!J18),IF('Intro & Unit Options'!B12="Metric",1,-2))&" "&C30&" ("&ROUND(IF(Q24="Representative Curve",'HP Calcs'!H84,'HP4'!J21),2)*100&"%)" -> 48000 BTU/h (480%) | N90: =IFERROR(ROUND(IF(Q24="Representative Curve",'HP Calcs'!X70,'HP4'!L7),0)&'Step 3 Design Loads'!C13,"None") -> 1F | P90: =IF(OR(N90="None. Heat pump capacity > heating load",IFERROR(ROUND(IF(Q24="Representative Curve",'HP Calcs'!X70,'HP4'!L7),0)&'Step 3 Design Loads'!C13,"None. Heat pump capacity > heating load")="None. Heat pump capacity > heating load"),"100%",IF(IF(Q24="Representative Curve",'HP Calcs'!X70,'HP4'!L7)<'Step 3 Design Loads'!B13,"100%",ROUND(IF(Q24="Representative Curve",'HP Calcs'!Z70,'HP4'!L8),2)*100&"%")) -> 95%
A98: Graphs

Sheet Ducted Performance Tables (hidden)
A1: Ducted, Single Stage | B1: 25HNB524A* Outdoor Section With FX4DNF025 Indoor Section @ 800 CFM
A2: Heat | E2: ='Step 3 Design Loads'!B13 -> 0 | F2: ='Step 3 Design Loads'!B15 -> 88
A3: Temperature (F) | B3: Normalized Capacity | C3: Normalized Power
A4: -23 | B4: - | C4: -
A5: -18 | B5: - | C5: -
A6: -13 | B6: - | C6: -
A7: -8 | B7: - | C7: -
A8: -3 | B8: 0.31125 | C8: 0.8079096045
A9: 2 | B9: 0.3635416667 | C9: 0.8305084746
A10: 7 | B10: 0.4158333333 | C10: 0.8531073446
A11: 12 | B11: 0.4766666667 | C11: 0.8728813559
A12: 17 | B12: 0.5375 | C12: 0.8926553672
A13: 22 | B13: 0.5839583333 | C13: 0.906779661
A14: 27 | B14: 0.6304166667 | C14: 0.9209039548
A15: 32 | B15: 0.7 | C15: 0.9350282486
A16: 37 | B16: 0.7695833333 | C16: 0.9491525424
A17: 42 | B17: 0.8847916667 | C17: 0.9745762712
A18: 47 | B18: 1 | C18: 1
A19: 52 | B19: 1.087708333 | C19: 1.036723164
A20: 57 | B20: 1.175416667 | C20: 1.073446328
A22: Cool
A23: Temperature (F) | B23: Normalized Capacity | C23: Normalized Power
A24: 72 | B24: - | C24: -
A25: 77 | B25: 1.012 | C25: 0.8010416667
A26: 82 | B26: 0.9886414141 | C26: 0.8510206229
A27: 87 | B27: 0.9649404762 | C27: 0.9027777778
A28: 92 | B28: 0.9407589286 | C28: 0.95703125
A29: 97 | B29: 0.9157506614 | C29: 1.014384921
A30: 102 | B30: 0.8895023148 | C30: 1.076388889
A31: 107 | B31: 0.8621818182 | C31: 1.141856061
A32: 112 | B32: 0.8331414141 | C32: 1.212878788
A40: Ducted, Two Stage | B40: 25HNB924A @ 800 CFM
A41: HIGH Stage, Heat | I41: LOW Stage, Heat
A42: Temperature (F) | B42: Normalized Capacity | C42: Normalized Power | I42: Temperature (F) | J42: Normalized Capacity | K42: Normalized Power
A43: -23 | B43: - | C43: - | I43: -23 | J43: - | K43: - | L43: ='Step 5 Identify & Select ASHPs'!$B$30*'Ducted Performance Tables'!J43 ->  | M43: ='Step 5 Identify & Select ASHPs'!$B$31*'Ducted Performance Tables'!K43 ->  | N43: =(L43/3412)/K43 ->  | R43: =IF(AND(J43<>"-",J42="-",ISNUMBER(J44)),J43,"-") -> - | S43: =IF(AND(K43<>"-",K42="-",ISNUMBER(K44)),K43,"-") -> -
A44: -18 | B44: - | C44: - | I44: -18 | J44: - | K44: - | L44: ='Step 5 Identify & Select ASHPs'!$B$30*'Ducted Performance Tables'!J44 ->  | M44: ='Step 5 Identify & Select ASHPs'!$B$31*'Ducted Performance Tables'!K44 ->  | N44: =(L44/3412)/K44 ->  | R44: =IF(AND(J44<>"-",J43="-",ISNUMBER(J45)),J44,"-") -> - | S44: -
A45: -13 | B45: - | C45: - | E45: =(($E$2-INDEX('HP Calcs'!$A$4:$A$20,MATCH($E$2,'HP Calcs'!$A$4:$A$20,1)))*(INDEX(J43:J59,MATCH($E$2,'HP Calcs'!$A$4:$A$20,1)+1)-INDEX(J43:J59,MATCH($E$2,'HP Calcs'!$A$4:$A$20,1))))/(INDEX('HP Calcs'!$A$4:$A$20,MATCH($E$2,'HP Calcs'!$A$4:$A$20,1)+1)-INDEX('HP Calcs'!$A$4:$A$20,MATCH($E$2,'HP Calcs'!$A$4:$A$20,1)))+INDEX(J43:J59,MATCH($E$2,'HP Calcs'!$A$4:$A$20,1)) -> 0.19484 | F45: =(($E$2-INDEX('HP Calcs'!$A$4:$A$20,MATCH($E$2,'HP Calcs'!$A$4:$A$20,1)))*(INDEX(K43:K59,MATCH($E$2,'HP Calcs'!$A$4:$A$20,1)+1)-INDEX(K43:K59,MATCH($E$2,'HP Calcs'!$A$4:$A$20,1))))/(INDEX('HP Calcs'!$A$4:$A$20,MATCH($E$2,'HP Calcs'!$A$4:$A$20,1)+1)-INDEX('HP Calcs'!$A$4:$A$20,MATCH($E$2,'HP Calcs'!$A$4:$A$20,1)))+INDEX(K43:K59,MATCH($E$2,'HP Calcs'!$A$4:$A$20,1)) -> 0.6505681818 | I45: -13 | J45: - | K45: - | L45: ='Step 5 Identify & Select ASHPs'!$B$30*'Ducted Performance Tables'!J45 ->  | M45: ='Step 5 Identify & Select ASHPs'!$B$31*'Ducted Performance Tables'!K45 ->  | R45: - | S45: -
A46: -8 | B46: - | C46: - | I46: -8 | J46: - | K46: - | L46: ='Step 5 Identify & Select ASHPs'!$B$30*'Ducted Performance Tables'!J46 ->  | M46: ='Step 5 Identify & Select ASHPs'!$B$31*'Ducted Performance Tables'!K46 ->  | R46: - | S46: -
A47: -3 | B47: 0.3312 | C47: 0.8181818182 | D47: HP1 | E47: =IF(OR('Step 5 Identify & Select ASHPs'!$B$37="No",'Step 5 Identify & Select ASHPs'!$B$37="Not Sure"),0,IF(P51<0,INDEX(J43:J59,MATCH(MIN(R43:R59),J43:J59)),'HP Calcs'!$A$4*'Ducted Performance Tables'!P51+'Ducted Performance Tables'!P52)) -> 0.0352 | F47: =IF(OR('Step 5 Identify & Select ASHPs'!$B$37="No",'Step 5 Identify & Select ASHPs'!$B$37="Not Sure"),0,IF(Q51<0,INDEX(K43:K59,MATCH(MIN(S43:S59),K43:K59)),'HP Calcs'!$A$4*'Ducted Performance Tables'!Q51+'Ducted Performance Tables'!Q52)) -> 0.6136363636 | I47: -3 | J47: 0.158 | K47: 0.6420454545 | L47: ='Step 5 Identify & Select ASHPs'!$B$30*'Ducted Performance Tables'!J47 -> 1896 | M47: ='Step 5 Identify & Select ASHPs'!$B$31*'Ducted Performance Tables'!K47 -> 1.284090909 | N47: 0.8654929504 | R47: =IF(AND(J47<>"-",J46="-",ISNUMBER(J48)),J47,"-") -> 0.158 | S47: =IF(AND(K47<>"-",K46="-",ISNUMBER(K48)),K47,"-") -> 0.6420454545
A48: 2 | B48: 0.3862 | C48: 0.8323863636 | D48: HP2 | E48: =IF(OR('Step 5 Identify & Select ASHPs'!$G$37="No",'Step 5 Identify & Select ASHPs'!$G$37="Not Sure"),0,IF(P51<0,INDEX(J43:J59,MATCH(MIN(R43:R59),J43:J59)),'HP Calcs'!$A$26*'Ducted Performance Tables'!P51+'Ducted Performance Tables'!P52)) -> 0.0352 | F48: =IF(OR('Step 5 Identify & Select ASHPs'!$G$37="No",'Step 5 Identify & Select ASHPs'!$G$37="Not Sure"),0,IF(Q51<0,INDEX(K43:K59,MATCH(MIN(S43:S59),K43:K59)),'HP Calcs'!$A$26*'Ducted Performance Tables'!Q51+'Ducted Performance Tables'!Q52)) -> 0.6136363636 | I48: 2 | J48: 0.2194 | K48: 0.65625 | L48: ='Step 5 Identify & Select ASHPs'!$B$30*'Ducted Performance Tables'!J48 -> 2632.8 | M48: ='Step 5 Identify & Select ASHPs'!$B$31*'Ducted Performance Tables'!K48 -> 1.3125 | N48: 1.175816446 | P48: =INDEX(I43:I59,MATCH(MIN(R43:R59),R43:R59)) -> -3 | Q48: =INDEX(I43:I59,MATCH(MIN(S43:S59),S43:S59)) -> -3 | R48: - | S48: =IF(AND(K48<>"-",K47="-",ISNUMBER(K49)),K48,"-") -> -
A49: 7 | B49: 0.4412 | C49: 0.8465909091 | D49: HP3 | E49: =IF(OR('Step 5 Identify & Select ASHPs'!$L$37="No",'Step 5 Identify & Select ASHPs'!$L$37="Not Sure"),0,IF(P51<0,INDEX(J43:J59,MATCH(MIN(R43:R59),J43:J59)),'HP Calcs'!$A$48*'Ducted Performance Tables'!P51+'Ducted Performance Tables'!P52)) -> 0.0352 | F49: =IF(OR('Step 5 Identify & Select ASHPs'!$L$37="No",'Step 5 Identify & Select ASHPs'!$L$37="Not Sure"),0,IF(Q51<0,INDEX(K43:K59,MATCH(MIN(S43:S59),K43:K59)),'HP Calcs'!$A$48*'Ducted Performance Tables'!Q51+'Ducted Performance Tables'!Q52)) -> 0.6136363636 | I49: 7 | J49: 0.2808 | K49: 0.6704545455 | L49: ='Step 5 Identify & Select ASHPs'!$B$30*'Ducted Performance Tables'!J49 -> 3369.6 | M49: ='Step 5 Identify & Select ASHPs'!$B$31*'Ducted Performance Tables'!K49 -> 1.340909091 | N49: 1.472990641 | P49: =INDEX(I43:I59,MATCH(MIN(R43:R59),R43:R59)+1) -> 2 | Q49: =INDEX(I43:I59,MATCH(MIN(S43:S59),S43:S59)+1) -> 2 | R49: - | S49: -
A50: 12 | B50: 0.5032 | C50: 0.8636363636 | D50: HP4 | E50: =IF(OR('Step 5 Identify & Select ASHPs'!$Q$37="No",'Step 5 Identify & Select ASHPs'!$Q$37="Not Sure"),0,IF(P51<0,INDEX(J43:J59,MATCH(MIN(R43:R59),J43:J59)),'HP Calcs'!$A$70*'Ducted Performance Tables'!P51+'Ducted Performance Tables'!P52)) -> 0.0352 | F50: =IF(OR('Step 5 Identify & Select ASHPs'!$Q$37="No",'Step 5 Identify & Select ASHPs'!$Q$37="Not Sure"),0,IF(Q51<0,INDEX(K43:K59,MATCH(MIN(S43:S59),K43:K59)),'HP Calcs'!$A$70*'Ducted Performance Tables'!Q51+'Ducted Performance Tables'!Q52)) -> 0.6136363636 | I50: 12 | J50: 0.336 | K50: 0.6761363636 | L50: ='Step 5 Identify & Select ASHPs'!$B$30*'Ducted Performance Tables'!J50 -> 4032 | M50: ='Step 5 Identify & Select ASHPs'!$B$31*'Ducted Performance Tables'!K50 -> 1.352272727 | N50: 1.747741535 | R50: - | S50: -
A51: 17 | B51: 0.5652 | C51: 0.8806818182 | I51: 17 | J51: 0.3912 | K51: 0.6818181818 | L51: ='Step 5 Identify & Select ASHPs'!$B$30*'Ducted Performance Tables'!J51 -> 4694.4 | M51: ='Step 5 Identify & Select ASHPs'!$B$31*'Ducted Performance Tables'!K51 -> 1.363636364 | N51: 2.017913247 | P51: =((INDEX(J43:J59,MATCH(MIN(R43:R59),R43:R59)+1))-INDEX(J43:J59,MATCH(MIN(R43:R59),R43:R59)))/(P49-P48) -> 0.01228 | Q51: =((INDEX(K43:K59,MATCH(MIN(S43:S59),S43:S59)+1))-INDEX(K43:K59,MATCH(MIN(S43:S59),S43:S59)))/(Q49-Q48) -> 0.002840909091 | R51: - | S51: -
A52: 22 | B52: 0.6106 | C52: 0.8948863636 | I52: 22 | J52: 0.4378 | K52: 0.6875 | L52: ='Step 5 Identify & Select ASHPs'!$B$30*'Ducted Performance Tables'!J52 -> 5253.6 | M52: ='Step 5 Identify & Select ASHPs'!$B$31*'Ducted Performance Tables'!K52 -> 1.375 | N52: 2.239624853 | P52: =INDEX(J43:J59,MATCH(MIN(R43:R59),R43:R59))-P51*P48 -> 0.19484 | Q52: =INDEX(K43:K59,MATCH(MIN(S43:S59),S43:S59))-Q51*Q48 -> 0.6505681818 | R52: - | S52: -
A53: 27 | B53: 0.656 | C53: 0.9090909091 | I53: 27 | J53: 0.4844 | K53: 0.6931818182 | L53: ='Step 5 Identify & Select ASHPs'!$B$30*'Ducted Performance Tables'!J53 -> 5812.8 | M53: ='Step 5 Identify & Select ASHPs'!$B$31*'Ducted Performance Tables'!K53 -> 1.386363636 | N53: 2.457701843 | R53: - | S53: -
A54: 32 | B54: 0.7218 | C54: 0.9318181818 | I54: 32 | J54: 0.5422 | K54: 0.6960227273 | L54: ='Step 5 Identify & Select ASHPs'!$B$30*'Ducted Performance Tables'!J54 -> 6506.4 | M54: ='Step 5 Identify & Select ASHPs'!$B$31*'Ducted Performance Tables'!K54 -> 1.392045455 | N54: 2.739733474 | R54: - | S54: -
A55: 37 | B55: 0.7876 | C55: 0.9545454545 | I55: 37 | J55: 0.6 | K55: 0.6988636364 | L55: ='Step 5 Identify & Select ASHPs'!$B$30*'Ducted Performance Tables'!J55 -> 7200 | M55: ='Step 5 Identify & Select ASHPs'!$B$31*'Ducted Performance Tables'!K55 -> 1.397727273 | N55: 3.019472164 | R55: - | S55: -
A56: 42 | B56: 0.8938 | C56: 0.9772727273 | I56: 42 | J56: 0.6742 | K56: 0.6988636364 | L56: ='Step 5 Identify & Select ASHPs'!$B$30*'Ducted Performance Tables'!J56 -> 8090.4 | M56: ='Step 5 Identify & Select ASHPs'!$B$31*'Ducted Performance Tables'!K56 -> 1.397727273 | N56: 3.392880222 | R56: - | S56: -
A57: 47 | B57: 1 | C57: 1 | I57: 47 | J57: 0.7484 | K57: 0.6988636364 | L57: ='Step 5 Identify & Select ASHPs'!$B$30*'Ducted Performance Tables'!J57 -> 8980.8 | M57: ='Step 5 Identify & Select ASHPs'!$B$31*'Ducted Performance Tables'!K57 -> 1.397727273 | N57: 3.76628828 | R57: - | S57: -
A58: 52 | B58: 1.0714 | C58: 1.03125 | I58: 52 | J58: 0.7914 | K58: 0.6988636364 | L58: ='Step 5 Identify & Select ASHPs'!$B$30*'Ducted Performance Tables'!J58 -> 9496.8 | M58: ='Step 5 Identify & Select ASHPs'!$B$31*'Ducted Performance Tables'!K58 -> 1.397727273 | N58: 3.982683785 | R58: - | S58: -
A59: 57 | B59: 1.1428 | C59: 1.0625 | I59: 57 | J59: 0.8344 | K59: 0.6988636364 | L59: ='Step 5 Identify & Select ASHPs'!$B$30*'Ducted Performance Tables'!J59 -> 10012.8 | M59: ='Step 5 Identify & Select ASHPs'!$B$31*'Ducted Performance Tables'!K59 -> 1.397727273 | N59: 4.19907929 | R59: - | S59: -
A61: HIGH Stage, Cool | I61: LoW Stage, Cool
A62: Temperature (F) | B62: Normalized Capacity | C62: Normalized Power | I62: Temperature (F) | J62: Normalized Capacity | K62: Normalized Power
A63: 72 | I63: 72
A64: 77 | B64: 1.065241935 | C64: 0.7967391304 | E64: =(($F$2-INDEX('HP Calcs'!$H$5:$H$13,MATCH($F$2,'HP Calcs'!$H$5:$H$13,1)))*(INDEX(J63:J71,MATCH($F$2,'HP Calcs'!$H$5:$H$13,1)+1)-INDEX(J63:J71,MATCH($F$2,'HP Calcs'!$H$5:$H$13,1))))/(INDEX('HP Calcs'!$H$5:$H$13,MATCH($F$2,'HP Calcs'!$H$5:$H$13,1)+1)-INDEX('HP Calcs'!$H$5:$H$13,MATCH($F$2,'HP Calcs'!$H$5:$H$13,1)))+INDEX(J63:J71,MATCH($F$2,'HP Calcs'!$H$5:$H$13,1)) -> 0.750750448 | F64: =(($F$2-INDEX('HP Calcs'!$H$5:$H$13,MATCH($F$2,'HP Calcs'!$H$5:$H$13,1)))*(INDEX(K63:K71,MATCH($F$2,'HP Calcs'!$H$5:$H$13,1)+1)-INDEX(K63:K71,MATCH($F$2,'HP Calcs'!$H$5:$H$13,1))))/(INDEX('HP Calcs'!$H$5:$H$13,MATCH($F$2,'HP Calcs'!$H$5:$H$13,1)+1)-INDEX('HP Calcs'!$H$5:$H$13,MATCH($F$2,'HP Calcs'!$H$5:$H$13,1)))+INDEX(K63:K71,MATCH($F$2,'HP Calcs'!$H$5:$H$13,1)) -> 0.6707427536 | I64: 77 | J64: 0.8161290323 | K64: 0.5576086957
A65: 82 | B65: 1.025326654 | C65: 0.8461462451 | I65: 82 | J65: 0.7865998697 | K65: 0.6070158103
A66: 87 | B66: 0.9855414747 | C66: 0.8996721877 | I66: 87 | J66: 0.7567908346 | K66: 0.6594202899
A67: 92 | B67: 0.9459389401 | C67: 0.9589803313 | E67: 95 | F67: =((95-A67)*(B68-B67))/(A68-A67)+B67 -> 0.9221294163 | G67: =((95-A67)*(C68-C67))/(A68-A67)+C67 -> 0.9965062112 | I67: 92 | J67: 0.7265889017 | K67: 0.7160326087 | M67: 95 | N67: =((95-I67)*(J68-J67))/(I68-I67)+J67 -> 0.7083237327 | O67: =((95-I67)*(K68-K67))/(I68-I67)+K67 -> 0.7519409938
A68: 97 | B68: 0.9062564004 | C68: 1.021523464 | I68: 97 | J68: 0.6961469534 | K68: 0.7758799172
A69: 102 | B69: 0.866453853 | C69: 1.088919082 | I69: 102 | J69: 0.6653449821 | K69: 0.8405797101
A70: 107 | B70: 0.8263734115 | C70: 1.161001318 | I70: 107 | J70: 0.6344843597 | K70: 0.9110013175
A71: 112 | B71: 0.7858471815 | C71: 1.240601669 | I71: 112 | J71: 0.6035296514 | K71: 0.9906016689
A73: Ducted Variable | C73: (From Daikin DZ20VC 36 Unit)
A74: MAX, Heat | I74: MIN, Heat
A75: Temperature (F) | B75: Normalized Capacity | C75: Normalized Power | I75: Temperature (F) | J75: Normalized Capacity | K75: Normalized Power
A76: -10 | B76: 0.3828571429 | C76: 1.286290323 | I76: -10 | J76: 0.2457142857 | K76: 0.6693548387 | L76: ='Step 5 Identify & Select ASHPs'!$B$30*'Ducted Performance Tables'!J76 -> 2948.571429 | M76: ='Step 5 Identify & Select ASHPs'!$B$31*'Ducted Performance Tables'!K76 -> 1.338709677 | N76: =(L76/3412)/K76 -> 1.291059398
A77: -5 | B77: 0.4685714286 | C77: 1.326612903 | I77: -5 | J77: 0.3 | K77: 0.685483871 | L77: ='Step 5 Identify & Select ASHPs'!$B$30*'Ducted Performance Tables'!J77 -> 3600 | M77: ='Step 5 Identify & Select ASHPs'!$B$31*'Ducted Performance Tables'!K77 -> 1.370967742 | N77: =(L77/3412)/K77 -> 1.539204193
A78: 0 | B78: 0.5485714286 | C78: 1.366935484 | I78: 0 | J78: 0.3514285714 | K78: 0.7056451613 | L78: ='Step 5 Identify & Select ASHPs'!$B$30*'Ducted Performance Tables'!J78 -> 4217.142857 | M78: ='Step 5 Identify & Select ASHPs'!$B$31*'Ducted Performance Tables'!K78 -> 1.411290323 | N78: 1.751551547 | R78: AHRI Rated Capacity | S78: If at 47F. Identical to entry
A79: 5 | B79: 0.6314285714 | C79: 1.403225806 | I79: 5 | J79: 0.4028571429 | K79: 0.7217741935 | L79: ='Step 5 Identify & Select ASHPs'!$B$30*'Ducted Performance Tables'!J79 -> 4834.285714 | M79: ='Step 5 Identify & Select ASHPs'!$B$31*'Ducted Performance Tables'!K79 -> 1.443548387 | N79: 1.963007422 | S79: If at 17F, use correction formula in slides and example
A80: 10 | B80: 0.7114285714 | C80: 1.443548387 | I80: 10 | J80: 0.4542857143 | K80: 0.7419354839 | L80: ='Step 5 Identify & Select ASHPs'!$B$30*'Ducted Performance Tables'!J80 -> 5451.428571 | M80: ='Step 5 Identify & Select ASHPs'!$B$31*'Ducted Performance Tables'!K80 -> 1.483870968 | N80: 2.153451829
A81: 15 | B81: 0.7914285714 | C81: 1.483870968 | I81: 15 | J81: 0.5057142857 | K81: 0.7580645161 | L81: ='Step 5 Identify & Select ASHPs'!$B$30*'Ducted Performance Tables'!J81 -> 6068.571429 | M81: ='Step 5 Identify & Select ASHPs'!$B$31*'Ducted Performance Tables'!K81 -> 1.516129032 | N81: 2.346233747
A82: 17 | B82: 0.8228571429 | C82: 1.5 | I82: 17 | J82: 0.5257142857 | K82: 0.7661290323 | L82: ='Step 5 Identify & Select ASHPs'!$B$30*'Ducted Performance Tables'!J82 -> 6308.571429 | M82: ='Step 5 Identify & Select ASHPs'!$B$31*'Ducted Performance Tables'!K82 -> 1.532258065 | N82: 2.413348729
A83: 20 | B83: 0.8714285714 | C83: 1.52016129 | I83: 20 | J83: 0.5571428571 | K83: 0.7741935484 | L83: ='Step 5 Identify & Select ASHPs'!$B$30*'Ducted Performance Tables'!J83 -> 6685.714286 | M83: ='Step 5 Identify & Select ASHPs'!$B$31*'Ducted Performance Tables'!K83 -> 1.548387097 | N83: 2.530983085
A84: 25 | B84: 0.9457142857 | C84: 1.560483871 | I84: 25 | J84: 0.6028571429 | K84: 0.7943548387 | L84: ='Step 5 Identify & Select ASHPs'!$B$30*'Ducted Performance Tables'!J84 -> 7234.285714 | M84: ='Step 5 Identify & Select ASHPs'!$B$31*'Ducted Performance Tables'!K84 -> 1.588709677 | N84: 2.66914452
A85: 30 | B85: 1.025714286 | C85: 1.600806452 | I85: 30 | J85: 0.6542857143 | K85: 0.810483871 | L85: ='Step 5 Identify & Select ASHPs'!$B$30*'Ducted Performance Tables'!J85 -> 7851.428571 | M85: ='Step 5 Identify & Select ASHPs'!$B$31*'Ducted Performance Tables'!K85 -> 1.620967742 | N85: 2.839195415
A86: 35 | B86: 0.8314285714 | C86: 0.9516129032 | I86: 35 | J86: 0.6 | K86: 0.5524193548 | L86: ='Step 5 Identify & Select ASHPs'!$B$30*'Ducted Performance Tables'!J86 -> 7200 | M86: ='Step 5 Identify & Select ASHPs'!$B$31*'Ducted Performance Tables'!K86 -> 1.10483871 | N86: 3.819922814
A87: 40 | B87: 0.9 | C87: 0.9717741935 | I87: 40 | J87: 0.6485714286 | K87: 0.564516129 | L87: ='Step 5 Identify & Select ASHPs'!$B$30*'Ducted Performance Tables'!J87 -> 7782.857143 | M87: ='Step 5 Identify & Select ASHPs'!$B$31*'Ducted Performance Tables'!K87 -> 1.129032258 | N87: 4.040672776
A88: 45 | B88: 0.9685714286 | C88: 0.9919354839 | I88: 45 | J88: 0.7 | K88: 0.5725806452 | L88: ='Step 5 Identify & Select ASHPs'!$B$30*'Ducted Performance Tables'!J88 -> 8400 | M88: ='Step 5 Identify & Select ASHPs'!$B$31*'Ducted Performance Tables'!K88 -> 1.14516129 | N88: 4.299654905
A89: 47 | B89: 1 | C89: 1 | I89: 47 | J89: 0.72 | K89: 0.5766129032 | L89: ='Step 5 Identify & Select ASHPs'!$B$30*'Ducted Performance Tables'!J89 -> 8640 | M89: ='Step 5 Identify & Select ASHPs'!$B$31*'Ducted Performance Tables'!K89 -> 1.153225806 | N89: 4.391575599
A90: 50 | B90: 1.045714286 | C90: 1.012096774 | I90: 50 | J90: 0.7542857143 | K90: 0.5846774194 | L90: ='Step 5 Identify & Select ASHPs'!$B$30*'Ducted Performance Tables'!J90 -> 9051.428571 | M90: ='Step 5 Identify & Select ASHPs'!$B$31*'Ducted Performance Tables'!K90 -> 1.169354839 | N90: 4.53724034
A91: 55 | B91: 1.12 | C91: 1.032258065 | I91: 55 | J91: 0.8085714286 | K91: 0.5927419355 | L91: ='Step 5 Identify & Select ASHPs'!$B$30*'Ducted Performance Tables'!J91 -> 9702.857143 | M91: ='Step 5 Identify & Select ASHPs'!$B$31*'Ducted Performance Tables'!K91 -> 1.185483871 | N91: 4.797610218
A92: 60 | B92: 1.191428571 | C92: 1.052419355 | I92: 60 | J92: 0.8571428571 | K92: 0.6048387097 | L92: ='Step 5 Identify & Select ASHPs'!$B$30*'Ducted Performance Tables'!J92 -> 10285.71429 | M92: ='Step 5 Identify & Select ASHPs'!$B$31*'Ducted Performance Tables'!K92 -> 1.209677419 | N92: 4.984089767
A93: 65 | B93: 1.257142857 | C93: 1.072580645 | I93: 65 | J93: 0.9057142857 | K93: 0.6169354839 | L93: ='Step 5 Identify & Select ASHPs'!$B$30*'Ducted Performance Tables'!J93 -> 10868.57143 | M93: ='Step 5 Identify & Select ASHPs'!$B$31*'Ducted Performance Tables'!K93 -> 1.233870968 | N93: =(L93/3412)/K93 -> 5.163256393
A95: Temperature (F) | I95: Temperature (F)
A96: -23 | B96: - | C96: - | I96: -23 | J96: - | K96: - | L96: ='Step 5 Identify & Select ASHPs'!$B$30*'Ducted Performance Tables'!J96 ->  | M96: ='Step 5 Identify & Select ASHPs'!$B$31*'Ducted Performance Tables'!K96 ->  | N96: =(L96/3412)/K96 ->  | R96: =IF(AND(J96<>"-",J95="-",ISNUMBER(J97)),J96,"-") -> - | S96: =IF(AND(K96<>"-",K95="-",ISNUMBER(K97)),K96,"-") -> -
A97: -18 | B97: - | C97: - | I97: -18 | J97: - | K97: - | L97: ='Step 5 Identify & Select ASHPs'!$B$30*'Ducted Performance Tables'!J97 ->  | M97: ='Step 5 Identify & Select ASHPs'!$B$31*'Ducted Performance Tables'!K97 ->  | N97: =(L97/3412)/K97 ->  | R97: =IF(AND(J97<>"-",J96="-",ISNUMBER(J98)),J97,"-") -> - | S97: =IF(AND(K97<>"-",K96="-",ISNUMBER(K98)),K97,"-") -> -
A98: -13 | B98: - | C98: - | E98: =(($E$2-INDEX('HP Calcs'!$A$4:$A$20,MATCH($E$2,'HP Calcs'!$A$4:$A$20,1)))*(INDEX(J96:J112,MATCH($E$2,'HP Calcs'!$A$4:$A$20,1)+1)-INDEX(J96:J112,MATCH($E$2,'HP Calcs'!$A$4:$A$20,1))))/(INDEX('HP Calcs'!$A$4:$A$20,MATCH($E$2,'HP Calcs'!$A$4:$A$20,1)+1)-INDEX('HP Calcs'!$A$4:$A$20,MATCH($E$2,'HP Calcs'!$A$4:$A$20,1)))+INDEX(J96:J112,MATCH($E$2,'HP Calcs'!$A$4:$A$20,1)) -> 0.3514285714 | F98: =(($E$2-INDEX('HP Calcs'!$A$4:$A$20,MATCH($E$2,'HP Calcs'!$A$4:$A$20,1)))*(INDEX(K96:K112,MATCH($E$2,'HP Calcs'!$A$4:$A$20,1)+1)-INDEX(K96:K112,MATCH($E$2,'HP Calcs'!$A$4:$A$20,1))))/(INDEX('HP Calcs'!$A$4:$A$20,MATCH($E$2,'HP Calcs'!$A$4:$A$20,1)+1)-INDEX('HP Calcs'!$A$4:$A$20,MATCH($E$2,'HP Calcs'!$A$4:$A$20,1)))+INDEX(K96:K112,MATCH($E$2,'HP Calcs'!$A$4:$A$20,1)) -> 0.7046774194 | I98: -13 | J98: - | K98: - | L98: ='Step 5 Identify & Select ASHPs'!$B$30*'Ducted Performance Tables'!J98 ->  | M98: ='Step 5 Identify & Select ASHPs'!$B$31*'Ducted Performance Tables'!K98 ->  | R98: - | S98: -
A99: -8 | B99: =((A99-A76)*(B77-B76))/(A77-A76)+B76 -> 0.4171428571 | C99: =((B99-B76)*(C77-C76))/(B77-B76)+C76 -> 1.302419355 | I99: -8 | J99: 0.2674285714 | K99: 0.6758064516 | L99: ='Step 5 Identify & Select ASHPs'!$B$30*'Ducted Performance Tables'!J99 -> 3209.142857 | M99: ='Step 5 Identify & Select ASHPs'!$B$31*'Ducted Performance Tables'!K99 -> 1.351612903 | N99: 1.39173867 | R99: 0.2674285714 | S99: 0.6758064516
A100: -3 | B100: =((A100-A77)*(B78-B77))/(A78-A77)+B77 -> 0.5005714286 | C100: =((B100-B77)*(C78-C77))/(B78-B77)+C77 -> 1.342741935 | D100: HP1 | E100: =IF(OR('Step 5 Identify & Select ASHPs'!$B$37="No",'Step 5 Identify & Select ASHPs'!$B$37="Not Sure"),0,IF(P104<0,INDEX(J96:J112,MATCH(MIN(R96:R112),J96:J112)),'HP Calcs'!$A$4*'Ducted Performance Tables'!P104+'Ducted Performance Tables'!P105)) -> 0.2142857143 | F100: =IF(OR('Step 5 Identify & Select ASHPs'!$B$37="No",'Step 5 Identify & Select ASHPs'!$B$37="Not Sure"),0,IF(Q104<0,INDEX(K96:K112,MATCH(MIN(S96:S112),K96:K112)),'HP Calcs'!$A$4*'Ducted Performance Tables'!Q104+'Ducted Performance Tables'!Q105)) -> 0.6580645161 | I100: -3 | J100: 0.3205714286 | K100: 0.6935483871 | L100: ='Step 5 Identify & Select ASHPs'!$B$30*'Ducted Performance Tables'!J100 -> 3846.857143 | M100: ='Step 5 Identify & Select ASHPs'!$B$31*'Ducted Performance Tables'!K100 -> 1.387096774 | N100: 1.625624628 | R100: =IF(AND(J100<>"-",J99="-",ISNUMBER(J101)),J100,"-") -> - | S100: =IF(AND(K100<>"-",K99="-",ISNUMBER(K101)),K100,"-") -> -
A101: 2 | B101: =((A101-A78)*(B79-B78))/(A79-A78)+B78 -> 0.5817142857 | C101: =((B101-B78)*(C79-C78))/(B79-B78)+C78 -> 1.381451613 | D101: HP2 | E101: =IF(OR('Step 5 Identify & Select ASHPs'!$G$37="No",'Step 5 Identify & Select ASHPs'!$G$37="Not Sure"),0,IF(P104<0,INDEX(J96:J112,MATCH(MIN(R96:R112),J96:J112)),'HP Calcs'!$A$26*'Ducted Performance Tables'!P104+'Ducted Performance Tables'!P105)) -> 0.2142857143 | F101: =IF(OR('Step 5 Identify & Select ASHPs'!$G$37="No",'Step 5 Identify & Select ASHPs'!$G$37="Not Sure"),0,IF(Q104<0,INDEX(K96:K112,MATCH(MIN(S96:S112),K96:K112)),'HP Calcs'!$A$26*'Ducted Performance Tables'!Q104+'Ducted Performance Tables'!Q105)) -> 0.6580645161 | I101: 2 | J101: 0.372 | K101: 0.7120967742 | L101: ='Step 5 Identify & Select ASHPs'!$B$30*'Ducted Performance Tables'!J101 -> 4464 | M101: ='Step 5 Identify & Select ASHPs'!$B$31*'Ducted Performance Tables'!K101 -> 1.424193548 | N101: 1.837283374 | P101: =INDEX(I96:I112,MATCH(MIN(R96:R112),R96:R112)) -> -8 | Q101: =INDEX(I96:I112,MATCH(MIN(S96:S112),S96:S112)) -> -8 | R101: =IF(AND(J101<>"-",J100="-",ISNUMBER(J102)),J101,"-") -> - | S101: =IF(AND(K101<>"-",K100="-",ISNUMBER(K102)),K101,"-") -> -
A102: 7 | B102: =((A102-A79)*(B80-B79))/(A80-A79)+B79 -> 0.6634285714 | C102: =((B102-B79)*(C80-C79))/(B80-B79)+C79 -> 1.419354839 | D102: HP3 | E102: =IF(OR('Step 5 Identify & Select ASHPs'!$L$37="No",'Step 5 Identify & Select ASHPs'!$L$37="Not Sure"),0,IF(P104<0,INDEX(J96:J112,MATCH(MIN(R96:R112),J96:J112)),'HP Calcs'!$A$48*'Ducted Performance Tables'!P104+'Ducted Performance Tables'!P105)) -> 0.2142857143 | F102: =IF(OR('Step 5 Identify & Select ASHPs'!$L$37="No",'Step 5 Identify & Select ASHPs'!$L$37="Not Sure"),0,IF(Q104<0,INDEX(K96:K112,MATCH(MIN(S96:S112),K96:K112)),'HP Calcs'!$A$48*'Ducted Performance Tables'!Q104+'Ducted Performance Tables'!Q105)) -> 0.6580645161 | I102: 7 | J102: 0.4234285714 | K102: 0.7298387097 | L102: ='Step 5 Identify & Select ASHPs'!$B$30*'Ducted Performance Tables'!J102 -> 5081.142857 | M102: ='Step 5 Identify & Select ASHPs'!$B$31*'Ducted Performance Tables'!K102 -> 1.459677419 | N102: 2.0404478 | P102: =INDEX(I96:I112,MATCH(MIN(R96:R112),R96:R112)+1) -> -3 | Q102: =INDEX(I96:I112,MATCH(MIN(S96:S112),S96:S112)+1) -> -3 | R102: - | S102: =IF(AND(K102<>"-",K101="-",ISNUMBER(K103)),K102,"-") -> -
A103: 12 | B103: =((A103-A80)*(B81-B80))/(A81-A80)+B80 -> 0.7434285714 | C103: =((B103-B80)*(C81-C80))/(B81-B80)+C80 -> 1.459677419 | D103: HP4 | E103: =IF(OR('Step 5 Identify & Select ASHPs'!$Q$37="No",'Step 5 Identify & Select ASHPs'!$Q$37="Not Sure"),0,IF(P104<0,INDEX(J96:J112,MATCH(MIN(R96:R112),J96:J112)),'HP Calcs'!$A$70*'Ducted Performance Tables'!P104+'Ducted Performance Tables'!P105)) -> 0.2142857143 | F103: =IF(OR('Step 5 Identify & Select ASHPs'!$Q$37="No",'Step 5 Identify & Select ASHPs'!$Q$37="Not Sure"),0,IF(Q104<0,INDEX(K96:K112,MATCH(MIN(S96:S112),K96:K112)),'HP Calcs'!$A$70*'Ducted Performance Tables'!Q104+'Ducted Performance Tables'!Q105)) -> 0.6580645161 | I103: 12 | J103: 0.4748571429 | K103: 0.7483870968 | L103: ='Step 5 Identify & Select ASHPs'!$B$30*'Ducted Performance Tables'!J103 -> 5698.285714 | M103: ='Step 5 Identify & Select ASHPs'!$B$31*'Ducted Performance Tables'!K103 -> 1.496774194 | N103: 2.231561744 | R103: - | S103: -
A104: 17 | B104: =B82 -> 0.8228571429 | C104: =C82 -> 1.5 | I104: 17 | J104: 0.5257142857 | K104: 0.7661290323 | L104: ='Step 5 Identify & Select ASHPs'!$B$30*'Ducted Performance Tables'!J104 -> 6308.571429 | M104: ='Step 5 Identify & Select ASHPs'!$B$31*'Ducted Performance Tables'!K104 -> 1.532258065 | N104: 2.413348729 | P104: =((INDEX(J96:J112,MATCH(MIN(R96:R112),R96:R112)+1))-INDEX(J96:J112,MATCH(MIN(R96:R112),R96:R112)))/(P102-P101) -> 0.01062857143 | Q104: =((INDEX(K96:K112,MATCH(MIN(S96:S112),S96:S112)+1))-INDEX(K96:K112,MATCH(MIN(S96:S112),S96:S112)))/(Q102-Q101) -> 0.003548387097 | R104: - | S104: -
A105: 22 | B105: =((A105-A83)*(B84-B83))/(A84-A83)+B83 -> 0.9011428571 | C105: =((B105-B83)*(C84-C83))/(B84-B83)+C83 -> 1.536290323 | I105: 22 | J105: 0.5754285714 | K105: 0.7822580645 | L105: ='Step 5 Identify & Select ASHPs'!$B$30*'Ducted Performance Tables'!J105 -> 6905.142857 | M105: ='Step 5 Identify & Select ASHPs'!$B$31*'Ducted Performance Tables'!K105 -> 1.564516129 | N105: 2.587102266 | P105: =INDEX(J96:J112,MATCH(MIN(R96:R112),R96:R112))-P104*P101 -> 0.3524571429 | Q105: =INDEX(K96:K112,MATCH(MIN(S96:S112),S96:S112))-Q104*Q101 -> 0.7041935484 | R105: - | S105: -
A106: 27 | B106: =((A106-A84)*(B85-B84))/(A85-A84)+B84 -> 0.9777142857 | C106: =((B106-B84)*(C85-C84))/(B85-B84)+C84 -> 1.576612903 | I106: 27 | J106: 0.6234285714 | K106: 0.8008064516 | L106: ='Step 5 Identify & Select ASHPs'!$B$30*'Ducted Performance Tables'!J106 -> 7481.142857 | M106: ='Step 5 Identify & Select ASHPs'!$B$31*'Ducted Performance Tables'!K106 -> 1.601612903 | N106: 2.737986876 | R106: - | S106: -
A107: 32 | B107: =((A107-A85)*(B86-B85))/(A86-A85)+B85 -> 0.948 | C107: =((B107-B85)*(C86-C85))/(B86-B85)+C85 -> 1.341129032 | I107: 32 | J107: 0.6325714286 | K107: 0.7072580645 | L107: ='Step 5 Identify & Select ASHPs'!$B$30*'Ducted Performance Tables'!J107 -> 7590.857143 | M107: ='Step 5 Identify & Select ASHPs'!$B$31*'Ducted Performance Tables'!K107 -> 1.414516129 | N107: 3.145602835 | R107: - | S107: -
A108: 37 | B108: =((A108-A86)*(B87-B86))/(A87-A86)+B86 -> 0.8588571429 | C108: =((B108-B86)*(C87-C86))/(B87-B86)+C86 -> 0.9596774194 | I108: 37 | J108: 0.6194285714 | K108: 0.5572580645 | L108: ='Step 5 Identify & Select ASHPs'!$B$30*'Ducted Performance Tables'!J108 -> 7433.142857 | M108: ='Step 5 Identify & Select ASHPs'!$B$31*'Ducted Performance Tables'!K108 -> 1.114516129 | N108: 3.909372871 | R108: - | S108: -
A109: 42 | B109: =((A109-A87)*(B88-B87))/(A88-A87)+B87 -> 0.9274285714 | C109: 0.9798387097 | I109: 42 | J109: 0.6691428571 | K109: 0.5677419355 | L109: ='Step 5 Identify & Select ASHPs'!$B$30*'Ducted Performance Tables'!J109 -> 8029.714286 | M109: ='Step 5 Identify & Select ASHPs'!$B$31*'Ducted Performance Tables'!K109 -> 1.135483871 | N109: 4.145148521 | R109: - | S109: -
A110: 47 | B110: =B89 -> 1 | C110: =C89 -> 1 | I110: 47 | J110: 0.72 | K110: 0.5766129032 | L110: ='Step 5 Identify & Select ASHPs'!$B$30*'Ducted Performance Tables'!J110 -> 8640 | M110: ='Step 5 Identify & Select ASHPs'!$B$31*'Ducted Performance Tables'!K110 -> 1.153225806 | N110: 4.391575599 | R110: - | S110: -
A111: 52 | B111: =((A111-A90)*(B91-B90))/(A91-A90)+B90 -> 1.075428571 | C111: =((B111-B90)*(C91-C90))/(B91-B90)+C90 -> 1.02016129 | I111: 52 | J111: 0.776 | K111: 0.5879032258 | L111: ='Step 5 Identify & Select ASHPs'!$B$30*'Ducted Performance Tables'!J111 -> 9312 | M111: ='Step 5 Identify & Select ASHPs'!$B$31*'Ducted Performance Tables'!K111 -> 1.175806452 | N111: 4.642245476 | R111: - | S111: -
A112: 57 | B112: =((A112-A91)*(B92-B91))/(A92-A91)+B91 -> 1.148571429 | C112: =((B112-B91)*(C92-C91))/(B92-B91)+C91 -> 1.040322581 | I112: 57 | J112: 0.828 | K112: 0.5975806452 | L112: ='Step 5 Identify & Select ASHPs'!$B$30*'Ducted Performance Tables'!J112 -> 9936 | M112: ='Step 5 Identify & Select ASHPs'!$B$31*'Ducted Performance Tables'!K112 -> 1.19516129 | N112: 4.873108011 | R112: - | S112: -
A117: MAX, Cool | I117: MIN, Cool
A118: Temperature (F) | B118: Normalized Capacity | C118: Normalized Power | I118: Temperature (F) | J118: Normalized Capacity | K118: Normalized Power
A119: 65 | B119: 1.002824859 | C119: 0.7865612648 | I119: 65 | J119: 0.709039548 | K119: 0.5375494071
A120: 75 | B120: 0.9717514124 | C120: 0.8537549407 | I120: 75 | J120: 0.6920903955 | K120: 0.5770750988
A121: 85 | B121: 0.9491525424 | C121: 0.9090909091 | I121: 85 | J121: 0.6751412429 | K121: 0.6086956522
A122: 95 | B122: 0.9265536723 | C122: 0.9565217391 | I122: 95 | J122: 0.6610169492 | K122: 0.6403162055
A123: 105 | B123: 0.8813559322 | C123: 1 | I123: 105 | J123: 0.6271186441 | K123: 0.6679841897
A124: 115 | B124: 0.8163841808 | C124: 1.035573123 | I124: 115 | J124: 0.5790960452 | K124: 0.6877470356
A127: Temperature (F) | I127: Temperature (F)
A128: 72 | B128: =((A128-A119)*(B120-B119))/(A120-A119)+B119 -> 0.9810734463 | C128: =((B128-B119)*(C120-C119))/(B120-B119)+C119 -> 0.8335968379 | I128: 72 | J128: =((I128-I119)*(J120-J119))/(I120-I119)+J119 -> 0.6971751412 | K128: =((J128-J119)*(K120-K119))/(J120-J119)+K119 -> 0.5652173913
A129: 77 | B129: =((A129-A120)*(B121-B120))/(A121-A120)+B120 -> 0.9672316384 | C129: =((B129-B120)*(C121-C120))/(B121-B120)+C120 -> 0.8648221344 | E129: =(($F$2-INDEX('HP Calcs'!$H$5:$H$13,MATCH($F$2,'HP Calcs'!$H$5:$H$13,1)))*(INDEX(J128:J136,MATCH($F$2,'HP Calcs'!$H$5:$H$13,1)+1)-INDEX(J128:J136,MATCH($F$2,'HP Calcs'!$H$5:$H$13,1))))/(INDEX('HP Calcs'!$H$5:$H$13,MATCH($F$2,'HP Calcs'!$H$5:$H$13,1)+1)-INDEX('HP Calcs'!$H$5:$H$13,MATCH($F$2,'HP Calcs'!$H$5:$H$13,1)))+INDEX(J128:J136,MATCH($F$2,'HP Calcs'!$H$5:$H$13,1)) -> 0.6709039548 | F129: =(($F$2-INDEX('HP Calcs'!$H$5:$H$13,MATCH($F$2,'HP Calcs'!$H$5:$H$13,1)))*(INDEX(K128:K136,MATCH($F$2,'HP Calcs'!$H$5:$H$13,1)+1)-INDEX(K128:K136,MATCH($F$2,'HP Calcs'!$H$5:$H$13,1))))/(INDEX('HP Calcs'!$H$5:$H$13,MATCH($F$2,'HP Calcs'!$H$5:$H$13,1)+1)-INDEX('HP Calcs'!$H$5:$H$13,MATCH($F$2,'HP Calcs'!$H$5:$H$13,1)))+INDEX(K128:K136,MATCH($F$2,'HP Calcs'!$H$5:$H$13,1)) -> 0.6181818182 | I129: 77 | J129: =((I129-I120)*(J121-J120))/(I121-I120)+J120 -> 0.688700565 | K129: 0.5833992095
A130: 82 | B130: =((A130-A120)*(B121-B120))/(A121-A120)+B120 -> 0.9559322034 | C130: =((B130-B120)*(C121-C120))/(B121-B120)+C120 -> 0.8924901186 | I130: 82 | J130: =((I130-I120)*(J121-J120))/(I121-I120)+J120 -> 0.6802259887 | K130: 0.5992094862
A131: 87 | B131: =((A131-A121)*(B122-B121))/(A122-A121)+B121 -> 0.9446327684 | C131: =((B131-B121)*(C122-C121))/(B122-B121)+C121 -> 0.9185770751 | I131: 87 | J131: =((I131-I121)*(J122-J121))/(I122-I121)+J121 -> 0.6723163842 | K131: 0.6150197628
A132: 92 | B132: =((A132-A121)*(B122-B121))/(A122-A121)+B121 -> 0.9333333333 | C132: =((B132-B121)*(C122-C121))/(B122-B121)+C121 -> 0.9422924901 | I132: 92 | J132: =((I132-I121)*(J122-J121))/(I122-I121)+J121 -> 0.6652542373 | K132: 0.6308300395
A133: 97 | B133: =((A133-A122)*(B123-B122))/(A123-A122)+B122 -> 0.9175141243 | C133: =((B133-B122)*(C123-C122))/(B123-B122)+C122 -> 0.9652173913 | I133: 97 | J133: =((I133-I122)*(J123-J122))/(I123-I122)+J122 -> 0.6542372881 | K133: 0.6458498024
A134: 102 | B134: =((A134-A122)*(B123-B122))/(A123-A122)+B122 -> 0.8949152542 | C134: =((B134-B122)*(C123-C122))/(B123-B122)+C122 -> 0.9869565217 | I134: 102 | J134: =((I134-I122)*(J123-J122))/(I123-I122)+J122 -> 0.6372881356 | K134: 0.6596837945
A135: 107 | B135: =((A135-A123)*(B124-B123))/(A124-A123)+B123 -> 0.8683615819 | C135: =((B135-B123)*(C124-C123))/(B124-B123)+C123 -> 1.007114625 | I135: 107 | J135: =((I135-I123)*(J124-J123))/(I124-I123)+J123 -> 0.6175141243 | K135: 0.6719367589
A136: 112 | B136: =((A136-A123)*(B124-B123))/(A124-A123)+B123 -> 0.8358757062 | C136: =((B136-B123)*(C124-C123))/(B124-B123)+C123 -> 1.024901186 | I136: 112 | J136: =((I136-I123)*(J124-J123))/(I124-I123)+J123 -> 0.5935028249 | K136: 0.6818181818

Sheet Ductless Single Per Table (hidden)
A1: Ductless, Single Split, Regular | C1: MUZ-HM12NA2
A2: MAX, Heat | E2: ='Step 3 Design Loads'!B13 -> 0 | F2: ='Step 3 Design Loads'!B15 -> 88 | J2: Min, Heat
A3: Temperature | B3: Normalized Capacity | C3: Normalized Power | J3: Temperature | K3: Normalized Capacity | L3: Normalized Power
A4: -4 | B4: 0.487704918 | C4: 0.7070707071 | J4: -4 | K4: 0.1393442623 | L4: 0.202020202
A5: 0 | B5: 0.5516393443 | C5: 0.7676767677 | J5: 0 | K5: 0.1581967213 | L5: 0.2222222222
A6: 5 | B6: 0.6147540984 | C6: 0.8282828283 | J6: 5 | K6: 0.1762295082 | L6: 0.2323232323
A7: 10 | B7: 0.6967213115 | C7: 0.8787878788 | J7: 10 | K7: 0.1983606557 | L7: 0.2525252525
A8: 15 | B8: 0.7786885246 | C8: 0.9292929293 | J8: 15 | K8: 0.2221311475 | L8: 0.2525252525
A9: 20 | B9: 0.8524590164 | C9: 0.9797979798 | J9: 20 | K9: 0.2442622951 | L9: 0.2828282828
A10: 25 | B10: 0.9262295082 | C10: 1.03030303 | J10: 25 | K10: 0.2647540984 | L10: 0.2929292929
A11: 30 | B11: 0.9959016393 | C11: 1.080808081 | J11: 30 | K11: 0.2844262295 | L11: 0.3131313131
A12: 35 | B12: 1.06557377 | C12: 1.131313131 | J12: 35 | K12: 0.3049180328 | L12: 0.3131313131
A13: 40 | B13: 1.12704918 | C13: 1.181818182 | J13: 40 | K13: 0.3213114754 | L13: 0.3333333333
A14: 43 | B14: 1.18852459 | C14: 1.232323232 | J14: 43 | K14: 0.3393442623 | L14: 0.3535353535
A15: 45 | B15: 1.204918033 | C15: 1.242424242 | J15: 45 | K15: 0.3442622951 | L15: 0.3535353535
A16: 50 | B16: 1.274590164 | C16: 1.292929293 | J16: 50 | K16: 0.3639344262 | L16: 0.3737373737
A17: 55 | B17: 1.344262295 | C17: 1.343434343 | J17: 55 | K17: 0.3836065574 | L17: 0.3838383838
A18: 60 | B18: 1.413934426 | C18: 1.393939394 | J18: 60 | K18: 0.4040983607 | L18: 0.3939393939
A21: Temperature
A22: -23 | B22: - | C22: - | J22: -23 | K22: - | L22: - | R22: =IF(AND(K22<>"-",K21="-",ISNUMBER(K23)),K22,"-") -> - | S22: =IF(AND(L22<>"-",L21="-",ISNUMBER(L23)),L22,"-") -> -
A23: -18 | B23: - | C23: - | J23: -18 | K23: - | L23: - | R23: =IF(AND(K23<>"-",K22="-",ISNUMBER(K24)),K23,"-") -> - | S23: =IF(AND(L23<>"-",L22="-",ISNUMBER(L24)),L23,"-") -> -
A24: -13 | B24: - | C24: - | J24: -13 | K24: - | L24: - | R24: - | S24: -
A25: -8 | B25: - | C25: - | E25: =(($E$2-INDEX('HP Calcs'!$A$4:$A$20,MATCH($E$2,'HP Calcs'!$A$4:$A$20,1)))*(INDEX(K22:K38,MATCH($E$2,'HP Calcs'!$A$4:$A$20,1)+1)-INDEX(K22:K38,MATCH($E$2,'HP Calcs'!$A$4:$A$20,1))))/(INDEX('HP Calcs'!$A$4:$A$20,MATCH($E$2,'HP Calcs'!$A$4:$A$20,1)+1)-INDEX('HP Calcs'!$A$4:$A$20,MATCH($E$2,'HP Calcs'!$A$4:$A$20,1)))+INDEX(K22:K38,MATCH($E$2,'HP Calcs'!$A$4:$A$20,1)) -> 0.1568688525 | F25: =(($E$2-INDEX('HP Calcs'!$A$4:$A$20,MATCH($E$2,'HP Calcs'!$A$4:$A$20,1)))*(INDEX(L22:L38,MATCH($E$2,'HP Calcs'!$A$4:$A$20,1)+1)-INDEX(L22:L38,MATCH($E$2,'HP Calcs'!$A$4:$A$20,1))))/(INDEX('HP Calcs'!$A$4:$A$20,MATCH($E$2,'HP Calcs'!$A$4:$A$20,1)+1)-INDEX('HP Calcs'!$A$4:$A$20,MATCH($E$2,'HP Calcs'!$A$4:$A$20,1)))+INDEX(L22:L38,MATCH($E$2,'HP Calcs'!$A$4:$A$20,1)) -> 0.2185858586 | J25: -8 | K25: - | L25: - | R25: - | S25: -
A26: -3 | B26: =((A26-A4)*(B5-B4))/(A5-A4)+B4 -> 0.5036885246 | C26: =((B26-B4)*(C5-C4))/(B5-B4)+C4 -> 0.7222222222 | J26: -3 | K26: 0.144057377 | L26: 0.2070707071 | R26: 0.144057377 | S26: 0.2070707071
A27: 2 | B27: 0.5768852459 | C27: =((B27-B5)*(C6-C5))/(B6-B5)+C5 -> 0.7919191919 | D27: HP1 | E27: =IF(OR('Step 5 Identify & Select ASHPs'!$B$37="No",'Step 5 Identify & Select ASHPs'!$B$37="Not Sure"),0,IF(P30<0,INDEX(K22:K38,MATCH(MIN(R22:R38),K22:K38)),'HP Calcs'!$A$4*P30+P31)) -> 0.101352459 | F27: =IF(OR('Step 5 Identify & Select ASHPs'!$B$37="No",'Step 5 Identify & Select ASHPs'!$B$37="Not Sure"),0,IF(Q30<0,INDEX(L22:L38,MATCH(MIN(S22:S38),L22:L38)),'HP Calcs'!$A$4*Q30+Q31)) -> 0.1686868687 | J27: 2 | K27: 0.1654098361 | L27: 0.2262626263 | P27: =INDEX(J22:J38,MATCH(MIN(R22:R38),R22:R38)) -> -3 | Q27: =INDEX(J22:J38,MATCH(MIN(S22:S38),S22:S38)) -> -3 | R27: - | S27: -
A28: 7 | B28: 0.6475409836 | C28: =((B28-B6)*(C7-C6))/(B7-B6)+C6 -> 0.8484848485 | D28: HP2 | E28: =IF(OR('Step 5 Identify & Select ASHPs'!$B$37="No",'Step 5 Identify & Select ASHPs'!$B$37="Not Sure"),0,IF(P30<0,INDEX(K22:K38,MATCH(MIN(R22:R38),K22:K38)),'HP Calcs'!$A$26*P30+P31)) -> 0.101352459 | F28: =IF(OR('Step 5 Identify & Select ASHPs'!$B$37="No",'Step 5 Identify & Select ASHPs'!$B$37="Not Sure"),0,IF(Q30<0,INDEX(L22:L38,MATCH(MIN(S22:S38),L22:L38)),'HP Calcs'!$A$26*Q30+Q31)) -> 0.1686868687 | J28: 7 | K28: 0.1850819672 | L28: 0.2404040404 | P28: =INDEX(J22:J38,MATCH(MIN(R22:R38),R22:R38)+1) -> 2 | Q28: =INDEX(J22:J38,MATCH(MIN(S22:S38),S22:S38)+1) -> 2 | R28: - | S28: -
A29: 12 | B29: 0.7295081967 | C29: =((B29-B7)*(C8-C7))/(B8-B7)+C7 -> 0.898989899 | D29: HP3 | E29: =IF(OR('Step 5 Identify & Select ASHPs'!$B$37="No",'Step 5 Identify & Select ASHPs'!$B$37="Not Sure"),0,IF(P30<0,INDEX(K22:K38,MATCH(MIN(R22:R38),K22:K38)),'HP Calcs'!$A$48*P30+P31)) -> 0.101352459 | F29: =IF(OR('Step 5 Identify & Select ASHPs'!$B$37="No",'Step 5 Identify & Select ASHPs'!$B$37="Not Sure"),0,IF(Q30<0,INDEX(L22:L38,MATCH(MIN(S22:S38),L22:L38)),'HP Calcs'!$A$48*Q30+Q31)) -> 0.1686868687 | J29: 12 | K29: 0.2078688525 | L29: 0.2525252525 | R29: - | S29: -
A30: 17 | B30: 0.8081967213 | C30: =((B30-B8)*(C9-C8))/(B9-B8)+C8 -> 0.9494949495 | D30: HP4 | E30: =IF(OR('Step 5 Identify & Select ASHPs'!$B$37="No",'Step 5 Identify & Select ASHPs'!$B$37="Not Sure"),0,IF(P30<0,INDEX(K22:K38,MATCH(MIN(R22:R38),K22:K38)),'HP Calcs'!$A$70*P30+P31)) -> 0.101352459 | F30: =IF(OR('Step 5 Identify & Select ASHPs'!$B$37="No",'Step 5 Identify & Select ASHPs'!$B$37="Not Sure"),0,IF(Q30<0,INDEX(L22:L38,MATCH(MIN(S22:S38),L22:L38)),'HP Calcs'!$A$70*Q30+Q31)) -> 0.1686868687 | J30: 17 | K30: 0.2309836066 | L30: 0.2646464646 | P30: =((INDEX(K22:K38,MATCH(MIN(R22:R38),R22:R38)+1))-INDEX(K22:K38,MATCH(MIN(R22:R38),R22:R38)))/(P28-P27) -> 0.004270491803 | Q30: =((INDEX(L22:L38,MATCH(MIN(S22:S38),S22:S38)+1))-INDEX(L22:L38,MATCH(MIN(S22:S38),S22:S38)))/(Q28-Q27) -> 0.003838383838 | R30: - | S30: -
A31: 22 | B31: 0.8819672131 | C31: =((B31-B9)*(C10-C9))/(B10-B9)+C9 -> 1 | J31: 22 | K31: =((J31-J9)*(K10-K9))/(J10-J9)+K9 -> 0.2524590164 | L31: 0.2868686869 | P31: =INDEX(K22:K38,MATCH(MIN(R22:R38),R22:R38))-P30*P27 -> 0.1568688525 | Q31: =INDEX(L22:L38,MATCH(MIN(S22:S38),S22:S38))-Q30*Q27 -> 0.2185858586 | R31: - | S31: -
A32: 27 | B32: 0.9540983607 | C32: =((B32-B10)*(C11-C10))/(B11-B10)+C10 -> 1.050505051 | J32: 27 | K32: 0.2726229508 | L32: 0.301010101 | R32: - | S32: -
A33: 32 | B33: 1.023770492 | C33: =((B33-B11)*(C12-C11))/(B12-B11)+C11 -> 1.101010101 | J33: 32 | K33: 0.2926229508 | L33: 0.3131313131 | R33: - | S33: -
A34: 37 | B34: 1.090163934 | C34: =((B34-B12)*(C13-C12))/(B13-B12)+C12 -> 1.151515152 | J34: 37 | K34: 0.3114754098 | L34: 0.3212121212 | R34: - | S34: -
A35: 42 | B35: 1.168032787 | C35: =((B35-B13)*(C14-C13))/(B14-B13)+C13 -> 1.215488215 | J35: 42 | K35: 0.3333333333 | L35: 0.3468013468 | R35: - | S35: -
A36: 47 | B36: =((A36-A15)*(B16-B15))/(A16-A15)+B15 -> 1.232786885 | C36: =((B36-B15)*(C16-C15))/(B16-B15)+C15 -> 1.262626263 | J36: 47 | K36: 0.3521311475 | L36: 0.3616161616 | R36: - | S36: -
A37: 52 | B37: =((A37-A16)*(B17-B16))/(A17-A16)+B16 -> 1.302459016 | C37: =((B37-B16)*(C17-C16))/(B17-B16)+C16 -> 1.313131313 | J37: 52 | K37: 0.3718032787 | L37: 0.3777777778 | R37: - | S37: -
A38: 57 | B38: =((A38-A17)*(B18-B17))/(A18-A17)+B17 -> 1.372131148 | C38: =((B38-B17)*(C18-C17))/(B18-B17)+C17 -> 1.363636364 | J38: 57 | K38: 0.3918032787 | L38: 0.3878787879 | R38: - | S38: -
A43: Max, Cool | J43: Min, Heat
A44: Temperature | B44: Normalized Capacity | C44: Normalized Power | J44: Temperature | K44: Normalized Capacity | L44: Normalized Power
A45: 70 | B45: 1.311666667 | C45: 0.9173553719 | J45: 70 | K45: 0.3883333333 | L45: 0.2809917355
A46: 75 | B46: 1.245833333 | C46: 0.958677686 | J46: 75 | K46: 0.3758333333 | L46: 0.2892561983
A47: 80 | B47: 1.2 | C47: 1.008264463 | J47: 80 | K47: 0.3633333333 | L47: 0.305785124
A48: 85 | B48: 1.160833333 | C48: 1.05785124 | J48: 85 | K48: 0.35 | L48: 0.3140495868
A49: 90 | B49: 1.1175 | C49: 1.099173554 | J49: 90 | K49: 0.3366666667 | L49: 0.3305785124
A50: 95 | B50: 1.074166667 | C50: 1.140495868 | J50: 95 | K50: 0.325 | L50: 0.3388429752
A51: 100 | B51: 1.0375 | C51: 1.181818182 | J51: 100 | K51: 0.3125 | L51: 0.3553719008
A52: 105 | B52: 0.9991666667 | C52: 1.214876033 | J52: 105 | K52: 0.3008333333 | L52: 0.3719008264
A53: 110 | B53: 0.9591666667 | C53: 1.239669421 | J53: 110 | K53: 0.2891666667 | L53: 0.3719008264
A54: 115 | B54: 0.9183333333 | C54: 1.26446281 | J54: 115 | K54: 0.2766666667 | L54: 0.3801652893
A57: Temperature | J57: Temperature
A58: 72 | B58: =((A58-A45)*(B46-B45))/(A46-A45)+B45 -> 1.285333333 | C58: =((B58-B45)*(C46-C45))/(B46-B45)+C45 -> 0.9338842975 | J58: 72 | K58: 0.3833333333 | L58: 0.2842975207
A59: 77 | B59: 1.2275 | C59: =((B59-B46)*(C47-C46))/(B47-B46)+C46 -> 0.9785123967 | J59: 77 | K59: 0.3708333333 | L59: 0.2958677686
A60: 82 | B60: 1.184333333 | C60: =((B60-B47)*(C48-C47))/(B48-B47)+C47 -> 1.028099174 | E60: =(($F$2-INDEX('HP Calcs'!$H$5:$H$13,MATCH($F$2,'HP Calcs'!$H$5:$H$13,1)))*(INDEX(K58:K66,MATCH($F$2,'HP Calcs'!$H$5:$H$13,1)+1)-INDEX(K58:K66,MATCH($F$2,'HP Calcs'!$H$5:$H$13,1))))/(INDEX('HP Calcs'!$H$5:$H$13,MATCH($F$2,'HP Calcs'!$H$5:$H$13,1)+1)-INDEX('HP Calcs'!$H$5:$H$13,MATCH($F$2,'HP Calcs'!$H$5:$H$13,1)))+INDEX(K58:K66,MATCH($F$2,'HP Calcs'!$H$5:$H$13,1)) -> 0.3421333333 | F60: =(($F$2-INDEX('HP Calcs'!$H$5:$H$13,MATCH($F$2,'HP Calcs'!$H$5:$H$13,1)))*(INDEX(L58:L66,MATCH($F$2,'HP Calcs'!$H$5:$H$13,1)+1)-INDEX(L58:L66,MATCH($F$2,'HP Calcs'!$H$5:$H$13,1))))/(INDEX('HP Calcs'!$H$5:$H$13,MATCH($F$2,'HP Calcs'!$H$5:$H$13,1)+1)-INDEX('HP Calcs'!$H$5:$H$13,MATCH($F$2,'HP Calcs'!$H$5:$H$13,1)))+INDEX(L58:L66,MATCH($F$2,'HP Calcs'!$H$5:$H$13,1)) -> 0.3233057851 | J60: 82 | K60: 0.358 | L60: 0.3090909091
A61: 87 | B61: 1.1435 | C61: =((B61-B48)*(C49-C48))/(B49-B48)+C48 -> 1.074380165 | J61: 87 | K61: 0.3446666667 | L61: 0.320661157
A62: 92 | B62: 1.100166667 | C62: =((B62-B49)*(C50-C49))/(B50-B49)+C49 -> 1.115702479 | J62: 92 | K62: 0.332 | L62: 0.3338842975
A63: 97 | B63: 1.0595 | C63: =((B63-B50)*(C51-C50))/(B51-B50)+C50 -> 1.157024793 | J63: 97 | K63: 0.32 | L63: 0.3454545455
A64: 102 | B64: 1.022166667 | C64: =((B64-B51)*(C52-C51))/(B52-B51)+C51 -> 1.195041322 | J64: 102 | K64: 0.3078333333 | L64: 0.3619834711
A65: 107 | B65: 0.9831666667 | C65: =((B65-B52)*(C53-C52))/(B53-B52)+C52 -> 1.224793388 | J65: 107 | K65: 0.2961666667 | L65: 0.3719008264
A66: 112 | B66: 0.9428333333 | C66: =((B66-B53)*(C54-C53))/(B54-B53)+C53 -> 1.249586777 | J66: 112 | K66: 0.2841666667 | L66: 0.3752066116
A69: Ductless, Single Split, Cold Climate | D69: MUZ-FH12HN
A70: MAX, Heat | J70: Min, Heat
A71: Temperature | B71: Normalized Capacity | C71: Normalized Power | J71: Temperature | K71: Normalized Capacity | L71: Normalized Power
A72: -13 | B72: 0.7573529412 | C72: 1.684210526 | J72: -13 | K72: 0.1286764706 | L72: 0.2842105263
A73: -10 | B73: 0.8161764706 | C73: 1.747368421 | J73: -10 | K73: 0.1389705882 | L73: 0.2947368421
A74: -4 | B74: 0.875 | C74: 1.8 | J74: -4 | K74: 0.1485294118 | L74: 0.3052631579
A75: 0 | B75: 0.9558823529 | C75: 1.884210526 | J75: 0 | K75: 0.1625 | L75: 0.3157894737
A76: 5 | B76: 1.029411765 | C76: 1.957894737 | J76: 5 | K76: 0.175 | L76: 0.3263157895
A77: 10 | B77: 1.102941176 | C77: 2.042105263 | J77: 10 | K77: 0.1875 | L77: 0.3473684211
A78: 15 | B78: 1.176470588 | C78: 2.115789474 | J78: 15 | K78: 0.2007352941 | L78: 0.3684210526
A79: 20 | B79: 1.253676471 | C79: 2.189473684 | J79: 20 | K79: 0.2139705882 | L79: 0.3684210526
A80: 25 | B80: 1.330882353 | C80: 2.263157895 | J80: 25 | K80: 0.2264705882 | L80: 0.3894736842
A81: 30 | B81: 1.400735294 | C81: 2.336842105 | J81: 30 | K81: 0.2389705882 | L81: 0.4
A82: 35 | B82: 1.470588235 | C82: 2.410526316 | J82: 35 | K82: 0.2507352941 | L82: 0.4105263158
A83: 40 | B83: 1.507352941 | C83: 2.421052632 | J83: 40 | K83: 0.2566176471 | L83: 0.4105263158
A84: 43 | B84: 1.544117647 | C84: 2.421052632 | J84: 43 | K84: 0.2632352941 | L84: 0.4105263158
A85: 45 | B85: 1.573529412 | C85: 2.473684211 | J85: 45 | K85: 0.2676470588 | L85: 0.4210526316
A86: 50 | B86: 1.617647059 | C86: 2.473684211 | J86: 50 | K86: 0.275 | L86: 0.4210526316
A87: 55 | B87: 1.661764706 | C87: 2.473684211 | J87: 55 | K87: 0.2830882353 | L87: 0.4210526316
A88: 60 | B88: 1.702205882 | C88: 2.473684211 | J88: 60 | K88: 0.2897058824 | L88: 0.4210526316
A90: Temperature | J90: Temperature
A91: -23 | B91: - | C91: - | J91: -23 | K91: - | L91: - | R91: =IF(AND(K91<>"-",K90="-",ISNUMBER(K92)),K91,"-") -> - | S91: =IF(AND(L91<>"-",L90="-",ISNUMBER(L92)),L91,"-") -> -
A92: -18 | B92: - | C92: - | J92: -18 | K92: - | L92: - | R92: =IF(AND(K92<>"-",K91="-",ISNUMBER(K93)),K92,"-") -> - | S92: =IF(AND(L92<>"-",L91="-",ISNUMBER(L93)),L92,"-") -> -
A93: -13 | B93: =B72 -> 0.7573529412 | C93: =C72 -> 1.684210526 | J93: -13 | K93: 0.1286764706 | L93: 0.2842105263 | R93: 0.1286764706 | S93: 0.2842105263
A94: -8 | B94: =((A94-A73)*(B74-B73))/(A74-A73)+B73 -> 0.8357843137 | C94: =((B94-B73)*(C74-C73))/(B74-B73)+C73 -> 1.764912281 | E94: =(($E$2-INDEX('HP Calcs'!$A$4:$A$20,MATCH($E$2,'HP Calcs'!$A$4:$A$20,1)))*(INDEX(K91:K107,MATCH($E$2,'HP Calcs'!$A$4:$A$20,1)+1)-INDEX(K91:K107,MATCH($E$2,'HP Calcs'!$A$4:$A$20,1))))/(INDEX('HP Calcs'!$A$4:$A$20,MATCH($E$2,'HP Calcs'!$A$4:$A$20,1)+1)-INDEX('HP Calcs'!$A$4:$A$20,MATCH($E$2,'HP Calcs'!$A$4:$A$20,1)))+INDEX(K91:K107,MATCH($E$2,'HP Calcs'!$A$4:$A$20,1)) -> 0.1613088235 | F94: =(($E$2-INDEX('HP Calcs'!$A$4:$A$20,MATCH($E$2,'HP Calcs'!$A$4:$A$20,1)))*(INDEX(L91:L107,MATCH($E$2,'HP Calcs'!$A$4:$A$20,1)+1)-INDEX(L91:L107,MATCH($E$2,'HP Calcs'!$A$4:$A$20,1))))/(INDEX('HP Calcs'!$A$4:$A$20,MATCH($E$2,'HP Calcs'!$A$4:$A$20,1)+1)-INDEX('HP Calcs'!$A$4:$A$20,MATCH($E$2,'HP Calcs'!$A$4:$A$20,1)))+INDEX(L91:L107,MATCH($E$2,'HP Calcs'!$A$4:$A$20,1)) -> 0.3151578947 | J94: -8 | K94: 0.1421568627 | L94: 0.298245614 | R94: - | S94: -
A95: -3 | B95: 0.8952205882 | C95: =((B95-B74)*(C75-C74))/(B75-B74)+C74 -> 1.821052632 | J95: -3 | K95: 0.1520220588 | L95: 0.3078947368 | R95: - | S95: -
A96: 2 | B96: 0.9852941176 | C96: =((B96-B75)*(C76-C75))/(B76-B75)+C75 -> 1.913684211 | D96: HP1 | E96: =IF(OR('Step 5 Identify & Select ASHPs'!$B$37="No",'Step 5 Identify & Select ASHPs'!$B$37="Not Sure"),0,IF(P99<0,INDEX(K91:K107,MATCH(MIN(R91:R107),K91:K107)),'HP Calcs'!$A$4*P99+P100)) -> 0.1286764706 | F96: =IF(OR('Step 5 Identify & Select ASHPs'!$B$37="No",'Step 5 Identify & Select ASHPs'!$B$37="Not Sure"),0,IF(Q99<0,INDEX(L91:L107,MATCH(MIN(S91:S107),L91:L107)),'HP Calcs'!$A$4*Q99+Q100)) -> 0.2842105263 | J96: 2 | K96: 0.1675 | L96: 0.32 | P96: =INDEX(J91:J107,MATCH(MIN(R91:R107),R91:R107)) -> -13 | Q96: =INDEX(J91:J107,MATCH(MIN(S91:S107),S91:S107)) -> -13 | R96: - | S96: -
A97: 7 | B97: 1.058823529 | C97: =((B97-B76)*(C77-C76))/(B77-B76)+C76 -> 1.991578947 | D97: HP2 | E97: =IF(OR('Step 5 Identify & Select ASHPs'!$B$37="No",'Step 5 Identify & Select ASHPs'!$B$37="Not Sure"),0,IF(P99<0,INDEX(K91:K107,MATCH(MIN(R91:R107),K91:K107)),'HP Calcs'!$A$26*P99+P100)) -> 0.1286764706 | F97: =IF(OR('Step 5 Identify & Select ASHPs'!$B$37="No",'Step 5 Identify & Select ASHPs'!$B$37="Not Sure"),0,IF(Q99<0,INDEX(L91:L107,MATCH(MIN(S91:S107),L91:L107)),'HP Calcs'!$A$26*Q99+Q100)) -> 0.2842105263 | J97: 7 | K97: 0.18 | L97: 0.3347368421 | P97: =INDEX(J91:J107,MATCH(MIN(R91:R107),R91:R107)+1) -> -8 | Q97: =INDEX(J91:J107,MATCH(MIN(S91:S107),S91:S107)+1) -> -8 | R97: - | S97: -
A98: 12 | B98: 1.132352941 | C98: =((B98-B77)*(C78-C77))/(B78-B77)+C77 -> 2.071578947 | D98: HP3 | E98: =IF(OR('Step 5 Identify & Select ASHPs'!$B$37="No",'Step 5 Identify & Select ASHPs'!$B$37="Not Sure"),0,IF(P99<0,INDEX(K91:K107,MATCH(MIN(R91:R107),K91:K107)),'HP Calcs'!$A$48*P99+P100)) -> 0.1286764706 | F98: =IF(OR('Step 5 Identify & Select ASHPs'!$B$37="No",'Step 5 Identify & Select ASHPs'!$B$37="Not Sure"),0,IF(Q99<0,INDEX(L91:L107,MATCH(MIN(S91:S107),L91:L107)),'HP Calcs'!$A$48*Q99+Q100)) -> 0.2842105263 | J98: 12 | K98: 0.1927941176 | L98: 0.3557894737 | R98: - | S98: -
A99: 17 | B99: 1.207352941 | C99: =((B99-B78)*(C79-C78))/(B79-B78)+C78 -> 2.145263158 | D99: HP4 | E99: =IF(OR('Step 5 Identify & Select ASHPs'!$B$37="No",'Step 5 Identify & Select ASHPs'!$B$37="Not Sure"),0,IF(P99<0,INDEX(K91:K107,MATCH(MIN(R91:R107),K91:K107)),'HP Calcs'!$A$70*P99+P100)) -> 0.1286764706 | F99: =IF(OR('Step 5 Identify & Select ASHPs'!$B$37="No",'Step 5 Identify & Select ASHPs'!$B$37="Not Sure"),0,IF(Q99<0,INDEX(L91:L107,MATCH(MIN(S91:S107),L91:L107)),'HP Calcs'!$A$70*Q99+Q100)) -> 0.2842105263 | J99: 17 | K99: 0.2060294118 | L99: 0.3684210526 | P99: =((INDEX(K91:K107,MATCH(MIN(R91:R107),R91:R107)+1))-INDEX(K91:K107,MATCH(MIN(R91:R107),R91:R107)))/(P97-P96) -> 0.002696078431 | Q99: =((INDEX(L91:L107,MATCH(MIN(S91:S107),S91:S107)+1))-INDEX(L91:L107,MATCH(MIN(S91:S107),S91:S107)))/(Q97-Q96) -> 0.002807017544 | R99: - | S99: -
A100: 22 | B100: 1.284558824 | C100: =((B100-B79)*(C80-C79))/(B80-B79)+C79 -> 2.218947368 | J100: 22 | K100: 0.2189705882 | L100: 0.3768421053 | P100: =INDEX(K91:K107,MATCH(MIN(R91:R107),R91:R107))-P99*P96 -> 0.1637254902 | Q100: =INDEX(L91:L107,MATCH(MIN(S91:S107),S91:S107))-Q99*Q96 -> 0.3207017544 | R100: - | S100: -
A101: 27 | B101: 1.358823529 | C101: =((B101-B80)*(C81-C80))/(B81-B80)+C80 -> 2.292631579 | J101: 27 | K101: 0.2314705882 | L101: 0.3936842105 | R101: - | S101: -
A102: 32 | B102: 1.428676471 | C102: =((B102-B81)*(C82-C81))/(B82-B81)+C81 -> 2.366315789 | J102: 32 | K102: 0.2436764706 | L102: 0.4042105263 | R102: - | S102: -
A103: 37 | B103: 1.485294118 | C103: =((B103-B82)*(C83-C82))/(B83-B82)+C82 -> 2.414736842 | J103: 37 | K103: 0.2530882353 | L103: 0.4105263158 | R103: - | S103: -
A104: 42 | B104: 1.531862745 | C104: =((B104-B83)*(C84-C83))/(B84-B83)+C83 -> 2.421052632 | J104: 42 | K104: 0.2610294118 | L104: 0.4105263158 | R104: - | S104: -
A105: 47 | B105: =((A105-A85)*(B86-B85))/(A86-A85)+B85 -> 1.591176471 | C105: =((B105-B85)*(C86-C85))/(B86-B85)+C85 -> 2.473684211 | J105: 47 | K105: 0.2705882353 | L105: 0.4210526316 | R105: - | S105: -
A106: 52 | B106: =((A106-A86)*(B87-B86))/(A87-A86)+B86 -> 1.635294118 | C106: =((B106-B86)*(C87-C86))/(B87-B86)+C86 -> 2.473684211 | J106: 52 | K106: 0.2782352941 | L106: 0.4210526316 | R106: - | S106: -
A107: 57 | B107: =((A107-A87)*(B88-B87))/(A88-A87)+B87 -> 1.677941176 | C107: =((B107-B87)*(C88-C87))/(B88-B87)+C87 -> 2.473684211 | J107: 57 | K107: 0.2857352941 | L107: 0.4210526316 | R107: - | S107: -
A110: Max, Cool | J110: Min, Heat
A111: Temperature | B111: Normalized Capacity | C111: Normalized Power | J111: Temperature | K111: Normalized Capacity | L111: Normalized Power
A112: 70 | B112: 1.435833333 | C112: 1.732142857 | J112: 70 | K112: 0.2466666667 | L112: 0.2857142857
A113: 75 | B113: 1.388333333 | C113: 1.821428571 | J113: 75 | K113: 0.2391666667 | L113: 0.3035714286
A114: 80 | B114: 1.340833333 | C114: 1.910714286 | J114: 80 | K114: 0.23 | L114: 0.3214285714
A115: 85 | B115: 1.2925 | C115: 1.982142857 | J115: 85 | K115: 0.2225 | L115: 0.3214285714
A116: 90 | B116: 1.245 | C116: 2.089285714 | J116: 90 | K116: 0.2141666667 | L116: 0.3392857143
A117: 95 | B117: 1.196666667 | C117: 2.160714286 | J117: 95 | K117: 0.2058333333 | L117: 0.3392857143
A118: 100 | B118: 1.155 | C118: 2.232142857 | J118: 100 | K118: 0.1983333333 | L118: 0.375
A119: 105 | B119: 1.113333333 | C119: 2.285714286 | J119: 105 | K119: 0.1916666667 | L119: 0.375
A120: 110 | B120: 1.068333333 | C120: 2.339285714 | J120: 110 | K120: 0.1841666667 | L120: 0.375
A121: 115 | B121: 1.023333333 | C121: 2.410714286 | J121: 115 | K121: 0.1766666667 | L121: 0.3928571429
A124: Temperature | J124: Temperature
A125: 72 | B125: =((A125-A112)*(B113-B112))/(A113-A112)+B112 -> 1.416833333 | C125: =((B125-B112)*(C113-C112))/(B113-B112)+C112 -> 1.767857143 | J125: 72 | K125: 0.2436666667 | L125: 0.2928571429
A126: 77 | B126: 1.369333333 | C126: =((B126-B113)*(C114-C113))/(B114-B113)+C113 -> 1.857142857 | J126: 77 | K126: 0.2355 | L126: 0.3107142857
A127: 82 | B127: 1.3215 | C127: =((B127-B114)*(C115-C114))/(B115-B114)+C114 -> 1.939285714 | E127: =(($F$2-INDEX('HP Calcs'!$H$5:$H$13,MATCH($F$2,'HP Calcs'!$H$5:$H$13,1)))*(INDEX(K125:K133,MATCH($F$2,'HP Calcs'!$H$5:$H$13,1)+1)-INDEX(K125:K133,MATCH($F$2,'HP Calcs'!$H$5:$H$13,1))))/(INDEX('HP Calcs'!$H$5:$H$13,MATCH($F$2,'HP Calcs'!$H$5:$H$13,1)+1)-INDEX('HP Calcs'!$H$5:$H$13,MATCH($F$2,'HP Calcs'!$H$5:$H$13,1)))+INDEX(K125:K133,MATCH($F$2,'HP Calcs'!$H$5:$H$13,1)) -> 0.2175 | F127: =(($F$2-INDEX('HP Calcs'!$H$5:$H$13,MATCH($F$2,'HP Calcs'!$H$5:$H$13,1)))*(INDEX(L125:L133,MATCH($F$2,'HP Calcs'!$H$5:$H$13,1)+1)-INDEX(L125:L133,MATCH($F$2,'HP Calcs'!$H$5:$H$13,1))))/(INDEX('HP Calcs'!$H$5:$H$13,MATCH($F$2,'HP Calcs'!$H$5:$H$13,1)+1)-INDEX('HP Calcs'!$H$5:$H$13,MATCH($F$2,'HP Calcs'!$H$5:$H$13,1)))+INDEX(L125:L133,MATCH($F$2,'HP Calcs'!$H$5:$H$13,1)) -> 0.3307142857 | J127: 82 | K127: 0.227 | L127: 0.3214285714
A128: 87 | B128: 1.2735 | C128: =((B128-B115)*(C116-C115))/(B116-B115)+C115 -> 2.025 | J128: 87 | K128: 0.2191666667 | L128: 0.3285714286
A129: 92 | B129: 1.225666667 | C129: =((B129-B116)*(C117-C116))/(B117-B116)+C116 -> 2.117857143 | J129: 92 | K129: 0.2108333333 | L129: 0.3392857143
A130: 97 | B130: 1.18 | C130: =((B130-B117)*(C118-C117))/(B118-B117)+C117 -> 2.189285714 | J130: 97 | K130: 0.2028333333 | L130: 0.3535714286
A131: 102 | B131: 1.138333333 | C131: =((B131-B118)*(C119-C118))/(B119-B118)+C118 -> 2.253571429 | J131: 102 | K131: 0.1956666667 | L131: 0.375
A132: 107 | B132: 1.095333333 | C132: =((B132-B119)*(C120-C119))/(B120-B119)+C119 -> 2.307142857 | J132: 107 | K132: 0.1886666667 | L132: 0.375
A133: 112 | B133: 1.050333333 | C133: =((B133-B120)*(C121-C120))/(B121-B120)+C120 -> 2.367857143 | J133: 112 | K133: 0.1811666667 | L133: 0.3821428571
A139: NOTES
A140: * PLEASE ENSURE WE ARE MULTIPLIYING BY THE DROPER HP FOR CAP, POWER, AND COP
A141: * LINKS IN THIS SPREADSHEET ARE PURELY TO ILLUSTRATE

Sheet HP Calcs (hidden)
A1: HP1
A2: =IF('Intro & Unit Options'!$B$12="Imperial","Heating Load (BTU/h)","Heating Load (kW)") -> Heating Load (BTU/h) | S2: BPT Calculations | AP2: =NA() -> 
A3: =IF('Intro & Unit Options'!$B$12="Imperial","Outdoor Temperature (°F)","Outdoor Temperature (°C)") -> Outdoor Temperature (°F) | B3: Normalized Capacity | C3: Normalized Power | D3: Actual Capacity | E3: Actual Power | F3: Actual COP | H3: =IF('Intro & Unit Options'!$B$12="Imperial","Cooling Load (BTU/h)","Cooling Load (kW)") -> Cooling Load (BTU/h) | S3: Heat Load line | X3: BPT Ttemperature | Z3: Fraction of heating above BPT | AB3: High load line | AD3: HIGH | AG3: BPT Ttemperature | AI3: Fraction of heating above BPT | AJ3: HIGH/LOW stage calculations | AP3: =NA() -> 
A4: ='Step 5 Identify & Select ASHPs'!B38 -> -13 | B4: =IF(A4='Load %s'!B8,"-",IF(OR('Step 5 Identify & Select ASHPs'!B37="No",'Step 5 Identify & Select ASHPs'!B37="Not Sure"),IF('Step 5 Identify & Select ASHPs'!$B$26="Single Speed",'Ducted Performance Tables'!B4,IF('Step 5 Identify & Select ASHPs'!$B$26="Two-Stage",'Ducted Performance Tables'!B43,IF('Step 5 Identify & Select ASHPs'!$B$26="Variable",'Ducted Performance Tables'!B96,IF(AND('Step 5 Identify & Select ASHPs'!$B$26="Regular Variable",'Step 5 Identify & Select ASHPs'!$B$25="Single Split Ductless"),'Ductless Single Per Table'!B22,IF(AND('Step 5 Identify & Select ASHPs'!$B$26="Cold Climate Variable",'Step 5 Identify & Select ASHPs'!$B$25="Single Split Ductless"),'Ductless Single Per Table'!B91,IF(AND('Step 5 Identify & Select ASHPs'!$B$26="Regular Variable",'Step 5 Identify & Select ASHPs'!$B$25="Multi-Split Ductless"),'Ductless Multi-split'!B45,IF(AND('Step 5 Identify & Select ASHPs'!$B$26="Cold Climate Variable",'Step 5 Identify & Select ASHPs'!$B$25="Multi-Split Ductless"),'Ductless Multi-split'!B118,""))))))),IF(AND(B33="Yes",A4>='Control Strategy Calcs'!U4),"-",L15))) -> 0.2066666667 | C4: =IF(OR('Step 5 Identify & Select ASHPs'!B37="No",'Step 5 Identify & Select ASHPs'!B37="Not Sure"),IF('Step 5 Identify & Select ASHPs'!$B$26="Single Speed",'Ducted Performance Tables'!C4,IF('Step 5 Identify & Select ASHPs'!$B$26="Two-Stage",'Ducted Performance Tables'!C43,IF('Step 5 Identify & Select ASHPs'!$B$26="Variable",'Ducted Performance Tables'!C96,IF(AND('Step 5 Identify & Select ASHPs'!$B$26="Regular Variable",'Step 5 Identify & Select ASHPs'!$B$25="Single Split Ductless"),'Ductless Single Per Table'!C22,IF(AND('Step 5 Identify & Select ASHPs'!$B$26="Cold Climate Variable",'Step 5 Identify & Select ASHPs'!$B$25="Single Split Ductless"),'Ductless Single Per Table'!C91,IF(AND('Step 5 Identify & Select ASHPs'!$B$26="Regular Variable",'Step 5 Identify & Select ASHPs'!$B$25="Multi-Split Ductless"),'Ductless Multi-split'!C45,IF(AND('Step 5 Identify & Select ASHPs'!$B$26="Cold Climate Variable",'Step 5 Identify & Select ASHPs'!$B$25="Multi-Split Ductless"),'Ductless Multi-split'!C118,""))))))),$M$15) -> 0.7627118644 | D4: =IFERROR(B4*IF('Step 5 Identify & Select ASHPs'!$B$27="Low Stage",$AJ$7/'HP Calcs'!$B$18,IF('Step 5 Identify & Select ASHPs'!$B$27="High Stage",$AJ$7/'HP Calcs'!$B$18,$AJ$7)),NA()) -> 2480 | E4: =IFERROR(C4*IF('Step 5 Identify & Select ASHPs'!$B$27="Low Stage",$AK$7/$C$18,IF('Step 5 Identify & Select ASHPs'!$B$27="High Stage",$AK$7/$C$18,$AK$7)),NA()) -> 1.525423729 | F4: =(D4/IF('Intro & Unit Options'!$B$12="Metric",1,3412))/E4 -> 0.4764882115 | H4: =IF('Intro & Unit Options'!$B$12="Imperial","Outdoor Temperature (°F)","Outdoor Temperature (°C)") -> Outdoor Temperature (°F) | K4: Actual Capacity | L4: Actual Power | M4: Actual COP | P4: =IF(AND(Q4<>"-",Q3="-",ISNUMBER(Q5)),Q4,"-") -> - | Q4: =IF(AND('Step 5 Identify & Select ASHPs'!$G$37="Yes",'Step 5 Identify & Select ASHPs'!$B$38>A4),"-",IF('Step 5 Identify & Select ASHPs'!$B$27="High Stage",IF('Step 5 Identify & Select ASHPs'!$B$26="Single Speed",'Ducted Performance Tables'!C4,IF('Step 5 Identify & Select ASHPs'!$B$26="Two-Stage",'Ducted Performance Tables'!C43,IF('Step 5 Identify & Select ASHPs'!$B$26="Variable",'Ducted Performance Tables'!C96,IF(AND('Step 5 Identify & Select ASHPs'!$B$26="Regular Variable",'Step 5 Identify & Select ASHPs'!$B$25="Single Split Ductless"),'Ductless Single Per Table'!C22,IF(AND('Step 5 Identify & Select ASHPs'!$B$26="Cold Climate Variable",'Step 5 Identify & Select ASHPs'!$B$25="Single Split Ductless"),'Ductless Single Per Table'!C91,IF(AND('Step 5 Identify & Select ASHPs'!$B$26="Regular Variable",'Step 5 Identify & Select ASHPs'!$B$25="Multi-Split Ductless"),'Ductless Multi-split'!C45,IF(AND('Step 5 Identify & Select ASHPs'!$B$26="Cold Climate Variable",'Step 5 Identify & Select ASHPs'!$B$25="Multi-Split Ductless"),'Ductless Multi-split'!C118,""))))))),IF('Step 5 Identify & Select ASHPs'!$B$27="Low Stage",IF('Step 5 Identify & Select ASHPs'!$B$26="Single Speed",'Ducted Performance Tables'!C4,IF('Step 5 Identify & Select ASHPs'!$B$26="Two-Stage",'Ducted Performance Tables'!K43,IF('Step 5 Identify & Select ASHPs'!$B$26="Variable",'Ducted Performance Tables'!K96,IF(AND('Step 5 Identify & Select ASHPs'!$B$26="Regular Variable",'Step 5 Identify & Select ASHPs'!$B$25="Single Split Ductless"),'Ductless Single Per Table'!L22,IF(AND('Step 5 Identify & Select ASHPs'!$B$26="Cold Climate Variable",'Step 5 Identify & Select ASHPs'!$B$25="Single Split Ductless"),'Ductless Single Per Table'!L91,IF(AND('Step 5 Identify & Select ASHPs'!$B$26="Regular Variable",'Step 5 Identify & Select ASHPs'!$B$25="Multi-Split Ductless"),'Ductless Multi-split'!L45,IF(AND('Step 5 Identify & Select ASHPs'!$B$26="Cold Climate Variable",'Step 5 Identify & Select ASHPs'!$B$25="Multi-Split Ductless"),'Ductless Multi-split'!L118,"")))))))))) -> - | S4: ='Design Load Calcs'!$G$23*'HP Calcs'!A4+'Design Load Calcs'!$H$23 -> 13825.75758 | T4: =IFERROR(IF(OR(D5<S5,D3>S3),"",IFERROR(ABS(S4-D4),"")),"") ->  | U4: =MATCH(MIN(T4:T20),T4:T20,0)-1 -> 9 | V4: =INDEX(A4:A20,U4) -> 17 | W4: =INDEX(IF('Step 5 Identify & Select ASHPs'!$B$6="Subarctic",'Load %s'!$O$8:$O$24,IF('Step 5 Identify & Select ASHPs'!$B$6="Very-Cold",'Load %s'!$P$8:$P$24,IF('Step 5 Identify & Select ASHPs'!$B$6="Cold-Dry",'Load %s'!$Q$8:$Q$24,IF('Step 5 Identify & Select ASHPs'!$B$6="Cold-Humid",'Load %s'!$R$8:$R$24,IF('Step 5 Identify & Select ASHPs'!$B$6="Marine",'Load %s'!$S$8:$S$24,IF('Step 5 Identify & Select ASHPs'!$B$6="Mixed-Humid",'Load %s'!$T$8:$T$24,IF('Step 5 Identify & Select ASHPs'!$B$6="Hot-Humid",'Load %s'!$U$8:$U$24,'Load %s'!$V$8:$V$24))))))),U4) -> 0.7733107111 | X4: =IFERROR(INDEX(X11:X12,MATCH(V5,X11:X12)),INDEX(X11:X12,MATCH(V5,X11:X12,-1))) -> 22.62968931 | Z4: =((X4-V4)*(W6-W4))/(V6-V4)+W4 -> 0.6619295756 | AB4: ='Design Load Calcs'!$J$23*'HP Calcs'!A4+'Design Load Calcs'!$K$23 ->  | AC4: =IFERROR(ABS(AB4-D4),"") ->  | AD4: =MATCH(MIN(AC4:AC20),AC4:AC20,0)-1 ->  | AE4: =INDEX($A$4:$A$20,AD4) ->  | AF4: =INDEX(IF('Step 5 Identify & Select ASHPs'!$B$6="Subarctic",'Load %s'!$O$8:$O$24,IF('Step 5 Identify & Select ASHPs'!$B$6="Very-Cold",'Load %s'!$P$8:$P$24,IF('Step 5 Identify & Select ASHPs'!$B$6="Cold-Dry",'Load %s'!$Q$8:$Q$24,IF('Step 5 Identify & Select ASHPs'!$B$6="Cold-Humid",'Load %s'!$R$8:$R$24,IF('Step 5 Identify & Select ASHPs'!$B$6="Marine",'Load %s'!$S$8:$S$24,IF('Step 5 Identify & Select ASHPs'!$B$6="Mixed-Humid",'Load %s'!$T$8:$T$24,IF('Step 5 Identify & Select ASHPs'!$B$6="Hot-Humid",'Load %s'!$U$8:$U$24,'Load %s'!$V$8:$V$24))))))),AD4) ->  | AG4: =IF(('Design Load Calcs'!$K$23-AF11)/(AE11-'Design Load Calcs'!$J$23)<'Step 3 Design Loads'!B13,NA(),('Design Load Calcs'!$K$23-AF11)/(AE11-'Design Load Calcs'!$J$23)) ->  | AI4: =((AG4-AE4)*(AF6-AF4))/(AE6-AE4)+AF4 ->  | AP4: =NA() ->  | BB4: Control Strategy graph
A5: ='Load %s'!B9 -> -18 | B5: =IF('Step 5 Identify & Select ASHPs'!$B$27="High Stage",IF(AND('Step 5 Identify & Select ASHPs'!$B$37="Yes",'Step 5 Identify & Select ASHPs'!$B$38>'HP Calcs'!A5),"-",IF('Step 5 Identify & Select ASHPs'!$B$26="Single Speed",'Ducted Performance Tables'!B5,IF('Step 5 Identify & Select ASHPs'!$B$26="Two-Stage",'Ducted Performance Tables'!B44,IF('Step 5 Identify & Select ASHPs'!$B$26="Variable",'Ducted Performance Tables'!B97,IF(AND('Step 5 Identify & Select ASHPs'!$B$26="Regular Variable",'Step 5 Identify & Select ASHPs'!$B$25="Single Split Ductless"),'Ductless Single Per Table'!B23,IF(AND('Step 5 Identify & Select ASHPs'!$B$26="Cold Climate Variable",'Step 5 Identify & Select ASHPs'!$B$25="Single Split Ductless"),'Ductless Single Per Table'!B92,IF(AND('Step 5 Identify & Select ASHPs'!$B$26="Regular Variable",'Step 5 Identify & Select ASHPs'!$B$25="Multi-Split Ductless"),'Ductless Multi-split'!B46,IF(AND('Step 5 Identify & Select ASHPs'!$B$26="Cold Climate Variable",'Step 5 Identify & Select ASHPs'!$B$25="Multi-Split Ductless"),'Ductless Multi-split'!B119,"")))))))),IF('Step 5 Identify & Select ASHPs'!$B$27="Low Stage",IF(AND('Step 5 Identify & Select ASHPs'!$B$37="Yes",'Step 5 Identify & Select ASHPs'!$B$38>'HP Calcs'!A5),"-",IF('Step 5 Identify & Select ASHPs'!$B$26="Single Speed",'Ducted Performance Tables'!B5,IF('Step 5 Identify & Select ASHPs'!$B$26="Two-Stage",'Ducted Performance Tables'!J44,IF('Step 5 Identify & Select ASHPs'!$B$26="Variable",'Ducted Performance Tables'!J97,IF(AND('Step 5 Identify & Select ASHPs'!$B$26="Regular Variable",'Step 5 Identify & Select ASHPs'!$B$25="Single Split Ductless"),'Ductless Single Per Table'!K23,IF(AND('Step 5 Identify & Select ASHPs'!$B$26="Cold Climate Variable",'Step 5 Identify & Select ASHPs'!$B$25="Single Split Ductless"),'Ductless Single Per Table'!K92,IF(AND('Step 5 Identify & Select ASHPs'!$B$26="Regular Variable",'Step 5 Identify & Select ASHPs'!$B$25="Multi-Split Ductless"),'Ductless Multi-split'!K46,IF(AND('Step 5 Identify & Select ASHPs'!$B$26="Cold Climate Variable",'Step 5 Identify & Select ASHPs'!$B$25="Multi-Split Ductless"),'Ductless Multi-split'!K119,"")))))))))) -> - | C5: =IF('Step 5 Identify & Select ASHPs'!$B$27="High Stage",IF('Step 5 Identify & Select ASHPs'!$B$26="Single Speed",'Ducted Performance Tables'!C5,IF('Step 5 Identify & Select ASHPs'!$B$26="Two-Stage",'Ducted Performance Tables'!C44,IF('Step 5 Identify & Select ASHPs'!$B$26="Variable",'Ducted Performance Tables'!C97,IF(AND('Step 5 Identify & Select ASHPs'!$B$26="Regular Variable",'Step 5 Identify & Select ASHPs'!$B$25="Single Split Ductless"),'Ductless Single Per Table'!C23,IF(AND('Step 5 Identify & Select ASHPs'!$B$26="Cold Climate Variable",'Step 5 Identify & Select ASHPs'!$B$25="Single Split Ductless"),'Ductless Single Per Table'!C92,IF(AND('Step 5 Identify & Select ASHPs'!$B$26="Regular Variable",'Step 5 Identify & Select ASHPs'!$B$25="Multi-Split Ductless"),'Ductless Multi-split'!C46,IF(AND('Step 5 Identify & Select ASHPs'!$B$26="Cold Climate Variable",'Step 5 Identify & Select ASHPs'!$B$25="Multi-Split Ductless"),'Ductless Multi-split'!C119,""))))))),IF('Step 5 Identify & Select ASHPs'!$B$27="Low Stage",IF('Step 5 Identify & Select ASHPs'!$B$26="Single Speed",'Ducted Performance Tables'!C5,IF('Step 5 Identify & Select ASHPs'!$B$26="Two-Stage",'Ducted Performance Tables'!K44,IF('Step 5 Identify & Select ASHPs'!$B$26="Variable",'Ducted Performance Tables'!K97,IF(AND('Step 5 Identify & Select ASHPs'!$B$26="Regular Variable",'Step 5 Identify & Select ASHPs'!$B$25="Single Split Ductless"),'Ductless Single Per Table'!L23,IF(AND('Step 5 Identify & Select ASHPs'!$B$26="Cold Climate Variable",'Step 5 Identify & Select ASHPs'!$B$25="Single Split Ductless"),'Ductless Single Per Table'!L92,IF(AND('Step 5 Identify & Select ASHPs'!$B$26="Regular Variable",'Step 5 Identify & Select ASHPs'!$B$25="Multi-Split Ductless"),'Ductless Multi-split'!L46,IF(AND('Step 5 Identify & Select ASHPs'!$B$26="Cold Climate Variable",'Step 5 Identify & Select ASHPs'!$B$25="Multi-Split Ductless"),'Ductless Multi-split'!L119,""))))))))) -> - | D5: =IFERROR(B5*IF('Step 5 Identify & Select ASHPs'!$B$27="Low Stage",$AJ$7/'HP Calcs'!$B$18,IF('Step 5 Identify & Select ASHPs'!$B$27="High Stage",$AJ$7/'HP Calcs'!$B$18,$AJ$7)),NA()) ->  | E5: =IFERROR(C5*IF('Step 5 Identify & Select ASHPs'!$B$27="Low Stage",$AK$7/$C$18,IF('Step 5 Identify & Select ASHPs'!$B$27="High Stage",$AK$7/$C$18,$AK$7)),NA()) ->  | F5: =(D5/IF('Intro & Unit Options'!$B$12="Metric",1,3412))/E5 ->  | H5: =IF('Intro & Unit Options'!$B$12="Metric",(AR8-32)*(5/9),AR8) -> 72 | I5: =IF('Step 5 Identify & Select ASHPs'!$B$27="High Stage",IF('Step 5 Identify & Select ASHPs'!$B$26="Single Speed",'Ducted Performance Tables'!B24,IF('Step 5 Identify & Select ASHPs'!$B$26="Two-Stage",'Ducted Performance Tables'!B63,IF('Step 5 Identify & Select ASHPs'!$B$26="Variable",'Ducted Performance Tables'!B128,IF(AND('Step 5 Identify & Select ASHPs'!$B$26="Cold Climate Variable",'Step 5 Identify & Select ASHPs'!$B$25="Single Split Ductless"),'Ductless Single Per Table'!B125,IF(AND('Step 5 Identify & Select ASHPs'!$B$26="Regular Variable",'Step 5 Identify & Select ASHPs'!$B$25="Single Split Ductless"),'Ductless Single Per Table'!B58,IF(AND('Step 5 Identify & Select ASHPs'!$B$26="Cold Climate Variable",'Step 5 Identify & Select ASHPs'!$B$25="Multi-Split Ductless"),'Ductless Multi-split'!B85,IF(AND('Step 5 Identify & Select ASHPs'!$B$26="Regular Variable",'Step 5 Identify & Select ASHPs'!$B$25="Multi-Split Ductless"),'Ductless Multi-split'!B16,""))))))),IF('Step 5 Identify & Select ASHPs'!$B$27="Low Stage",IF('Step 5 Identify & Select ASHPs'!$B$26="Single Speed",'Ducted Performance Tables'!B24,IF(AND('Step 5 Identify & Select ASHPs'!$B$26="Two-Stage"),'Ducted Performance Tables'!J63,IF(AND('Step 5 Identify & Select ASHPs'!$B$26="Variable"),'Ducted Performance Tables'!J128,IF(AND('Step 5 Identify & Select ASHPs'!$B$26="Cold Climate Variable",'Step 5 Identify & Select ASHPs'!$B$25="Single Split Ductless"),'Ductless Single Per Table'!K125,IF(AND('Step 5 Identify & Select ASHPs'!$B$26="Regular Variable",'Step 5 Identify & Select ASHPs'!$B$25="Single Split Ductless"),'Ductless Single Per Table'!K58,IF(AND('Step 5 Identify & Select ASHPs'!$B$26="Cold Climate Variable",'Step 5 Identify & Select ASHPs'!$B$25="Multi-Split Ductless"),'Ductless Multi-split'!K85,IF(AND('Step 5 Identify & Select ASHPs'!$B$26="Regular Variable",'Step 5 Identify & Select ASHPs'!$B$25="Multi-Split Ductless"),'Ductless Multi-split'!K16,""))))))))) -> - | J5: =IF('Step 5 Identify & Select ASHPs'!$B$27="High Stage",IF('Step 5 Identify & Select ASHPs'!$B$26="Single Speed",'Ducted Performance Tables'!C24,IF('Step 5 Identify & Select ASHPs'!$B$26="Two-Stage",'Ducted Performance Tables'!C63,IF('Step 5 Identify & Select ASHPs'!$B$26="Variable",'Ducted Performance Tables'!C128,IF(AND('Step 5 Identify & Select ASHPs'!$B$26="Cold Climate Variable",'Step 5 Identify & Select ASHPs'!$B$25="Single Split Ductless"),'Ductless Single Per Table'!C125,IF(AND('Step 5 Identify & Select ASHPs'!$B$26="Regular Variable",'Step 5 Identify & Select ASHPs'!$B$25="Single Split Ductless"),'Ductless Single Per Table'!C58,IF(AND('Step 5 Identify & Select ASHPs'!$B$26="Cold Climate Variable",'Step 5 Identify & Select ASHPs'!$B$25="Multi-Split Ductless"),'Ductless Multi-split'!C85,IF(AND('Step 5 Identify & Select ASHPs'!$B$26="Regular Variable",'Step 5 Identify & Select ASHPs'!$B$25="Multi-Split Ductless"),'Ductless Multi-split'!C16,""))))))),IF('Step 5 Identify & Select ASHPs'!$B$27="Low Stage",IF('Step 5 Identify & Select ASHPs'!$B$26="Single Speed",'Ducted Performance Tables'!C24,IF(AND('Step 5 Identify & Select ASHPs'!$B$26="Two-Stage"),'Ducted Performance Tables'!K63,IF(AND('Step 5 Identify & Select ASHPs'!$B$26="Variable"),'Ducted Performance Tables'!K128,IF(AND('Step 5 Identify & Select ASHPs'!$B$26="Cold Climate Variable",'Step 5 Identify & Select ASHPs'!$B$25="Single Split Ductless"),'Ductless Single Per Table'!L125,IF(AND('Step 5 Identify & Select ASHPs'!$B$26="Regular Variable",'Step 5 Identify & Select ASHPs'!$B$25="Single Split Ductless"),'Ductless Single Per Table'!L58,IF(AND('Step 5 Identify & Select ASHPs'!$B$26="Cold Climate Variable",'Step 5 Identify & Select ASHPs'!$B$25="Multi-Split Ductless"),'Ductless Multi-split'!L85,IF(AND('Step 5 Identify & Select ASHPs'!$B$26="Regular Variable",'Step 5 Identify & Select ASHPs'!$B$25="Multi-Split Ductless"),'Ductless Multi-split'!L16,""))))))))) -> - | K5: =IF(I5=0,NA(),IFERROR(I5*IF('Step 5 Identify & Select ASHPs'!$B$26="Single Speed",$AJ$14,IF('Step 5 Identify & Select ASHPs'!$B$27="Low Stage",$AJ$14/$AJ$17,IF(AND('Step 5 Identify & Select ASHPs'!$B$27="High Stage"),$AJ$14/$AJ$20,$AJ$14/$AJ$17))),NA())) ->  | L5: =IF(J5=0,NA(),IFERROR(J5*IF('Step 5 Identify & Select ASHPs'!$B$26="Single Speed",$AK$14,IF('Step 5 Identify & Select ASHPs'!$B$27="Low Stage",$AK$14/$AK$17,IF(AND('Step 5 Identify & Select ASHPs'!$B$27="High Stage",'Step 5 Identify & Select ASHPs'!$B$28<>"B"),$AK$14/$AK$20,$AK$14/$AK$17))),NA())) ->  | M5: =(K5/IF('Intro & Unit Options'!$B$12="Metric",1,3412))/L5 ->  | P5: =IF(AND(Q5<>"-",Q4="-",ISNUMBER(Q6)),Q5,"-") -> - | Q5: =IF(AND('Step 5 Identify & Select ASHPs'!$G$37="Yes",'Step 5 Identify & Select ASHPs'!$B$38>A5),"-",IF('Step 5 Identify & Select ASHPs'!$B$27="High Stage",IF('Step 5 Identify & Select ASHPs'!$B$26="Single Speed",'Ducted Performance Tables'!C5,IF('Step 5 Identify & Select ASHPs'!$B$26="Two-Stage",'Ducted Performance Tables'!C44,IF('Step 5 Identify & Select ASHPs'!$B$26="Variable",'Ducted Performance Tables'!C97,IF(AND('Step 5 Identify & Select ASHPs'!$B$26="Regular Variable",'Step 5 Identify & Select ASHPs'!$B$25="Single Split Ductless"),'Ductless Single Per Table'!C23,IF(AND('Step 5 Identify & Select ASHPs'!$B$26="Cold Climate Variable",'Step 5 Identify & Select ASHPs'!$B$25="Single Split Ductless"),'Ductless Single Per Table'!C92,IF(AND('Step 5 Identify & Select ASHPs'!$B$26="Regular Variable",'Step 5 Identify & Select ASHPs'!$B$25="Multi-Split Ductless"),'Ductless Multi-split'!C46,IF(AND('Step 5 Identify & Select ASHPs'!$B$26="Cold Climate Variable",'Step 5 Identify & Select ASHPs'!$B$25="Multi-Split Ductless"),'Ductless Multi-split'!C119,""))))))),IF('Step 5 Identify & Select ASHPs'!$B$27="Low Stage",IF('Step 5 Identify & Select ASHPs'!$B$26="Single Speed",'Ducted Performance Tables'!C5,IF('Step 5 Identify & Select ASHPs'!$B$26="Two-Stage",'Ducted Performance Tables'!K44,IF('Step 5 Identify & Select ASHPs'!$B$26="Variable",'Ducted Performance Tables'!K97,IF(AND('Step 5 Identify & Select ASHPs'!$B$26="Regular Variable",'Step 5 Identify & Select ASHPs'!$B$25="Single Split Ductless"),'Ductless Single Per Table'!L23,IF(AND('Step 5 Identify & Select ASHPs'!$B$26="Cold Climate Variable",'Step 5 Identify & Select ASHPs'!$B$25="Single Split Ductless"),'Ductless Single Per Table'!L92,IF(AND('Step 5 Identify & Select ASHPs'!$B$26="Regular Variable",'Step 5 Identify & Select ASHPs'!$B$25="Multi-Split Ductless"),'Ductless Multi-split'!L46,IF(AND('Step 5 Identify & Select ASHPs'!$B$26="Cold Climate Variable",'Step 5 Identify & Select ASHPs'!$B$25="Multi-Split Ductless"),'Ductless Multi-split'!L119,"")))))))))) -> - | S5: ='Design Load Calcs'!$G$23*'HP Calcs'!A5+'Design Load Calcs'!$H$23 -> 14772.72727 | T5: =IFERROR(IF(OR(D6<S6,D4>S4),"",IFERROR(ABS(S5-D5),"")),"") ->  | U5: =MATCH(MIN(T4:T20),T4:T20,0) -> 10 | V5: =INDEX(A4:A20,U5) -> 22 | W5: =INDEX(IF('Step 5 Identify & Select ASHPs'!$B$6="Subarctic",'Load %s'!$O$8:$O$24,IF('Step 5 Identify & Select ASHPs'!$B$6="Very-Cold",'Load %s'!$P$8:$P$24,IF('Step 5 Identify & Select ASHPs'!$B$6="Cold-Dry",'Load %s'!$Q$8:$Q$24,IF('Step 5 Identify & Select ASHPs'!$B$6="Cold-Humid",'Load %s'!$R$8:$R$24,IF('Step 5 Identify & Select ASHPs'!$B$6="Marine",'Load %s'!$S$8:$S$24,IF('Step 5 Identify & Select ASHPs'!$B$6="Mixed-Humid",'Load %s'!$T$8:$T$24,IF('Step 5 Identify & Select ASHPs'!$B$6="Hot-Humid",'Load %s'!$U$8:$U$24,'Load %s'!$V$8:$V$24))))))),U5) -> 0.6749778696 | AB5: ='Design Load Calcs'!$J$23*'HP Calcs'!A5+'Design Load Calcs'!$K$23 ->  | AD5: =MATCH(MIN(AC4:AC20),AC4:AC20,0) ->  | AE5: =INDEX($A$4:$A$20,AD5) ->  | AF5: =INDEX(IF('Step 5 Identify & Select ASHPs'!$B$6="Subarctic",'Load %s'!$O$8:$O$24,IF('Step 5 Identify & Select ASHPs'!$B$6="Very-Cold",'Load %s'!$P$8:$P$24,IF('Step 5 Identify & Select ASHPs'!$B$6="Cold-Dry",'Load %s'!$Q$8:$Q$24,IF('Step 5 Identify & Select ASHPs'!$B$6="Cold-Humid",'Load %s'!$R$8:$R$24,IF('Step 5 Identify & Select ASHPs'!$B$6="Marine",'Load %s'!$S$8:$S$24,IF('Step 5 Identify & Select ASHPs'!$B$6="Mixed-Humid",'Load %s'!$T$8:$T$24,IF('Step 5 Identify & Select ASHPs'!$B$6="Hot-Humid",'Load %s'!$U$8:$U$24,'Load %s'!$V$8:$V$24))))))),AD5) ->  | AJ5: Heating | AP5: =NA() ->  | AS5: Heat temp (graph) | AT5: Cool Temp (graph) | AV5: ="t-BPT= "&ROUND(AV6,0)&'Step 3 Design Loads'!C13 -> t-BPT= 23F | AX5: ="HP1" -> HP1
A6: ='Load %s'!B10 -> -13 | B6: =IF('Step 5 Identify & Select ASHPs'!$B$27="High Stage",IF(AND('Step 5 Identify & Select ASHPs'!$B$37="Yes",'Step 5 Identify & Select ASHPs'!$B$38>'HP Calcs'!A6),"-",IF('Step 5 Identify & Select ASHPs'!$B$26="Single Speed",'Ducted Performance Tables'!B6,IF('Step 5 Identify & Select ASHPs'!$B$26="Two-Stage",'Ducted Performance Tables'!B45,IF('Step 5 Identify & Select ASHPs'!$B$26="Variable",'Ducted Performance Tables'!B98,IF(AND('Step 5 Identify & Select ASHPs'!$B$26="Regular Variable",'Step 5 Identify & Select ASHPs'!$B$25="Single Split Ductless"),'Ductless Single Per Table'!B24,IF(AND('Step 5 Identify & Select ASHPs'!$B$26="Cold Climate Variable",'Step 5 Identify & Select ASHPs'!$B$25="Single Split Ductless"),'Ductless Single Per Table'!B93,IF(AND('Step 5 Identify & Select ASHPs'!$B$26="Regular Variable",'Step 5 Identify & Select ASHPs'!$B$25="Multi-Split Ductless"),'Ductless Multi-split'!B47,IF(AND('Step 5 Identify & Select ASHPs'!$B$26="Cold Climate Variable",'Step 5 Identify & Select ASHPs'!$B$25="Multi-Split Ductless"),'Ductless Multi-split'!B120,"")))))))),IF('Step 5 Identify & Select ASHPs'!$B$27="Low Stage",IF(AND('Step 5 Identify & Select ASHPs'!$B$37="Yes",'Step 5 Identify & Select ASHPs'!$B$38>'HP Calcs'!A6),"-",IF('Step 5 Identify & Select ASHPs'!$B$26="Single Speed",'Ducted Performance Tables'!B6,IF('Step 5 Identify & Select ASHPs'!$B$26="Two-Stage",'Ducted Performance Tables'!J45,IF('Step 5 Identify & Select ASHPs'!$B$26="Variable",'Ducted Performance Tables'!J98,IF(AND('Step 5 Identify & Select ASHPs'!$B$26="Regular Variable",'Step 5 Identify & Select ASHPs'!$B$25="Single Split Ductless"),'Ductless Single Per Table'!K24,IF(AND('Step 5 Identify & Select ASHPs'!$B$26="Cold Climate Variable",'Step 5 Identify & Select ASHPs'!$B$25="Single Split Ductless"),'Ductless Single Per Table'!K93,IF(AND('Step 5 Identify & Select ASHPs'!$B$26="Regular Variable",'Step 5 Identify & Select ASHPs'!$B$25="Multi-Split Ductless"),'Ductless Multi-split'!K47,IF(AND('Step 5 Identify & Select ASHPs'!$B$26="Cold Climate Variable",'Step 5 Identify & Select ASHPs'!$B$25="Multi-Split Ductless"),'Ductless Multi-split'!K120,"")))))))))) -> - | C6: =IF('Step 5 Identify & Select ASHPs'!$B$27="High Stage",IF('Step 5 Identify & Select ASHPs'!$B$26="Single Speed",'Ducted Performance Tables'!C6,IF('Step 5 Identify & Select ASHPs'!$B$26="Two-Stage",'Ducted Performance Tables'!C45,IF('Step 5 Identify & Select ASHPs'!$B$26="Variable",'Ducted Performance Tables'!C98,IF(AND('Step 5 Identify & Select ASHPs'!$B$26="Regular Variable",'Step 5 Identify & Select ASHPs'!$B$25="Single Split Ductless"),'Ductless Single Per Table'!C24,IF(AND('Step 5 Identify & Select ASHPs'!$B$26="Cold Climate Variable",'Step 5 Identify & Select ASHPs'!$B$25="Single Split Ductless"),'Ductless Single Per Table'!C93,IF(AND('Step 5 Identify & Select ASHPs'!$B$26="Regular Variable",'Step 5 Identify & Select ASHPs'!$B$25="Multi-Split Ductless"),'Ductless Multi-split'!C47,IF(AND('Step 5 Identify & Select ASHPs'!$B$26="Cold Climate Variable",'Step 5 Identify & Select ASHPs'!$B$25="Multi-Split Ductless"),'Ductless Multi-split'!C120,""))))))),IF('Step 5 Identify & Select ASHPs'!$B$27="Low Stage",IF('Step 5 Identify & Select ASHPs'!$B$26="Single Speed",'Ducted Performance Tables'!C6,IF('Step 5 Identify & Select ASHPs'!$B$26="Two-Stage",'Ducted Performance Tables'!K45,IF('Step 5 Identify & Select ASHPs'!$B$26="Variable",'Ducted Performance Tables'!K98,IF(AND('Step 5 Identify & Select ASHPs'!$B$26="Regular Variable",'Step 5 Identify & Select ASHPs'!$B$25="Single Split Ductless"),'Ductless Single Per Table'!L24,IF(AND('Step 5 Identify & Select ASHPs'!$B$26="Cold Climate Variable",'Step 5 Identify & Select ASHPs'!$B$25="Single Split Ductless"),'Ductless Single Per Table'!L93,IF(AND('Step 5 Identify & Select ASHPs'!$B$26="Regular Variable",'Step 5 Identify & Select ASHPs'!$B$25="Multi-Split Ductless"),'Ductless Multi-split'!L47,IF(AND('Step 5 Identify & Select ASHPs'!$B$26="Cold Climate Variable",'Step 5 Identify & Select ASHPs'!$B$25="Multi-Split Ductless"),'Ductless Multi-split'!L120,""))))))))) -> - | D6: =IFERROR(B6*IF('Step 5 Identify & Select ASHPs'!$B$27="Low Stage",$AJ$7/'HP Calcs'!$B$18,IF('Step 5 Identify & Select ASHPs'!$B$27="High Stage",$AJ$7/'HP Calcs'!$B$18,$AJ$7)),NA()) ->  | E6: =IFERROR(C6*IF('Step 5 Identify & Select ASHPs'!$B$27="Low Stage",$AK$7/$C$18,IF('Step 5 Identify & Select ASHPs'!$B$27="High Stage",$AK$7/$C$18,$AK$7)),NA()) ->  | F6: =(D6/IF('Intro & Unit Options'!$B$12="Metric",1,3412))/E6 ->  | H6: =IF('Intro & Unit Options'!$B$12="Metric",(AR9-32)*(5/9),AR9) -> 77 | I6: =IF('Step 5 Identify & Select ASHPs'!$B$27="High Stage",IF('Step 5 Identify & Select ASHPs'!$B$26="Single Speed",'Ducted Performance Tables'!B25,IF('Step 5 Identify & Select ASHPs'!$B$26="Two-Stage",'Ducted Performance Tables'!B64,IF('Step 5 Identify & Select ASHPs'!$B$26="Variable",'Ducted Performance Tables'!B129,IF(AND('Step 5 Identify & Select ASHPs'!$B$26="Cold Climate Variable",'Step 5 Identify & Select ASHPs'!$B$25="Single Split Ductless"),'Ductless Single Per Table'!B126,IF(AND('Step 5 Identify & Select ASHPs'!$B$26="Regular Variable",'Step 5 Identify & Select ASHPs'!$B$25="Single Split Ductless"),'Ductless Single Per Table'!B59,IF(AND('Step 5 Identify & Select ASHPs'!$B$26="Cold Climate Variable",'Step 5 Identify & Select ASHPs'!$B$25="Multi-Split Ductless"),'Ductless Multi-split'!B86,IF(AND('Step 5 Identify & Select ASHPs'!$B$26="Regular Variable",'Step 5 Identify & Select ASHPs'!$B$25="Multi-Split Ductless"),'Ductless Multi-split'!B17,""))))))),IF('Step 5 Identify & Select ASHPs'!$B$27="Low Stage",IF('Step 5 Identify & Select ASHPs'!$B$26="Single Speed",'Ducted Performance Tables'!B25,IF(AND('Step 5 Identify & Select ASHPs'!$B$26="Two-Stage"),'Ducted Performance Tables'!J64,IF(AND('Step 5 Identify & Select ASHPs'!$B$26="Variable"),'Ducted Performance Tables'!J129,IF(AND('Step 5 Identify & Select ASHPs'!$B$26="Cold Climate Variable",'Step 5 Identify & Select ASHPs'!$B$25="Single Split Ductless"),'Ductless Single Per Table'!K126,IF(AND('Step 5 Identify & Select ASHPs'!$B$26="Regular Variable",'Step 5 Identify & Select ASHPs'!$B$25="Single Split Ductless"),'Ductless Single Per Table'!K59,IF(AND('Step 5 Identify & Select ASHPs'!$B$26="Cold Climate Variable",'Step 5 Identify & Select ASHPs'!$B$25="Multi-Split Ductless"),'Ductless Multi-split'!K86,IF(AND('Step 5 Identify & Select ASHPs'!$B$26="Regular Variable",'Step 5 Identify & Select ASHPs'!$B$25="Multi-Split Ductless"),'Ductless Multi-split'!K17,""))))))))) -> 1.012 | J6: =IF('Step 5 Identify & Select ASHPs'!$B$27="High Stage",IF('Step 5 Identify & Select ASHPs'!$B$26="Single Speed",'Ducted Performance Tables'!C25,IF('Step 5 Identify & Select ASHPs'!$B$26="Two-Stage",'Ducted Performance Tables'!C64,IF('Step 5 Identify & Select ASHPs'!$B$26="Variable",'Ducted Performance Tables'!C129,IF(AND('Step 5 Identify & Select ASHPs'!$B$26="Cold Climate Variable",'Step 5 Identify & Select ASHPs'!$B$25="Single Split Ductless"),'Ductless Single Per Table'!C126,IF(AND('Step 5 Identify & Select ASHPs'!$B$26="Regular Variable",'Step 5 Identify & Select ASHPs'!$B$25="Single Split Ductless"),'Ductless Single Per Table'!C59,IF(AND('Step 5 Identify & Select ASHPs'!$B$26="Cold Climate Variable",'Step 5 Identify & Select ASHPs'!$B$25="Multi-Split Ductless"),'Ductless Multi-split'!C86,IF(AND('Step 5 Identify & Select ASHPs'!$B$26="Regular Variable",'Step 5 Identify & Select ASHPs'!$B$25="Multi-Split Ductless"),'Ductless Multi-split'!C17,""))))))),IF('Step 5 Identify & Select ASHPs'!$B$27="Low Stage",IF('Step 5 Identify & Select ASHPs'!$B$26="Single Speed",'Ducted Performance Tables'!C25,IF(AND('Step 5 Identify & Select ASHPs'!$B$26="Two-Stage"),'Ducted Performance Tables'!K64,IF(AND('Step 5 Identify & Select ASHPs'!$B$26="Variable"),'Ducted Performance Tables'!K129,IF(AND('Step 5 Identify & Select ASHPs'!$B$26="Cold Climate Variable",'Step 5 Identify & Select ASHPs'!$B$25="Single Split Ductless"),'Ductless Single Per Table'!L126,IF(AND('Step 5 Identify & Select ASHPs'!$B$26="Regular Variable",'Step 5 Identify & Select ASHPs'!$B$25="Single Split Ductless"),'Ductless Single Per Table'!L59,IF(AND('Step 5 Identify & Select ASHPs'!$B$26="Cold Climate Variable",'Step 5 Identify & Select ASHPs'!$B$25="Multi-Split Ductless"),'Ductless Multi-split'!L86,IF(AND('Step 5 Identify & Select ASHPs'!$B$26="Regular Variable",'Step 5 Identify & Select ASHPs'!$B$25="Multi-Split Ductless"),'Ductless Multi-split'!L17,""))))))))) -> 0.8010416667 | K6: =IF(I6=0,NA(),IFERROR(I6*IF('Step 5 Identify & Select ASHPs'!$B$26="Single Speed",$AJ$14,IF('Step 5 Identify & Select ASHPs'!$B$27="Low Stage",$AJ$14/$AJ$17,IF(AND('Step 5 Identify & Select ASHPs'!$B$27="High Stage"),$AJ$14/$AJ$20,$AJ$14/$AJ$17))),NA())) -> 12144 | L6: =IF(J6=0,NA(),IFERROR(J6*IF('Step 5 Identify & Select ASHPs'!$B$26="Single Speed",$AK$14,IF('Step 5 Identify & Select ASHPs'!$B$27="Low Stage",$AK$14/$AK$17,IF(AND('Step 5 Identify & Select ASHPs'!$B$27="High Stage",'Step 5 Identify & Select ASHPs'!$B$28<>"B"),$AK$14/$AK$20,$AK$14/$AK$17))),NA())) -> 1.602083333 | M6: =(K6/IF('Intro & Unit Options'!$B$12="Metric",1,3412))/L6 -> 2.221609038 | P6: - | Q6: =IF(AND('Step 5 Identify & Select ASHPs'!$G$37="Yes",'Step 5 Identify & Select ASHPs'!$B$38>A6),"-",IF('Step 5 Identify & Select ASHPs'!$B$27="High Stage",IF('Step 5 Identify & Select ASHPs'!$B$26="Single Speed",'Ducted Performance Tables'!C6,IF('Step 5 Identify & Select ASHPs'!$B$26="Two-Stage",'Ducted Performance Tables'!C45,IF('Step 5 Identify & Select ASHPs'!$B$26="Variable",'Ducted Performance Tables'!C98,IF(AND('Step 5 Identify & Select ASHPs'!$B$26="Regular Variable",'Step 5 Identify & Select ASHPs'!$B$25="Single Split Ductless"),'Ductless Single Per Table'!C24,IF(AND('Step 5 Identify & Select ASHPs'!$B$26="Cold Climate Variable",'Step 5 Identify & Select ASHPs'!$B$25="Single Split Ductless"),'Ductless Single Per Table'!C93,IF(AND('Step 5 Identify & Select ASHPs'!$B$26="Regular Variable",'Step 5 Identify & Select ASHPs'!$B$25="Multi-Split Ductless"),'Ductless Multi-split'!C47,IF(AND('Step 5 Identify & Select ASHPs'!$B$26="Cold Climate Variable",'Step 5 Identify & Select ASHPs'!$B$25="Multi-Split Ductless"),'Ductless Multi-split'!C120,""))))))),IF('Step 5 Identify & Select ASHPs'!$B$27="Low Stage",IF('Step 5 Identify & Select ASHPs'!$B$26="Single Speed",'Ducted Performance Tables'!C6,IF('Step 5 Identify & Select ASHPs'!$B$26="Two-Stage",'Ducted Performance Tables'!K45,IF('Step 5 Identify & Select ASHPs'!$B$26="Variable",'Ducted Performance Tables'!K98,IF(AND('Step 5 Identify & Select ASHPs'!$B$26="Regular Variable",'Step 5 Identify & Select ASHPs'!$B$25="Single Split Ductless"),'Ductless Single Per Table'!L24,IF(AND('Step 5 Identify & Select ASHPs'!$B$26="Cold Climate Variable",'Step 5 Identify & Select ASHPs'!$B$25="Single Split Ductless"),'Ductless Single Per Table'!L93,IF(AND('Step 5 Identify & Select ASHPs'!$B$26="Regular Variable",'Step 5 Identify & Select ASHPs'!$B$25="Multi-Split Ductless"),'Ductless Multi-split'!L47,IF(AND('Step 5 Identify & Select ASHPs'!$B$26="Cold Climate Variable",'Step 5 Identify & Select ASHPs'!$B$25="Multi-Split Ductless"),'Ductless Multi-split'!L120,"")))))))))) -> - | S6: ='Design Load Calcs'!$G$23*'HP Calcs'!A6+'Design Load Calcs'!$H$23 -> 13825.75758 | U6: =MATCH(MIN(T4:T20),T4:T20,0)+1 -> 11 | V6: =INDEX(A4:A20,U6) -> 27 | W6: =INDEX(IF('Step 5 Identify & Select ASHPs'!$B$6="Subarctic",'Load %s'!$O$8:$O$24,IF('Step 5 Identify & Select ASHPs'!$B$6="Very-Cold",'Load %s'!$P$8:$P$24,IF('Step 5 Identify & Select ASHPs'!$B$6="Cold-Dry",'Load %s'!$Q$8:$Q$24,IF('Step 5 Identify & Select ASHPs'!$B$6="Cold-Humid",'Load %s'!$R$8:$R$24,IF('Step 5 Identify & Select ASHPs'!$B$6="Marine",'Load %s'!$S$8:$S$24,IF('Step 5 Identify & Select ASHPs'!$B$6="Mixed-Humid",'Load %s'!$T$8:$T$24,IF('Step 5 Identify & Select ASHPs'!$B$6="Hot-Humid",'Load %s'!$U$8:$U$24,'Load %s'!$V$8:$V$24))))))),U6) -> 0.5754647389 | AB6: ='Design Load Calcs'!$J$23*'HP Calcs'!A6+'Design Load Calcs'!$K$23 ->  | AD6: =MATCH(MIN(AC4:AC20),AC4:AC20,0)+1 ->  | AF6: =INDEX(IF('Step 5 Identify & Select ASHPs'!$B$6="Subarctic",'Load %s'!$O$8:$O$24,IF('Step 5 Identify & Select ASHPs'!$B$6="Very-Cold",'Load %s'!$P$8:$P$24,IF('Step 5 Identify & Select ASHPs'!$B$6="Cold-Dry",'Load %s'!$Q$8:$Q$24,IF('Step 5 Identify & Select ASHPs'!$B$6="Cold-Humid",'Load %s'!$R$8:$R$24,IF('Step 5 Identify & Select ASHPs'!$B$6="Marine",'Load %s'!$S$8:$S$24,IF('Step 5 Identify & Select ASHPs'!$B$6="Mixed-Humid",'Load %s'!$T$8:$T$24,IF('Step 5 Identify & Select ASHPs'!$B$6="Hot-Humid",'Load %s'!$U$8:$U$24,'Load %s'!$V$8:$V$24))))))),AD6) ->  | AJ6: Rated Capacity (heating) | AK6: Rated Power | AP6: =NA() ->  | AS6: =A4 -> -13 | AT6: ='HP Calcs'!H5 -> 72 | AV6: =IFERROR(IF('Step 5 Identify & Select ASHPs'!B24="User Input Curve",'HP1'!L7,'HP Calcs'!X4),NA()) -> 22.50583658 | AW6: =IF('Step 5 Identify & Select ASHPs'!B24="User Input Curve",'HP1'!L21,V15) -> 7101.167315
A7: ='Load %s'!B11 -> -8 | B7: =IF('Step 5 Identify & Select ASHPs'!$B$27="High Stage",IF(AND('Step 5 Identify & Select ASHPs'!$B$37="Yes",'Step 5 Identify & Select ASHPs'!$B$38>'HP Calcs'!A7),"-",IF('Step 5 Identify & Select ASHPs'!$B$26="Single Speed",'Ducted Performance Tables'!B7,IF('Step 5 Identify & Select ASHPs'!$B$26="Two-Stage",'Ducted Performance Tables'!B46,IF('Step 5 Identify & Select ASHPs'!$B$26="Variable",'Ducted Performance Tables'!B99,IF(AND('Step 5 Identify & Select ASHPs'!$B$26="Regular Variable",'Step 5 Identify & Select ASHPs'!$B$25="Single Split Ductless"),'Ductless Single Per Table'!B25,IF(AND('Step 5 Identify & Select ASHPs'!$B$26="Cold Climate Variable",'Step 5 Identify & Select ASHPs'!$B$25="Single Split Ductless"),'Ductless Single Per Table'!B94,IF(AND('Step 5 Identify & Select ASHPs'!$B$26="Regular Variable",'Step 5 Identify & Select ASHPs'!$B$25="Multi-Split Ductless"),'Ductless Multi-split'!B48,IF(AND('Step 5 Identify & Select ASHPs'!$B$26="Cold Climate Variable",'Step 5 Identify & Select ASHPs'!$B$25="Multi-Split Ductless"),'Ductless Multi-split'!B121,"")))))))),IF('Step 5 Identify & Select ASHPs'!$B$27="Low Stage",IF(AND('Step 5 Identify & Select ASHPs'!$B$37="Yes",'Step 5 Identify & Select ASHPs'!$B$38>'HP Calcs'!A7),"-",IF('Step 5 Identify & Select ASHPs'!$B$26="Single Speed",'Ducted Performance Tables'!B7,IF('Step 5 Identify & Select ASHPs'!$B$26="Two-Stage",'Ducted Performance Tables'!J46,IF('Step 5 Identify & Select ASHPs'!$B$26="Variable",'Ducted Performance Tables'!J99,IF(AND('Step 5 Identify & Select ASHPs'!$B$26="Regular Variable",'Step 5 Identify & Select ASHPs'!$B$25="Single Split Ductless"),'Ductless Single Per Table'!K25,IF(AND('Step 5 Identify & Select ASHPs'!$B$26="Cold Climate Variable",'Step 5 Identify & Select ASHPs'!$B$25="Single Split Ductless"),'Ductless Single Per Table'!K94,IF(AND('Step 5 Identify & Select ASHPs'!$B$26="Regular Variable",'Step 5 Identify & Select ASHPs'!$B$25="Multi-Split Ductless"),'Ductless Multi-split'!K48,IF(AND('Step 5 Identify & Select ASHPs'!$B$26="Cold Climate Variable",'Step 5 Identify & Select ASHPs'!$B$25="Multi-Split Ductless"),'Ductless Multi-split'!K121,"")))))))))) -> - | C7: =IF('Step 5 Identify & Select ASHPs'!$B$27="High Stage",IF('Step 5 Identify & Select ASHPs'!$B$26="Single Speed",'Ducted Performance Tables'!C7,IF('Step 5 Identify & Select ASHPs'!$B$26="Two-Stage",'Ducted Performance Tables'!C46,IF('Step 5 Identify & Select ASHPs'!$B$26="Variable",'Ducted Performance Tables'!C99,IF(AND('Step 5 Identify & Select ASHPs'!$B$26="Regular Variable",'Step 5 Identify & Select ASHPs'!$B$25="Single Split Ductless"),'Ductless Single Per Table'!C25,IF(AND('Step 5 Identify & Select ASHPs'!$B$26="Cold Climate Variable",'Step 5 Identify & Select ASHPs'!$B$25="Single Split Ductless"),'Ductless Single Per Table'!C94,IF(AND('Step 5 Identify & Select ASHPs'!$B$26="Regular Variable",'Step 5 Identify & Select ASHPs'!$B$25="Multi-Split Ductless"),'Ductless Multi-split'!C48,IF(AND('Step 5 Identify & Select ASHPs'!$B$26="Cold Climate Variable",'Step 5 Identify & Select ASHPs'!$B$25="Multi-Split Ductless"),'Ductless Multi-split'!C121,""))))))),IF('Step 5 Identify & Select ASHPs'!$B$27="Low Stage",IF('Step 5 Identify & Select ASHPs'!$B$26="Single Speed",'Ducted Performance Tables'!C7,IF('Step 5 Identify & Select ASHPs'!$B$26="Two-Stage",'Ducted Performance Tables'!K46,IF('Step 5 Identify & Select ASHPs'!$B$26="Variable",'Ducted Performance Tables'!K99,IF(AND('Step 5 Identify & Select ASHPs'!$B$26="Regular Variable",'Step 5 Identify & Select ASHPs'!$B$25="Single Split Ductless"),'Ductless Single Per Table'!L25,IF(AND('Step 5 Identify & Select ASHPs'!$B$26="Cold Climate Variable",'Step 5 Identify & Select ASHPs'!$B$25="Single Split Ductless"),'Ductless Single Per Table'!L94,IF(AND('Step 5 Identify & Select ASHPs'!$B$26="Regular Variable",'Step 5 Identify & Select ASHPs'!$B$25="Multi-Split Ductless"),'Ductless Multi-split'!L48,IF(AND('Step 5 Identify & Select ASHPs'!$B$26="Cold Climate Variable",'Step 5 Identify & Select ASHPs'!$B$25="Multi-Split Ductless"),'Ductless Multi-split'!L121,""))))))))) -> - | D7: =IFERROR(B7*IF('Step 5 Identify & Select ASHPs'!$B$27="Low Stage",$AJ$7/'HP Calcs'!$B$18,IF('Step 5 Identify & Select ASHPs'!$B$27="High Stage",$AJ$7/'HP Calcs'!$B$18,$AJ$7)),NA()) ->  | E7: =IFERROR(C7*IF('Step 5 Identify & Select ASHPs'!$B$27="Low Stage",$AK$7/$C$18,IF('Step 5 Identify & Select ASHPs'!$B$27="High Stage",$AK$7/$C$18,$AK$7)),NA()) ->  | F7: =(D7/IF('Intro & Unit Options'!$B$12="Metric",1,3412))/E7 ->  | H7: =IF('Intro & Unit Options'!$B$12="Metric",(AR10-32)*(5/9),AR10) -> 82 | I7: =IF('Step 5 Identify & Select ASHPs'!$B$27="High Stage",IF('Step 5 Identify & Select ASHPs'!$B$26="Single Speed",'Ducted Performance Tables'!B26,IF('Step 5 Identify & Select ASHPs'!$B$26="Two-Stage",'Ducted Performance Tables'!B65,IF('Step 5 Identify & Select ASHPs'!$B$26="Variable",'Ducted Performance Tables'!B130,IF(AND('Step 5 Identify & Select ASHPs'!$B$26="Cold Climate Variable",'Step 5 Identify & Select ASHPs'!$B$25="Single Split Ductless"),'Ductless Single Per Table'!B127,IF(AND('Step 5 Identify & Select ASHPs'!$B$26="Regular Variable",'Step 5 Identify & Select ASHPs'!$B$25="Single Split Ductless"),'Ductless Single Per Table'!B60,IF(AND('Step 5 Identify & Select ASHPs'!$B$26="Cold Climate Variable",'Step 5 Identify & Select ASHPs'!$B$25="Multi-Split Ductless"),'Ductless Multi-split'!B87,IF(AND('Step 5 Identify & Select ASHPs'!$B$26="Regular Variable",'Step 5 Identify & Select ASHPs'!$B$25="Multi-Split Ductless"),'Ductless Multi-split'!B18,""))))))),IF('Step 5 Identify & Select ASHPs'!$B$27="Low Stage",IF('Step 5 Identify & Select ASHPs'!$B$26="Single Speed",'Ducted Performance Tables'!B26,IF(AND('Step 5 Identify & Select ASHPs'!$B$26="Two-Stage"),'Ducted Performance Tables'!J65,IF(AND('Step 5 Identify & Select ASHPs'!$B$26="Variable"),'Ducted Performance Tables'!J130,IF(AND('Step 5 Identify & Select ASHPs'!$B$26="Cold Climate Variable",'Step 5 Identify & Select ASHPs'!$B$25="Single Split Ductless"),'Ductless Single Per Table'!K127,IF(AND('Step 5 Identify & Select ASHPs'!$B$26="Regular Variable",'Step 5 Identify & Select ASHPs'!$B$25="Single Split Ductless"),'Ductless Single Per Table'!K60,IF(AND('Step 5 Identify & Select ASHPs'!$B$26="Cold Climate Variable",'Step 5 Identify & Select ASHPs'!$B$25="Multi-Split Ductless"),'Ductless Multi-split'!K87,IF(AND('Step 5 Identify & Select ASHPs'!$B$26="Regular Variable",'Step 5 Identify & Select ASHPs'!$B$25="Multi-Split Ductless"),'Ductless Multi-split'!K18,""))))))))) -> 0.9886414141 | J7: =IF('Step 5 Identify & Select ASHPs'!$B$27="High Stage",IF('Step 5 Identify & Select ASHPs'!$B$26="Single Speed",'Ducted Performance Tables'!C26,IF('Step 5 Identify & Select ASHPs'!$B$26="Two-Stage",'Ducted Performance Tables'!C65,IF('Step 5 Identify & Select ASHPs'!$B$26="Variable",'Ducted Performance Tables'!C130,IF(AND('Step 5 Identify & Select ASHPs'!$B$26="Cold Climate Variable",'Step 5 Identify & Select ASHPs'!$B$25="Single Split Ductless"),'Ductless Single Per Table'!C127,IF(AND('Step 5 Identify & Select ASHPs'!$B$26="Regular Variable",'Step 5 Identify & Select ASHPs'!$B$25="Single Split Ductless"),'Ductless Single Per Table'!C60,IF(AND('Step 5 Identify & Select ASHPs'!$B$26="Cold Climate Variable",'Step 5 Identify & Select ASHPs'!$B$25="Multi-Split Ductless"),'Ductless Multi-split'!C87,IF(AND('Step 5 Identify & Select ASHPs'!$B$26="Regular Variable",'Step 5 Identify & Select ASHPs'!$B$25="Multi-Split Ductless"),'Ductless Multi-split'!C18,""))))))),IF('Step 5 Identify & Select ASHPs'!$B$27="Low Stage",IF('Step 5 Identify & Select ASHPs'!$B$26="Single Speed",'Ducted Performance Tables'!C26,IF(AND('Step 5 Identify & Select ASHPs'!$B$26="Two-Stage"),'Ducted Performance Tables'!K65,IF(AND('Step 5 Identify & Select ASHPs'!$B$26="Variable"),'Ducted Performance Tables'!K130,IF(AND('Step 5 Identify & Select ASHPs'!$B$26="Cold Climate Variable",'Step 5 Identify & Select ASHPs'!$B$25="Single Split Ductless"),'Ductless Single Per Table'!L127,IF(AND('Step 5 Identify & Select ASHPs'!$B$26="Regular Variable",'Step 5 Identify & Select ASHPs'!$B$25="Single Split Ductless"),'Ductless Single Per Table'!L60,IF(AND('Step 5 Identify & Select ASHPs'!$B$26="Cold Climate Variable",'Step 5 Identify & Select ASHPs'!$B$25="Multi-Split Ductless"),'Ductless Multi-split'!L87,IF(AND('Step 5 Identify & Select ASHPs'!$B$26="Regular Variable",'Step 5 Identify & Select ASHPs'!$B$25="Multi-Split Ductless"),'Ductless Multi-split'!L18,""))))))))) -> 0.8510206229 | K7: =IF(I7=0,NA(),IFERROR(I7*IF('Step 5 Identify & Select ASHPs'!$B$26="Single Speed",$AJ$14,IF('Step 5 Identify & Select ASHPs'!$B$27="Low Stage",$AJ$14/$AJ$17,IF(AND('Step 5 Identify & Select ASHPs'!$B$27="High Stage"),$AJ$14/$AJ$20,$AJ$14/$AJ$17))),NA())) -> 11863.69697 | L7: =IF(J7=0,NA(),IFERROR(J7*IF('Step 5 Identify & Select ASHPs'!$B$26="Single Speed",$AK$14,IF('Step 5 Identify & Select ASHPs'!$B$27="Low Stage",$AK$14/$AK$17,IF(AND('Step 5 Identify & Select ASHPs'!$B$27="High Stage",'Step 5 Identify & Select ASHPs'!$B$28<>"B"),$AK$14/$AK$20,$AK$14/$AK$17))),NA())) -> 1.702041246 | M7: =(K7/IF('Intro & Unit Options'!$B$12="Metric",1,3412))/L7 -> 2.042870996 | P7: - | Q7: =IF(AND('Step 5 Identify & Select ASHPs'!$G$37="Yes",'Step 5 Identify & Select ASHPs'!$B$38>A7),"-",IF('Step 5 Identify & Select ASHPs'!$B$27="High Stage",IF('Step 5 Identify & Select ASHPs'!$B$26="Single Speed",'Ducted Performance Tables'!C7,IF('Step 5 Identify & Select ASHPs'!$B$26="Two-Stage",'Ducted Performance Tables'!C46,IF('Step 5 Identify & Select ASHPs'!$B$26="Variable",'Ducted Performance Tables'!C99,IF(AND('Step 5 Identify & Select ASHPs'!$B$26="Regular Variable",'Step 5 Identify & Select ASHPs'!$B$25="Single Split Ductless"),'Ductless Single Per Table'!C25,IF(AND('Step 5 Identify & Select ASHPs'!$B$26="Cold Climate Variable",'Step 5 Identify & Select ASHPs'!$B$25="Single Split Ductless"),'Ductless Single Per Table'!C94,IF(AND('Step 5 Identify & Select ASHPs'!$B$26="Regular Variable",'Step 5 Identify & Select ASHPs'!$B$25="Multi-Split Ductless"),'Ductless Multi-split'!C48,IF(AND('Step 5 Identify & Select ASHPs'!$B$26="Cold Climate Variable",'Step 5 Identify & Select ASHPs'!$B$25="Multi-Split Ductless"),'Ductless Multi-split'!C121,""))))))),IF('Step 5 Identify & Select ASHPs'!$B$27="Low Stage",IF('Step 5 Identify & Select ASHPs'!$B$26="Single Speed",'Ducted Performance Tables'!C7,IF('Step 5 Identify & Select ASHPs'!$B$26="Two-Stage",'Ducted Performance Tables'!K46,IF('Step 5 Identify & Select ASHPs'!$B$26="Variable",'Ducted Performance Tables'!K99,IF(AND('Step 5 Identify & Select ASHPs'!$B$26="Regular Variable",'Step 5 Identify & Select ASHPs'!$B$25="Single Split Ductless"),'Ductless Single Per Table'!L25,IF(AND('Step 5 Identify & Select ASHPs'!$B$26="Cold Climate Variable",'Step 5 Identify & Select ASHPs'!$B$25="Single Split Ductless"),'Ductless Single Per Table'!L94,IF(AND('Step 5 Identify & Select ASHPs'!$B$26="Regular Variable",'Step 5 Identify & Select ASHPs'!$B$25="Multi-Split Ductless"),'Ductless Multi-split'!L48,IF(AND('Step 5 Identify & Select ASHPs'!$B$26="Cold Climate Variable",'Step 5 Identify & Select ASHPs'!$B$25="Multi-Split Ductless"),'Ductless Multi-split'!L121,"")))))))))) -> - | S7: ='Design Load Calcs'!$G$23*'HP Calcs'!A7+'Design Load Calcs'!$H$23 -> 12878.78788 | AB7: ='Design Load Calcs'!$J$23*'HP Calcs'!A7+'Design Load Calcs'!$K$23 ->  | AJ7: ='Step 5 Identify & Select ASHPs'!$B$30 -> 12000 | AK7: ='Step 5 Identify & Select ASHPs'!$B$31 -> 2 | AP7: =NA() ->  | AS7: -18 | AT7: ='HP Calcs'!H6 -> 77 | AV7: =AV6 -> 22.50583658 | AW7: 0
A8: ='Load %s'!B12 -> -3 | B8: =IF('Step 5 Identify & Select ASHPs'!$B$27="High Stage",IF(AND('Step 5 Identify & Select ASHPs'!$B$37="Yes",'Step 5 Identify & Select ASHPs'!$B$38>'HP Calcs'!A8),"-",IF('Step 5 Identify & Select ASHPs'!$B$26="Single Speed",'Ducted Performance Tables'!B8,IF('Step 5 Identify & Select ASHPs'!$B$26="Two-Stage",'Ducted Performance Tables'!B47,IF('Step 5 Identify & Select ASHPs'!$B$26="Variable",'Ducted Performance Tables'!B100,IF(AND('Step 5 Identify & Select ASHPs'!$B$26="Regular Variable",'Step 5 Identify & Select ASHPs'!$B$25="Single Split Ductless"),'Ductless Single Per Table'!B26,IF(AND('Step 5 Identify & Select ASHPs'!$B$26="Cold Climate Variable",'Step 5 Identify & Select ASHPs'!$B$25="Single Split Ductless"),'Ductless Single Per Table'!B95,IF(AND('Step 5 Identify & Select ASHPs'!$B$26="Regular Variable",'Step 5 Identify & Select ASHPs'!$B$25="Multi-Split Ductless"),'Ductless Multi-split'!B49,IF(AND('Step 5 Identify & Select ASHPs'!$B$26="Cold Climate Variable",'Step 5 Identify & Select ASHPs'!$B$25="Multi-Split Ductless"),'Ductless Multi-split'!B122,"")))))))),IF('Step 5 Identify & Select ASHPs'!$B$27="Low Stage",IF(AND('Step 5 Identify & Select ASHPs'!$B$37="Yes",'Step 5 Identify & Select ASHPs'!$B$38>'HP Calcs'!A8),"-",IF('Step 5 Identify & Select ASHPs'!$B$26="Single Speed",'Ducted Performance Tables'!B8,IF('Step 5 Identify & Select ASHPs'!$B$26="Two-Stage",'Ducted Performance Tables'!J47,IF('Step 5 Identify & Select ASHPs'!$B$26="Variable",'Ducted Performance Tables'!J100,IF(AND('Step 5 Identify & Select ASHPs'!$B$26="Regular Variable",'Step 5 Identify & Select ASHPs'!$B$25="Single Split Ductless"),'Ductless Single Per Table'!K26,IF(AND('Step 5 Identify & Select ASHPs'!$B$26="Cold Climate Variable",'Step 5 Identify & Select ASHPs'!$B$25="Single Split Ductless"),'Ductless Single Per Table'!K95,IF(AND('Step 5 Identify & Select ASHPs'!$B$26="Regular Variable",'Step 5 Identify & Select ASHPs'!$B$25="Multi-Split Ductless"),'Ductless Multi-split'!K49,IF(AND('Step 5 Identify & Select ASHPs'!$B$26="Cold Climate Variable",'Step 5 Identify & Select ASHPs'!$B$25="Multi-Split Ductless"),'Ductless Multi-split'!K122,"")))))))))) -> 0.31125 | C8: =IF('Step 5 Identify & Select ASHPs'!$B$27="High Stage",IF('Step 5 Identify & Select ASHPs'!$B$26="Single Speed",'Ducted Performance Tables'!C8,IF('Step 5 Identify & Select ASHPs'!$B$26="Two-Stage",'Ducted Performance Tables'!C47,IF('Step 5 Identify & Select ASHPs'!$B$26="Variable",'Ducted Performance Tables'!C100,IF(AND('Step 5 Identify & Select ASHPs'!$B$26="Regular Variable",'Step 5 Identify & Select ASHPs'!$B$25="Single Split Ductless"),'Ductless Single Per Table'!C26,IF(AND('Step 5 Identify & Select ASHPs'!$B$26="Cold Climate Variable",'Step 5 Identify & Select ASHPs'!$B$25="Single Split Ductless"),'Ductless Single Per Table'!C95,IF(AND('Step 5 Identify & Select ASHPs'!$B$26="Regular Variable",'Step 5 Identify & Select ASHPs'!$B$25="Multi-Split Ductless"),'Ductless Multi-split'!C49,IF(AND('Step 5 Identify & Select ASHPs'!$B$26="Cold Climate Variable",'Step 5 Identify & Select ASHPs'!$B$25="Multi-Split Ductless"),'Ductless Multi-split'!C122,""))))))),IF('Step 5 Identify & Select ASHPs'!$B$27="Low Stage",IF('Step 5 Identify & Select ASHPs'!$B$26="Single Speed",'Ducted Performance Tables'!C8,IF('Step 5 Identify & Select ASHPs'!$B$26="Two-Stage",'Ducted Performance Tables'!K47,IF('Step 5 Identify & Select ASHPs'!$B$26="Variable",'Ducted Performance Tables'!K100,IF(AND('Step 5 Identify & Select ASHPs'!$B$26="Regular Variable",'Step 5 Identify & Select ASHPs'!$B$25="Single Split Ductless"),'Ductless Single Per Table'!L26,IF(AND('Step 5 Identify & Select ASHPs'!$B$26="Cold Climate Variable",'Step 5 Identify & Select ASHPs'!$B$25="Single Split Ductless"),'Ductless Single Per Table'!L95,IF(AND('Step 5 Identify & Select ASHPs'!$B$26="Regular Variable",'Step 5 Identify & Select ASHPs'!$B$25="Multi-Split Ductless"),'Ductless Multi-split'!L49,IF(AND('Step 5 Identify & Select ASHPs'!$B$26="Cold Climate Variable",'Step 5 Identify & Select ASHPs'!$B$25="Multi-Split Ductless"),'Ductless Multi-split'!L122,""))))))))) -> 0.8079096045 | D8: =IFERROR(B8*IF('Step 5 Identify & Select ASHPs'!$B$27="Low Stage",$AJ$7/'HP Calcs'!$B$18,IF('Step 5 Identify & Select ASHPs'!$B$27="High Stage",$AJ$7/'HP Calcs'!$B$18,$AJ$7)),NA()) -> 3735 | E8: =IFERROR(C8*IF('Step 5 Identify & Select ASHPs'!$B$27="Low Stage",$AK$7/$C$18,IF('Step 5 Identify & Select ASHPs'!$B$27="High Stage",$AK$7/$C$18,$AK$7)),NA()) -> 1.615819209 | F8: =(D8/IF('Intro & Unit Options'!$B$12="Metric",1,3412))/E8 -> 0.6774680478 | H8: =IF('Intro & Unit Options'!$B$12="Metric",(AR11-32)*(5/9),AR11) -> 87 | I8: =IF('Step 5 Identify & Select ASHPs'!$B$27="High Stage",IF('Step 5 Identify & Select ASHPs'!$B$26="Single Speed",'Ducted Performance Tables'!B27,IF('Step 5 Identify & Select ASHPs'!$B$26="Two-Stage",'Ducted Performance Tables'!B66,IF('Step 5 Identify & Select ASHPs'!$B$26="Variable",'Ducted Performance Tables'!B131,IF(AND('Step 5 Identify & Select ASHPs'!$B$26="Cold Climate Variable",'Step 5 Identify & Select ASHPs'!$B$25="Single Split Ductless"),'Ductless Single Per Table'!B128,IF(AND('Step 5 Identify & Select ASHPs'!$B$26="Regular Variable",'Step 5 Identify & Select ASHPs'!$B$25="Single Split Ductless"),'Ductless Single Per Table'!B61,IF(AND('Step 5 Identify & Select ASHPs'!$B$26="Cold Climate Variable",'Step 5 Identify & Select ASHPs'!$B$25="Multi-Split Ductless"),'Ductless Multi-split'!B88,IF(AND('Step 5 Identify & Select ASHPs'!$B$26="Regular Variable",'Step 5 Identify & Select ASHPs'!$B$25="Multi-Split Ductless"),'Ductless Multi-split'!B19,""))))))),IF('Step 5 Identify & Select ASHPs'!$B$27="Low Stage",IF('Step 5 Identify & Select ASHPs'!$B$26="Single Speed",'Ducted Performance Tables'!B27,IF(AND('Step 5 Identify & Select ASHPs'!$B$26="Two-Stage"),'Ducted Performance Tables'!J66,IF(AND('Step 5 Identify & Select ASHPs'!$B$26="Variable"),'Ducted Performance Tables'!J131,IF(AND('Step 5 Identify & Select ASHPs'!$B$26="Cold Climate Variable",'Step 5 Identify & Select ASHPs'!$B$25="Single Split Ductless"),'Ductless Single Per Table'!K128,IF(AND('Step 5 Identify & Select ASHPs'!$B$26="Regular Variable",'Step 5 Identify & Select ASHPs'!$B$25="Single Split Ductless"),'Ductless Single Per Table'!K61,IF(AND('Step 5 Identify & Select ASHPs'!$B$26="Cold Climate Variable",'Step 5 Identify & Select ASHPs'!$B$25="Multi-Split Ductless"),'Ductless Multi-split'!K88,IF(AND('Step 5 Identify & Select ASHPs'!$B$26="Regular Variable",'Step 5 Identify & Select ASHPs'!$B$25="Multi-Split Ductless"),'Ductless Multi-split'!K19,""))))))))) -> 0.9649404762 | J8: =IF('Step 5 Identify & Select ASHPs'!$B$27="High Stage",IF('Step 5 Identify & Select ASHPs'!$B$26="Single Speed",'Ducted Performance Tables'!C27,IF('Step 5 Identify & Select ASHPs'!$B$26="Two-Stage",'Ducted Performance Tables'!C66,IF('Step 5 Identify & Select ASHPs'!$B$26="Variable",'Ducted Performance Tables'!C131,IF(AND('Step 5 Identify & Select ASHPs'!$B$26="Cold Climate Variable",'Step 5 Identify & Select ASHPs'!$B$25="Single Split Ductless"),'Ductless Single Per Table'!C128,IF(AND('Step 5 Identify & Select ASHPs'!$B$26="Regular Variable",'Step 5 Identify & Select ASHPs'!$B$25="Single Split Ductless"),'Ductless Single Per Table'!C61,IF(AND('Step 5 Identify & Select ASHPs'!$B$26="Cold Climate Variable",'Step 5 Identify & Select ASHPs'!$B$25="Multi-Split Ductless"),'Ductless Multi-split'!C88,IF(AND('Step 5 Identify & Select ASHPs'!$B$26="Regular Variable",'Step 5 Identify & Select ASHPs'!$B$25="Multi-Split Ductless"),'Ductless Multi-split'!C19,""))))))),IF('Step 5 Identify & Select ASHPs'!$B$27="Low Stage",IF('Step 5 Identify & Select ASHPs'!$B$26="Single Speed",'Ducted Performance Tables'!C27,IF(AND('Step 5 Identify & Select ASHPs'!$B$26="Two-Stage"),'Ducted Performance Tables'!K66,IF(AND('Step 5 Identify & Select ASHPs'!$B$26="Variable"),'Ducted Performance Tables'!K131,IF(AND('Step 5 Identify & Select ASHPs'!$B$26="Cold Climate Variable",'Step 5 Identify & Select ASHPs'!$B$25="Single Split Ductless"),'Ductless Single Per Table'!L128,IF(AND('Step 5 Identify & Select ASHPs'!$B$26="Regular Variable",'Step 5 Identify & Select ASHPs'!$B$25="Single Split Ductless"),'Ductless Single Per Table'!L61,IF(AND('Step 5 Identify & Select ASHPs'!$B$26="Cold Climate Variable",'Step 5 Identify & Select ASHPs'!$B$25="Multi-Split Ductless"),'Ductless Multi-split'!L88,IF(AND('Step 5 Identify & Select ASHPs'!$B$26="Regular Variable",'Step 5 Identify & Select ASHPs'!$B$25="Multi-Split Ductless"),'Ductless Multi-split'!L19,""))))))))) -> 0.9027777778 | K8: =IF(I8=0,NA(),IFERROR(I8*IF('Step 5 Identify & Select ASHPs'!$B$26="Single Speed",$AJ$14,IF('Step 5 Identify & Select ASHPs'!$B$27="Low Stage",$AJ$14/$AJ$17,IF(AND('Step 5 Identify & Select ASHPs'!$B$27="High Stage"),$AJ$14/$AJ$20,$AJ$14/$AJ$17))),NA())) -> 11579.28571 | L8: =IF(J8=0,NA(),IFERROR(J8*IF('Step 5 Identify & Select ASHPs'!$B$26="Single Speed",$AK$14,IF('Step 5 Identify & Select ASHPs'!$B$27="Low Stage",$AK$14/$AK$17,IF(AND('Step 5 Identify & Select ASHPs'!$B$27="High Stage",'Step 5 Identify & Select ASHPs'!$B$28<>"B"),$AK$14/$AK$20,$AK$14/$AK$17))),NA())) -> 1.805555556 | M8: =(K8/IF('Intro & Unit Options'!$B$12="Metric",1,3412))/L8 -> 1.879584659 | O8: =ABS(A4-$J$18) -> 13 | P8: 0.8079096045 | Q8: =IF(AND('Step 5 Identify & Select ASHPs'!$G$37="Yes",'Step 5 Identify & Select ASHPs'!$B$38>A8),"-",IF('Step 5 Identify & Select ASHPs'!$B$27="High Stage",IF('Step 5 Identify & Select ASHPs'!$B$26="Single Speed",'Ducted Performance Tables'!C8,IF('Step 5 Identify & Select ASHPs'!$B$26="Two-Stage",'Ducted Performance Tables'!C47,IF('Step 5 Identify & Select ASHPs'!$B$26="Variable",'Ducted Performance Tables'!C100,IF(AND('Step 5 Identify & Select ASHPs'!$B$26="Regular Variable",'Step 5 Identify & Select ASHPs'!$B$25="Single Split Ductless"),'Ductless Single Per Table'!C26,IF(AND('Step 5 Identify & Select ASHPs'!$B$26="Cold Climate Variable",'Step 5 Identify & Select ASHPs'!$B$25="Single Split Ductless"),'Ductless Single Per Table'!C95,IF(AND('Step 5 Identify & Select ASHPs'!$B$26="Regular Variable",'Step 5 Identify & Select ASHPs'!$B$25="Multi-Split Ductless"),'Ductless Multi-split'!C49,IF(AND('Step 5 Identify & Select ASHPs'!$B$26="Cold Climate Variable",'Step 5 Identify & Select ASHPs'!$B$25="Multi-Split Ductless"),'Ductless Multi-split'!C122,""))))))),IF('Step 5 Identify & Select ASHPs'!$B$27="Low Stage",IF('Step 5 Identify & Select ASHPs'!$B$26="Single Speed",'Ducted Performance Tables'!C8,IF('Step 5 Identify & Select ASHPs'!$B$26="Two-Stage",'Ducted Performance Tables'!K47,IF('Step 5 Identify & Select ASHPs'!$B$26="Variable",'Ducted Performance Tables'!K100,IF(AND('Step 5 Identify & Select ASHPs'!$B$26="Regular Variable",'Step 5 Identify & Select ASHPs'!$B$25="Single Split Ductless"),'Ductless Single Per Table'!L26,IF(AND('Step 5 Identify & Select ASHPs'!$B$26="Cold Climate Variable",'Step 5 Identify & Select ASHPs'!$B$25="Single Split Ductless"),'Ductless Single Per Table'!L95,IF(AND('Step 5 Identify & Select ASHPs'!$B$26="Regular Variable",'Step 5 Identify & Select ASHPs'!$B$25="Multi-Split Ductless"),'Ductless Multi-split'!L49,IF(AND('Step 5 Identify & Select ASHPs'!$B$26="Cold Climate Variable",'Step 5 Identify & Select ASHPs'!$B$25="Multi-Split Ductless"),'Ductless Multi-split'!L122,"")))))))))) -> 0.8079096045 | S8: ='Design Load Calcs'!$G$23*'HP Calcs'!A8+'Design Load Calcs'!$H$23 -> 11931.81818 | AB8: ='Design Load Calcs'!$J$23*'HP Calcs'!A8+'Design Load Calcs'!$K$23 ->  | AP8: =NA() ->  | AR8: 72 | AS8: -13 | AT8: ='HP Calcs'!H7 -> 82 | BB8: =IF(NOT('Step 5 Identify & Select ASHPs'!B9=1),"BPT="&ROUND(BB9,0)&'Step 3 Design Loads'!C13,"") -> BPT=10F
A9: ='Load %s'!B13 -> 2 | B9: =IF('Step 5 Identify & Select ASHPs'!$B$27="High Stage",IF(AND('Step 5 Identify & Select ASHPs'!$B$37="Yes",'Step 5 Identify & Select ASHPs'!$B$38>'HP Calcs'!A9),"-",IF('Step 5 Identify & Select ASHPs'!$B$26="Single Speed",'Ducted Performance Tables'!B9,IF('Step 5 Identify & Select ASHPs'!$B$26="Two-Stage",'Ducted Performance Tables'!B48,IF('Step 5 Identify & Select ASHPs'!$B$26="Variable",'Ducted Performance Tables'!B101,IF(AND('Step 5 Identify & Select ASHPs'!$B$26="Regular Variable",'Step 5 Identify & Select ASHPs'!$B$25="Single Split Ductless"),'Ductless Single Per Table'!B27,IF(AND('Step 5 Identify & Select ASHPs'!$B$26="Cold Climate Variable",'Step 5 Identify & Select ASHPs'!$B$25="Single Split Ductless"),'Ductless Single Per Table'!B96,IF(AND('Step 5 Identify & Select ASHPs'!$B$26="Regular Variable",'Step 5 Identify & Select ASHPs'!$B$25="Multi-Split Ductless"),'Ductless Multi-split'!B50,IF(AND('Step 5 Identify & Select ASHPs'!$B$26="Cold Climate Variable",'Step 5 Identify & Select ASHPs'!$B$25="Multi-Split Ductless"),'Ductless Multi-split'!B123,"")))))))),IF('Step 5 Identify & Select ASHPs'!$B$27="Low Stage",IF(AND('Step 5 Identify & Select ASHPs'!$B$37="Yes",'Step 5 Identify & Select ASHPs'!$B$38>'HP Calcs'!A9),"-",IF('Step 5 Identify & Select ASHPs'!$B$26="Single Speed",'Ducted Performance Tables'!B9,IF('Step 5 Identify & Select ASHPs'!$B$26="Two-Stage",'Ducted Performance Tables'!J48,IF('Step 5 Identify & Select ASHPs'!$B$26="Variable",'Ducted Performance Tables'!J101,IF(AND('Step 5 Identify & Select ASHPs'!$B$26="Regular Variable",'Step 5 Identify & Select ASHPs'!$B$25="Single Split Ductless"),'Ductless Single Per Table'!K27,IF(AND('Step 5 Identify & Select ASHPs'!$B$26="Cold Climate Variable",'Step 5 Identify & Select ASHPs'!$B$25="Single Split Ductless"),'Ductless Single Per Table'!K96,IF(AND('Step 5 Identify & Select ASHPs'!$B$26="Regular Variable",'Step 5 Identify & Select ASHPs'!$B$25="Multi-Split Ductless"),'Ductless Multi-split'!K50,IF(AND('Step 5 Identify & Select ASHPs'!$B$26="Cold Climate Variable",'Step 5 Identify & Select ASHPs'!$B$25="Multi-Split Ductless"),'Ductless Multi-split'!K123,"")))))))))) -> 0.3635416667 | C9: =IF('Step 5 Identify & Select ASHPs'!$B$27="High Stage",IF('Step 5 Identify & Select ASHPs'!$B$26="Single Speed",'Ducted Performance Tables'!C9,IF('Step 5 Identify & Select ASHPs'!$B$26="Two-Stage",'Ducted Performance Tables'!C48,IF('Step 5 Identify & Select ASHPs'!$B$26="Variable",'Ducted Performance Tables'!C101,IF(AND('Step 5 Identify & Select ASHPs'!$B$26="Regular Variable",'Step 5 Identify & Select ASHPs'!$B$25="Single Split Ductless"),'Ductless Single Per Table'!C27,IF(AND('Step 5 Identify & Select ASHPs'!$B$26="Cold Climate Variable",'Step 5 Identify & Select ASHPs'!$B$25="Single Split Ductless"),'Ductless Single Per Table'!C96,IF(AND('Step 5 Identify & Select ASHPs'!$B$26="Regular Variable",'Step 5 Identify & Select ASHPs'!$B$25="Multi-Split Ductless"),'Ductless Multi-split'!C50,IF(AND('Step 5 Identify & Select ASHPs'!$B$26="Cold Climate Variable",'Step 5 Identify & Select ASHPs'!$B$25="Multi-Split Ductless"),'Ductless Multi-split'!C123,""))))))),IF('Step 5 Identify & Select ASHPs'!$B$27="Low Stage",IF('Step 5 Identify & Select ASHPs'!$B$26="Single Speed",'Ducted Performance Tables'!C9,IF('Step 5 Identify & Select ASHPs'!$B$26="Two-Stage",'Ducted Performance Tables'!K48,IF('Step 5 Identify & Select ASHPs'!$B$26="Variable",'Ducted Performance Tables'!K101,IF(AND('Step 5 Identify & Select ASHPs'!$B$26="Regular Variable",'Step 5 Identify & Select ASHPs'!$B$25="Single Split Ductless"),'Ductless Single Per Table'!L27,IF(AND('Step 5 Identify & Select ASHPs'!$B$26="Cold Climate Variable",'Step 5 Identify & Select ASHPs'!$B$25="Single Split Ductless"),'Ductless Single Per Table'!L96,IF(AND('Step 5 Identify & Select ASHPs'!$B$26="Regular Variable",'Step 5 Identify & Select ASHPs'!$B$25="Multi-Split Ductless"),'Ductless Multi-split'!L50,IF(AND('Step 5 Identify & Select ASHPs'!$B$26="Cold Climate Variable",'Step 5 Identify & Select ASHPs'!$B$25="Multi-Split Ductless"),'Ductless Multi-split'!L123,""))))))))) -> 0.8305084746 | D9: =IFERROR(B9*IF('Step 5 Identify & Select ASHPs'!$B$27="Low Stage",$AJ$7/'HP Calcs'!$B$18,IF('Step 5 Identify & Select ASHPs'!$B$27="High Stage",$AJ$7/'HP Calcs'!$B$18,$AJ$7)),NA()) -> 4362.5 | E9: =IFERROR(C9*IF('Step 5 Identify & Select ASHPs'!$B$27="Low Stage",$AK$7/$C$18,IF('Step 5 Identify & Select ASHPs'!$B$27="High Stage",$AK$7/$C$18,$AK$7)),NA()) -> 1.661016949 | F9: =(D9/IF('Intro & Unit Options'!$B$12="Metric",1,3412))/E9 -> 0.7697547073 | H9: =IF('Intro & Unit Options'!$B$12="Metric",(AR12-32)*(5/9),AR12) -> 92 | I9: =IF('Step 5 Identify & Select ASHPs'!$B$27="High Stage",IF('Step 5 Identify & Select ASHPs'!$B$26="Single Speed",'Ducted Performance Tables'!B28,IF('Step 5 Identify & Select ASHPs'!$B$26="Two-Stage",'Ducted Performance Tables'!B67,IF('Step 5 Identify & Select ASHPs'!$B$26="Variable",'Ducted Performance Tables'!B132,IF(AND('Step 5 Identify & Select ASHPs'!$B$26="Cold Climate Variable",'Step 5 Identify & Select ASHPs'!$B$25="Single Split Ductless"),'Ductless Single Per Table'!B129,IF(AND('Step 5 Identify & Select ASHPs'!$B$26="Regular Variable",'Step 5 Identify & Select ASHPs'!$B$25="Single Split Ductless"),'Ductless Single Per Table'!B62,IF(AND('Step 5 Identify & Select ASHPs'!$B$26="Cold Climate Variable",'Step 5 Identify & Select ASHPs'!$B$25="Multi-Split Ductless"),'Ductless Multi-split'!B89,IF(AND('Step 5 Identify & Select ASHPs'!$B$26="Regular Variable",'Step 5 Identify & Select ASHPs'!$B$25="Multi-Split Ductless"),'Ductless Multi-split'!B20,""))))))),IF('Step 5 Identify & Select ASHPs'!$B$27="Low Stage",IF('Step 5 Identify & Select ASHPs'!$B$26="Single Speed",'Ducted Performance Tables'!B28,IF(AND('Step 5 Identify & Select ASHPs'!$B$26="Two-Stage"),'Ducted Performance Tables'!J67,IF(AND('Step 5 Identify & Select ASHPs'!$B$26="Variable"),'Ducted Performance Tables'!J132,IF(AND('Step 5 Identify & Select ASHPs'!$B$26="Cold Climate Variable",'Step 5 Identify & Select ASHPs'!$B$25="Single Split Ductless"),'Ductless Single Per Table'!K129,IF(AND('Step 5 Identify & Select ASHPs'!$B$26="Regular Variable",'Step 5 Identify & Select ASHPs'!$B$25="Single Split Ductless"),'Ductless Single Per Table'!K62,IF(AND('Step 5 Identify & Select ASHPs'!$B$26="Cold Climate Variable",'Step 5 Identify & Select ASHPs'!$B$25="Multi-Split Ductless"),'Ductless Multi-split'!K89,IF(AND('Step 5 Identify & Select ASHPs'!$B$26="Regular Variable",'Step 5 Identify & Select ASHPs'!$B$25="Multi-Split Ductless"),'Ductless Multi-split'!K20,""))))))))) -> 0.9407589286 | J9: =IF('Step 5 Identify & Select ASHPs'!$B$27="High Stage",IF('Step 5 Identify & Select ASHPs'!$B$26="Single Speed",'Ducted Performance Tables'!C28,IF('Step 5 Identify & Select ASHPs'!$B$26="Two-Stage",'Ducted Performance Tables'!C67,IF('Step 5 Identify & Select ASHPs'!$B$26="Variable",'Ducted Performance Tables'!C132,IF(AND('Step 5 Identify & Select ASHPs'!$B$26="Cold Climate Variable",'Step 5 Identify & Select ASHPs'!$B$25="Single Split Ductless"),'Ductless Single Per Table'!C129,IF(AND('Step 5 Identify & Select ASHPs'!$B$26="Regular Variable",'Step 5 Identify & Select ASHPs'!$B$25="Single Split Ductless"),'Ductless Single Per Table'!C62,IF(AND('Step 5 Identify & Select ASHPs'!$B$26="Cold Climate Variable",'Step 5 Identify & Select ASHPs'!$B$25="Multi-Split Ductless"),'Ductless Multi-split'!C89,IF(AND('Step 5 Identify & Select ASHPs'!$B$26="Regular Variable",'Step 5 Identify & Select ASHPs'!$B$25="Multi-Split Ductless"),'Ductless Multi-split'!C20,""))))))),IF('Step 5 Identify & Select ASHPs'!$B$27="Low Stage",IF('Step 5 Identify & Select ASHPs'!$B$26="Single Speed",'Ducted Performance Tables'!C28,IF(AND('Step 5 Identify & Select ASHPs'!$B$26="Two-Stage"),'Ducted Performance Tables'!K67,IF(AND('Step 5 Identify & Select ASHPs'!$B$26="Variable"),'Ducted Performance Tables'!K132,IF(AND('Step 5 Identify & Select ASHPs'!$B$26="Cold Climate Variable",'Step 5 Identify & Select ASHPs'!$B$25="Single Split Ductless"),'Ductless Single Per Table'!L129,IF(AND('Step 5 Identify & Select ASHPs'!$B$26="Regular Variable",'Step 5 Identify & Select ASHPs'!$B$25="Single Split Ductless"),'Ductless Single Per Table'!L62,IF(AND('Step 5 Identify & Select ASHPs'!$B$26="Cold Climate Variable",'Step 5 Identify & Select ASHPs'!$B$25="Multi-Split Ductless"),'Ductless Multi-split'!L89,IF(AND('Step 5 Identify & Select ASHPs'!$B$26="Regular Variable",'Step 5 Identify & Select ASHPs'!$B$25="Multi-Split Ductless"),'Ductless Multi-split'!L20,""))))))))) -> 0.95703125 | K9: =IF(I9=0,NA(),IFERROR(I9*IF('Step 5 Identify & Select ASHPs'!$B$26="Single Speed",$AJ$14,IF('Step 5 Identify & Select ASHPs'!$B$27="Low Stage",$AJ$14/$AJ$17,IF(AND('Step 5 Identify & Select ASHPs'!$B$27="High Stage"),$AJ$14/$AJ$20,$AJ$14/$AJ$17))),NA())) -> 11289.10714 | L9: =IF(J9=0,NA(),IFERROR(J9*IF('Step 5 Identify & Select ASHPs'!$B$26="Single Speed",$AK$14,IF('Step 5 Identify & Select ASHPs'!$B$27="Low Stage",$AK$14/$AK$17,IF(AND('Step 5 Identify & Select ASHPs'!$B$27="High Stage",'Step 5 Identify & Select ASHPs'!$B$28<>"B"),$AK$14/$AK$20,$AK$14/$AK$17))),NA())) -> 1.9140625 | M9: =(K9/IF('Intro & Unit Options'!$B$12="Metric",1,3412))/L9 -> 1.728599797 | O9: 18 | P9: - | Q9: =IF(AND('Step 5 Identify & Select ASHPs'!$G$37="Yes",'Step 5 Identify & Select ASHPs'!$B$38>A9),"-",IF('Step 5 Identify & Select ASHPs'!$B$27="High Stage",IF('Step 5 Identify & Select ASHPs'!$B$26="Single Speed",'Ducted Performance Tables'!C9,IF('Step 5 Identify & Select ASHPs'!$B$26="Two-Stage",'Ducted Performance Tables'!C48,IF('Step 5 Identify & Select ASHPs'!$B$26="Variable",'Ducted Performance Tables'!C101,IF(AND('Step 5 Identify & Select ASHPs'!$B$26="Regular Variable",'Step 5 Identify & Select ASHPs'!$B$25="Single Split Ductless"),'Ductless Single Per Table'!C27,IF(AND('Step 5 Identify & Select ASHPs'!$B$26="Cold Climate Variable",'Step 5 Identify & Select ASHPs'!$B$25="Single Split Ductless"),'Ductless Single Per Table'!C96,IF(AND('Step 5 Identify & Select ASHPs'!$B$26="Regular Variable",'Step 5 Identify & Select ASHPs'!$B$25="Multi-Split Ductless"),'Ductless Multi-split'!C50,IF(AND('Step 5 Identify & Select ASHPs'!$B$26="Cold Climate Variable",'Step 5 Identify & Select ASHPs'!$B$25="Multi-Split Ductless"),'Ductless Multi-split'!C123,""))))))),IF('Step 5 Identify & Select ASHPs'!$B$27="Low Stage",IF('Step 5 Identify & Select ASHPs'!$B$26="Single Speed",'Ducted Performance Tables'!C9,IF('Step 5 Identify & Select ASHPs'!$B$26="Two-Stage",'Ducted Performance Tables'!K48,IF('Step 5 Identify & Select ASHPs'!$B$26="Variable",'Ducted Performance Tables'!K101,IF(AND('Step 5 Identify & Select ASHPs'!$B$26="Regular Variable",'Step 5 Identify & Select ASHPs'!$B$25="Single Split Ductless"),'Ductless Single Per Table'!L27,IF(AND('Step 5 Identify & Select ASHPs'!$B$26="Cold Climate Variable",'Step 5 Identify & Select ASHPs'!$B$25="Single Split Ductless"),'Ductless Single Per Table'!L96,IF(AND('Step 5 Identify & Select ASHPs'!$B$26="Regular Variable",'Step 5 Identify & Select ASHPs'!$B$25="Multi-Split Ductless"),'Ductless Multi-split'!L50,IF(AND('Step 5 Identify & Select ASHPs'!$B$26="Cold Climate Variable",'Step 5 Identify & Select ASHPs'!$B$25="Multi-Split Ductless"),'Ductless Multi-split'!L123,"")))))))))) -> 0.8305084746 | S9: ='Design Load Calcs'!$G$23*'HP Calcs'!A9+'Design Load Calcs'!$H$23 -> 10984.84848 | AB9: ='Design Load Calcs'!$J$23*'HP Calcs'!A9+'Design Load Calcs'!$K$23 ->  | AJ9: Normalized Cap @low stage | AK9: Normalized power @low stage | AP9: =NA() ->  | AR9: 77 | AS9: -8 | AT9: ='HP Calcs'!H8 -> 87 | AV9: =IF(IFERROR(ROUND(AV10,0)=ROUND(AV6,0),FALSE),"",IF(NOT('Step 5 Identify & Select ASHPs'!B9=1),"t-BPT="&ROUND(AV10,0)&'Step 3 Design Loads'!C13,"")) -> t-BPT=10F | AX9: ="HP2" -> HP2 | BB9: =IFERROR(IF(NOT('Step 5 Identify & Select ASHPs'!B9=1),IF('Step 5 Identify & Select ASHPs'!G24="User Input Curve",'HP2'!L7,'HP Calcs'!X26),NA()),NA()) -> 10.45758355
A10: ='Load %s'!B14 -> 7 | B10: =IF('Step 5 Identify & Select ASHPs'!$B$27="High Stage",IF(AND('Step 5 Identify & Select ASHPs'!$B$37="Yes",'Step 5 Identify & Select ASHPs'!$B$38>'HP Calcs'!A10),"-",IF('Step 5 Identify & Select ASHPs'!$B$26="Single Speed",'Ducted Performance Tables'!B10,IF('Step 5 Identify & Select ASHPs'!$B$26="Two-Stage",'Ducted Performance Tables'!B49,IF('Step 5 Identify & Select ASHPs'!$B$26="Variable",'Ducted Performance Tables'!B102,IF(AND('Step 5 Identify & Select ASHPs'!$B$26="Regular Variable",'Step 5 Identify & Select ASHPs'!$B$25="Single Split Ductless"),'Ductless Single Per Table'!B28,IF(AND('Step 5 Identify & Select ASHPs'!$B$26="Cold Climate Variable",'Step 5 Identify & Select ASHPs'!$B$25="Single Split Ductless"),'Ductless Single Per Table'!B97,IF(AND('Step 5 Identify & Select ASHPs'!$B$26="Regular Variable",'Step 5 Identify & Select ASHPs'!$B$25="Multi-Split Ductless"),'Ductless Multi-split'!B51,IF(AND('Step 5 Identify & Select ASHPs'!$B$26="Cold Climate Variable",'Step 5 Identify & Select ASHPs'!$B$25="Multi-Split Ductless"),'Ductless Multi-split'!B124,"")))))))),IF('Step 5 Identify & Select ASHPs'!$B$27="Low Stage",IF(AND('Step 5 Identify & Select ASHPs'!$B$37="Yes",'Step 5 Identify & Select ASHPs'!$B$38>'HP Calcs'!A10),"-",IF('Step 5 Identify & Select ASHPs'!$B$26="Single Speed",'Ducted Performance Tables'!B10,IF('Step 5 Identify & Select ASHPs'!$B$26="Two-Stage",'Ducted Performance Tables'!J49,IF('Step 5 Identify & Select ASHPs'!$B$26="Variable",'Ducted Performance Tables'!J102,IF(AND('Step 5 Identify & Select ASHPs'!$B$26="Regular Variable",'Step 5 Identify & Select ASHPs'!$B$25="Single Split Ductless"),'Ductless Single Per Table'!K28,IF(AND('Step 5 Identify & Select ASHPs'!$B$26="Cold Climate Variable",'Step 5 Identify & Select ASHPs'!$B$25="Single Split Ductless"),'Ductless Single Per Table'!K97,IF(AND('Step 5 Identify & Select ASHPs'!$B$26="Regular Variable",'Step 5 Identify & Select ASHPs'!$B$25="Multi-Split Ductless"),'Ductless Multi-split'!K51,IF(AND('Step 5 Identify & Select ASHPs'!$B$26="Cold Climate Variable",'Step 5 Identify & Select ASHPs'!$B$25="Multi-Split Ductless"),'Ductless Multi-split'!K124,"")))))))))) -> 0.4158333333 | C10: =IF('Step 5 Identify & Select ASHPs'!$B$27="High Stage",IF('Step 5 Identify & Select ASHPs'!$B$26="Single Speed",'Ducted Performance Tables'!C10,IF('Step 5 Identify & Select ASHPs'!$B$26="Two-Stage",'Ducted Performance Tables'!C49,IF('Step 5 Identify & Select ASHPs'!$B$26="Variable",'Ducted Performance Tables'!C102,IF(AND('Step 5 Identify & Select ASHPs'!$B$26="Regular Variable",'Step 5 Identify & Select ASHPs'!$B$25="Single Split Ductless"),'Ductless Single Per Table'!C28,IF(AND('Step 5 Identify & Select ASHPs'!$B$26="Cold Climate Variable",'Step 5 Identify & Select ASHPs'!$B$25="Single Split Ductless"),'Ductless Single Per Table'!C97,IF(AND('Step 5 Identify & Select ASHPs'!$B$26="Regular Variable",'Step 5 Identify & Select ASHPs'!$B$25="Multi-Split Ductless"),'Ductless Multi-split'!C51,IF(AND('Step 5 Identify & Select ASHPs'!$B$26="Cold Climate Variable",'Step 5 Identify & Select ASHPs'!$B$25="Multi-Split Ductless"),'Ductless Multi-split'!C124,""))))))),IF('Step 5 Identify & Select ASHPs'!$B$27="Low Stage",IF('Step 5 Identify & Select ASHPs'!$B$26="Single Speed",'Ducted Performance Tables'!C10,IF('Step 5 Identify & Select ASHPs'!$B$26="Two-Stage",'Ducted Performance Tables'!K49,IF('Step 5 Identify & Select ASHPs'!$B$26="Variable",'Ducted Performance Tables'!K102,IF(AND('Step 5 Identify & Select ASHPs'!$B$26="Regular Variable",'Step 5 Identify & Select ASHPs'!$B$25="Single Split Ductless"),'Ductless Single Per Table'!L28,IF(AND('Step 5 Identify & Select ASHPs'!$B$26="Cold Climate Variable",'Step 5 Identify & Select ASHPs'!$B$25="Single Split Ductless"),'Ductless Single Per Table'!L97,IF(AND('Step 5 Identify & Select ASHPs'!$B$26="Regular Variable",'Step 5 Identify & Select ASHPs'!$B$25="Multi-Split Ductless"),'Ductless Multi-split'!L51,IF(AND('Step 5 Identify & Select ASHPs'!$B$26="Cold Climate Variable",'Step 5 Identify & Select ASHPs'!$B$25="Multi-Split Ductless"),'Ductless Multi-split'!L124,""))))))))) -> 0.8531073446 | D10: =IFERROR(B10*IF('Step 5 Identify & Select ASHPs'!$B$27="Low Stage",$AJ$7/'HP Calcs'!$B$18,IF('Step 5 Identify & Select ASHPs'!$B$27="High Stage",$AJ$7/'HP Calcs'!$B$18,$AJ$7)),NA()) -> 4990 | E10: =IFERROR(C10*IF('Step 5 Identify & Select ASHPs'!$B$27="Low Stage",$AK$7/$C$18,IF('Step 5 Identify & Select ASHPs'!$B$27="High Stage",$AK$7/$C$18,$AK$7)),NA()) -> 1.706214689 | F10: =(D10/IF('Intro & Unit Options'!$B$12="Metric",1,3412))/E10 -> 0.8571520073 | H10: =IF('Intro & Unit Options'!$B$12="Metric",(AR13-32)*(5/9),AR13) -> 97 | I10: =IF('Step 5 Identify & Select ASHPs'!$B$27="High Stage",IF('Step 5 Identify & Select ASHPs'!$B$26="Single Speed",'Ducted Performance Tables'!B29,IF('Step 5 Identify & Select ASHPs'!$B$26="Two-Stage",'Ducted Performance Tables'!B68,IF('Step 5 Identify & Select ASHPs'!$B$26="Variable",'Ducted Performance Tables'!B133,IF(AND('Step 5 Identify & Select ASHPs'!$B$26="Cold Climate Variable",'Step 5 Identify & Select ASHPs'!$B$25="Single Split Ductless"),'Ductless Single Per Table'!B130,IF(AND('Step 5 Identify & Select ASHPs'!$B$26="Regular Variable",'Step 5 Identify & Select ASHPs'!$B$25="Single Split Ductless"),'Ductless Single Per Table'!B63,IF(AND('Step 5 Identify & Select ASHPs'!$B$26="Cold Climate Variable",'Step 5 Identify & Select ASHPs'!$B$25="Multi-Split Ductless"),'Ductless Multi-split'!B90,IF(AND('Step 5 Identify & Select ASHPs'!$B$26="Regular Variable",'Step 5 Identify & Select ASHPs'!$B$25="Multi-Split Ductless"),'Ductless Multi-split'!B21,""))))))),IF('Step 5 Identify & Select ASHPs'!$B$27="Low Stage",IF('Step 5 Identify & Select ASHPs'!$B$26="Single Speed",'Ducted Performance Tables'!B29,IF(AND('Step 5 Identify & Select ASHPs'!$B$26="Two-Stage"),'Ducted Performance Tables'!J68,IF(AND('Step 5 Identify & Select ASHPs'!$B$26="Variable"),'Ducted Performance Tables'!J133,IF(AND('Step 5 Identify & Select ASHPs'!$B$26="Cold Climate Variable",'Step 5 Identify & Select ASHPs'!$B$25="Single Split Ductless"),'Ductless Single Per Table'!K130,IF(AND('Step 5 Identify & Select ASHPs'!$B$26="Regular Variable",'Step 5 Identify & Select ASHPs'!$B$25="Single Split Ductless"),'Ductless Single Per Table'!K63,IF(AND('Step 5 Identify & Select ASHPs'!$B$26="Cold Climate Variable",'Step 5 Identify & Select ASHPs'!$B$25="Multi-Split Ductless"),'Ductless Multi-split'!K90,IF(AND('Step 5 Identify & Select ASHPs'!$B$26="Regular Variable",'Step 5 Identify & Select ASHPs'!$B$25="Multi-Split Ductless"),'Ductless Multi-split'!K21,""))))))))) -> 0.9157506614 | J10: =IF('Step 5 Identify & Select ASHPs'!$B$27="High Stage",IF('Step 5 Identify & Select ASHPs'!$B$26="Single Speed",'Ducted Performance Tables'!C29,IF('Step 5 Identify & Select ASHPs'!$B$26="Two-Stage",'Ducted Performance Tables'!C68,IF('Step 5 Identify & Select ASHPs'!$B$26="Variable",'Ducted Performance Tables'!C133,IF(AND('Step 5 Identify & Select ASHPs'!$B$26="Cold Climate Variable",'Step 5 Identify & Select ASHPs'!$B$25="Single Split Ductless"),'Ductless Single Per Table'!C130,IF(AND('Step 5 Identify & Select ASHPs'!$B$26="Regular Variable",'Step 5 Identify & Select ASHPs'!$B$25="Single Split Ductless"),'Ductless Single Per Table'!C63,IF(AND('Step 5 Identify & Select ASHPs'!$B$26="Cold Climate Variable",'Step 5 Identify & Select ASHPs'!$B$25="Multi-Split Ductless"),'Ductless Multi-split'!C90,IF(AND('Step 5 Identify & Select ASHPs'!$B$26="Regular Variable",'Step 5 Identify & Select ASHPs'!$B$25="Multi-Split Ductless"),'Ductless Multi-split'!C21,""))))))),IF('Step 5 Identify & Select ASHPs'!$B$27="Low Stage",IF('Step 5 Identify & Select ASHPs'!$B$26="Single Speed",'Ducted Performance Tables'!C29,IF(AND('Step 5 Identify & Select ASHPs'!$B$26="Two-Stage"),'Ducted Performance Tables'!K68,IF(AND('Step 5 Identify & Select ASHPs'!$B$26="Variable"),'Ducted Performance Tables'!K133,IF(AND('Step 5 Identify & Select ASHPs'!$B$26="Cold Climate Variable",'Step 5 Identify & Select ASHPs'!$B$25="Single Split Ductless"),'Ductless Single Per Table'!L130,IF(AND('Step 5 Identify & Select ASHPs'!$B$26="Regular Variable",'Step 5 Identify & Select ASHPs'!$B$25="Single Split Ductless"),'Ductless Single Per Table'!L63,IF(AND('Step 5 Identify & Select ASHPs'!$B$26="Cold Climate Variable",'Step 5 Identify & Select ASHPs'!$B$25="Multi-Split Ductless"),'Ductless Multi-split'!L90,IF(AND('Step 5 Identify & Select ASHPs'!$B$26="Regular Variable",'Step 5 Identify & Select ASHPs'!$B$25="Multi-Split Ductless"),'Ductless Multi-split'!L21,""))))))))) -> 1.014384921 | K10: =IF(I10=0,NA(),IFERROR(I10*IF('Step 5 Identify & Select ASHPs'!$B$26="Single Speed",$AJ$14,IF('Step 5 Identify & Select ASHPs'!$B$27="Low Stage",$AJ$14/$AJ$17,IF(AND('Step 5 Identify & Select ASHPs'!$B$27="High Stage"),$AJ$14/$AJ$20,$AJ$14/$AJ$17))),NA())) -> 10989.00794 | L10: =IF(J10=0,NA(),IFERROR(J10*IF('Step 5 Identify & Select ASHPs'!$B$26="Single Speed",$AK$14,IF('Step 5 Identify & Select ASHPs'!$B$27="Low Stage",$AK$14/$AK$17,IF(AND('Step 5 Identify & Select ASHPs'!$B$27="High Stage",'Step 5 Identify & Select ASHPs'!$B$28<>"B"),$AK$14/$AK$20,$AK$14/$AK$17))),NA())) -> 2.028769841 | M10: =(K10/IF('Intro & Unit Options'!$B$12="Metric",1,3412))/L10 -> 1.587510785 | O10: 13 | P10: - | Q10: =IF(AND('Step 5 Identify & Select ASHPs'!$G$37="Yes",'Step 5 Identify & Select ASHPs'!$B$38>A10),"-",IF('Step 5 Identify & Select ASHPs'!$B$27="High Stage",IF('Step 5 Identify & Select ASHPs'!$B$26="Single Speed",'Ducted Performance Tables'!C10,IF('Step 5 Identify & Select ASHPs'!$B$26="Two-Stage",'Ducted Performance Tables'!C49,IF('Step 5 Identify & Select ASHPs'!$B$26="Variable",'Ducted Performance Tables'!C102,IF(AND('Step 5 Identify & Select ASHPs'!$B$26="Regular Variable",'Step 5 Identify & Select ASHPs'!$B$25="Single Split Ductless"),'Ductless Single Per Table'!C28,IF(AND('Step 5 Identify & Select ASHPs'!$B$26="Cold Climate Variable",'Step 5 Identify & Select ASHPs'!$B$25="Single Split Ductless"),'Ductless Single Per Table'!C97,IF(AND('Step 5 Identify & Select ASHPs'!$B$26="Regular Variable",'Step 5 Identify & Select ASHPs'!$B$25="Multi-Split Ductless"),'Ductless Multi-split'!C51,IF(AND('Step 5 Identify & Select ASHPs'!$B$26="Cold Climate Variable",'Step 5 Identify & Select ASHPs'!$B$25="Multi-Split Ductless"),'Ductless Multi-split'!C124,""))))))),IF('Step 5 Identify & Select ASHPs'!$B$27="Low Stage",IF('Step 5 Identify & Select ASHPs'!$B$26="Single Speed",'Ducted Performance Tables'!C10,IF('Step 5 Identify & Select ASHPs'!$B$26="Two-Stage",'Ducted Performance Tables'!K49,IF('Step 5 Identify & Select ASHPs'!$B$26="Variable",'Ducted Performance Tables'!K102,IF(AND('Step 5 Identify & Select ASHPs'!$B$26="Regular Variable",'Step 5 Identify & Select ASHPs'!$B$25="Single Split Ductless"),'Ductless Single Per Table'!L28,IF(AND('Step 5 Identify & Select ASHPs'!$B$26="Cold Climate Variable",'Step 5 Identify & Select ASHPs'!$B$25="Single Split Ductless"),'Ductless Single Per Table'!L97,IF(AND('Step 5 Identify & Select ASHPs'!$B$26="Regular Variable",'Step 5 Identify & Select ASHPs'!$B$25="Multi-Split Ductless"),'Ductless Multi-split'!L51,IF(AND('Step 5 Identify & Select ASHPs'!$B$26="Cold Climate Variable",'Step 5 Identify & Select ASHPs'!$B$25="Multi-Split Ductless"),'Ductless Multi-split'!L124,"")))))))))) -> 0.8531073446 | S10: ='Design Load Calcs'!$G$23*'HP Calcs'!A10+'Design Load Calcs'!$H$23 -> 10037.87879 | V10: a | W10: b | Z10: =IF(AND(B33="Yes",A4>='Control Strategy Calcs'!U4),IF('Step 5 Identify & Select ASHPs'!$B$26="Two-Stage",'Ducted Performance Tables'!E45,IF('Step 5 Identify & Select ASHPs'!$B$26="Variable",'Ducted Performance Tables'!E98,IF(AND('Step 5 Identify & Select ASHPs'!$B$26="Regular Variable",'Step 5 Identify & Select ASHPs'!$B$25="Single Split Ductless"),'Ductless Single Per Table'!E25,IF(AND('Step 5 Identify & Select ASHPs'!$B$26="Cold Climate Variable",'Step 5 Identify & Select ASHPs'!$B$25="Single Split Ductless"),'Ductless Single Per Table'!E94,IF(AND('Step 5 Identify & Select ASHPs'!$B$26="Regular Variable",'Step 5 Identify & Select ASHPs'!$B$25="Multi-Split Ductless"),'Ductless Multi-split'!E48,IF(AND('Step 5 Identify & Select ASHPs'!$B$26="Cold Climate Variable",'Step 5 Identify & Select ASHPs'!$B$25="Multi-Split Ductless"),'Ductless Multi-split'!E121,"")))))),IF('Step 5 Identify & Select ASHPs'!$B$26="Two-Stage",'Ducted Performance Tables'!E47,IF('Step 5 Identify & Select ASHPs'!$B$26="Variable",'Ducted Performance Tables'!E100,IF(AND('Step 5 Identify & Select ASHPs'!$B$26="Regular Variable",'Step 5 Identify & Select ASHPs'!$B$25="Single Split Ductless"),'Ductless Single Per Table'!E27,IF(AND('Step 5 Identify & Select ASHPs'!$B$26="Cold Climate Variable",'Step 5 Identify & Select ASHPs'!$B$25="Single Split Ductless"),'Ductless Single Per Table'!E96,IF(AND('Step 5 Identify & Select ASHPs'!$B$26="Regular Variable",'Step 5 Identify & Select ASHPs'!$B$25="Multi-Split Ductless"),'Ductless Multi-split'!E50,IF(AND('Step 5 Identify & Select ASHPs'!$B$26="Cold Climate Variable",'Step 5 Identify & Select ASHPs'!$B$25="Multi-Split Ductless"),'Ductless Multi-split'!E123,""))))))) ->  | AA10: =IF(AND(B33="Yes",A4>='Control Strategy Calcs'!U4),IF('Step 5 Identify & Select ASHPs'!$B$26="Two-Stage",'Ducted Performance Tables'!F45,IF('Step 5 Identify & Select ASHPs'!$B$26="Variable",'Ducted Performance Tables'!F98,IF(AND('Step 5 Identify & Select ASHPs'!$B$26="Regular Variable",'Step 5 Identify & Select ASHPs'!$B$25="Single Split Ductless"),'Ductless Single Per Table'!F25,IF(AND('Step 5 Identify & Select ASHPs'!$B$26="Cold Climate Variable",'Step 5 Identify & Select ASHPs'!$B$25="Single Split Ductless"),'Ductless Single Per Table'!F94,IF(AND('Step 5 Identify & Select ASHPs'!$B$26="Regular Variable",'Step 5 Identify & Select ASHPs'!$B$25="Multi-Split Ductless"),'Ductless Multi-split'!F48,IF(AND('Step 5 Identify & Select ASHPs'!$B$26="Cold Climate Variable",'Step 5 Identify & Select ASHPs'!$B$25="Multi-Split Ductless"),'Ductless Multi-split'!F121,"")))))),IF('Step 5 Identify & Select ASHPs'!$B$26="Two-Stage",'Ducted Performance Tables'!F47,IF('Step 5 Identify & Select ASHPs'!$B$26="Variable",'Ducted Performance Tables'!F100,IF(AND('Step 5 Identify & Select ASHPs'!$B$26="Regular Variable",'Step 5 Identify & Select ASHPs'!$B$25="Single Split Ductless"),'Ductless Single Per Table'!F27,IF(AND('Step 5 Identify & Select ASHPs'!$B$26="Cold Climate Variable",'Step 5 Identify & Select ASHPs'!$B$25="Single Split Ductless"),'Ductless Single Per Table'!F96,IF(AND('Step 5 Identify & Select ASHPs'!$B$26="Regular Variable",'Step 5 Identify & Select ASHPs'!$B$25="Multi-Split Ductless"),'Ductless Multi-split'!F50,IF(AND('Step 5 Identify & Select ASHPs'!$B$26="Cold Climate Variable",'Step 5 Identify & Select ASHPs'!$B$25="Multi-Split Ductless"),'Ductless Multi-split'!F123,""))))))) ->  | AB10: ='Design Load Calcs'!$J$23*'HP Calcs'!A10+'Design Load Calcs'!$K$23 ->  | AE10: a | AF10: b | AJ10: =IF('Step 5 Identify & Select ASHPs'!$D$30='Step 5 Identify & Select ASHPs'!$W$16,IF('Step 5 Identify & Select ASHPs'!$B$26="Two-Stage",'Ducted Performance Tables'!J51,IF('Step 5 Identify & Select ASHPs'!$B$26="Variable",'Ducted Performance Tables'!J104,IF(AND('Step 5 Identify & Select ASHPs'!$B$26="Regular Variable",'Step 5 Identify & Select ASHPs'!$B$25="Single Split Ductless"),'Ductless Single Per Table'!K30,IF(AND('Step 5 Identify & Select ASHPs'!$B$26="Cold Climate Variable",'Step 5 Identify & Select ASHPs'!$B$25="Single Split Ductless"),'Ductless Single Per Table'!K99,IF(AND('Step 5 Identify & Select ASHPs'!$B$26="Regular Variable",'Step 5 Identify & Select ASHPs'!$B$25="Multi-Split Ductless"),'Ductless Multi-split'!K53,IF(AND('Step 5 Identify & Select ASHPs'!$B$26="Cold Climate Variable",'Step 5 Identify & Select ASHPs'!$B$25="Multi-Split Ductless"),'Ductless Multi-split'!K126,"")))))),IF('Step 5 Identify & Select ASHPs'!$D$30='Step 5 Identify & Select ASHPs'!$W$17,IF('Step 5 Identify & Select ASHPs'!$B$26="Two-Stage",'Ducted Performance Tables'!J57,IF('Step 5 Identify & Select ASHPs'!$B$26="Variable",'Ducted Performance Tables'!J110,IF(AND('Step 5 Identify & Select ASHPs'!$B$26="Regular Variable",'Step 5 Identify & Select ASHPs'!$B$25="Single Split Ductless"),'Ductless Single Per Table'!K36,IF(AND('Step 5 Identify & Select ASHPs'!$B$26="Cold Climate Variable",'Step 5 Identify & Select ASHPs'!$B$25="Single Split Ductless"),'Ductless Single Per Table'!K105,IF(AND('Step 5 Identify & Select ASHPs'!$B$26="Regular Variable",'Step 5 Identify & Select ASHPs'!$B$25="Multi-Split Ductless"),'Ductless Multi-split'!K59,IF(AND('Step 5 Identify & Select ASHPs'!$B$26="Cold Climate Variable",'Step 5 Identify & Select ASHPs'!$B$25="Multi-Split Ductless"),'Ductless Multi-split'!K111)))))),IF('Step 5 Identify & Select ASHPs'!$D$30='Step 5 Identify & Select ASHPs'!$W$18,Z10))) -> FALSE | AK10: =IF('Step 5 Identify & Select ASHPs'!$D$30='Step 5 Identify & Select ASHPs'!$W$16,IF('Step 5 Identify & Select ASHPs'!$B$26="Two-Stage",'Ducted Performance Tables'!K51,IF('Step 5 Identify & Select ASHPs'!$B$26="Variable",'Ducted Performance Tables'!K104,IF(AND('Step 5 Identify & Select ASHPs'!$B$26="Regular Variable",'Step 5 Identify & Select ASHPs'!$B$25="Single Split Ductless"),'Ductless Single Per Table'!L30,IF(AND('Step 5 Identify & Select ASHPs'!$B$26="Cold Climate Variable",'Step 5 Identify & Select ASHPs'!$B$25="Single Split Ductless"),'Ductless Single Per Table'!L99,IF(AND('Step 5 Identify & Select ASHPs'!$B$26="Regular Variable",'Step 5 Identify & Select ASHPs'!$B$25="Multi-Split Ductless"),'Ductless Multi-split'!L53,IF(AND('Step 5 Identify & Select ASHPs'!$B$26="Cold Climate Variable",'Step 5 Identify & Select ASHPs'!$B$25="Multi-Split Ductless"),'Ductless Multi-split'!L126,"")))))),IF('Step 5 Identify & Select ASHPs'!$D$30='Step 5 Identify & Select ASHPs'!$W$17,IF('Step 5 Identify & Select ASHPs'!$B$26="Two-Stage",'Ducted Performance Tables'!K57,IF('Step 5 Identify & Select ASHPs'!$B$26="Variable",'Ducted Performance Tables'!K110,IF(AND('Step 5 Identify & Select ASHPs'!$B$26="Regular Variable",'Step 5 Identify & Select ASHPs'!$B$25="Single Split Ductless"),'Ductless Single Per Table'!L36,IF(AND('Step 5 Identify & Select ASHPs'!$B$26="Cold Climate Variable",'Step 5 Identify & Select ASHPs'!$B$25="Single Split Ductless"),'Ductless Single Per Table'!L105,IF(AND('Step 5 Identify & Select ASHPs'!$B$26="Regular Variable",'Step 5 Identify & Select ASHPs'!$B$25="Multi-Split Ductless"),'Ductless Multi-split'!L59,IF(AND('Step 5 Identify & Select ASHPs'!$B$26="Cold Climate Variable",'Step 5 Identify & Select ASHPs'!$B$25="Multi-Split Ductless"),'Ductless Multi-split'!L111)))))),IF('Step 5 Identify & Select ASHPs'!$D$30='Step 5 Identify & Select ASHPs'!$W$18,AA10))) -> FALSE | AR10: 82 | AS10: -3 | AT10: ='HP Calcs'!H9 -> 92 | AU10: =IF(IFERROR(ROUND(IF('Step 5 Identify & Select ASHPs'!G24="User Input Curve",'HP2'!L7,'HP Calcs'!X26),0)=ROUND(AV6,0),FALSE),NA(),IFERROR(IF(NOT('Step 5 Identify & Select ASHPs'!B9=1),IF('Step 5 Identify & Select ASHPs'!G24="User Input Curve",'HP2'!L7,'HP Calcs'!X26),NA()),NA())) -> 10.45758355 | AV10: =IF(IFERROR(ROUND(IF('Step 5 Identify & Select ASHPs'!G24="User Input Curve",'HP2'!L7,AU10),0)=ROUND(AV6,0),FALSE),NA(),IFERROR(IF(NOT('Step 5 Identify & Select ASHPs'!B9=1),IF('Step 5 Identify & Select ASHPs'!G24="User Input Curve",'HP2'!L7,AU10),NA()),NA())) -> 10.45758355 | AW10: =IF(NOT('Step 5 Identify & Select ASHPs'!B9=1),IF('Step 5 Identify & Select ASHPs'!G24="User Input Curve",'HP2'!L21,V37),NA()) -> 9383.033419 | BB10: =BB9 -> 10.45758355
A11: ='Load %s'!B15 -> 12 | B11: =IF('Step 5 Identify & Select ASHPs'!$B$27="High Stage",IF(AND('Step 5 Identify & Select ASHPs'!$B$37="Yes",'Step 5 Identify & Select ASHPs'!$B$38>'HP Calcs'!A11),"-",IF('Step 5 Identify & Select ASHPs'!$B$26="Single Speed",'Ducted Performance Tables'!B11,IF('Step 5 Identify & Select ASHPs'!$B$26="Two-Stage",'Ducted Performance Tables'!B50,IF('Step 5 Identify & Select ASHPs'!$B$26="Variable",'Ducted Performance Tables'!B103,IF(AND('Step 5 Identify & Select ASHPs'!$B$26="Regular Variable",'Step 5 Identify & Select ASHPs'!$B$25="Single Split Ductless"),'Ductless Single Per Table'!B29,IF(AND('Step 5 Identify & Select ASHPs'!$B$26="Cold Climate Variable",'Step 5 Identify & Select ASHPs'!$B$25="Single Split Ductless"),'Ductless Single Per Table'!B98,IF(AND('Step 5 Identify & Select ASHPs'!$B$26="Regular Variable",'Step 5 Identify & Select ASHPs'!$B$25="Multi-Split Ductless"),'Ductless Multi-split'!B52,IF(AND('Step 5 Identify & Select ASHPs'!$B$26="Cold Climate Variable",'Step 5 Identify & Select ASHPs'!$B$25="Multi-Split Ductless"),'Ductless Multi-split'!B125,"")))))))),IF('Step 5 Identify & Select ASHPs'!$B$27="Low Stage",IF(AND('Step 5 Identify & Select ASHPs'!$B$37="Yes",'Step 5 Identify & Select ASHPs'!$B$38>'HP Calcs'!A11),"-",IF('Step 5 Identify & Select ASHPs'!$B$26="Single Speed",'Ducted Performance Tables'!B11,IF('Step 5 Identify & Select ASHPs'!$B$26="Two-Stage",'Ducted Performance Tables'!J50,IF('Step 5 Identify & Select ASHPs'!$B$26="Variable",'Ducted Performance Tables'!J103,IF(AND('Step 5 Identify & Select ASHPs'!$B$26="Regular Variable",'Step 5 Identify & Select ASHPs'!$B$25="Single Split Ductless"),'Ductless Single Per Table'!K29,IF(AND('Step 5 Identify & Select ASHPs'!$B$26="Cold Climate Variable",'Step 5 Identify & Select ASHPs'!$B$25="Single Split Ductless"),'Ductless Single Per Table'!K98,IF(AND('Step 5 Identify & Select ASHPs'!$B$26="Regular Variable",'Step 5 Identify & Select ASHPs'!$B$25="Multi-Split Ductless"),'Ductless Multi-split'!K52,IF(AND('Step 5 Identify & Select ASHPs'!$B$26="Cold Climate Variable",'Step 5 Identify & Select ASHPs'!$B$25="Multi-Split Ductless"),'Ductless Multi-split'!K125,"")))))))))) -> 0.4766666667 | C11: =IF('Step 5 Identify & Select ASHPs'!$B$27="High Stage",IF('Step 5 Identify & Select ASHPs'!$B$26="Single Speed",'Ducted Performance Tables'!C11,IF('Step 5 Identify & Select ASHPs'!$B$26="Two-Stage",'Ducted Performance Tables'!C50,IF('Step 5 Identify & Select ASHPs'!$B$26="Variable",'Ducted Performance Tables'!C103,IF(AND('Step 5 Identify & Select ASHPs'!$B$26="Regular Variable",'Step 5 Identify & Select ASHPs'!$B$25="Single Split Ductless"),'Ductless Single Per Table'!C29,IF(AND('Step 5 Identify & Select ASHPs'!$B$26="Cold Climate Variable",'Step 5 Identify & Select ASHPs'!$B$25="Single Split Ductless"),'Ductless Single Per Table'!C98,IF(AND('Step 5 Identify & Select ASHPs'!$B$26="Regular Variable",'Step 5 Identify & Select ASHPs'!$B$25="Multi-Split Ductless"),'Ductless Multi-split'!C52,IF(AND('Step 5 Identify & Select ASHPs'!$B$26="Cold Climate Variable",'Step 5 Identify & Select ASHPs'!$B$25="Multi-Split Ductless"),'Ductless Multi-split'!C125,""))))))),IF('Step 5 Identify & Select ASHPs'!$B$27="Low Stage",IF('Step 5 Identify & Select ASHPs'!$B$26="Single Speed",'Ducted Performance Tables'!C11,IF('Step 5 Identify & Select ASHPs'!$B$26="Two-Stage",'Ducted Performance Tables'!K50,IF('Step 5 Identify & Select ASHPs'!$B$26="Variable",'Ducted Performance Tables'!K103,IF(AND('Step 5 Identify & Select ASHPs'!$B$26="Regular Variable",'Step 5 Identify & Select ASHPs'!$B$25="Single Split Ductless"),'Ductless Single Per Table'!L29,IF(AND('Step 5 Identify & Select ASHPs'!$B$26="Cold Climate Variable",'Step 5 Identify & Select ASHPs'!$B$25="Single Split Ductless"),'Ductless Single Per Table'!L98,IF(AND('Step 5 Identify & Select ASHPs'!$B$26="Regular Variable",'Step 5 Identify & Select ASHPs'!$B$25="Multi-Split Ductless"),'Ductless Multi-split'!L52,IF(AND('Step 5 Identify & Select ASHPs'!$B$26="Cold Climate Variable",'Step 5 Identify & Select ASHPs'!$B$25="Multi-Split Ductless"),'Ductless Multi-split'!L125,""))))))))) -> 0.8728813559 | D11: =IFERROR(B11*IF('Step 5 Identify & Select ASHPs'!$B$27="Low Stage",$AJ$7/'HP Calcs'!$B$18,IF('Step 5 Identify & Select ASHPs'!$B$27="High Stage",$AJ$7/'HP Calcs'!$B$18,$AJ$7)),NA()) -> 5720 | E11: =IFERROR(C11*IF('Step 5 Identify & Select ASHPs'!$B$27="Low Stage",$AK$7/$C$18,IF('Step 5 Identify & Select ASHPs'!$B$27="High Stage",$AK$7/$C$18,$AK$7)),NA()) -> 1.745762712 | F11: =(D11/IF('Intro & Unit Options'!$B$12="Metric",1,3412))/E11 -> 0.9602886443 | H11: =IF('Intro & Unit Options'!$B$12="Metric",(AR14-32)*(5/9),AR14) -> 102 | I11: =IF('Step 5 Identify & Select ASHPs'!$B$27="High Stage",IF('Step 5 Identify & Select ASHPs'!$B$26="Single Speed",'Ducted Performance Tables'!B30,IF('Step 5 Identify & Select ASHPs'!$B$26="Two-Stage",'Ducted Performance Tables'!B69,IF('Step 5 Identify & Select ASHPs'!$B$26="Variable",'Ducted Performance Tables'!B134,IF(AND('Step 5 Identify & Select ASHPs'!$B$26="Cold Climate Variable",'Step 5 Identify & Select ASHPs'!$B$25="Single Split Ductless"),'Ductless Single Per Table'!B131,IF(AND('Step 5 Identify & Select ASHPs'!$B$26="Regular Variable",'Step 5 Identify & Select ASHPs'!$B$25="Single Split Ductless"),'Ductless Single Per Table'!B64,IF(AND('Step 5 Identify & Select ASHPs'!$B$26="Cold Climate Variable",'Step 5 Identify & Select ASHPs'!$B$25="Multi-Split Ductless"),'Ductless Multi-split'!B91,IF(AND('Step 5 Identify & Select ASHPs'!$B$26="Regular Variable",'Step 5 Identify & Select ASHPs'!$B$25="Multi-Split Ductless"),'Ductless Multi-split'!B22,""))))))),IF('Step 5 Identify & Select ASHPs'!$B$27="Low Stage",IF('Step 5 Identify & Select ASHPs'!$B$26="Single Speed",'Ducted Performance Tables'!B30,IF(AND('Step 5 Identify & Select ASHPs'!$B$26="Two-Stage"),'Ducted Performance Tables'!J69,IF(AND('Step 5 Identify & Select ASHPs'!$B$26="Variable"),'Ducted Performance Tables'!J134,IF(AND('Step 5 Identify & Select ASHPs'!$B$26="Cold Climate Variable",'Step 5 Identify & Select ASHPs'!$B$25="Single Split Ductless"),'Ductless Single Per Table'!K131,IF(AND('Step 5 Identify & Select ASHPs'!$B$26="Regular Variable",'Step 5 Identify & Select ASHPs'!$B$25="Single Split Ductless"),'Ductless Single Per Table'!K64,IF(AND('Step 5 Identify & Select ASHPs'!$B$26="Cold Climate Variable",'Step 5 Identify & Select ASHPs'!$B$25="Multi-Split Ductless"),'Ductless Multi-split'!K91,IF(AND('Step 5 Identify & Select ASHPs'!$B$26="Regular Variable",'Step 5 Identify & Select ASHPs'!$B$25="Multi-Split Ductless"),'Ductless Multi-split'!K22,""))))))))) -> 0.8895023148 | J11: =IF('Step 5 Identify & Select ASHPs'!$B$27="High Stage",IF('Step 5 Identify & Select ASHPs'!$B$26="Single Speed",'Ducted Performance Tables'!C30,IF('Step 5 Identify & Select ASHPs'!$B$26="Two-Stage",'Ducted Performance Tables'!C69,IF('Step 5 Identify & Select ASHPs'!$B$26="Variable",'Ducted Performance Tables'!C134,IF(AND('Step 5 Identify & Select ASHPs'!$B$26="Cold Climate Variable",'Step 5 Identify & Select ASHPs'!$B$25="Single Split Ductless"),'Ductless Single Per Table'!C131,IF(AND('Step 5 Identify & Select ASHPs'!$B$26="Regular Variable",'Step 5 Identify & Select ASHPs'!$B$25="Single Split Ductless"),'Ductless Single Per Table'!C64,IF(AND('Step 5 Identify & Select ASHPs'!$B$26="Cold Climate Variable",'Step 5 Identify & Select ASHPs'!$B$25="Multi-Split Ductless"),'Ductless Multi-split'!C91,IF(AND('Step 5 Identify & Select ASHPs'!$B$26="Regular Variable",'Step 5 Identify & Select ASHPs'!$B$25="Multi-Split Ductless"),'Ductless Multi-split'!C22,""))))))),IF('Step 5 Identify & Select ASHPs'!$B$27="Low Stage",IF('Step 5 Identify & Select ASHPs'!$B$26="Single Speed",'Ducted Performance Tables'!C30,IF(AND('Step 5 Identify & Select ASHPs'!$B$26="Two-Stage"),'Ducted Performance Tables'!K69,IF(AND('Step 5 Identify & Select ASHPs'!$B$26="Variable"),'Ducted Performance Tables'!K134,IF(AND('Step 5 Identify & Select ASHPs'!$B$26="Cold Climate Variable",'Step 5 Identify & Select ASHPs'!$B$25="Single Split Ductless"),'Ductless Single Per Table'!L131,IF(AND('Step 5 Identify & Select ASHPs'!$B$26="Regular Variable",'Step 5 Identify & Select ASHPs'!$B$25="Single Split Ductless"),'Ductless Single Per Table'!L64,IF(AND('Step 5 Identify & Select ASHPs'!$B$26="Cold Climate Variable",'Step 5 Identify & Select ASHPs'!$B$25="Multi-Split Ductless"),'Ductless Multi-split'!L91,IF(AND('Step 5 Identify & Select ASHPs'!$B$26="Regular Variable",'Step 5 Identify & Select ASHPs'!$B$25="Multi-Split Ductless"),'Ductless Multi-split'!L22,""))))))))) -> 1.076388889 | K11: =IF(I11=0,NA(),IFERROR(I11*IF('Step 5 Identify & Select ASHPs'!$B$26="Single Speed",$AJ$14,IF('Step 5 Identify & Select ASHPs'!$B$27="Low Stage",$AJ$14/$AJ$17,IF(AND('Step 5 Identify & Select ASHPs'!$B$27="High Stage"),$AJ$14/$AJ$20,$AJ$14/$AJ$17))),NA())) -> 10674.02778 | L11: =IF(J11=0,NA(),IFERROR(J11*IF('Step 5 Identify & Select ASHPs'!$B$26="Single Speed",$AK$14,IF('Step 5 Identify & Select ASHPs'!$B$27="Low Stage",$AK$14/$AK$17,IF(AND('Step 5 Identify & Select ASHPs'!$B$27="High Stage",'Step 5 Identify & Select ASHPs'!$B$28<>"B"),$AK$14/$AK$20,$AK$14/$AK$17))),NA())) -> 2.152777778 | M11: =(K11/IF('Intro & Unit Options'!$B$12="Metric",1,3412))/L11 -> 1.453182317 | O11: 8 | P11: - | Q11: =IF(AND('Step 5 Identify & Select ASHPs'!$G$37="Yes",'Step 5 Identify & Select ASHPs'!$B$38>A11),"-",IF('Step 5 Identify & Select ASHPs'!$B$27="High Stage",IF('Step 5 Identify & Select ASHPs'!$B$26="Single Speed",'Ducted Performance Tables'!C11,IF('Step 5 Identify & Select ASHPs'!$B$26="Two-Stage",'Ducted Performance Tables'!C50,IF('Step 5 Identify & Select ASHPs'!$B$26="Variable",'Ducted Performance Tables'!C103,IF(AND('Step 5 Identify & Select ASHPs'!$B$26="Regular Variable",'Step 5 Identify & Select ASHPs'!$B$25="Single Split Ductless"),'Ductless Single Per Table'!C29,IF(AND('Step 5 Identify & Select ASHPs'!$B$26="Cold Climate Variable",'Step 5 Identify & Select ASHPs'!$B$25="Single Split Ductless"),'Ductless Single Per Table'!C98,IF(AND('Step 5 Identify & Select ASHPs'!$B$26="Regular Variable",'Step 5 Identify & Select ASHPs'!$B$25="Multi-Split Ductless"),'Ductless Multi-split'!C52,IF(AND('Step 5 Identify & Select ASHPs'!$B$26="Cold Climate Variable",'Step 5 Identify & Select ASHPs'!$B$25="Multi-Split Ductless"),'Ductless Multi-split'!C125,""))))))),IF('Step 5 Identify & Select ASHPs'!$B$27="Low Stage",IF('Step 5 Identify & Select ASHPs'!$B$26="Single Speed",'Ducted Performance Tables'!C11,IF('Step 5 Identify & Select ASHPs'!$B$26="Two-Stage",'Ducted Performance Tables'!K50,IF('Step 5 Identify & Select ASHPs'!$B$26="Variable",'Ducted Performance Tables'!K103,IF(AND('Step 5 Identify & Select ASHPs'!$B$26="Regular Variable",'Step 5 Identify & Select ASHPs'!$B$25="Single Split Ductless"),'Ductless Single Per Table'!L29,IF(AND('Step 5 Identify & Select ASHPs'!$B$26="Cold Climate Variable",'Step 5 Identify & Select ASHPs'!$B$25="Single Split Ductless"),'Ductless Single Per Table'!L98,IF(AND('Step 5 Identify & Select ASHPs'!$B$26="Regular Variable",'Step 5 Identify & Select ASHPs'!$B$25="Multi-Split Ductless"),'Ductless Multi-split'!L52,IF(AND('Step 5 Identify & Select ASHPs'!$B$26="Cold Climate Variable",'Step 5 Identify & Select ASHPs'!$B$25="Multi-Split Ductless"),'Ductless Multi-split'!L125,"")))))))))) -> 0.8728813559 | S11: ='Design Load Calcs'!$G$23*'HP Calcs'!A11+'Design Load Calcs'!$H$23 -> 9090.909091 | V11: =(INDEX(D4:D20,U6)-INDEX(D4:D20,U5))/(V6-V5) -> 111.5 | W11: =INDEX(D4:D20,U5)-V11*V5 -> 4554.5 | X11: =IF(IF(('Design Load Calcs'!$H$23-'HP Calcs'!W11)/('HP Calcs'!V11-'Design Load Calcs'!$G$23)<'Step 3 Design Loads'!B13,NA(),('Design Load Calcs'!$H$23-'HP Calcs'!W11)/('HP Calcs'!V11-'Design Load Calcs'!$G$23))>A20,NA(),IF(('Design Load Calcs'!$H$23-'HP Calcs'!W11)/('HP Calcs'!V11-'Design Load Calcs'!$G$23)<'Step 3 Design Loads'!B13,NA(),('Design Load Calcs'!$H$23-'HP Calcs'!W11)/('HP Calcs'!V11-'Design Load Calcs'!$G$23))) -> 22.62968931 | AB11: ='Design Load Calcs'!$J$23*'HP Calcs'!A11+'Design Load Calcs'!$K$23 ->  | AE11: =IFERROR((INDEX(D4:D20,AD6)-INDEX(D4:D20,AD4))/(AE6-AE4),(INDEX(D4:D20,AD6)-INDEX(D4:D20,AD5))/(AE6-AE5)) ->  | AF11: =INDEX(D4:D20,AD5)-AE11*AE5 ->  | AR11: 87 | AS11: 2 | AT11: ='HP Calcs'!H10 -> 97 | AV11: =AV10 -> 10.45758355 | AW11: 0
